Workbook

Sheet 01 staff matrix
B10: Infected staff - exposure focused rollout
B11: Time [d] | C11: 0 | D11: 1 | E11: 2 | F11: 3 | G11: 4 | H11: 5 | I11: 6 | J11: 7 | K11: 8 | L11: 9 | M11: 10 | N11: 11 | O11: 12 | P11: 13 | Q11: 14 | R11: 15 | S11: 16 | T11: 17 | U11: 18 | V11: 19 | W11: 20 | X11: 21 | Y11: 22 | Z11: 23 | AA11: 24 | AB11: 25 | AC11: 26 | AD11: 27 | AE11: 28 | AF11: 29 | AG11: 30 | AH11: 31 | AI11: 32 | AJ11: 33 | AK11: 34 | AL11: 35 | AM11: 36 | AN11: 37 | AO11: 38 | AP11: 39 | AQ11: 40 | AR11: 41 | AS11: 42 | AT11: 43 | AU11: 44 | AV11: 45 | AW11: 46 | AX11: 47 | AY11: 48 | AZ11: 49 | BA11: 50 | BB11: 51 | BC11: 52 | BD11: 53 | BE11: 54 | BF11: 55 | BG11: 56 | BH11: 57 | BI11: 58 | BJ11: 59 | BK11: 60 | BL11: 61 | BM11: 62 | BN11: 63 | BO11: 64 | BP11: 65 | BQ11: 66 | BR11: 67 | BS11: 68 | BT11: 69 | BU11: 70 | BV11: 71 | BW11: 72 | BX11: 73 | BY11: 74 | BZ11: 75 | CA11: 76 | CB11: 77 | CC11: 78 | CD11: 79 | CE11: 80 | CF11: 81 | CG11: 82 | CH11: 83 | CI11: 84 | CJ11: 85 | CK11: 86 | CL11: 87 | CM11: 88 | CN11: 89 | CO11: 90 | CP11: 91 | CQ11: 92 | CR11: 93 | CS11: 94 | CT11: 95 | CU11: 96 | CV11: 97 | CW11: 98 | CX11: 99 | CY11: 100
B12: Chief | C12: 0 | D12: 0.006 | E12: 0 | F12: 0 | G12: 0 | H12: 0 | I12: 0 | J12: 0 | K12: 0 | L12: 0 | M12: 0 | N12: 0 | O12: 0 | P12: 0 | Q12: 0 | R12: 0 | S12: 0 | T12: 0 | U12: 0 | V12: 0 | W12: 0 | X12: 0 | Y12: 0 | Z12: 0 | AA12: 0 | AB12: 0 | AC12: 0 | AD12: 0 | AE12: 0 | AF12: 0 | AG12: 0 | AH12: 0 | AI12: 0 | AJ12: 0 | AK12: 0 | AL12: 0 | AM12: 0 | AN12: 0 | AO12: 0 | AP12: 0 | AQ12: 0 | AR12: 0 | AS12: 0 | AT12: 0 | AU12: 0 | AV12: 0 | AW12: 0 | AX12: 0 | AY12: 0 | AZ12: 0 | BA12: 0 | BB12: 0 | BC12: 0 | BD12: 0 | BE12: 0 | BF12: 0 | BG12: 0 | BH12: 0 | BI12: 0 | BJ12: 0 | BK12: 0 | BL12: 0 | BM12: 0 | BN12: 0 | BO12: 0 | BP12: 0 | BQ12: 0 | BR12: 0 | BS12: 0 | BT12: 0 | BU12: 0 | BV12: 0 | BW12: 0 | BX12: 0 | BY12: 0 | BZ12: 0 | CA12: 0 | CB12: 0 | CC12: 0 | CD12: 0 | CE12: 0 | CF12: 0 | CG12: 0 | CH12: 0 | CI12: 0 | CJ12: 0 | CK12: 0 | CL12: 0 | CM12: 0 | CN12: 0 | CO12: 0 | CP12: 0 | CQ12: 0 | CR12: 0 | CS12: 0 | CT12: 0 | CU12: 0 | CV12: 0 | CW12: 0 | CX12: 0 | CY12: 0
B13: Executive_Senior_Physician | C13: 0 | D13: 0.046 | E13: 0.078 | F13: 0.12 | G13: 0.17 | H13: 0.238 | I13: 0.302 | J13: 0.368 | K13: 0.416 | L13: 0.468 | M13: 0.526 | N13: 0.588 | O13: 0.658 | P13: 0.694 | Q13: 0.758 | R13: 0.818 | S13: 0.824 | T13: 0.838 | U13: 0.774 | V13: 0.74 | W13: 0.694 | X13: 0.662 | Y13: 0.63 | Z13: 0.604 | AA13: 0.564 | AB13: 0.492 | AC13: 0.402 | AD13: 0.304 | AE13: 0.258 | AF13: 0.202 | AG13: 0.16 | AH13: 0.124 | AI13: 0.098 | AJ13: 0.078 | AK13: 0.054 | AL13: 0.038 | AM13: 0.012 | AN13: 0.004 | AO13: 0 | AP13: 0 | AQ13: 0 | AR13: 0 | AS13: 0 | AT13: 0 | AU13: 0 | AV13: 0 | AW13: 0 | AX13: 0 | AY13: 0 | AZ13: 0 | BA13: 0 | BB13: 0 | BC13: 0 | BD13: 0 | BE13: 0 | BF13: 0 | BG13: 0 | BH13: 0 | BI13: 0 | BJ13: 0 | BK13: 0 | BL13: 0 | BM13: 0 | BN13: 0 | BO13: 0 | BP13: 0 | BQ13: 0 | BR13: 0 | BS13: 0 | BT13: 0 | BU13: 0 | BV13: 0 | BW13: 0 | BX13: 0 | BY13: 0 | BZ13: 0 | CA13: 0 | CB13: 0 | CC13: 0 | CD13: 0 | CE13: 0 | CF13: 0 | CG13: 0 | CH13: 0 | CI13: 0 | CJ13: 0 | CK13: 0 | CL13: 0 | CM13: 0 | CN13: 0 | CO13: 0 | CP13: 0 | CQ13: 0 | CR13: 0 | CS13: 0 | CT13: 0 | CU13: 0 | CV13: 0 | CW13: 0 | CX13: 0 | CY13: 0
B14: Senior_Physician | C14: 0 | D14: 0.17 | E14: 0.354 | F14: 0.162 | G14: 0.236 | H14: 0.302 | I14: 0.37 | J14: 0.45 | K14: 0.508 | L14: 0.596 | M14: 0.676 | N14: 0.736 | O14: 0.796 | P14: 0.848 | Q14: 0.92 | R14: 0.97 | S14: 0.982 | T14: 1.01 | U14: 1.022 | V14: 1.01 | W14: 1.002 | X14: 0.996 | Y14: 0.984 | Z14: 0.966 | AA14: 0.932 | AB14: 0.916 | AC14: 0.888 | AD14: 0.866 | AE14: 0.81 | AF14: 0.7 | AG14: 0.622 | AH14: 0.534 | AI14: 0.436 | AJ14: 0.358 | AK14: 0.294 | AL14: 0.236 | AM14: 0.176 | AN14: 0.112 | AO14: 0.082 | AP14: 0.042 | AQ14: 0.016 | AR14: 0.004 | AS14: 0 | AT14: 0 | AU14: 0 | AV14: 0 | AW14: 0 | AX14: 0 | AY14: 0 | AZ14: 0 | BA14: 0 | BB14: 0 | BC14: 0 | BD14: 0 | BE14: 0 | BF14: 0 | BG14: 0 | BH14: 0 | BI14: 0 | BJ14: 0 | BK14: 0 | BL14: 0 | BM14: 0 | BN14: 0 | BO14: 0 | BP14: 0 | BQ14: 0 | BR14: 0 | BS14: 0 | BT14: 0 | BU14: 0 | BV14: 0 | BW14: 0 | BX14: 0 | BY14: 0 | BZ14: 0 | CA14: 0 | CB14: 0 | CC14: 0 | CD14: 0 | CE14: 0 | CF14: 0 | CG14: 0 | CH14: 0 | CI14: 0 | CJ14: 0 | CK14: 0 | CL14: 0 | CM14: 0 | CN14: 0 | CO14: 0 | CP14: 0 | CQ14: 0 | CR14: 0 | CS14: 0 | CT14: 0 | CU14: 0 | CV14: 0 | CW14: 0 | CX14: 0 | CY14: 0
B15: Physician | C15: 0 | D15: 0.548 | E15: 1.13 | F15: 1.772 | G15: 1.936 | H15: 1.762 | I15: 1.462 | J15: 1.094 | K15: 1.254 | L15: 1.386 | M15: 1.514 | N15: 1.634 | O15: 1.734 | P15: 1.864 | Q15: 1.97 | R15: 2.104 | S15: 1.876 | T15: 1.846 | U15: 1.822 | V15: 1.778 | W15: 1.782 | X15: 1.784 | Y15: 1.79 | Z15: 1.716 | AA15: 1.682 | AB15: 1.674 | AC15: 1.696 | AD15: 1.69 | AE15: 1.662 | AF15: 1.626 | AG15: 1.596 | AH15: 1.566 | AI15: 1.476 | AJ15: 1.44 | AK15: 1.392 | AL15: 1.308 | AM15: 1.18 | AN15: 1.054 | AO15: 0.958 | AP15: 0.838 | AQ15: 0.7 | AR15: 0.558 | AS15: 0.454 | AT15: 0.36 | AU15: 0.302 | AV15: 0.212 | AW15: 0.17 | AX15: 0.122 | AY15: 0.074 | AZ15: 0.046 | BA15: 0.026 | BB15: 0.016 | BC15: 0.004 | BD15: 0.002 | BE15: 0 | BF15: 0 | BG15: 0 | BH15: 0 | BI15: 0 | BJ15: 0 | BK15: 0 | BL15: 0 | BM15: 0 | BN15: 0 | BO15: 0 | BP15: 0 | BQ15: 0 | BR15: 0 | BS15: 0 | BT15: 0 | BU15: 0 | BV15: 0 | BW15: 0 | BX15: 0 | BY15: 0 | BZ15: 0 | CA15: 0 | CB15: 0 | CC15: 0 | CD15: 0 | CE15: 0 | CF15: 0 | CG15: 0 | CH15: 0 | CI15: 0 | CJ15: 0 | CK15: 0 | CL15: 0 | CM15: 0 | CN15: 0 | CO15: 0 | CP15: 0 | CQ15: 0 | CR15: 0 | CS15: 0 | CT15: 0 | CU15: 0 | CV15: 0 | CW15: 0 | CX15: 0 | CY15: 0
B16: Nurse | C16: 0 | D16: 1.41 | E16: 3.104 | F16: 4.9 | G16: 6.542 | H16: 7.97 | I16: 9.386 | J16: 10.828 | K16: 11.528 | L16: 12.064 | M16: 12.466 | N16: 12.764 | O16: 12.928 | P16: 12.96 | Q16: 12.904 | R16: 12.81 | S16: 11.292 | T16: 9.834 | U16: 8.524 | V16: 7.616 | W16: 6.998 | X16: 6.434 | Y16: 5.768 | Z16: 4.958 | AA16: 4.254 | AB16: 3.906 | AC16: 3.722 | AD16: 3.644 | AE16: 3.58 | AF16: 3.532 | AG16: 3.414 | AH16: 3.3 | AI16: 3.228 | AJ16: 3.052 | AK16: 2.976 | AL16: 2.966 | AM16: 2.96 | AN16: 2.95 | AO16: 2.92 | AP16: 2.902 | AQ16: 2.85 | AR16: 2.788 | AS16: 2.714 | AT16: 2.592 | AU16: 2.45 | AV16: 2.39 | AW16: 2.3 | AX16: 2.176 | AY16: 2.054 | AZ16: 1.862 | BA16: 1.676 | BB16: 1.524 | BC16: 1.384 | BD16: 1.22 | BE16: 1.062 | BF16: 0.906 | BG16: 0.798 | BH16: 0.666 | BI16: 0.552 | BJ16: 0.42 | BK16: 0.33 | BL16: 0.26 | BM16: 0.206 | BN16: 0.15 | BO16: 0.102 | BP16: 0.06 | BQ16: 0.036 | BR16: 0.012 | BS16: 0.004 | BT16: 0 | BU16: 0 | BV16: 0 | BW16: 0 | BX16: 0 | BY16: 0 | BZ16: 0 | CA16: 0 | CB16: 0 | CC16: 0 | CD16: 0 | CE16: 0 | CF16: 0 | CG16: 0 | CH16: 0 | CI16: 0 | CJ16: 0 | CK16: 0 | CL16: 0 | CM16: 0 | CN16: 0 | CO16: 0 | CP16: 0 | CQ16: 0 | CR16: 0 | CS16: 0 | CT16: 0 | CU16: 0 | CV16: 0 | CW16: 0 | CX16: 0 | CY16: 0
B18: Infected staff: [exposure] - [top down]
B19: Time [d] | C19: 0 | D19: 1 | E19: 2 | F19: 3 | G19: 4 | H19: 5 | I19: 6 | J19: 7 | K19: 8 | L19: 9 | M19: 10 | N19: 11 | O19: 12 | P19: 13 | Q19: 14 | R19: 15 | S19: 16 | T19: 17 | U19: 18 | V19: 19 | W19: 20 | X19: 21 | Y19: 22 | Z19: 23 | AA19: 24 | AB19: 25 | AC19: 26 | AD19: 27 | AE19: 28 | AF19: 29 | AG19: 30 | AH19: 31 | AI19: 32 | AJ19: 33 | AK19: 34 | AL19: 35 | AM19: 36 | AN19: 37 | AO19: 38 | AP19: 39 | AQ19: 40 | AR19: 41 | AS19: 42 | AT19: 43 | AU19: 44 | AV19: 45 | AW19: 46 | AX19: 47 | AY19: 48 | AZ19: 49 | BA19: 50 | BB19: 51 | BC19: 52 | BD19: 53 | BE19: 54 | BF19: 55 | BG19: 56 | BH19: 57 | BI19: 58 | BJ19: 59 | BK19: 60 | BL19: 61 | BM19: 62 | BN19: 63 | BO19: 64 | BP19: 65 | BQ19: 66 | BR19: 67 | BS19: 68 | BT19: 69 | BU19: 70 | BV19: 71 | BW19: 72 | BX19: 73 | BY19: 74 | BZ19: 75 | CA19: 76 | CB19: 77 | CC19: 78 | CD19: 79 | CE19: 80 | CF19: 81 | CG19: 82 | CH19: 83 | CI19: 84 | CJ19: 85 | CK19: 86 | CL19: 87 | CM19: 88 | CN19: 89 | CO19: 90 | CP19: 91 | CQ19: 92 | CR19: 93 | CS19: 94 | CT19: 95 | CU19: 96 | CV19: 97 | CW19: 98 | CX19: 99 | CY19: 100
B20: Chief | C20: =C12-C27 -> 0 | D20: =D12-D27 -> 0.006 | E20: 0 | F20: 0 | G20: 0 | H20: 0 | I20: 0 | J20: 0 | K20: 0 | L20: 0 | M20: 0 | N20: 0 | O20: 0 | P20: 0 | Q20: 0 | R20: 0 | S20: 0 | T20: 0 | U20: 0 | V20: 0 | W20: 0 | X20: 0 | Y20: 0 | Z20: 0 | AA20: 0 | AB20: 0 | AC20: 0 | AD20: 0 | AE20: 0 | AF20: 0 | AG20: 0 | AH20: 0 | AI20: 0 | AJ20: 0 | AK20: 0 | AL20: 0 | AM20: 0 | AN20: 0 | AO20: 0 | AP20: 0 | AQ20: 0 | AR20: 0 | AS20: 0 | AT20: 0 | AU20: 0 | AV20: 0 | AW20: 0 | AX20: 0 | AY20: 0 | AZ20: 0 | BA20: 0 | BB20: 0 | BC20: 0 | BD20: 0 | BE20: 0 | BF20: 0 | BG20: 0 | BH20: 0 | BI20: 0 | BJ20: 0 | BK20: 0 | BL20: 0 | BM20: 0 | BN20: 0 | BO20: 0 | BP20: =BP12-BP27 -> 0 | BQ20: 0 | BR20: 0 | BS20: 0 | BT20: 0 | BU20: 0 | BV20: 0 | BW20: 0 | BX20: 0 | BY20: 0 | BZ20: 0 | CA20: 0 | CB20: 0 | CC20: 0 | CD20: 0 | CE20: 0 | CF20: 0 | CG20: 0 | CH20: 0 | CI20: 0 | CJ20: 0 | CK20: 0 | CL20: 0 | CM20: 0 | CN20: 0 | CO20: 0 | CP20: 0 | CQ20: 0 | CR20: 0 | CS20: 0 | CT20: 0 | CU20: 0 | CV20: 0 | CW20: 0 | CX20: 0 | CY20: 0
B21: Executive_Senior_Physician | C21: =C13-C28 -> 0 | D21: =D13-D28 -> -0.012 | E21: -0.006 | F21: 0.038 | G21: 0.098 | H21: 0.168 | I21: 0.284 | J21: 0.35 | K21: 0.398 | L21: 0.45 | M21: 0.508 | N21: 0.57 | O21: 0.64 | P21: 0.676 | Q21: 0.74 | R21: 0.8 | S21: 0.824 | T21: 0.838 | U21: 0.774 | V21: 0.74 | W21: 0.694 | X21: 0.662 | Y21: 0.63 | Z21: 0.604 | AA21: 0.564 | AB21: 0.492 | AC21: 0.402 | AD21: 0.304 | AE21: 0.258 | AF21: 0.202 | AG21: 0.16 | AH21: 0.124 | AI21: 0.098 | AJ21: 0.078 | AK21: 0.054 | AL21: 0.038 | AM21: 0.012 | AN21: 0.004 | AO21: 0 | AP21: 0 | AQ21: 0 | AR21: 0 | AS21: 0 | AT21: 0 | AU21: 0 | AV21: 0 | AW21: 0 | AX21: 0 | AY21: 0 | AZ21: 0 | BA21: 0 | BB21: 0 | BC21: 0 | BD21: 0 | BE21: 0 | BF21: 0 | BG21: 0 | BH21: 0 | BI21: 0 | BJ21: 0 | BK21: 0 | BL21: 0 | BM21: 0 | BN21: 0 | BO21: 0 | BP21: 0 | BQ21: 0 | BR21: 0 | BS21: 0 | BT21: 0 | BU21: 0 | BV21: 0 | BW21: 0 | BX21: 0 | BY21: 0 | BZ21: 0 | CA21: 0 | CB21: 0 | CC21: 0 | CD21: 0 | CE21: 0 | CF21: 0 | CG21: 0 | CH21: 0 | CI21: 0 | CJ21: 0 | CK21: 0 | CL21: 0 | CM21: 0 | CN21: 0 | CO21: 0 | CP21: 0 | CQ21: 0 | CR21: 0 | CS21: 0 | CT21: 0 | CU21: 0 | CV21: 0 | CW21: 0 | CX21: 0 | CY21: 0
B22: Senior_Physician | C22: =C14-C29 -> 0 | D22: =D14-D29 -> 0.022 | E22: 0.02 | F22: -0.384 | G22: -0.538 | H22: -0.686 | I22: -0.814 | J22: -0.298 | K22: -0.148 | L22: -0.034 | M22: 0.082 | N22: 0.174 | O22: 0.28 | P22: 0.332 | Q22: 0.404 | R22: 0.454 | S22: 0.614 | T22: 0.828 | U22: 0.912 | V22: 0.948 | W22: 0.978 | X22: 0.986 | Y22: 0.984 | Z22: 0.966 | AA22: 0.932 | AB22: 0.916 | AC22: 0.888 | AD22: 0.866 | AE22: 0.81 | AF22: 0.7 | AG22: 0.622 | AH22: 0.534 | AI22: 0.436 | AJ22: 0.358 | AK22: 0.294 | AL22: 0.236 | AM22: 0.176 | AN22: 0.112 | AO22: 0.082 | AP22: 0.042 | AQ22: 0.016 | AR22: 0.004 | AS22: 0 | AT22: 0 | AU22: 0 | AV22: 0 | AW22: 0 | AX22: 0 | AY22: 0 | AZ22: 0 | BA22: 0 | BB22: 0 | BC22: 0 | BD22: 0 | BE22: 0 | BF22: 0 | BG22: 0 | BH22: 0 | BI22: 0 | BJ22: 0 | BK22: 0 | BL22: 0 | BM22: 0 | BN22: 0 | BO22: 0 | BP22: 0 | BQ22: 0 | BR22: 0 | BS22: 0 | BT22: 0 | BU22: 0 | BV22: 0 | BW22: 0 | BX22: 0 | BY22: 0 | BZ22: 0 | CA22: 0 | CB22: 0 | CC22: 0 | CD22: 0 | CE22: 0 | CF22: 0 | CG22: 0 | CH22: 0 | CI22: 0 | CJ22: 0 | CK22: 0 | CL22: 0 | CM22: 0 | CN22: 0 | CO22: 0 | CP22: 0 | CQ22: 0 | CR22: 0 | CS22: 0 | CT22: 0 | CU22: 0 | CV22: 0 | CW22: 0 | CX22: 0 | CY22: 0
B23: Physician | C23: =C15-C30 -> 0 | D23: 0.074 | E23: 0.052 | F23: 0.044 | G23: -0.436 | H23: -1.228 | I23: -2.148 | J23: -3.11 | K23: -3.53 | L23: -3.922 | M23: -4.342 | N23: -4.724 | O23: -5.138 | P23: -5.47 | Q23: -5.782 | R23: -6.056 | S23: -6.158 | T23: -5.766 | U23: -5.236 | V23: -4.656 | W23: -3.968 | X23: -3.26 | Y23: -2.552 | Z23: -1.968 | AA23: -1.48 | AB23: -0.998 | AC23: -0.506 | AD23: -0.072 | AE23: 0.374 | AF23: 0.732 | AG23: 1.056 | AH23: 1.258 | AI23: 1.304 | AJ23: 1.352 | AK23: 1.356 | AL23: 1.296 | AM23: 1.18 | AN23: 1.054 | AO23: 0.958 | AP23: 0.838 | AQ23: 0.7 | AR23: 0.558 | AS23: 0.454 | AT23: 0.36 | AU23: 0.302 | AV23: 0.212 | AW23: 0.17 | AX23: 0.122 | AY23: 0.074 | AZ23: 0.046 | BA23: 0.026 | BB23: 0.016 | BC23: 0.004 | BD23: 0.002 | BE23: 0 | BF23: 0 | BG23: 0 | BH23: 0 | BI23: 0 | BJ23: 0 | BK23: 0 | BL23: 0 | BM23: 0 | BN23: 0 | BO23: 0 | BP23: 0 | BQ23: 0 | BR23: 0 | BS23: 0 | BT23: 0 | BU23: 0 | BV23: 0 | BW23: 0 | BX23: 0 | BY23: 0 | BZ23: 0 | CA23: 0 | CB23: 0 | CC23: 0 | CD23: 0 | CE23: 0 | CF23: 0 | CG23: 0 | CH23: 0 | CI23: 0 | CJ23: 0 | CK23: 0 | CL23: 0 | CM23: 0 | CN23: 0 | CO23: 0 | CP23: 0 | CQ23: 0 | CR23: 0 | CS23: 0 | CT23: 0 | CU23: 0 | CV23: 0 | CW23: 0 | CX23: 0 | CY23: 0
B24: Nurse | C24: =C16-C31 -> 0 | D24: -0.094 | E24: -0.134 | F24: -0.188 | G24: -0.302 | H24: -0.336 | I24: -0.498 | J24: -0.618 | K24: -1.464 | L24: -2.414 | M24: -3.47 | N24: -4.63 | O24: -5.966 | P24: -7.41 | Q24: -8.872 | R24: -10.312 | S24: -11.536 | T24: -12.696 | U24: -13.59 | V24: -14.232 | W24: -14.862 | X24: -15.28 | Y24: -15.666 | Z24: -16.222 | AA24: -16.748 | AB24: -16.91 | AC24: -16.928 | AD24: -16.418 | AE24: -15.934 | AF24: -15.45 | AG24: -15.046 | AH24: -14.822 | AI24: -14.248 | AJ24: -13.812 | AK24: -13.114 | AL24: -12.294 | AM24: -11.288 | AN24: -10.396 | AO24: -9.422 | AP24: -8.454 | AQ24: -7.576 | AR24: -6.704 | AS24: -5.904 | AT24: -5.132 | AU24: -4.418 | AV24: -3.682 | AW24: -2.946 | AX24: -2.316 | AY24: -1.716 | AZ24: -1.268 | BA24: -0.856 | BB24: -0.602 | BC24: -0.352 | BD24: -0.282 | BE24: -0.238 | BF24: -0.192 | BG24: -0.14 | BH24: -0.088 | BI24: -0.062 | BJ24: -0.06 | BK24: -0.064 | BL24: -0.044 | BM24: -0.028 | BN24: -0.016 | BO24: -0.002 | BP24: -0.024 | BQ24: -0.008 | BR24: -0.008 | BS24: -0.004 | BT24: 0 | BU24: 0 | BV24: 0 | BW24: 0 | BX24: 0 | BY24: 0 | BZ24: 0 | CA24: 0 | CB24: 0 | CC24: 0 | CD24: 0 | CE24: 0 | CF24: 0 | CG24: 0 | CH24: 0 | CI24: 0 | CJ24: 0 | CK24: 0 | CL24: 0 | CM24: 0 | CN24: 0 | CO24: 0 | CP24: 0 | CQ24: 0 | CR24: 0 | CS24: 0 | CT24: 0 | CU24: 0 | CV24: 0 | CW24: 0 | CX24: 0 | CY24: 0
B25: Infected staff - Top down rollout
B26: Time [d] | C26: 0 | D26: 1 | E26: 2 | F26: 3 | G26: 4 | H26: 5 | I26: 6 | J26: 7 | K26: 8 | L26: 9 | M26: 10 | N26: 11 | O26: 12 | P26: 13 | Q26: 14 | R26: 15 | S26: 16 | T26: 17 | U26: 18 | V26: 19 | W26: 20 | X26: 21 | Y26: 22 | Z26: 23 | AA26: 24 | AB26: 25 | AC26: 26 | AD26: 27 | AE26: 28 | AF26: 29 | AG26: 30 | AH26: 31 | AI26: 32 | AJ26: 33 | AK26: 34 | AL26: 35 | AM26: 36 | AN26: 37 | AO26: 38 | AP26: 39 | AQ26: 40 | AR26: 41 | AS26: 42 | AT26: 43 | AU26: 44 | AV26: 45 | AW26: 46 | AX26: 47 | AY26: 48 | AZ26: 49 | BA26: 50 | BB26: 51 | BC26: 52 | BD26: 53 | BE26: 54 | BF26: 55 | BG26: 56 | BH26: 57 | BI26: 58 | BJ26: 59 | BK26: 60 | BL26: 61 | BM26: 62 | BN26: 63 | BO26: 64 | BP26: 65 | BQ26: 66 | BR26: 67 | BS26: 68 | BT26: 69 | BU26: 70 | BV26: 71 | BW26: 72 | BX26: 73 | BY26: 74 | BZ26: 75 | CA26: 76 | CB26: 77 | CC26: 78 | CD26: 79 | CE26: 80 | CF26: 81 | CG26: 82 | CH26: 83 | CI26: 84 | CJ26: 85 | CK26: 86 | CL26: 87 | CM26: 88 | CN26: 89 | CO26: 90 | CP26: 91 | CQ26: 92 | CR26: 93 | CS26: 94 | CT26: 95 | CU26: 96 | CV26: 97 | CW26: 98 | CX26: 99 | CY26: 100
B27: Chief | C27: 0 | D27: 0 | E27: 0 | F27: 0 | G27: 0 | H27: 0 | I27: 0 | J27: 0 | K27: 0 | L27: 0 | M27: 0 | N27: 0 | O27: 0 | P27: 0 | Q27: 0 | R27: 0 | S27: 0 | T27: 0 | U27: 0 | V27: 0 | W27: 0 | X27: 0 | Y27: 0 | Z27: 0 | AA27: 0 | AB27: 0 | AC27: 0 | AD27: 0 | AE27: 0 | AF27: 0 | AG27: 0 | AH27: 0 | AI27: 0 | AJ27: 0 | AK27: 0 | AL27: 0 | AM27: 0 | AN27: 0 | AO27: 0 | AP27: 0 | AQ27: 0 | AR27: 0 | AS27: 0 | AT27: 0 | AU27: 0 | AV27: 0 | AW27: 0 | AX27: 0 | AY27: 0 | AZ27: 0 | BA27: 0 | BB27: 0 | BC27: 0 | BD27: 0 | BE27: 0 | BF27: 0 | BG27: 0 | BH27: 0 | BI27: 0 | BJ27: 0 | BK27: 0 | BL27: 0 | BM27: 0 | BN27: 0 | BO27: 0 | BP27: 0 | BQ27: 0 | BR27: 0 | BS27: 0 | BT27: 0 | BU27: 0 | BV27: 0 | BW27: 0 | BX27: 0 | BY27: 0 | BZ27: 0 | CA27: 0 | CB27: 0 | CC27: 0 | CD27: 0 | CE27: 0 | CF27: 0 | CG27: 0 | CH27: 0 | CI27: 0 | CJ27: 0 | CK27: 0 | CL27: 0 | CM27: 0 | CN27: 0 | CO27: 0 | CP27: 0 | CQ27: 0 | CR27: 0 | CS27: 0 | CT27: 0 | CU27: 0 | CV27: 0 | CW27: 0 | CX27: 0 | CY27: 0
B28: Executive_Senior_Physician | C28: 0 | D28: 0.058 | E28: 0.084 | F28: 0.082 | G28: 0.072 | H28: 0.07 | I28: 0.018 | J28: 0.018 | K28: 0.018 | L28: 0.018 | M28: 0.018 | N28: 0.018 | O28: 0.018 | P28: 0.018 | Q28: 0.018 | R28: 0.018 | S28: 0 | T28: 0 | U28: 0 | V28: 0 | W28: 0 | X28: 0 | Y28: 0 | Z28: 0 | AA28: 0 | AB28: 0 | AC28: 0 | AD28: 0 | AE28: 0 | AF28: 0 | AG28: 0 | AH28: 0 | AI28: 0 | AJ28: 0 | AK28: 0 | AL28: 0 | AM28: 0 | AN28: 0 | AO28: 0 | AP28: 0 | AQ28: 0 | AR28: 0 | AS28: 0 | AT28: 0 | AU28: 0 | AV28: 0 | AW28: 0 | AX28: 0 | AY28: 0 | AZ28: 0 | BA28: 0 | BB28: 0 | BC28: 0 | BD28: 0 | BE28: 0 | BF28: 0 | BG28: 0 | BH28: 0 | BI28: 0 | BJ28: 0 | BK28: 0 | BL28: 0 | BM28: 0 | BN28: 0 | BO28: 0 | BP28: 0 | BQ28: 0 | BR28: 0 | BS28: 0 | BT28: 0 | BU28: 0 | BV28: 0 | BW28: 0 | BX28: 0 | BY28: 0 | BZ28: 0 | CA28: 0 | CB28: 0 | CC28: 0 | CD28: 0 | CE28: 0 | CF28: 0 | CG28: 0 | CH28: 0 | CI28: 0 | CJ28: 0 | CK28: 0 | CL28: 0 | CM28: 0 | CN28: 0 | CO28: 0 | CP28: 0 | CQ28: 0 | CR28: 0 | CS28: 0 | CT28: 0 | CU28: 0 | CV28: 0 | CW28: 0 | CX28: 0 | CY28: 0
B29: Senior_Physician | C29: 0 | D29: 0.148 | E29: 0.334 | F29: 0.546 | G29: 0.774 | H29: 0.988 | I29: 1.184 | J29: 0.748 | K29: 0.656 | L29: 0.63 | M29: 0.594 | N29: 0.562 | O29: 0.516 | P29: 0.516 | Q29: 0.516 | R29: 0.516 | S29: 0.368 | T29: 0.182 | U29: 0.11 | V29: 0.062 | W29: 0.024 | X29: 0.01 | Y29: 0 | Z29: 0 | AA29: 0 | AB29: 0 | AC29: 0 | AD29: 0 | AE29: 0 | AF29: 0 | AG29: 0 | AH29: 0 | AI29: 0 | AJ29: 0 | AK29: 0 | AL29: 0 | AM29: 0 | AN29: 0 | AO29: 0 | AP29: 0 | AQ29: 0 | AR29: 0 | AS29: 0 | AT29: 0 | AU29: 0 | AV29: 0 | AW29: 0 | AX29: 0 | AY29: 0 | AZ29: 0 | BA29: 0 | BB29: 0 | BC29: 0 | BD29: 0 | BE29: 0 | BF29: 0 | BG29: 0 | BH29: 0 | BI29: 0 | BJ29: 0 | BK29: 0 | BL29: 0 | BM29: 0 | BN29: 0 | BO29: 0 | BP29: 0 | BQ29: 0 | BR29: 0 | BS29: 0 | BT29: 0 | BU29: 0 | BV29: 0 | BW29: 0 | BX29: 0 | BY29: 0 | BZ29: 0 | CA29: 0 | CB29: 0 | CC29: 0 | CD29: 0 | CE29: 0 | CF29: 0 | CG29: 0 | CH29: 0 | CI29: 0 | CJ29: 0 | CK29: 0 | CL29: 0 | CM29: 0 | CN29: 0 | CO29: 0 | CP29: 0 | CQ29: 0 | CR29: 0 | CS29: 0 | CT29: 0 | CU29: 0 | CV29: 0 | CW29: 0 | CX29: 0 | CY29: 0
B30: Physician | C30: 0 | D30: 0.474 | E30: 1.078 | F30: 1.728 | G30: 2.372 | H30: 2.99 | I30: 3.61 | J30: 4.204 | K30: 4.784 | L30: 5.308 | M30: 5.856 | N30: 6.358 | O30: 6.872 | P30: 7.334 | Q30: 7.752 | R30: 8.16 | S30: 8.034 | T30: 7.612 | U30: 7.058 | V30: 6.434 | W30: 5.75 | X30: 5.044 | Y30: 4.342 | Z30: 3.684 | AA30: 3.162 | AB30: 2.672 | AC30: 2.202 | AD30: 1.762 | AE30: 1.288 | AF30: 0.894 | AG30: 0.54 | AH30: 0.308 | AI30: 0.172 | AJ30: 0.088 | AK30: 0.036 | AL30: 0.012 | AM30: 0 | AN30: 0 | AO30: 0 | AP30: 0 | AQ30: 0 | AR30: 0 | AS30: 0 | AT30: 0 | AU30: 0 | AV30: 0 | AW30: 0 | AX30: 0 | AY30: 0 | AZ30: 0 | BA30: 0 | BB30: 0 | BC30: 0 | BD30: 0 | BE30: 0 | BF30: 0 | BG30: 0 | BH30: 0 | BI30: 0 | BJ30: 0 | BK30: 0 | BL30: 0 | BM30: 0 | BN30: 0 | BO30: 0 | BP30: 0 | BQ30: 0 | BR30: 0 | BS30: 0 | BT30: 0 | BU30: 0 | BV30: 0 | BW30: 0 | BX30: 0 | BY30: 0 | BZ30: 0 | CA30: 0 | CB30: 0 | CC30: 0 | CD30: 0 | CE30: 0 | CF30: 0 | CG30: 0 | CH30: 0 | CI30: 0 | CJ30: 0 | CK30: 0 | CL30: 0 | CM30: 0 | CN30: 0 | CO30: 0 | CP30: 0 | CQ30: 0 | CR30: 0 | CS30: 0 | CT30: 0 | CU30: 0 | CV30: 0 | CW30: 0 | CX30: 0 | CY30: 0
B31: Nurse | C31: 0 | D31: 1.504 | E31: 3.238 | F31: 5.088 | G31: 6.844 | H31: 8.306 | I31: 9.884 | J31: 11.446 | K31: 12.992 | L31: 14.478 | M31: 15.936 | N31: 17.394 | O31: 18.894 | P31: 20.37 | Q31: 21.776 | R31: 23.122 | S31: 22.828 | T31: 22.53 | U31: 22.114 | V31: 21.848 | W31: 21.86 | X31: 21.714 | Y31: 21.434 | Z31: 21.18 | AA31: 21.002 | AB31: 20.816 | AC31: 20.65 | AD31: 20.062 | AE31: 19.514 | AF31: 18.982 | AG31: 18.46 | AH31: 18.122 | AI31: 17.476 | AJ31: 16.864 | AK31: 16.09 | AL31: 15.26 | AM31: 14.248 | AN31: 13.346 | AO31: 12.342 | AP31: 11.356 | AQ31: 10.426 | AR31: 9.492 | AS31: 8.618 | AT31: 7.724 | AU31: 6.868 | AV31: 6.072 | AW31: 5.246 | AX31: 4.492 | AY31: 3.77 | AZ31: 3.13 | BA31: 2.532 | BB31: 2.126 | BC31: 1.736 | BD31: 1.502 | BE31: 1.3 | BF31: 1.098 | BG31: 0.938 | BH31: 0.754 | BI31: 0.614 | BJ31: 0.48 | BK31: 0.394 | BL31: 0.304 | BM31: 0.234 | BN31: 0.166 | BO31: 0.104 | BP31: 0.084 | BQ31: 0.044 | BR31: 0.02 | BS31: 0.008 | BT31: 0 | BU31: 0 | BV31: 0 | BW31: 0 | BX31: 0 | BY31: 0 | BZ31: 0 | CA31: 0 | CB31: 0 | CC31: 0 | CD31: 0 | CE31: 0 | CF31: 0 | CG31: 0 | CH31: 0 | CI31: 0 | CJ31: 0 | CK31: 0 | CL31: 0 | CM31: 0 | CN31: 0 | CO31: 0 | CP31: 0 | CQ31: 0 | CR31: 0 | CS31: 0 | CT31: 0 | CU31: 0 | CV31: 0 | CW31: 0 | CX31: 0 | CY31: 0
B37: Staff matrix over time
B38: Array field description in macro vaccination_scenario
C41: [Stauts at t=0 preset]
A42: Time [d] | C42: 0 | D42: 1 | E42: 2 | F42: 3 | G42: 4 | H42: 5 | I42: 6 | J42: 7 | K42: 8 | L42: 9 | M42: 10 | N42: 11 | O42: 12 | P42: 13 | Q42: 14 | R42: 15 | S42: 16 | T42: 17 | U42: 18 | V42: 19 | W42: 20 | X42: 21 | Y42: 22 | Z42: 23 | AA42: 24 | AB42: 25 | AC42: 26 | AD42: 27 | AE42: 28 | AF42: 29 | AG42: 30 | AH42: 31 | AI42: 32 | AJ42: 33 | AK42: 34 | AL42: 35 | AM42: 36 | AN42: 37 | AO42: 38 | AP42: 39 | AQ42: 40 | AR42: 41 | AS42: 42 | AT42: 43 | AU42: 44 | AV42: 45 | AW42: 46 | AX42: 47 | AY42: 48 | AZ42: 49 | BA42: 50 | BB42: 51 | BC42: 52 | BD42: 53 | BE42: 54 | BF42: 55 | BG42: 56 | BH42: 57 | BI42: 58 | BJ42: 59 | BK42: 60 | BL42: 61 | BM42: 62 | BN42: 63 | BO42: 64 | BP42: 65 | BQ42: 66 | BR42: 67 | BS42: 68 | BT42: 69 | BU42: 70 | BV42: 71 | BW42: 72 | BX42: 73 | BY42: 74 | BZ42: 75 | CA42: 76 | CB42: 77 | CC42: 78 | CD42: 79 | CE42: 80 | CF42: 81 | CG42: 82 | CH42: 83 | CI42: 84 | CJ42: 85 | CK42: 86 | CL42: 87 | CM42: 88 | CN42: 89 | CO42: 90 | CP42: 91 | CQ42: 92 | CR42: 93 | CS42: 94 | CT42: 95 | CU42: 96 | CV42: 97 | CW42: 98 | CX42: 99 | CY42: 100
A43: Chief | B43: 1 | C43: 0,0,0,0,0,ward1,1 | D43: 0,0,0,0,0,A&E,1,62 | E43: 0,0,0,0,1,A&E,1,62 | F43: 0,0,0,0,1,A&E,1,62 | G43: 0,0,0,0,1,A&E,1,62 | H43: 0,0,0,0,1,A&E,1,62 | I43: 0,0,0,0,1,A&E,1,62 | J43: 0,0,0,0,1,A&E,1,62 | K43: 0,0,0,0,1,A&E,1,62 | L43: 0,0,0,0,1,A&E,1,62 | M43: 0,0,0,0,1,A&E,1,62 | N43: 0,0,0,0,1,A&E,1,62 | O43: 0,0,0,0,1,A&E,1,62 | P43: 0,0,0,0,1,A&E,1,62 | Q43: 0,0,0,0,1,A&E,1,62 | R43: 0,0,0,0,1,A&E,1,62 | S43: 0,0,0,0,1,A&E,1,62 | T43: 0,0,0,0,1,A&E,1,62 | U43: 0,0,0,0,1,A&E,1,62 | V43: 0,0,0,0,1,A&E,1,62 | W43: 0,0,0,0,1,A&E,1,62 | X43: 0,0,0,0,1,A&E,1,62 | Y43: 0,0,0,0,1,A&E,1,62 | Z43: 0,0,0,0,1,A&E,1,62 | AA43: 0,0,0,0,1,A&E,1,62 | AB43: 0,0,0,0,1,A&E,1,62 | AC43: 0,0,0,0,1,A&E,1,62 | AD43: 0,0,0,0,1,A&E,1,62 | AE43: 0,0,0,0,1,A&E,1,62 | AF43: 0,0,0,0,1,A&E,1,62 | AG43: 0,0,0,0,1,A&E,1,62 | AH43: 0,0,0,0,1,A&E,1,62 | AI43: 0,0,0,0,1,A&E,1,62 | AJ43: 0,0,0,0,1,A&E,1,62 | AK43: 0,0,0,0,1,A&E,1,62 | AL43: 0,0,0,0,1,A&E,1,62 | AM43: 0,0,0,0,1,A&E,1,62 | AN43: 0,0,0,0,1,A&E,1,62 | AO43: 0,0,0,0,1,A&E,1,62 | AP43: 0,0,0,0,1,A&E,1,62 | AQ43: 0,0,0,0,1,A&E,1,62 | AR43: 0,0,0,0,1,A&E,1,62 | AS43: 0,0,0,0,1,A&E,1,62 | AT43: 0,0,0,0,1,A&E,1,62 | AU43: 0,0,0,0,1,A&E,1,62 | AV43: 0,0,0,0,1,A&E,1,62 | AW43: 0,0,0,0,1,A&E,1,62 | AX43: 0,0,0,0,1,A&E,1,62 | AY43: 0,0,0,0,1,A&E,1,62 | AZ43: 0,0,0,0,1,A&E,1,62 | BA43: 0,0,0,0,1,A&E,1,62 | BB43: 0,0,0,0,1,A&E,1,62 | BC43: 0,0,0,0,1,A&E,1,62 | BD43: 0,0,0,0,1,A&E,1,62 | BE43: 0,0,0,0,1,A&E,1,62 | BF43: 0,0,0,0,1,A&E,1,62 | BG43: 0,0,0,0,1,A&E,1,62 | BH43: 0,0,0,0,1,A&E,1,62 | BI43: 0,0,0,0,1,A&E,1,62 | BJ43: 0,0,0,0,1,A&E,1,62 | BK43: 0,0,0,0,1,A&E,1,62 | BL43: 0,0,0,0,1,A&E,1,62 | BM43: 0,0,0,0,1,A&E,1,62 | BN43: 0,0,0,0,1,A&E,1,62 | BO43: 0,0,0,0,1,A&E,1,62 | BP43: 0,0,0,0,1,A&E,1,62 | BQ43: 0,0,0,0,1,A&E,1,62 | BR43: 0,0,0,0,1,A&E,1,62 | BS43: 0,0,0,0,1,A&E,1,62 | BT43: 0,0,0,0,1,A&E,1,62 | BU43: 0,0,0,0,1,A&E,1,62 | BV43: 0,0,0,0,1,A&E,1,62 | BW43: 0,0,0,0,1,A&E,1,62 | BX43: 0,0,0,0,1,A&E,1,62 | BY43: 0,0,0,0,1,A&E,1,62 | BZ43: 0,0,0,0,1,A&E,1,62 | CA43: 0,0,0,0,1,A&E,1,62 | CB43: 0,0,0,0,1,A&E,1,62 | CC43: 0,0,0,0,1,A&E,1,62 | CD43: 0,0,0,0,1,A&E,1,62 | CE43: 0,0,0,0,1,A&E,1,62 | CF43: 0,0,0,0,1,A&E,1,62 | CG43: 0,0,0,0,1,A&E,1,62 | CH43: 0,0,0,0,1,A&E,1,62 | CI43: 0,0,0,0,1,A&E,1,62 | CJ43: 0,0,0,0,1,A&E,1,62 | CK43: 0,0,0,0,1,A&E,1,62 | CL43: 0,0,0,0,1,A&E,1,62 | CM43: 0,0,0,0,1,A&E,1,62 | CN43: 0,0,0,0,1,A&E,1,62 | CO43: 0,0,0,0,1,A&E,1,62 | CP43: 0,0,0,0,1,A&E,1,62 | CQ43: 0,0,0,0,1,A&E,1,62 | CR43: 0,0,0,0,1,A&E,1,62 | CS43: 0,0,0,0,1,A&E,1,62 | CT43: 0,0,0,0,1,A&E,1,62 | CU43: 0,0,0,0,1,A&E,1,62 | CV43: 0,0,0,0,1,A&E,1,62 | CW43: 0,0,0,0,1,A&E,1,62 | CX43: 0,0,0,0,1,A&E,1,62 | CY43: 0,0,0,0,1,A&E,1,62
A44: Executive_Senior_Physician | B44: 1 | C44: 0,0,0,0,0,A&E,1 | D44: 0,0,0,0,1,ward1,1,49 | E44: 0,0,0,0,1,ward1,1,49 | F44: 0,0,0,0,1,ward1,1,49 | G44: 0,0,0,0,1,ward1,1,49 | H44: 0,0,0,0,1,ward1,1,49 | I44: 0,0,0,0,1,ward1,1,49 | J44: 0,0,0,0,1,ward1,1,49 | K44: 0,0,0,0,1,ward1,1,49 | L44: 0,0,0,0,1,ward1,1,49 | M44: 0,0,0,0,1,ward1,1,49 | N44: 0,0,0,0,1,ward1,1,49 | O44: 0,0,0,0,1,ward1,1,49 | P44: 0,0,0,0,1,ward1,1,49 | Q44: 0,0,0,0,1,ward1,1,49 | R44: 0,0,0,0,1,ward1,1,49 | S44: 0,0,0,0,1,ward1,1,49 | T44: 0,0,0,0,1,ward1,1,49 | U44: 0,0,0,0,1,ward1,1,49 | V44: 0,0,0,0,1,ward1,1,49 | W44: 0,0,0,0,1,ward1,1,49 | X44: 0,0,0,0,1,ward1,1,49 | Y44: 0,0,0,0,1,ward1,1,49 | Z44: 0,0,0,0,1,ward1,1,49 | AA44: 0,0,0,0,1,ward1,1,49 | AB44: 0,0,0,0,1,ward1,1,49 | AC44: 0,0,0,0,1,ward1,1,49 | AD44: 0,0,0,0,1,ward1,1,49 | AE44: 0,0,0,0,1,ward1,1,49 | AF44: 0,0,0,0,1,ward1,1,49 | AG44: 0,0,0,0,1,ward1,1,49 | AH44: 0,0,0,0,1,ward1,1,49 | AI44: 0,0,0,0,1,ward1,1,49 | AJ44: 0,0,0,0,1,ward1,1,49 | AK44: 0,0,0,0,1,ward1,1,49 | AL44: 0,0,0,0,1,ward1,1,49 | AM44: 0,0,0,0,1,ward1,1,49 | AN44: 0,0,0,0,1,ward1,1,49 | AO44: 0,0,0,0,1,ward1,1,49 | AP44: 0,0,0,0,1,ward1,1,49 | AQ44: 0,0,0,0,1,ward1,1,49 | AR44: 0,0,0,0,1,ward1,1,49 | AS44: 0,0,0,0,1,ward1,1,49 | AT44: 0,0,0,0,1,ward1,1,49 | AU44: 0,0,0,0,1,ward1,1,49 | AV44: 0,0,0,0,1,ward1,1,49 | AW44: 0,0,0,0,1,ward1,1,49 | AX44: 0,0,0,0,1,ward1,1,49 | AY44: 0,0,0,0,1,ward1,1,49 | AZ44: 0,0,0,0,1,ward1,1,49 | BA44: 0,0,0,0,1,ward1,1,49 | BB44: 0,0,0,0,1,ward1,1,49 | BC44: 0,0,0,0,1,ward1,1,49 | BD44: 0,0,0,0,1,ward1,1,49 | BE44: 0,0,0,0,1,ward1,1,49 | BF44: 0,0,0,0,1,ward1,1,49 | BG44: 0,0,0,0,1,ward1,1,49 | BH44: 0,0,0,0,1,ward1,1,49 | BI44: 0,0,0,0,1,ward1,1,49 | BJ44: 0,0,0,0,1,ward1,1,49 | BK44: 0,0,0,0,1,ward1,1,49 | BL44: 0,0,0,0,1,ward1,1,49 | BM44: 0,0,0,0,1,ward1,1,49 | BN44: 0,0,0,0,1,ward1,1,49 | BO44: 0,0,0,0,1,ward1,1,49 | BP44: 0,0,0,0,1,ward1,1,49 | BQ44: 0,0,0,0,1,ward1,1,49 | BR44: 0,0,0,0,1,ward1,1,49 | BS44: 0,0,0,0,1,ward1,1,49 | BT44: 0,0,0,0,1,ward1,1,49 | BU44: 0,0,0,0,1,ward1,1,49 | BV44: 0,0,0,0,1,ward1,1,49 | BW44: 0,0,0,0,1,ward1,1,49 | BX44: 0,0,0,0,1,ward1,1,49 | BY44: 0,0,0,0,1,ward1,1,49 | BZ44: 0,0,0,0,1,ward1,1,49 | CA44: 0,0,0,0,1,ward1,1,49 | CB44: 0,0,0,0,1,ward1,1,49 | CC44: 0,0,0,0,1,ward1,1,49 | CD44: 0,0,0,0,1,ward1,1,49 | CE44: 0,0,0,0,1,ward1,1,49 | CF44: 0,0,0,0,1,ward1,1,49 | CG44: 0,0,0,0,1,ward1,1,49 | CH44: 0,0,0,0,1,ward1,1,49 | CI44: 0,0,0,0,1,ward1,1,49 | CJ44: 0,0,0,0,1,ward1,1,49 | CK44: 0,0,0,0,1,ward1,1,49 | CL44: 0,0,0,0,1,ward1,1,49 | CM44: 0,0,0,0,1,ward1,1,49 | CN44: 0,0,0,0,1,ward1,1,49 | CO44: 0,0,0,0,1,ward1,1,49 | CP44: 0,0,0,0,1,ward1,1,49 | CQ44: 0,0,0,0,1,ward1,1,49 | CR44: 0,0,0,0,1,ward1,1,49 | CS44: 0,0,0,0,1,ward1,1,49 | CT44: 0,0,0,0,1,ward1,1,49 | CU44: 0,0,0,0,1,ward1,1,49 | CV44: 0,0,0,0,1,ward1,1,49 | CW44: 0,0,0,0,1,ward1,1,49 | CX44: 0,0,0,0,1,ward1,1,49 | CY44: 0,0,0,0,1,ward1,1,49
A45: Executive_Senior_Physician | B45: 2 | C45: 0,0,0,0,0,ward2,0 | D45: 0,0,0,0,0,ward2,1,49 | E45: 0,0,0,0,0,ward2,1,49 | F45: 0,0,0,0,0,ward2,1,49 | G45: 0,0,0,0,0,ward2,1,49 | H45: 0,0,0,0,0,ward2,1,49 | I45: 0,0,0,0,0,ward2,1,49 | J45: 0,0,0,0,0,ward2,1,49 | K45: 0,0,0,0,0,ward2,1,49 | L45: 0,0,0,0,0,ward2,1,49 | M45: 0,0,0,0,0,ward2,1,49 | N45: 0,0,0,0,0,ward2,1,49 | O45: 0,0,0,0,0,ward2,1,49 | P45: 0,0,0,0,0,ward2,1,49 | Q45: 0,0,0,0,0,ward2,1,49 | R45: 1,0,0,1,0,ward2,1,49 | S45: 2,0,0,1,0,ward2,1,49 | T45: 3,0,0,1,0,ward2,1,49 | U45: 4,0,0,1,0,ward2,1,49 | V45: 5,1,0,1,0,0,0,49 | W45: 6,1,0,1,0,0,0,49 | X45: 7,1,0,1,0,0,0,49 | Y45: 8,1,0,1,0,0,0,49 | Z45: 9,1,0,1,0,0,0,49 | AA45: 10,1,0,1,0,0,0,49 | AB45: 11,1,0,1,0,0,0,49 | AC45: 12,1,0,1,0,0,0,49 | AD45: 13,1,0,1,0,0,0,49 | AE45: 14,1,0,1,0,0,0,49 | AF45: 15,1,0,1,0,0,0,49 | AG45: 0,0,0,0,0,ward2,1,49 | AH45: 0,0,0,0,1,ward2,1,49 | AI45: 0,0,0,0,1,ward2,1,49 | AJ45: 0,0,0,0,1,ward2,1,49 | AK45: 0,0,0,0,1,ward2,1,49 | AL45: 0,0,0,0,1,ward2,1,49 | AM45: 0,0,0,0,1,ward2,1,49 | AN45: 0,0,0,0,1,ward2,1,49 | AO45: 0,0,0,0,1,ward2,1,49 | AP45: 0,0,0,0,1,ward2,1,49 | AQ45: 0,0,0,0,1,ward2,1,49 | AR45: 0,0,0,0,1,ward2,1,49 | AS45: 0,0,0,0,1,ward2,1,49 | AT45: 0,0,0,0,1,ward2,1,49 | AU45: 0,0,0,0,1,ward2,1,49 | AV45: 0,0,0,0,1,ward2,1,49 | AW45: 0,0,0,0,1,ward2,1,49 | AX45: 0,0,0,0,1,ward2,1,49 | AY45: 0,0,0,0,1,ward2,1,49 | AZ45: 0,0,0,0,1,ward2,1,49 | BA45: 0,0,0,0,1,ward2,1,49 | BB45: 0,0,0,0,1,ward2,1,49 | BC45: 0,0,0,0,1,ward2,1,49 | BD45: 0,0,0,0,1,ward2,1,49 | BE45: 0,0,0,0,1,ward2,1,49 | BF45: 0,0,0,0,1,ward2,1,49 | BG45: 0,0,0,0,1,ward2,1,49 | BH45: 0,0,0,0,1,ward2,1,49 | BI45: 0,0,0,0,1,ward2,1,49 | BJ45: 0,0,0,0,1,ward2,1,49 | BK45: 0,0,0,0,1,ward2,1,49 | BL45: 0,0,0,0,1,ward2,1,49 | BM45: 0,0,0,0,1,ward2,1,49 | BN45: 0,0,0,0,1,ward2,1,49 | BO45: 0,0,0,0,1,ward2,1,49 | BP45: 0,0,0,0,1,ward2,1,49 | BQ45: 0,0,0,0,1,ward2,1,49 | BR45: 0,0,0,0,1,ward2,1,49 | BS45: 0,0,0,0,1,ward2,1,49 | BT45: 0,0,0,0,1,ward2,1,49 | BU45: 0,0,0,0,1,ward2,1,49 | BV45: 0,0,0,0,1,ward2,1,49 | BW45: 0,0,0,0,1,ward2,1,49 | BX45: 0,0,0,0,1,ward2,1,49 | BY45: 0,0,0,0,1,ward2,1,49 | BZ45: 0,0,0,0,1,ward2,1,49 | CA45: 0,0,0,0,1,ward2,1,49 | CB45: 0,0,0,0,1,ward2,1,49 | CC45: 0,0,0,0,1,ward2,1,49 | CD45: 0,0,0,0,1,ward2,1,49 | CE45: 0,0,0,0,1,ward2,1,49 | CF45: 0,0,0,0,1,ward2,1,49 | CG45: 0,0,0,0,1,ward2,1,49 | CH45: 0,0,0,0,1,ward2,1,49 | CI45: 0,0,0,0,1,ward2,1,49 | CJ45: 0,0,0,0,1,ward2,1,49 | CK45: 0,0,0,0,1,ward2,1,49 | CL45: 0,0,0,0,1,ward2,1,49 | CM45: 0,0,0,0,1,ward2,1,49 | CN45: 0,0,0,0,1,ward2,1,49 | CO45: 0,0,0,0,1,ward2,1,49 | CP45: 0,0,0,0,1,ward2,1,49 | CQ45: 0,0,0,0,1,ward2,1,49 | CR45: 0,0,0,0,1,ward2,1,49 | CS45: 0,0,0,0,1,ward2,1,49 | CT45: 0,0,0,0,1,ward2,1,49 | CU45: 0,0,0,0,1,ward2,1,49 | CV45: 0,0,0,0,1,ward2,1,49 | CW45: 0,0,0,0,1,ward2,1,49 | CX45: 0,0,0,0,1,ward2,1,49 | CY45: 0,0,0,0,1,ward2,1,49
A46: Executive_Senior_Physician | B46: 3 | C46: 0,0,0,0,0,ward3,0 | D46: 0,0,0,0,0,ward3,1,46 | E46: 0,0,0,0,0,ward3,1,46 | F46: 0,0,0,0,0,ward3,1,46 | G46: 0,0,0,0,0,ward3,1,46 | H46: 0,0,0,0,0,ward3,1,46 | I46: 0,0,0,0,0,ward3,1,46 | J46: 0,0,0,0,0,ward3,1,46 | K46: 0,0,0,0,0,ward3,1,46 | L46: 0,0,0,0,0,ward3,1,46 | M46: 0,0,0,0,0,ward3,1,46 | N46: 0,0,0,0,0,ward3,1,46 | O46: 0,0,0,0,0,ward3,1,46 | P46: 0,0,0,0,0,ward3,1,46 | Q46: 0,0,0,0,0,ward3,1,46 | R46: 0,0,0,0,0,ward3,1,46 | S46: 0,0,0,0,0,ward3,1,46 | T46: 0,0,0,0,0,ward3,1,46 | U46: 0,0,0,0,0,ward3,1,46 | V46: 0,0,0,0,0,ward2,1,46 | W46: 0,0,0,0,1,ward2,1,46 | X46: 0,0,0,0,1,ward2,1,46 | Y46: 0,0,0,0,1,ward2,1,46 | Z46: 0,0,0,0,1,ward2,1,46 | AA46: 0,0,0,0,1,ward2,1,46 | AB46: 0,0,0,0,1,ward2,1,46 | AC46: 0,0,0,0,1,ward2,1,46 | AD46: 0,0,0,0,1,ward2,1,46 | AE46: 0,0,0,0,1,ward2,1,46 | AF46: 0,0,0,0,1,ward2,1,46 | AG46: 0,0,0,0,1,ward3,1,46 | AH46: 0,0,0,0,1,ward3,1,46 | AI46: 0,0,0,0,1,ward3,1,46 | AJ46: 0,0,0,0,1,ward3,1,46 | AK46: 0,0,0,0,1,ward3,1,46 | AL46: 0,0,0,0,1,ward3,1,46 | AM46: 0,0,0,0,1,ward3,1,46 | AN46: 0,0,0,0,1,ward3,1,46 | AO46: 0,0,0,0,1,ward3,1,46 | AP46: 0,0,0,0,1,ward3,1,46 | AQ46: 0,0,0,0,1,ward3,1,46 | AR46: 0,0,0,0,1,ward3,1,46 | AS46: 0,0,0,0,1,ward3,1,46 | AT46: 0,0,0,0,1,ward3,1,46 | AU46: 0,0,0,0,1,ward3,1,46 | AV46: 0,0,0,0,1,ward3,1,46 | AW46: 0,0,0,0,1,ward3,1,46 | AX46: 0,0,0,0,1,ward3,1,46 | AY46: 0,0,0,0,1,ward3,1,46 | AZ46: 0,0,0,0,1,ward3,1,46 | BA46: 0,0,0,0,1,ward3,1,46 | BB46: 0,0,0,0,1,ward3,1,46 | BC46: 0,0,0,0,1,ward3,1,46 | BD46: 0,0,0,0,1,ward3,1,46 | BE46: 0,0,0,0,1,ward3,1,46 | BF46: 0,0,0,0,1,ward3,1,46 | BG46: 0,0,0,0,1,ward3,1,46 | BH46: 0,0,0,0,1,ward3,1,46 | BI46: 0,0,0,0,1,ward3,1,46 | BJ46: 0,0,0,0,1,ward3,1,46 | BK46: 0,0,0,0,1,ward3,1,46 | BL46: 0,0,0,0,1,ward3,1,46 | BM46: 0,0,0,0,1,ward3,1,46 | BN46: 0,0,0,0,1,ward3,1,46 | BO46: 0,0,0,0,1,ward3,1,46 | BP46: 0,0,0,0,1,ward3,1,46 | BQ46: 0,0,0,0,1,ward3,1,46 | BR46: 0,0,0,0,1,ward3,1,46 | BS46: 0,0,0,0,1,ward3,1,46 | BT46: 0,0,0,0,1,ward3,1,46 | BU46: 0,0,0,0,1,ward3,1,46 | BV46: 0,0,0,0,1,ward3,1,46 | BW46: 0,0,0,0,1,ward3,1,46 | BX46: 0,0,0,0,1,ward3,1,46 | BY46: 0,0,0,0,1,ward3,1,46 | BZ46: 0,0,0,0,1,ward3,1,46 | CA46: 0,0,0,0,1,ward3,1,46 | CB46: 0,0,0,0,1,ward3,1,46 | CC46: 0,0,0,0,1,ward3,1,46 | CD46: 0,0,0,0,1,ward3,1,46 | CE46: 0,0,0,0,1,ward3,1,46 | CF46: 0,0,0,0,1,ward3,1,46 | CG46: 0,0,0,0,1,ward3,1,46 | CH46: 0,0,0,0,1,ward3,1,46 | CI46: 0,0,0,0,1,ward3,1,46 | CJ46: 0,0,0,0,1,ward3,1,46 | CK46: 0,0,0,0,1,ward3,1,46 | CL46: 0,0,0,0,1,ward3,1,46 | CM46: 0,0,0,0,1,ward3,1,46 | CN46: 0,0,0,0,1,ward3,1,46 | CO46: 0,0,0,0,1,ward3,1,46 | CP46: 0,0,0,0,1,ward3,1,46 | CQ46: 0,0,0,0,1,ward3,1,46 | CR46: 0,0,0,0,1,ward3,1,46 | CS46: 0,0,0,0,1,ward3,1,46 | CT46: 0,0,0,0,1,ward3,1,46 | CU46: 0,0,0,0,1,ward3,1,46 | CV46: 0,0,0,0,1,ward3,1,46 | CW46: 0,0,0,0,1,ward3,1,46 | CX46: 0,0,0,0,1,ward3,1,46 | CY46: 0,0,0,0,1,ward3,1,46
A47: Executive_Senior_Physician | B47: 4 | C47: 0,0,0,0,0,0,0 | D47: 0,0,0,0,0,0,0,47 | E47: 0,0,0,0,0,0,0,47 | F47: 0,0,0,0,0,0,0,47 | G47: 0,0,0,0,0,0,0,47 | H47: 0,0,0,0,0,0,0,47 | I47: 0,0,0,0,0,0,0,47 | J47: 0,0,0,0,0,0,0,47 | K47: 0,0,0,0,0,0,0,47 | L47: 0,0,0,0,0,0,0,47 | M47: 0,0,0,0,0,0,0,47 | N47: 0,0,0,0,0,0,0,47 | O47: 0,0,0,0,0,0,0,47 | P47: 0,0,0,0,0,0,0,47 | Q47: 0,0,0,0,0,0,0,47 | R47: 0,0,0,0,0,0,0,47 | S47: 0,0,0,0,0,0,0,47 | T47: 0,0,0,0,0,0,0,47 | U47: 0,0,0,0,0,0,0,47 | V47: 0,0,0,0,0,ward3,1,47 | W47: 0,0,0,0,0,ward3,1,47 | X47: 0,0,0,0,1,ward3,1,47 | Y47: 0,0,0,0,1,ward3,1,47 | Z47: 0,0,0,0,1,ward3,1,47 | AA47: 0,0,0,0,1,ward3,1,47 | AB47: 0,0,0,0,1,ward3,1,47 | AC47: 0,0,0,0,1,ward3,1,47 | AD47: 0,0,0,0,1,ward3,1,47 | AE47: 0,0,0,0,1,ward3,1,47 | AF47: 0,0,0,0,1,ward3,1,47 | AG47: 0,0,0,0,1,0,0,47 | AH47: 0,0,0,0,1,0,0,47 | AI47: 0,0,0,0,1,0,0,47 | AJ47: 0,0,0,0,1,0,0,47 | AK47: 0,0,0,0,1,0,0,47 | AL47: 0,0,0,0,1,0,0,47 | AM47: 0,0,0,0,1,0,0,47 | AN47: 0,0,0,0,1,0,0,47 | AO47: 0,0,0,0,1,0,0,47 | AP47: 0,0,0,0,1,0,0,47 | AQ47: 0,0,0,0,1,0,0,47 | AR47: 0,0,0,0,1,0,0,47 | AS47: 0,0,0,0,1,0,0,47 | AT47: 0,0,0,0,1,0,0,47 | AU47: 0,0,0,0,1,0,0,47 | AV47: 0,0,0,0,1,0,0,47 | AW47: 0,0,0,0,1,0,0,47 | AX47: 0,0,0,0,1,0,0,47 | AY47: 0,0,0,0,1,0,0,47 | AZ47: 0,0,0,0,1,0,0,47 | BA47: 0,0,0,0,1,0,0,47 | BB47: 0,0,0,0,1,0,0,47 | BC47: 0,0,0,0,1,0,0,47 | BD47: 0,0,0,0,1,0,0,47 | BE47: 0,0,0,0,1,0,0,47 | BF47: 0,0,0,0,1,0,0,47 | BG47: 0,0,0,0,1,0,0,47 | BH47: 0,0,0,0,1,0,0,47 | BI47: 0,0,0,0,1,0,0,47 | BJ47: 0,0,0,0,1,0,0,47 | BK47: 0,0,0,0,1,0,0,47 | BL47: 0,0,0,0,1,0,0,47 | BM47: 0,0,0,0,1,0,0,47 | BN47: 0,0,0,0,1,0,0,47 | BO47: 0,0,0,0,1,0,0,47 | BP47: 0,0,0,0,1,0,0,47 | BQ47: 0,0,0,0,1,0,0,47 | BR47: 0,0,0,0,1,0,0,47 | BS47: 0,0,0,0,1,0,0,47 | BT47: 0,0,0,0,1,0,0,47 | BU47: 0,0,0,0,1,0,0,47 | BV47: 0,0,0,0,1,0,0,47 | BW47: 0,0,0,0,1,0,0,47 | BX47: 0,0,0,0,1,0,0,47 | BY47: 0,0,0,0,1,0,0,47 | BZ47: 0,0,0,0,1,0,0,47 | CA47: 0,0,0,0,1,0,0,47 | CB47: 0,0,0,0,1,0,0,47 | CC47: 0,0,0,0,1,0,0,47 | CD47: 0,0,0,0,1,0,0,47 | CE47: 0,0,0,0,1,0,0,47 | CF47: 0,0,0,0,1,0,0,47 | CG47: 0,0,0,0,1,0,0,47 | CH47: 0,0,0,0,1,0,0,47 | CI47: 0,0,0,0,1,0,0,47 | CJ47: 0,0,0,0,1,0,0,47 | CK47: 0,0,0,0,1,0,0,47 | CL47: 0,0,0,0,1,0,0,47 | CM47: 0,0,0,0,1,0,0,47 | CN47: 0,0,0,0,1,0,0,47 | CO47: 0,0,0,0,1,0,0,47 | CP47: 0,0,0,0,1,0,0,47 | CQ47: 0,0,0,0,1,0,0,47 | CR47: 0,0,0,0,1,0,0,47 | CS47: 0,0,0,0,1,0,0,47 | CT47: 0,0,0,0,1,0,0,47 | CU47: 0,0,0,0,1,0,0,47 | CV47: 0,0,0,0,1,0,0,47 | CW47: 0,0,0,0,1,0,0,47 | CX47: 0,0,0,0,1,0,0,47 | CY47: 0,0,0,0,1,0,0,47
A48: Executive_Senior_Physician | B48: 5 | C48: 0,0,0,0,0,0,0 | D48: 0,0,0,0,0,0,0,48 | E48: 0,0,0,0,0,0,0,48 | F48: 0,0,0,0,0,0,0,48 | G48: 0,0,0,0,0,0,0,48 | H48: 0,0,0,0,0,0,0,48 | I48: 0,0,0,0,0,0,0,48 | J48: 0,0,0,0,0,0,0,48 | K48: 0,0,0,0,0,0,0,48 | L48: 0,0,0,0,0,0,0,48 | M48: 0,0,0,0,0,0,0,48 | N48: 0,0,0,0,0,0,0,48 | O48: 0,0,0,0,0,0,0,48 | P48: 0,0,0,0,0,0,0,48 | Q48: 0,0,0,0,0,0,0,48 | R48: 0,0,0,0,0,0,0,48 | S48: 0,0,0,0,0,0,0,48 | T48: 0,0,0,0,0,0,0,48 | U48: 0,0,0,0,0,0,0,48 | V48: 0,0,0,0,0,0,0,48 | W48: 0,0,0,0,0,0,0,48 | X48: 0,0,0,0,0,0,0,48 | Y48: 0,0,0,0,0,0,0,48 | Z48: 0,0,0,0,0,0,0,48 | AA48: 0,0,0,0,1,0,0,48 | AB48: 0,0,0,0,1,0,0,48 | AC48: 0,0,0,0,1,0,0,48 | AD48: 0,0,0,0,1,0,0,48 | AE48: 0,0,0,0,1,0,0,48 | AF48: 0,0,0,0,1,0,0,48 | AG48: 0,0,0,0,1,0,0,48 | AH48: 0,0,0,0,1,0,0,48 | AI48: 0,0,0,0,1,0,0,48 | AJ48: 0,0,0,0,1,0,0,48 | AK48: 0,0,0,0,1,0,0,48 | AL48: 0,0,0,0,1,0,0,48 | AM48: 0,0,0,0,1,0,0,48 | AN48: 0,0,0,0,1,0,0,48 | AO48: 0,0,0,0,1,0,0,48 | AP48: 0,0,0,0,1,0,0,48 | AQ48: 0,0,0,0,1,0,0,48 | AR48: 0,0,0,0,1,0,0,48 | AS48: 0,0,0,0,1,0,0,48 | AT48: 0,0,0,0,1,0,0,48 | AU48: 0,0,0,0,1,0,0,48 | AV48: 0,0,0,0,1,0,0,48 | AW48: 0,0,0,0,1,0,0,48 | AX48: 0,0,0,0,1,0,0,48 | AY48: 0,0,0,0,1,0,0,48 | AZ48: 0,0,0,0,1,0,0,48 | BA48: 0,0,0,0,1,0,0,48 | BB48: 0,0,0,0,1,0,0,48 | BC48: 0,0,0,0,1,0,0,48 | BD48: 0,0,0,0,1,0,0,48 | BE48: 0,0,0,0,1,0,0,48 | BF48: 0,0,0,0,1,0,0,48 | BG48: 0,0,0,0,1,0,0,48 | BH48: 0,0,0,0,1,0,0,48 | BI48: 0,0,0,0,1,0,0,48 | BJ48: 0,0,0,0,1,0,0,48 | BK48: 0,0,0,0,1,0,0,48 | BL48: 0,0,0,0,1,0,0,48 | BM48: 0,0,0,0,1,0,0,48 | BN48: 0,0,0,0,1,0,0,48 | BO48: 0,0,0,0,1,0,0,48 | BP48: 0,0,0,0,1,0,0,48 | BQ48: 0,0,0,0,1,0,0,48 | BR48: 0,0,0,0,1,0,0,48 | BS48: 0,0,0,0,1,0,0,48 | BT48: 0,0,0,0,1,0,0,48 | BU48: 0,0,0,0,1,0,0,48 | BV48: 0,0,0,0,1,0,0,48 | BW48: 0,0,0,0,1,0,0,48 | BX48: 0,0,0,0,1,0,0,48 | BY48: 0,0,0,0,1,0,0,48 | BZ48: 0,0,0,0,1,0,0,48 | CA48: 0,0,0,0,1,0,0,48 | CB48: 0,0,0,0,1,0,0,48 | CC48: 0,0,0,0,1,0,0,48 | CD48: 0,0,0,0,1,0,0,48 | CE48: 0,0,0,0,1,0,0,48 | CF48: 0,0,0,0,1,0,0,48 | CG48: 0,0,0,0,1,0,0,48 | CH48: 0,0,0,0,1,0,0,48 | CI48: 0,0,0,0,1,0,0,48 | CJ48: 0,0,0,0,1,0,0,48 | CK48: 0,0,0,0,1,0,0,48 | CL48: 0,0,0,0,1,0,0,48 | CM48: 0,0,0,0,1,0,0,48 | CN48: 0,0,0,0,1,0,0,48 | CO48: 0,0,0,0,1,0,0,48 | CP48: 0,0,0,0,1,0,0,48 | CQ48: 0,0,0,0,1,0,0,48 | CR48: 0,0,0,0,1,0,0,48 | CS48: 0,0,0,0,1,0,0,48 | CT48: 0,0,0,0,1,0,0,48 | CU48: 0,0,0,0,1,0,0,48 | CV48: 0,0,0,0,1,0,0,48 | CW48: 0,0,0,0,1,0,0,48 | CX48: 0,0,0,0,1,0,0,48 | CY48: 0,0,0,0,1,0,0,48
A49: Senior_Physician | B49: 1 | C49: 0,0,0,0,0,A&E,1 | D49: 0,0,0,0,0,A&E,1,36 | E49: 0,0,0,0,0,A&E,1,36 | F49: 0,0,0,0,1,A&E,1,36 | G49: 0,0,0,0,1,A&E,1,36 | H49: 0,0,0,0,1,A&E,1,36 | I49: 0,0,0,0,1,A&E,1,36 | J49: 0,0,0,0,1,A&E,1,36 | K49: 0,0,0,0,1,A&E,1,36 | L49: 0,0,0,0,1,A&E,1,36 | M49: 0,0,0,0,1,A&E,1,36 | N49: 0,0,0,0,1,A&E,1,36 | O49: 0,0,0,0,1,A&E,1,36 | P49: 0,0,0,0,1,A&E,1,36 | Q49: 0,0,0,0,1,A&E,1,36 | R49: 0,0,0,0,1,A&E,1,36 | S49: 0,0,0,0,1,A&E,1,36 | T49: 0,0,0,0,1,A&E,1,36 | U49: 0,0,0,0,1,A&E,1,36 | V49: 0,0,0,0,1,A&E,1,36 | W49: 0,0,0,0,1,A&E,1,36 | X49: 0,0,0,0,1,A&E,1,36 | Y49: 0,0,0,0,1,A&E,1,36 | Z49: 0,0,0,0,1,A&E,1,36 | AA49: 0,0,0,0,1,A&E,1,36 | AB49: 0,0,0,0,1,A&E,1,36 | AC49: 0,0,0,0,1,A&E,1,36 | AD49: 0,0,0,0,1,A&E,1,36 | AE49: 0,0,0,0,1,A&E,1,36 | AF49: 0,0,0,0,1,A&E,1,36 | AG49: 0,0,0,0,1,A&E,1,36 | AH49: 0,0,0,0,1,A&E,1,36 | AI49: 0,0,0,0,1,A&E,1,36 | AJ49: 0,0,0,0,1,A&E,1,36 | AK49: 0,0,0,0,1,A&E,1,36 | AL49: 0,0,0,0,1,A&E,1,36 | AM49: 0,0,0,0,1,A&E,1,36 | AN49: 0,0,0,0,1,A&E,1,36 | AO49: 0,0,0,0,1,A&E,1,36 | AP49: 0,0,0,0,1,A&E,1,36 | AQ49: 0,0,0,0,1,A&E,1,36 | AR49: 0,0,0,0,1,A&E,1,36 | AS49: 0,0,0,0,1,A&E,1,36 | AT49: 0,0,0,0,1,A&E,1,36 | AU49: 0,0,0,0,1,A&E,1,36 | AV49: 0,0,0,0,1,A&E,1,36 | AW49: 0,0,0,0,1,A&E,1,36 | AX49: 0,0,0,0,1,A&E,1,36 | AY49: 0,0,0,0,1,A&E,1,36 | AZ49: 0,0,0,0,1,A&E,1,36 | BA49: 0,0,0,0,1,A&E,1,36 | BB49: 0,0,0,0,1,A&E,1,36 | BC49: 0,0,0,0,1,A&E,1,36 | BD49: 0,0,0,0,1,A&E,1,36 | BE49: 0,0,0,0,1,A&E,1,36 | BF49: 0,0,0,0,1,A&E,1,36 | BG49: 0,0,0,0,1,A&E,1,36 | BH49: 0,0,0,0,1,A&E,1,36 | BI49: 0,0,0,0,1,A&E,1,36 | BJ49: 0,0,0,0,1,A&E,1,36 | BK49: 0,0,0,0,1,A&E,1,36 | BL49: 0,0,0,0,1,A&E,1,36 | BM49: 0,0,0,0,1,A&E,1,36 | BN49: 0,0,0,0,1,A&E,1,36 | BO49: 0,0,0,0,1,A&E,1,36 | BP49: 0,0,0,0,1,A&E,1,36 | BQ49: 0,0,0,0,1,A&E,1,36 | BR49: 0,0,0,0,1,A&E,1,36 | BS49: 0,0,0,0,1,A&E,1,36 | BT49: 0,0,0,0,1,A&E,1,36 | BU49: 0,0,0,0,1,A&E,1,36 | BV49: 0,0,0,0,1,A&E,1,36 | BW49: 0,0,0,0,1,A&E,1,36 | BX49: 0,0,0,0,1,A&E,1,36 | BY49: 0,0,0,0,1,A&E,1,36 | BZ49: 0,0,0,0,1,A&E,1,36 | CA49: 0,0,0,0,1,A&E,1,36 | CB49: 0,0,0,0,1,A&E,1,36 | CC49: 0,0,0,0,1,A&E,1,36 | CD49: 0,0,0,0,1,A&E,1,36 | CE49: 0,0,0,0,1,A&E,1,36 | CF49: 0,0,0,0,1,A&E,1,36 | CG49: 0,0,0,0,1,A&E,1,36 | CH49: 0,0,0,0,1,A&E,1,36 | CI49: 0,0,0,0,1,A&E,1,36 | CJ49: 0,0,0,0,1,A&E,1,36 | CK49: 0,0,0,0,1,A&E,1,36 | CL49: 0,0,0,0,1,A&E,1,36 | CM49: 0,0,0,0,1,A&E,1,36 | CN49: 0,0,0,0,1,A&E,1,36 | CO49: 0,0,0,0,1,A&E,1,36 | CP49: 0,0,0,0,1,A&E,1,36 | CQ49: 0,0,0,0,1,A&E,1,36 | CR49: 0,0,0,0,1,A&E,1,36 | CS49: 0,0,0,0,1,A&E,1,36 | CT49: 0,0,0,0,1,A&E,1,36 | CU49: 0,0,0,0,1,A&E,1,36 | CV49: 0,0,0,0,1,A&E,1,36 | CW49: 0,0,0,0,1,A&E,1,36 | CX49: 0,0,0,0,1,A&E,1,36 | CY49: 0,0,0,0,1,A&E,1,36
A50: Senior_Physician | B50: 2 | C50: 0,0,0,0,0,ward1,1 | D50: 0,0,0,0,0,ward1,1,33 | E50: 0,0,0,0,0,ward1,1,33 | F50: 0,0,0,0,0,ward1,1,33 | G50: 0,0,0,0,0,ward1,1,33 | H50: 0,0,0,0,0,ward1,1,33 | I50: 0,0,0,0,0,ward1,1,33 | J50: 0,0,0,0,0,ward1,1,33 | K50: 0,0,0,0,0,ward1,1,33 | L50: 0,0,0,0,0,ward1,1,33 | M50: 0,0,0,0,0,ward1,1,33 | N50: 0,0,0,0,0,ward1,1,33 | O50: 0,0,0,0,0,ward1,1,33 | P50: 0,0,0,0,0,ward1,1,33 | Q50: 0,0,0,0,0,ward1,1,33 | R50: 0,0,0,0,0,ward1,1,33 | S50: 0,0,0,0,0,ward1,1,33 | T50: 0,0,0,0,0,ward1,1,33 | U50: 0,0,0,0,0,ward1,1,33 | V50: 0,0,0,0,0,ward1,1,33 | W50: 0,0,0,0,0,ward1,1,33 | X50: 0,0,0,0,0,ward1,1,33 | Y50: 0,0,0,0,0,ward1,1,33 | Z50: 0,0,0,0,0,ward1,1,33 | AA50: 0,0,0,0,0,ward1,1,33 | AB50: 0,0,0,0,1,ward1,1,33 | AC50: 0,0,0,0,1,ward1,1,33 | AD50: 0,0,0,0,1,ward1,1,33 | AE50: 0,0,0,0,1,ward1,1,33 | AF50: 0,0,0,0,1,ward1,1,33 | AG50: 0,0,0,0,1,ward1,1,33 | AH50: 0,0,0,0,1,ward1,1,33 | AI50: 0,0,0,0,1,ward1,1,33 | AJ50: 0,0,0,0,1,ward1,1,33 | AK50: 0,0,0,0,1,ward1,1,33 | AL50: 0,0,0,0,1,ward1,1,33 | AM50: 0,0,0,0,1,ward1,1,33 | AN50: 0,0,0,0,1,ward1,1,33 | AO50: 0,0,0,0,1,ward1,1,33 | AP50: 0,0,0,0,1,ward1,1,33 | AQ50: 0,0,0,0,1,ward1,1,33 | AR50: 0,0,0,0,1,ward1,1,33 | AS50: 0,0,0,0,1,ward1,1,33 | AT50: 0,0,0,0,1,ward1,1,33 | AU50: 0,0,0,0,1,ward1,1,33 | AV50: 0,0,0,0,1,ward1,1,33 | AW50: 0,0,0,0,1,ward1,1,33 | AX50: 0,0,0,0,1,ward1,1,33 | AY50: 0,0,0,0,1,ward1,1,33 | AZ50: 0,0,0,0,1,ward1,1,33 | BA50: 0,0,0,0,1,ward1,1,33 | BB50: 0,0,0,0,1,ward1,1,33 | BC50: 0,0,0,0,1,ward1,1,33 | BD50: 0,0,0,0,1,ward1,1,33 | BE50: 0,0,0,0,1,ward1,1,33 | BF50: 0,0,0,0,1,ward1,1,33 | BG50: 0,0,0,0,1,ward1,1,33 | BH50: 0,0,0,0,1,ward1,1,33 | BI50: 0,0,0,0,1,ward1,1,33 | BJ50: 0,0,0,0,1,ward1,1,33 | BK50: 0,0,0,0,1,ward1,1,33 | BL50: 0,0,0,0,1,ward1,1,33 | BM50: 0,0,0,0,1,ward1,1,33 | BN50: 0,0,0,0,1,ward1,1,33 | BO50: 0,0,0,0,1,ward1,1,33 | BP50: 0,0,0,0,1,ward1,1,33 | BQ50: 0,0,0,0,1,ward1,1,33 | BR50: 0,0,0,0,1,ward1,1,33 | BS50: 0,0,0,0,1,ward1,1,33 | BT50: 0,0,0,0,1,ward1,1,33 | BU50: 0,0,0,0,1,ward1,1,33 | BV50: 0,0,0,0,1,ward1,1,33 | BW50: 0,0,0,0,1,ward1,1,33 | BX50: 0,0,0,0,1,ward1,1,33 | BY50: 0,0,0,0,1,ward1,1,33 | BZ50: 0,0,0,0,1,ward1,1,33 | CA50: 0,0,0,0,1,ward1,1,33 | CB50: 0,0,0,0,1,ward1,1,33 | CC50: 0,0,0,0,1,ward1,1,33 | CD50: 0,0,0,0,1,ward1,1,33 | CE50: 0,0,0,0,1,ward1,1,33 | CF50: 0,0,0,0,1,ward1,1,33 | CG50: 0,0,0,0,1,ward1,1,33 | CH50: 0,0,0,0,1,ward1,1,33 | CI50: 0,0,0,0,1,ward1,1,33 | CJ50: 0,0,0,0,1,ward1,1,33 | CK50: 0,0,0,0,1,ward1,1,33 | CL50: 0,0,0,0,1,ward1,1,33 | CM50: 0,0,0,0,1,ward1,1,33 | CN50: 0,0,0,0,1,ward1,1,33 | CO50: 0,0,0,0,1,ward1,1,33 | CP50: 0,0,0,0,1,ward1,1,33 | CQ50: 0,0,0,0,1,ward1,1,33 | CR50: 0,0,0,0,1,ward1,1,33 | CS50: 0,0,0,0,1,ward1,1,33 | CT50: 0,0,0,0,1,ward1,1,33 | CU50: 0,0,0,0,1,ward1,1,33 | CV50: 0,0,0,0,1,ward1,1,33 | CW50: 0,0,0,0,1,ward1,1,33 | CX50: 0,0,0,0,1,ward1,1,33 | CY50: 0,0,0,0,1,ward1,1,33
A51: Senior_Physician | B51: 3 | C51: 0,0,0,0,0,ward2,1 | D51: 0,0,0,0,0,ward2,1,36 | E51: 0,0,0,0,0,ward2,1,36 | F51: 0,0,0,0,0,ward2,1,36 | G51: 0,0,0,0,0,ward2,1,36 | H51: 0,0,0,0,0,ward2,1,36 | I51: 0,0,0,0,0,ward2,1,36 | J51: 0,0,0,0,0,ward2,1,36 | K51: 0,0,0,0,0,ward2,1,36 | L51: 0,0,0,0,0,ward2,1,36 | M51: 0,0,0,0,0,ward2,1,36 | N51: 0,0,0,0,0,ward2,1,36 | O51: 0,0,0,0,0,ward2,1,36 | P51: 0,0,0,0,0,ward2,1,36 | Q51: 0,0,0,0,0,ward2,1,36 | R51: 0,0,0,0,0,ward2,1,36 | S51: 0,0,0,0,0,ward2,1,36 | T51: 0,0,0,0,0,ward2,1,36 | U51: 0,0,0,0,0,ward2,1,36 | V51: 0,0,0,0,0,ward2,1,36 | W51: 0,0,0,0,0,ward2,1,36 | X51: 0,0,0,0,0,ward2,1,36 | Y51: 0,0,0,0,0,ward2,1,36 | Z51: 1,0,0,1,0,ward2,1,36 | AA51: 2,0,0,1,0,ward2,1,36 | AB51: 3,0,0,1,0,ward2,1,36 | AC51: 0,0,0,0,1,ward2,1,36 | AD51: 0,0,0,0,1,ward2,1,36 | AE51: 0,0,0,0,1,ward2,1,36 | AF51: 0,0,0,0,1,ward2,1,36 | AG51: 0,0,0,0,1,ward2,1,36 | AH51: 0,0,0,0,1,ward2,1,36 | AI51: 0,0,0,0,1,ward2,1,36 | AJ51: 0,0,0,0,1,ward2,1,36 | AK51: 0,0,0,0,1,ward2,1,36 | AL51: 0,0,0,0,1,ward2,1,36 | AM51: 0,0,0,0,1,ward2,1,36 | AN51: 0,0,0,0,1,ward2,1,36 | AO51: 0,0,0,0,1,ward2,1,36 | AP51: 0,0,0,0,1,ward2,1,36 | AQ51: 0,0,0,0,1,ward2,1,36 | AR51: 0,0,0,0,1,ward2,1,36 | AS51: 0,0,0,0,1,ward2,1,36 | AT51: 0,0,0,0,1,ward2,1,36 | AU51: 0,0,0,0,1,ward2,1,36 | AV51: 0,0,0,0,1,ward2,1,36 | AW51: 0,0,0,0,1,ward2,1,36 | AX51: 0,0,0,0,1,ward2,1,36 | AY51: 0,0,0,0,1,ward2,1,36 | AZ51: 0,0,0,0,1,ward2,1,36 | BA51: 0,0,0,0,1,ward2,1,36 | BB51: 0,0,0,0,1,ward2,1,36 | BC51: 0,0,0,0,1,ward2,1,36 | BD51: 0,0,0,0,1,ward2,1,36 | BE51: 0,0,0,0,1,ward2,1,36 | BF51: 0,0,0,0,1,ward2,1,36 | BG51: 0,0,0,0,1,ward2,1,36 | BH51: 0,0,0,0,1,ward2,1,36 | BI51: 0,0,0,0,1,ward2,1,36 | BJ51: 0,0,0,0,1,ward2,1,36 | BK51: 0,0,0,0,1,ward2,1,36 | BL51: 0,0,0,0,1,ward2,1,36 | BM51: 0,0,0,0,1,ward2,1,36 | BN51: 0,0,0,0,1,ward2,1,36 | BO51: 0,0,0,0,1,ward2,1,36 | BP51: 0,0,0,0,1,ward2,1,36 | BQ51: 0,0,0,0,1,ward2,1,36 | BR51: 0,0,0,0,1,ward2,1,36 | BS51: 0,0,0,0,1,ward2,1,36 | BT51: 0,0,0,0,1,ward2,1,36 | BU51: 0,0,0,0,1,ward2,1,36 | BV51: 0,0,0,0,1,ward2,1,36 | BW51: 0,0,0,0,1,ward2,1,36 | BX51: 0,0,0,0,1,ward2,1,36 | BY51: 0,0,0,0,1,ward2,1,36 | BZ51: 0,0,0,0,1,ward2,1,36 | CA51: 0,0,0,0,1,ward2,1,36 | CB51: 0,0,0,0,1,ward2,1,36 | CC51: 0,0,0,0,1,ward2,1,36 | CD51: 0,0,0,0,1,ward2,1,36 | CE51: 0,0,0,0,1,ward2,1,36 | CF51: 0,0,0,0,1,ward2,1,36 | CG51: 0,0,0,0,1,ward2,1,36 | CH51: 0,0,0,0,1,ward2,1,36 | CI51: 0,0,0,0,1,ward2,1,36 | CJ51: 0,0,0,0,1,ward2,1,36 | CK51: 0,0,0,0,1,ward2,1,36 | CL51: 0,0,0,0,1,ward2,1,36 | CM51: 0,0,0,0,1,ward2,1,36 | CN51: 0,0,0,0,1,ward2,1,36 | CO51: 0,0,0,0,1,ward2,1,36 | CP51: 0,0,0,0,1,ward2,1,36 | CQ51: 0,0,0,0,1,ward2,1,36 | CR51: 0,0,0,0,1,ward2,1,36 | CS51: 0,0,0,0,1,ward2,1,36 | CT51: 0,0,0,0,1,ward2,1,36 | CU51: 0,0,0,0,1,ward2,1,36 | CV51: 0,0,0,0,1,ward2,1,36 | CW51: 0,0,0,0,1,ward2,1,36 | CX51: 0,0,0,0,1,ward2,1,36 | CY51: 0,0,0,0,1,ward2,1,36
A52: Senior_Physician | B52: 4 | C52: 0,0,0,0,0,ward3,1 | D52: 0,0,0,0,0,ward3,1,33 | E52: 0,0,0,0,0,ward3,1,33 | F52: 0,0,0,0,0,ward3,1,33 | G52: 0,0,0,0,0,ward3,1,33 | H52: 0,0,0,0,0,ward3,1,33 | I52: 0,0,0,0,0,ward3,1,33 | J52: 0,0,0,0,0,ward3,1,33 | K52: 0,0,0,0,0,ward3,1,33 | L52: 0,0,0,0,0,ward3,1,33 | M52: 0,0,0,0,0,ward3,1,33 | N52: 0,0,0,0,0,ward3,1,33 | O52: 0,0,0,0,0,ward3,1,33 | P52: 0,0,0,0,0,ward3,1,33 | Q52: 0,0,0,0,0,ward3,1,33 | R52: 0,0,0,0,0,ward3,1,33 | S52: 0,0,0,0,0,ward3,1,33 | T52: 0,0,0,0,0,ward3,1,33 | U52: 0,0,0,0,0,ward3,1,33 | V52: 0,0,0,0,0,ward3,1,33 | W52: 0,0,0,0,0,ward3,1,33 | X52: 1,0,0,1,0,ward3,1,33 | Y52: 2,0,0,1,0,ward3,1,33 | Z52: 3,0,0,1,0,ward3,1,33 | AA52: 4,0,0,1,0,ward3,1,33 | AB52: 5,1,0,1,0,0,0,33 | AC52: 6,1,0,1,0,0,0,33 | AD52: 7,1,0,1,0,0,0,33 | AE52: 8,1,0,1,0,0,0,33 | AF52: 9,1,0,1,0,0,0,33 | AG52: 10,1,0,1,0,0,0,33 | AH52: 11,1,0,1,0,0,0,33 | AI52: 12,1,0,1,0,0,0,33 | AJ52: 13,1,0,1,0,0,0,33 | AK52: 14,1,0,1,0,0,0,33 | AL52: 15,1,0,1,0,0,0,33 | AM52: 0,0,0,0,0,ward3,1,33 | AN52: 0,0,0,0,1,ward3,1,33 | AO52: 0,0,0,0,1,ward3,1,33 | AP52: 0,0,0,0,1,ward3,1,33 | AQ52: 0,0,0,0,1,ward3,1,33 | AR52: 0,0,0,0,1,ward3,1,33 | AS52: 0,0,0,0,1,ward3,1,33 | AT52: 0,0,0,0,1,ward3,1,33 | AU52: 0,0,0,0,1,ward3,1,33 | AV52: 0,0,0,0,1,ward3,1,33 | AW52: 0,0,0,0,1,ward3,1,33 | AX52: 0,0,0,0,1,ward3,1,33 | AY52: 0,0,0,0,1,ward3,1,33 | AZ52: 0,0,0,0,1,ward3,1,33 | BA52: 0,0,0,0,1,ward3,1,33 | BB52: 0,0,0,0,1,ward3,1,33 | BC52: 0,0,0,0,1,ward3,1,33 | BD52: 0,0,0,0,1,ward3,1,33 | BE52: 0,0,0,0,1,ward3,1,33 | BF52: 0,0,0,0,1,ward3,1,33 | BG52: 0,0,0,0,1,ward3,1,33 | BH52: 0,0,0,0,1,ward3,1,33 | BI52: 0,0,0,0,1,ward3,1,33 | BJ52: 0,0,0,0,1,ward3,1,33 | BK52: 0,0,0,0,1,ward3,1,33 | BL52: 0,0,0,0,1,ward3,1,33 | BM52: 0,0,0,0,1,ward3,1,33 | BN52: 0,0,0,0,1,ward3,1,33 | BO52: 0,0,0,0,1,ward3,1,33 | BP52: 0,0,0,0,1,ward3,1,33 | BQ52: 0,0,0,0,1,ward3,1,33 | BR52: 0,0,0,0,1,ward3,1,33 | BS52: 0,0,0,0,1,ward3,1,33 | BT52: 0,0,0,0,1,ward3,1,33 | BU52: 0,0,0,0,1,ward3,1,33 | BV52: 0,0,0,0,1,ward3,1,33 | BW52: 0,0,0,0,1,ward3,1,33 | BX52: 0,0,0,0,1,ward3,1,33 | BY52: 0,0,0,0,1,ward3,1,33 | BZ52: 0,0,0,0,1,ward3,1,33 | CA52: 0,0,0,0,1,ward3,1,33 | CB52: 0,0,0,0,1,ward3,1,33 | CC52: 0,0,0,0,1,ward3,1,33 | CD52: 0,0,0,0,1,ward3,1,33 | CE52: 0,0,0,0,1,ward3,1,33 | CF52: 0,0,0,0,1,ward3,1,33 | CG52: 0,0,0,0,1,ward3,1,33 | CH52: 0,0,0,0,1,ward3,1,33 | CI52: 0,0,0,0,1,ward3,1,33 | CJ52: 0,0,0,0,1,ward3,1,33 | CK52: 0,0,0,0,1,ward3,1,33 | CL52: 0,0,0,0,1,ward3,1,33 | CM52: 0,0,0,0,1,ward3,1,33 | CN52: 0,0,0,0,1,ward3,1,33 | CO52: 0,0,0,0,1,ward3,1,33 | CP52: 0,0,0,0,1,ward3,1,33 | CQ52: 0,0,0,0,1,ward3,1,33 | CR52: 0,0,0,0,1,ward3,1,33 | CS52: 0,0,0,0,1,ward3,1,33 | CT52: 0,0,0,0,1,ward3,1,33 | CU52: 0,0,0,0,1,ward3,1,33 | CV52: 0,0,0,0,1,ward3,1,33 | CW52: 0,0,0,0,1,ward3,1,33 | CX52: 0,0,0,0,1,ward3,1,33 | CY52: 0,0,0,0,1,ward3,1,33
A53: Senior_Physician | B53: 5 | C53: 0,0,0,0,0,0,0 | D53: 0,0,0,0,0,0,0,36 | E53: 0,0,0,0,0,0,0,36 | F53: 0,0,0,0,0,0,0,36 | G53: 0,0,0,0,0,0,0,36 | H53: 0,0,0,0,0,0,0,36 | I53: 0,0,0,0,0,0,0,36 | J53: 0,0,0,0,0,0,0,36 | K53: 0,0,0,0,0,0,0,36 | L53: 0,0,0,0,0,0,0,36 | M53: 0,0,0,0,0,0,0,36 | N53: 0,0,0,0,0,0,0,36 | O53: 0,0,0,0,0,0,0,36 | P53: 0,0,0,0,0,0,0,36 | Q53: 0,0,0,0,0,0,0,36 | R53: 0,0,0,0,0,0,0,36 | S53: 0,0,0,0,0,0,0,36 | T53: 0,0,0,0,0,0,0,36 | U53: 0,0,0,0,0,0,0,36 | V53: 0,0,0,0,0,0,0,36 | W53: 0,0,0,0,0,0,0,36 | X53: 0,0,0,0,0,0,0,36 | Y53: 0,0,0,0,0,0,0,36 | Z53: 0,0,0,0,0,0,0,36 | AA53: 0,0,0,0,0,0,0,36 | AB53: 0,0,0,0,0,ward3,1,36 | AC53: 0,0,0,0,0,ward3,1,36 | AD53: 0,0,0,0,1,ward3,1,36 | AE53: 0,0,0,0,1,ward3,1,36 | AF53: 0,0,0,0,1,ward3,1,36 | AG53: 0,0,0,0,1,ward3,1,36 | AH53: 0,0,0,0,1,ward3,1,36 | AI53: 0,0,0,0,1,ward3,1,36 | AJ53: 0,0,0,0,1,ward3,1,36 | AK53: 0,0,0,0,1,ward3,1,36 | AL53: 0,0,0,0,1,ward3,1,36 | AM53: 0,0,0,0,1,0,0,36 | AN53: 0,0,0,0,1,0,0,36 | AO53: 0,0,0,0,1,0,0,36 | AP53: 0,0,0,0,1,0,0,36 | AQ53: 0,0,0,0,1,0,0,36 | AR53: 0,0,0,0,1,0,0,36 | AS53: 0,0,0,0,1,0,0,36 | AT53: 0,0,0,0,1,0,0,36 | AU53: 0,0,0,0,1,0,0,36 | AV53: 0,0,0,0,1,0,0,36 | AW53: 0,0,0,0,1,0,0,36 | AX53: 0,0,0,0,1,0,0,36 | AY53: 0,0,0,0,1,0,0,36 | AZ53: 0,0,0,0,1,0,0,36 | BA53: 0,0,0,0,1,0,0,36 | BB53: 0,0,0,0,1,0,0,36 | BC53: 0,0,0,0,1,0,0,36 | BD53: 0,0,0,0,1,0,0,36 | BE53: 0,0,0,0,1,0,0,36 | BF53: 0,0,0,0,1,0,0,36 | BG53: 0,0,0,0,1,0,0,36 | BH53: 0,0,0,0,1,0,0,36 | BI53: 0,0,0,0,1,0,0,36 | BJ53: 0,0,0,0,1,0,0,36 | BK53: 0,0,0,0,1,0,0,36 | BL53: 0,0,0,0,1,0,0,36 | BM53: 0,0,0,0,1,0,0,36 | BN53: 0,0,0,0,1,0,0,36 | BO53: 0,0,0,0,1,0,0,36 | BP53: 0,0,0,0,1,0,0,36 | BQ53: 0,0,0,0,1,0,0,36 | BR53: 0,0,0,0,1,0,0,36 | BS53: 0,0,0,0,1,0,0,36 | BT53: 0,0,0,0,1,0,0,36 | BU53: 0,0,0,0,1,0,0,36 | BV53: 0,0,0,0,1,0,0,36 | BW53: 0,0,0,0,1,0,0,36 | BX53: 0,0,0,0,1,0,0,36 | BY53: 0,0,0,0,1,0,0,36 | BZ53: 0,0,0,0,1,0,0,36 | CA53: 0,0,0,0,1,0,0,36 | CB53: 0,0,0,0,1,0,0,36 | CC53: 0,0,0,0,1,0,0,36 | CD53: 0,0,0,0,1,0,0,36 | CE53: 0,0,0,0,1,0,0,36 | CF53: 0,0,0,0,1,0,0,36 | CG53: 0,0,0,0,1,0,0,36 | CH53: 0,0,0,0,1,0,0,36 | CI53: 0,0,0,0,1,0,0,36 | CJ53: 0,0,0,0,1,0,0,36 | CK53: 0,0,0,0,1,0,0,36 | CL53: 0,0,0,0,1,0,0,36 | CM53: 0,0,0,0,1,0,0,36 | CN53: 0,0,0,0,1,0,0,36 | CO53: 0,0,0,0,1,0,0,36 | CP53: 0,0,0,0,1,0,0,36 | CQ53: 0,0,0,0,1,0,0,36 | CR53: 0,0,0,0,1,0,0,36 | CS53: 0,0,0,0,1,0,0,36 | CT53: 0,0,0,0,1,0,0,36 | CU53: 0,0,0,0,1,0,0,36 | CV53: 0,0,0,0,1,0,0,36 | CW53: 0,0,0,0,1,0,0,36 | CX53: 0,0,0,0,1,0,0,36 | CY53: 0,0,0,0,1,0,0,36
A54: Senior_Physician | B54: 6 | C54: 0,0,0,0,0,0,0 | D54: 0,0,0,0,0,0,0,40 | E54: 0,0,0,0,0,0,0,40 | F54: 0,0,0,0,0,0,0,40 | G54: 0,0,0,0,0,0,0,40 | H54: 0,0,0,0,0,0,0,40 | I54: 0,0,0,0,0,0,0,40 | J54: 0,0,0,0,0,0,0,40 | K54: 0,0,0,0,0,0,0,40 | L54: 0,0,0,0,0,0,0,40 | M54: 0,0,0,0,0,0,0,40 | N54: 0,0,0,0,0,0,0,40 | O54: 0,0,0,0,0,0,0,40 | P54: 0,0,0,0,0,0,0,40 | Q54: 0,0,0,0,0,0,0,40 | R54: 0,0,0,0,0,0,0,40 | S54: 0,0,0,0,0,0,0,40 | T54: 0,0,0,0,0,0,0,40 | U54: 0,0,0,0,0,0,0,40 | V54: 0,0,0,0,0,0,0,40 | W54: 0,0,0,0,0,0,0,40 | X54: 1,0,0,1,0,0,0,40 | Y54: 2,0,0,1,0,0,0,40 | Z54: 3,0,0,1,0,0,0,40 | AA54: 4,0,0,1,0,0,0,40 | AB54: 5,1,0,1,0,0,0,40 | AC54: 6,1,0,1,0,0,0,40 | AD54: 7,1,0,1,0,0,0,40 | AE54: 8,1,0,1,0,0,0,40 | AF54: 9,1,0,1,0,0,0,40 | AG54: 10,1,0,1,0,0,0,40 | AH54: 11,1,0,1,0,0,0,40 | AI54: 12,1,0,1,0,0,0,40 | AJ54: 13,1,0,1,0,0,0,40 | AK54: 14,1,0,1,0,0,0,40 | AL54: 15,1,0,1,0,0,0,40 | AM54: 0,0,0,0,0,0,0,40 | AN54: 0,0,0,0,0,0,0,40 | AO54: 0,0,0,0,1,0,0,40 | AP54: 0,0,0,0,1,0,0,40 | AQ54: 0,0,0,0,1,0,0,40 | AR54: 0,0,0,0,1,0,0,40 | AS54: 0,0,0,0,1,0,0,40 | AT54: 0,0,0,0,1,0,0,40 | AU54: 0,0,0,0,1,0,0,40 | AV54: 0,0,0,0,1,0,0,40 | AW54: 0,0,0,0,1,0,0,40 | AX54: 0,0,0,0,1,0,0,40 | AY54: 0,0,0,0,1,0,0,40 | AZ54: 0,0,0,0,1,0,0,40 | BA54: 0,0,0,0,1,0,0,40 | BB54: 0,0,0,0,1,0,0,40 | BC54: 0,0,0,0,1,0,0,40 | BD54: 0,0,0,0,1,0,0,40 | BE54: 0,0,0,0,1,0,0,40 | BF54: 0,0,0,0,1,0,0,40 | BG54: 0,0,0,0,1,0,0,40 | BH54: 0,0,0,0,1,0,0,40 | BI54: 0,0,0,0,1,0,0,40 | BJ54: 0,0,0,0,1,0,0,40 | BK54: 0,0,0,0,1,0,0,40 | BL54: 0,0,0,0,1,0,0,40 | BM54: 0,0,0,0,1,0,0,40 | BN54: 0,0,0,0,1,0,0,40 | BO54: 0,0,0,0,1,0,0,40 | BP54: 0,0,0,0,1,0,0,40 | BQ54: 0,0,0,0,1,0,0,40 | BR54: 0,0,0,0,1,0,0,40 | BS54: 0,0,0,0,1,0,0,40 | BT54: 0,0,0,0,1,0,0,40 | BU54: 0,0,0,0,1,0,0,40 | BV54: 0,0,0,0,1,0,0,40 | BW54: 0,0,0,0,1,0,0,40 | BX54: 0,0,0,0,1,0,0,40 | BY54: 0,0,0,0,1,0,0,40 | BZ54: 0,0,0,0,1,0,0,40 | CA54: 0,0,0,0,1,0,0,40 | CB54: 0,0,0,0,1,0,0,40 | CC54: 0,0,0,0,1,0,0,40 | CD54: 0,0,0,0,1,0,0,40 | CE54: 0,0,0,0,1,0,0,40 | CF54: 0,0,0,0,1,0,0,40 | CG54: 0,0,0,0,1,0,0,40 | CH54: 0,0,0,0,1,0,0,40 | CI54: 0,0,0,0,1,0,0,40 | CJ54: 0,0,0,0,1,0,0,40 | CK54: 0,0,0,0,1,0,0,40 | CL54: 0,0,0,0,1,0,0,40 | CM54: 0,0,0,0,1,0,0,40 | CN54: 0,0,0,0,1,0,0,40 | CO54: 0,0,0,0,1,0,0,40 | CP54: 0,0,0,0,1,0,0,40 | CQ54: 0,0,0,0,1,0,0,40 | CR54: 0,0,0,0,1,0,0,40 | CS54: 0,0,0,0,1,0,0,40 | CT54: 0,0,0,0,1,0,0,40 | CU54: 0,0,0,0,1,0,0,40 | CV54: 0,0,0,0,1,0,0,40 | CW54: 0,0,0,0,1,0,0,40 | CX54: 0,0,0,0,1,0,0,40 | CY54: 0,0,0,0,1,0,0,40
A55: Physician | B55: 1 | C55: 0,0,0,0,0,A&E,1 | D55: 0,0,0,0,0,A&E,1,27 | E55: 0,0,0,0,0,A&E,1,27 | F55: 0,0,0,0,0,A&E,1,27 | G55: 0,0,0,0,1,A&E,1,27 | H55: 0,0,0,0,1,A&E,1,27 | I55: 0,0,0,0,1,A&E,1,27 | J55: 0,0,0,0,1,A&E,1,27 | K55: 0,0,0,0,1,A&E,1,27 | L55: 0,0,0,0,1,A&E,1,27 | M55: 0,0,0,0,1,A&E,1,27 | N55: 0,0,0,0,1,A&E,1,27 | O55: 0,0,0,0,1,A&E,1,27 | P55: 0,0,0,0,1,A&E,1,27 | Q55: 0,0,0,0,1,A&E,1,27 | R55: 0,0,0,0,1,A&E,1,27 | S55: 0,0,0,0,1,A&E,1,27 | T55: 0,0,0,0,1,A&E,1,27 | U55: 0,0,0,0,1,A&E,1,27 | V55: 0,0,0,0,1,A&E,1,27 | W55: 0,0,0,0,1,A&E,1,27 | X55: 0,0,0,0,1,A&E,1,27 | Y55: 0,0,0,0,1,A&E,1,27 | Z55: 0,0,0,0,1,A&E,1,27 | AA55: 0,0,0,0,1,A&E,1,27 | AB55: 0,0,0,0,1,A&E,1,27 | AC55: 0,0,0,0,1,A&E,1,27 | AD55: 0,0,0,0,1,A&E,1,27 | AE55: 0,0,0,0,1,A&E,1,27 | AF55: 0,0,0,0,1,A&E,1,27 | AG55: 0,0,0,0,1,A&E,1,27 | AH55: 0,0,0,0,1,A&E,1,27 | AI55: 0,0,0,0,1,A&E,1,27 | AJ55: 0,0,0,0,1,A&E,1,27 | AK55: 0,0,0,0,1,A&E,1,27 | AL55: 0,0,0,0,1,A&E,1,27 | AM55: 0,0,0,0,1,A&E,1,27 | AN55: 0,0,0,0,1,A&E,1,27 | AO55: 0,0,0,0,1,A&E,1,27 | AP55: 0,0,0,0,1,A&E,1,27 | AQ55: 0,0,0,0,1,A&E,1,27 | AR55: 0,0,0,0,1,A&E,1,27 | AS55: 0,0,0,0,1,A&E,1,27 | AT55: 0,0,0,0,1,A&E,1,27 | AU55: 0,0,0,0,1,A&E,1,27 | AV55: 0,0,0,0,1,A&E,1,27 | AW55: 0,0,0,0,1,A&E,1,27 | AX55: 0,0,0,0,1,A&E,1,27 | AY55: 0,0,0,0,1,A&E,1,27 | AZ55: 0,0,0,0,1,A&E,1,27 | BA55: 0,0,0,0,1,A&E,1,27 | BB55: 0,0,0,0,1,A&E,1,27 | BC55: 0,0,0,0,1,A&E,1,27 | BD55: 0,0,0,0,1,A&E,1,27 | BE55: 0,0,0,0,1,A&E,1,27 | BF55: 0,0,0,0,1,A&E,1,27 | BG55: 0,0,0,0,1,A&E,1,27 | BH55: 0,0,0,0,1,A&E,1,27 | BI55: 0,0,0,0,1,A&E,1,27 | BJ55: 0,0,0,0,1,A&E,1,27 | BK55: 0,0,0,0,1,A&E,1,27 | BL55: 0,0,0,0,1,A&E,1,27 | BM55: 0,0,0,0,1,A&E,1,27 | BN55: 0,0,0,0,1,A&E,1,27 | BO55: 0,0,0,0,1,A&E,1,27 | BP55: 0,0,0,0,1,A&E,1,27 | BQ55: 0,0,0,0,1,A&E,1,27 | BR55: 0,0,0,0,1,A&E,1,27 | BS55: 0,0,0,0,1,A&E,1,27 | BT55: 0,0,0,0,1,A&E,1,27 | BU55: 0,0,0,0,1,A&E,1,27 | BV55: 0,0,0,0,1,A&E,1,27 | BW55: 0,0,0,0,1,A&E,1,27 | BX55: 0,0,0,0,1,A&E,1,27 | BY55: 0,0,0,0,1,A&E,1,27 | BZ55: 0,0,0,0,1,A&E,1,27 | CA55: 0,0,0,0,1,A&E,1,27 | CB55: 0,0,0,0,1,A&E,1,27 | CC55: 0,0,0,0,1,A&E,1,27 | CD55: 0,0,0,0,1,A&E,1,27 | CE55: 0,0,0,0,1,A&E,1,27 | CF55: 0,0,0,0,1,A&E,1,27 | CG55: 0,0,0,0,1,A&E,1,27 | CH55: 0,0,0,0,1,A&E,1,27 | CI55: 0,0,0,0,1,A&E,1,27 | CJ55: 0,0,0,0,1,A&E,1,27 | CK55: 0,0,0,0,1,A&E,1,27 | CL55: 0,0,0,0,1,A&E,1,27 | CM55: 0,0,0,0,1,A&E,1,27 | CN55: 0,0,0,0,1,A&E,1,27 | CO55: 0,0,0,0,1,A&E,1,27 | CP55: 0,0,0,0,1,A&E,1,27 | CQ55: 0,0,0,0,1,A&E,1,27 | CR55: 0,0,0,0,1,A&E,1,27 | CS55: 0,0,0,0,1,A&E,1,27 | CT55: 0,0,0,0,1,A&E,1,27 | CU55: 0,0,0,0,1,A&E,1,27 | CV55: 0,0,0,0,1,A&E,1,27 | CW55: 0,0,0,0,1,A&E,1,27 | CX55: 0,0,0,0,1,A&E,1,27 | CY55: 0,0,0,0,1,A&E,1,27
A56: Physician | B56: 2 | C56: 0,0,0,0,0,A&E,2 | D56: 0,0,0,0,0,A&E,2,25 | E56: 0,0,0,0,0,A&E,2,25 | F56: 0,0,0,0,0,A&E,2,25 | G56: 0,0,0,0,0,A&E,2,25 | H56: 0,0,0,0,1,A&E,2,25 | I56: 0,0,0,0,1,A&E,2,25 | J56: 0,0,0,0,1,A&E,2,25 | K56: 0,0,0,0,1,A&E,2,25 | L56: 0,0,0,0,1,A&E,2,25 | M56: 0,0,0,0,1,A&E,2,25 | N56: 0,0,0,0,1,A&E,2,25 | O56: 0,0,0,0,1,A&E,2,25 | P56: 0,0,0,0,1,A&E,2,25 | Q56: 0,0,0,0,1,A&E,2,25 | R56: 0,0,0,0,1,A&E,2,25 | S56: 0,0,0,0,1,A&E,2,25 | T56: 0,0,0,0,1,A&E,2,25 | U56: 0,0,0,0,1,A&E,2,25 | V56: 0,0,0,0,1,A&E,2,25 | W56: 0,0,0,0,1,A&E,2,25 | X56: 0,0,0,0,1,A&E,2,25 | Y56: 0,0,0,0,1,A&E,2,25 | Z56: 0,0,0,0,1,A&E,2,25 | AA56: 0,0,0,0,1,A&E,2,25 | AB56: 0,0,0,0,1,A&E,2,25 | AC56: 0,0,0,0,1,A&E,2,25 | AD56: 0,0,0,0,1,A&E,2,25 | AE56: 0,0,0,0,1,A&E,2,25 | AF56: 0,0,0,0,1,A&E,2,25 | AG56: 0,0,0,0,1,A&E,2,25 | AH56: 0,0,0,0,1,A&E,2,25 | AI56: 0,0,0,0,1,A&E,2,25 | AJ56: 0,0,0,0,1,A&E,2,25 | AK56: 0,0,0,0,1,A&E,2,25 | AL56: 0,0,0,0,1,A&E,2,25 | AM56: 0,0,0,0,1,A&E,2,25 | AN56: 0,0,0,0,1,A&E,2,25 | AO56: 0,0,0,0,1,A&E,2,25 | AP56: 0,0,0,0,1,A&E,2,25 | AQ56: 0,0,0,0,1,A&E,2,25 | AR56: 0,0,0,0,1,A&E,2,25 | AS56: 0,0,0,0,1,A&E,2,25 | AT56: 0,0,0,0,1,A&E,2,25 | AU56: 0,0,0,0,1,A&E,2,25 | AV56: 0,0,0,0,1,A&E,2,25 | AW56: 0,0,0,0,1,A&E,2,25 | AX56: 0,0,0,0,1,A&E,2,25 | AY56: 0,0,0,0,1,A&E,2,25 | AZ56: 0,0,0,0,1,A&E,2,25 | BA56: 0,0,0,0,1,A&E,2,25 | BB56: 0,0,0,0,1,A&E,2,25 | BC56: 0,0,0,0,1,A&E,2,25 | BD56: 0,0,0,0,1,A&E,2,25 | BE56: 0,0,0,0,1,A&E,2,25 | BF56: 0,0,0,0,1,A&E,2,25 | BG56: 0,0,0,0,1,A&E,2,25 | BH56: 0,0,0,0,1,A&E,2,25 | BI56: 0,0,0,0,1,A&E,2,25 | BJ56: 0,0,0,0,1,A&E,2,25 | BK56: 0,0,0,0,1,A&E,2,25 | BL56: 0,0,0,0,1,A&E,2,25 | BM56: 0,0,0,0,1,A&E,2,25 | BN56: 0,0,0,0,1,A&E,2,25 | BO56: 0,0,0,0,1,A&E,2,25 | BP56: 0,0,0,0,1,A&E,2,25 | BQ56: 0,0,0,0,1,A&E,2,25 | BR56: 0,0,0,0,1,A&E,2,25 | BS56: 0,0,0,0,1,A&E,2,25 | BT56: 0,0,0,0,1,A&E,2,25 | BU56: 0,0,0,0,1,A&E,2,25 | BV56: 0,0,0,0,1,A&E,2,25 | BW56: 0,0,0,0,1,A&E,2,25 | BX56: 0,0,0,0,1,A&E,2,25 | BY56: 0,0,0,0,1,A&E,2,25 | BZ56: 0,0,0,0,1,A&E,2,25 | CA56: 0,0,0,0,1,A&E,2,25 | CB56: 0,0,0,0,1,A&E,2,25 | CC56: 0,0,0,0,1,A&E,2,25 | CD56: 0,0,0,0,1,A&E,2,25 | CE56: 0,0,0,0,1,A&E,2,25 | CF56: 0,0,0,0,1,A&E,2,25 | CG56: 0,0,0,0,1,A&E,2,25 | CH56: 0,0,0,0,1,A&E,2,25 | CI56: 0,0,0,0,1,A&E,2,25 | CJ56: 0,0,0,0,1,A&E,2,25 | CK56: 0,0,0,0,1,A&E,2,25 | CL56: 0,0,0,0,1,A&E,2,25 | CM56: 0,0,0,0,1,A&E,2,25 | CN56: 0,0,0,0,1,A&E,2,25 | CO56: 0,0,0,0,1,A&E,2,25 | CP56: 0,0,0,0,1,A&E,2,25 | CQ56: 0,0,0,0,1,A&E,2,25 | CR56: 0,0,0,0,1,A&E,2,25 | CS56: 0,0,0,0,1,A&E,2,25 | CT56: 0,0,0,0,1,A&E,2,25 | CU56: 0,0,0,0,1,A&E,2,25 | CV56: 0,0,0,0,1,A&E,2,25 | CW56: 0,0,0,0,1,A&E,2,25 | CX56: 0,0,0,0,1,A&E,2,25 | CY56: 0,0,0,0,1,A&E,2,25
A57: Physician | B57: 3 | C57: 0,0,0,0,0,A&E,3 | D57: 0,0,0,0,0,A&E,3,32 | E57: 0,0,0,0,0,A&E,3,32 | F57: 0,0,0,0,0,A&E,3,32 | G57: 0,0,0,0,0,A&E,3,32 | H57: 0,0,0,0,0,A&E,3,32 | I57: 0,0,0,0,1,A&E,3,32 | J57: 0,0,0,0,1,A&E,3,32 | K57: 0,0,0,0,1,A&E,3,32 | L57: 0,0,0,0,1,A&E,3,32 | M57: 0,0,0,0,1,A&E,3,32 | N57: 0,0,0,0,1,A&E,3,32 | O57: 0,0,0,0,1,A&E,3,32 | P57: 0,0,0,0,1,A&E,3,32 | Q57: 0,0,0,0,1,A&E,3,32 | R57: 0,0,0,0,1,A&E,3,32 | S57: 0,0,0,0,1,A&E,3,32 | T57: 0,0,0,0,1,A&E,3,32 | U57: 0,0,0,0,1,A&E,3,32 | V57: 0,0,0,0,1,A&E,3,32 | W57: 0,0,0,0,1,A&E,3,32 | X57: 0,0,0,0,1,A&E,3,32 | Y57: 0,0,0,0,1,A&E,3,32 | Z57: 0,0,0,0,1,A&E,3,32 | AA57: 0,0,0,0,1,A&E,3,32 | AB57: 0,0,0,0,1,A&E,3,32 | AC57: 0,0,0,0,1,A&E,3,32 | AD57: 0,0,0,0,1,A&E,3,32 | AE57: 0,0,0,0,1,A&E,3,32 | AF57: 0,0,0,0,1,A&E,3,32 | AG57: 0,0,0,0,1,A&E,3,32 | AH57: 0,0,0,0,1,A&E,3,32 | AI57: 0,0,0,0,1,A&E,3,32 | AJ57: 0,0,0,0,1,A&E,3,32 | AK57: 0,0,0,0,1,A&E,3,32 | AL57: 0,0,0,0,1,A&E,3,32 | AM57: 0,0,0,0,1,A&E,3,32 | AN57: 0,0,0,0,1,A&E,3,32 | AO57: 0,0,0,0,1,A&E,3,32 | AP57: 0,0,0,0,1,A&E,3,32 | AQ57: 0,0,0,0,1,A&E,3,32 | AR57: 0,0,0,0,1,A&E,3,32 | AS57: 0,0,0,0,1,A&E,3,32 | AT57: 0,0,0,0,1,A&E,3,32 | AU57: 0,0,0,0,1,A&E,3,32 | AV57: 0,0,0,0,1,A&E,3,32 | AW57: 0,0,0,0,1,A&E,3,32 | AX57: 0,0,0,0,1,A&E,3,32 | AY57: 0,0,0,0,1,A&E,3,32 | AZ57: 0,0,0,0,1,A&E,3,32 | BA57: 0,0,0,0,1,A&E,3,32 | BB57: 0,0,0,0,1,A&E,3,32 | BC57: 0,0,0,0,1,A&E,3,32 | BD57: 0,0,0,0,1,A&E,3,32 | BE57: 0,0,0,0,1,A&E,3,32 | BF57: 0,0,0,0,1,A&E,3,32 | BG57: 0,0,0,0,1,A&E,3,32 | BH57: 0,0,0,0,1,A&E,3,32 | BI57: 0,0,0,0,1,A&E,3,32 | BJ57: 0,0,0,0,1,A&E,3,32 | BK57: 0,0,0,0,1,A&E,3,32 | BL57: 0,0,0,0,1,A&E,3,32 | BM57: 0,0,0,0,1,A&E,3,32 | BN57: 0,0,0,0,1,A&E,3,32 | BO57: 0,0,0,0,1,A&E,3,32 | BP57: 0,0,0,0,1,A&E,3,32 | BQ57: 0,0,0,0,1,A&E,3,32 | BR57: 0,0,0,0,1,A&E,3,32 | BS57: 0,0,0,0,1,A&E,3,32 | BT57: 0,0,0,0,1,A&E,3,32 | BU57: 0,0,0,0,1,A&E,3,32 | BV57: 0,0,0,0,1,A&E,3,32 | BW57: 0,0,0,0,1,A&E,3,32 | BX57: 0,0,0,0,1,A&E,3,32 | BY57: 0,0,0,0,1,A&E,3,32 | BZ57: 0,0,0,0,1,A&E,3,32 | CA57: 0,0,0,0,1,A&E,3,32 | CB57: 0,0,0,0,1,A&E,3,32 | CC57: 0,0,0,0,1,A&E,3,32 | CD57: 0,0,0,0,1,A&E,3,32 | CE57: 0,0,0,0,1,A&E,3,32 | CF57: 0,0,0,0,1,A&E,3,32 | CG57: 0,0,0,0,1,A&E,3,32 | CH57: 0,0,0,0,1,A&E,3,32 | CI57: 0,0,0,0,1,A&E,3,32 | CJ57: 0,0,0,0,1,A&E,3,32 | CK57: 0,0,0,0,1,A&E,3,32 | CL57: 0,0,0,0,1,A&E,3,32 | CM57: 0,0,0,0,1,A&E,3,32 | CN57: 0,0,0,0,1,A&E,3,32 | CO57: 0,0,0,0,1,A&E,3,32 | CP57: 0,0,0,0,1,A&E,3,32 | CQ57: 0,0,0,0,1,A&E,3,32 | CR57: 0,0,0,0,1,A&E,3,32 | CS57: 0,0,0,0,1,A&E,3,32 | CT57: 0,0,0,0,1,A&E,3,32 | CU57: 0,0,0,0,1,A&E,3,32 | CV57: 0,0,0,0,1,A&E,3,32 | CW57: 0,0,0,0,1,A&E,3,32 | CX57: 0,0,0,0,1,A&E,3,32 | CY57: 0,0,0,0,1,A&E,3,32
A58: Physician | B58: 4 | C58: 0,0,0,0,0,A&E,4 | D58: 0,0,0,0,0,A&E,4,26 | E58: 0,0,0,0,0,A&E,4,26 | F58: 0,0,0,0,0,A&E,4,26 | G58: 1,0,0,1,0,A&E,4,26 | H58: 2,0,0,1,0,A&E,4,26 | I58: 3,0,0,1,0,A&E,4,26 | J58: 0,0,0,0,1,A&E,4,26 | K58: 0,0,0,0,1,A&E,4,26 | L58: 0,0,0,0,1,A&E,4,26 | M58: 0,0,0,0,1,A&E,4,26 | N58: 0,0,0,0,1,A&E,4,26 | O58: 0,0,0,0,1,A&E,4,26 | P58: 0,0,0,0,1,A&E,4,26 | Q58: 0,0,0,0,1,A&E,4,26 | R58: 0,0,0,0,1,A&E,4,26 | S58: 0,0,0,0,1,A&E,4,26 | T58: 0,0,0,0,1,A&E,4,26 | U58: 0,0,0,0,1,A&E,4,26 | V58: 0,0,0,0,1,A&E,4,26 | W58: 0,0,0,0,1,A&E,4,26 | X58: 0,0,0,0,1,A&E,4,26 | Y58: 0,0,0,0,1,A&E,4,26 | Z58: 0,0,0,0,1,A&E,4,26 | AA58: 0,0,0,0,1,A&E,4,26 | AB58: 0,0,0,0,1,A&E,4,26 | AC58: 0,0,0,0,1,A&E,4,26 | AD58: 0,0,0,0,1,A&E,4,26 | AE58: 0,0,0,0,1,A&E,4,26 | AF58: 0,0,0,0,1,A&E,4,26 | AG58: 0,0,0,0,1,A&E,4,26 | AH58: 0,0,0,0,1,A&E,4,26 | AI58: 0,0,0,0,1,A&E,4,26 | AJ58: 0,0,0,0,1,A&E,4,26 | AK58: 0,0,0,0,1,A&E,4,26 | AL58: 0,0,0,0,1,A&E,4,26 | AM58: 0,0,0,0,1,A&E,4,26 | AN58: 0,0,0,0,1,A&E,4,26 | AO58: 0,0,0,0,1,A&E,4,26 | AP58: 0,0,0,0,1,A&E,4,26 | AQ58: 0,0,0,0,1,A&E,4,26 | AR58: 0,0,0,0,1,A&E,4,26 | AS58: 0,0,0,0,1,A&E,4,26 | AT58: 0,0,0,0,1,A&E,4,26 | AU58: 0,0,0,0,1,A&E,4,26 | AV58: 0,0,0,0,1,A&E,4,26 | AW58: 0,0,0,0,1,A&E,4,26 | AX58: 0,0,0,0,1,A&E,4,26 | AY58: 0,0,0,0,1,A&E,4,26 | AZ58: 0,0,0,0,1,A&E,4,26 | BA58: 0,0,0,0,1,A&E,4,26 | BB58: 0,0,0,0,1,A&E,4,26 | BC58: 0,0,0,0,1,A&E,4,26 | BD58: 0,0,0,0,1,A&E,4,26 | BE58: 0,0,0,0,1,A&E,4,26 | BF58: 0,0,0,0,1,A&E,4,26 | BG58: 0,0,0,0,1,A&E,4,26 | BH58: 0,0,0,0,1,A&E,4,26 | BI58: 0,0,0,0,1,A&E,4,26 | BJ58: 0,0,0,0,1,A&E,4,26 | BK58: 0,0,0,0,1,A&E,4,26 | BL58: 0,0,0,0,1,A&E,4,26 | BM58: 0,0,0,0,1,A&E,4,26 | BN58: 0,0,0,0,1,A&E,4,26 | BO58: 0,0,0,0,1,A&E,4,26 | BP58: 0,0,0,0,1,A&E,4,26 | BQ58: 0,0,0,0,1,A&E,4,26 | BR58: 0,0,0,0,1,A&E,4,26 | BS58: 0,0,0,0,1,A&E,4,26 | BT58: 0,0,0,0,1,A&E,4,26 | BU58: 0,0,0,0,1,A&E,4,26 | BV58: 0,0,0,0,1,A&E,4,26 | BW58: 0,0,0,0,1,A&E,4,26 | BX58: 0,0,0,0,1,A&E,4,26 | BY58: 0,0,0,0,1,A&E,4,26 | BZ58: 0,0,0,0,1,A&E,4,26 | CA58: 0,0,0,0,1,A&E,4,26 | CB58: 0,0,0,0,1,A&E,4,26 | CC58: 0,0,0,0,1,A&E,4,26 | CD58: 0,0,0,0,1,A&E,4,26 | CE58: 0,0,0,0,1,A&E,4,26 | CF58: 0,0,0,0,1,A&E,4,26 | CG58: 0,0,0,0,1,A&E,4,26 | CH58: 0,0,0,0,1,A&E,4,26 | CI58: 0,0,0,0,1,A&E,4,26 | CJ58: 0,0,0,0,1,A&E,4,26 | CK58: 0,0,0,0,1,A&E,4,26 | CL58: 0,0,0,0,1,A&E,4,26 | CM58: 0,0,0,0,1,A&E,4,26 | CN58: 0,0,0,0,1,A&E,4,26 | CO58: 0,0,0,0,1,A&E,4,26 | CP58: 0,0,0,0,1,A&E,4,26 | CQ58: 0,0,0,0,1,A&E,4,26 | CR58: 0,0,0,0,1,A&E,4,26 | CS58: 0,0,0,0,1,A&E,4,26 | CT58: 0,0,0,0,1,A&E,4,26 | CU58: 0,0,0,0,1,A&E,4,26 | CV58: 0,0,0,0,1,A&E,4,26 | CW58: 0,0,0,0,1,A&E,4,26 | CX58: 0,0,0,0,1,A&E,4,26 | CY58: 0,0,0,0,1,A&E,4,26
A59: Physician | B59: 5 | C59: 0,0,0,0,0,ward1,1 | D59: 0,0,0,0,0,ward1,1,30 | E59: 0,0,0,0,0,ward1,1,30 | F59: 0,0,0,0,0,ward1,1,30 | G59: 0,0,0,0,0,ward1,1,30 | H59: 1,0,0,1,0,ward1,1,30 | I59: 2,0,0,1,0,ward1,1,30 | J59: 3,0,0,1,0,ward1,1,30 | K59: 4,0,0,1,0,ward1,1,30 | L59: 5,1,0,1,0,0,0,30 | M59: 6,1,0,1,0,0,0,30 | N59: 7,1,0,1,0,0,0,30 | O59: 8,1,0,1,0,0,0,30 | P59: 9,1,0,1,0,0,0,30 | Q59: 10,1,0,1,0,0,0,30 | R59: 11,1,0,1,0,0,0,30 | S59: 12,1,0,1,0,0,0,30 | T59: 13,1,0,1,0,0,0,30 | U59: 14,1,0,1,0,0,0,30 | V59: 15,1,0,1,0,0,0,30 | W59: 0,0,0,0,0,ward1,1,30 | X59: 0,0,0,0,0,ward1,1,30 | Y59: 0,0,0,0,0,ward1,1,30 | Z59: 0,0,0,0,0,ward1,1,30 | AA59: 0,0,0,0,0,ward1,1,30 | AB59: 0,0,0,0,0,ward1,1,30 | AC59: 0,0,0,0,0,ward1,1,30 | AD59: 0,0,0,0,0,ward1,1,30 | AE59: 0,0,0,0,1,ward1,1,30 | AF59: 0,0,0,0,1,ward1,1,30 | AG59: 0,0,0,0,1,ward1,1,30 | AH59: 0,0,0,0,1,ward1,1,30 | AI59: 0,0,0,0,1,ward1,1,30 | AJ59: 0,0,0,0,1,ward1,1,30 | AK59: 0,0,0,0,1,ward1,1,30 | AL59: 0,0,0,0,1,ward1,1,30 | AM59: 0,0,0,0,1,ward1,1,30 | AN59: 0,0,0,0,1,ward1,1,30 | AO59: 0,0,0,0,1,ward1,1,30 | AP59: 0,0,0,0,1,ward1,1,30 | AQ59: 0,0,0,0,1,ward1,1,30 | AR59: 0,0,0,0,1,ward1,1,30 | AS59: 0,0,0,0,1,ward1,1,30 | AT59: 0,0,0,0,1,ward1,1,30 | AU59: 0,0,0,0,1,ward1,1,30 | AV59: 0,0,0,0,1,ward1,1,30 | AW59: 0,0,0,0,1,ward1,1,30 | AX59: 0,0,0,0,1,ward1,1,30 | AY59: 0,0,0,0,1,ward1,1,30 | AZ59: 0,0,0,0,1,ward1,1,30 | BA59: 0,0,0,0,1,ward1,1,30 | BB59: 0,0,0,0,1,ward1,1,30 | BC59: 0,0,0,0,1,ward1,1,30 | BD59: 0,0,0,0,1,ward1,1,30 | BE59: 0,0,0,0,1,ward1,1,30 | BF59: 0,0,0,0,1,ward1,1,30 | BG59: 0,0,0,0,1,ward1,1,30 | BH59: 0,0,0,0,1,ward1,1,30 | BI59: 0,0,0,0,1,ward1,1,30 | BJ59: 0,0,0,0,1,ward1,1,30 | BK59: 0,0,0,0,1,ward1,1,30 | BL59: 0,0,0,0,1,ward1,1,30 | BM59: 0,0,0,0,1,ward1,1,30 | BN59: 0,0,0,0,1,ward1,1,30 | BO59: 0,0,0,0,1,ward1,1,30 | BP59: 0,0,0,0,1,ward1,1,30 | BQ59: 0,0,0,0,1,ward1,1,30 | BR59: 0,0,0,0,1,ward1,1,30 | BS59: 0,0,0,0,1,ward1,1,30 | BT59: 0,0,0,0,1,ward1,1,30 | BU59: 0,0,0,0,1,ward1,1,30 | BV59: 0,0,0,0,1,ward1,1,30 | BW59: 0,0,0,0,1,ward1,1,30 | BX59: 0,0,0,0,1,ward1,1,30 | BY59: 0,0,0,0,1,ward1,1,30 | BZ59: 0,0,0,0,1,ward1,1,30 | CA59: 0,0,0,0,1,ward1,1,30 | CB59: 0,0,0,0,1,ward1,1,30 | CC59: 0,0,0,0,1,ward1,1,30 | CD59: 0,0,0,0,1,ward1,1,30 | CE59: 0,0,0,0,1,ward1,1,30 | CF59: 0,0,0,0,1,ward1,1,30 | CG59: 0,0,0,0,1,ward1,1,30 | CH59: 0,0,0,0,1,ward1,1,30 | CI59: 0,0,0,0,1,ward1,1,30 | CJ59: 0,0,0,0,1,ward1,1,30 | CK59: 0,0,0,0,1,ward1,1,30 | CL59: 0,0,0,0,1,ward1,1,30 | CM59: 0,0,0,0,1,ward1,1,30 | CN59: 0,0,0,0,1,ward1,1,30 | CO59: 0,0,0,0,1,ward1,1,30 | CP59: 0,0,0,0,1,ward1,1,30 | CQ59: 0,0,0,0,1,ward1,1,30 | CR59: 0,0,0,0,1,ward1,1,30 | CS59: 0,0,0,0,1,ward1,1,30 | CT59: 0,0,0,0,1,ward1,1,30 | CU59: 0,0,0,0,1,ward1,1,30 | CV59: 0,0,0,0,1,ward1,1,30 | CW59: 0,0,0,0,1,ward1,1,30 | CX59: 0,0,0,0,1,ward1,1,30 | CY59: 0,0,0,0,1,ward1,1,30
A60: Physician | B60: 6 | C60: 0,0,0,0,0,ward1,2 | D60: 0,0,0,0,0,ward1,2,30 | E60: 0,0,0,0,0,ward1,2,30 | F60: 0,0,0,0,0,ward1,2,30 | G60: 0,0,0,0,0,ward1,2,30 | H60: 0,0,0,0,0,ward1,2,30 | I60: 0,0,0,0,0,ward1,2,30 | J60: 0,0,0,0,0,ward1,2,30 | K60: 1,0,0,1,0,ward1,2,30 | L60: 2,0,0,1,0,ward1,1,30 | M60: 3,0,0,1,0,ward1,1,30 | N60: 4,0,0,1,0,ward1,1,30 | O60: 5,1,0,1,0,0,0,30 | P60: 6,1,0,1,0,0,0,30 | Q60: 7,1,0,1,0,0,0,30 | R60: 8,1,0,1,0,0,0,30 | S60: 9,1,0,1,0,0,0,30 | T60: 10,1,0,1,0,0,0,30 | U60: 11,1,0,1,0,0,0,30 | V60: 12,1,0,1,0,0,0,30 | W60: 13,1,0,1,0,0,0,30 | X60: 14,1,0,1,0,0,0,30 | Y60: 15,1,0,1,0,0,0,30 | Z60: 0,0,0,0,0,ward1,2,30 | AA60: 0,0,0,0,0,ward1,2,30 | AB60: 0,0,0,0,0,ward1,2,30 | AC60: 0,0,0,0,0,ward1,2,30 | AD60: 0,0,0,0,0,ward1,2,30 | AE60: 0,0,0,0,0,ward1,2,30 | AF60: 0,0,0,0,1,ward1,2,30 | AG60: 0,0,0,0,1,ward1,2,30 | AH60: 0,0,0,0,1,ward1,2,30 | AI60: 0,0,0,0,1,ward1,2,30 | AJ60: 0,0,0,0,1,ward1,2,30 | AK60: 0,0,0,0,1,ward1,2,30 | AL60: 0,0,0,0,1,ward1,2,30 | AM60: 0,0,0,0,1,ward1,2,30 | AN60: 0,0,0,0,1,ward1,2,30 | AO60: 0,0,0,0,1,ward1,2,30 | AP60: 0,0,0,0,1,ward1,2,30 | AQ60: 0,0,0,0,1,ward1,2,30 | AR60: 0,0,0,0,1,ward1,2,30 | AS60: 0,0,0,0,1,ward1,2,30 | AT60: 0,0,0,0,1,ward1,2,30 | AU60: 0,0,0,0,1,ward1,2,30 | AV60: 0,0,0,0,1,ward1,2,30 | AW60: 0,0,0,0,1,ward1,2,30 | AX60: 0,0,0,0,1,ward1,2,30 | AY60: 0,0,0,0,1,ward1,2,30 | AZ60: 0,0,0,0,1,ward1,2,30 | BA60: 0,0,0,0,1,ward1,2,30 | BB60: 0,0,0,0,1,ward1,2,30 | BC60: 0,0,0,0,1,ward1,2,30 | BD60: 0,0,0,0,1,ward1,2,30 | BE60: 0,0,0,0,1,ward1,2,30 | BF60: 0,0,0,0,1,ward1,2,30 | BG60: 0,0,0,0,1,ward1,2,30 | BH60: 0,0,0,0,1,ward1,2,30 | BI60: 0,0,0,0,1,ward1,2,30 | BJ60: 0,0,0,0,1,ward1,2,30 | BK60: 0,0,0,0,1,ward1,2,30 | BL60: 0,0,0,0,1,ward1,2,30 | BM60: 0,0,0,0,1,ward1,2,30 | BN60: 0,0,0,0,1,ward1,2,30 | BO60: 0,0,0,0,1,ward1,2,30 | BP60: 0,0,0,0,1,ward1,2,30 | BQ60: 0,0,0,0,1,ward1,2,30 | BR60: 0,0,0,0,1,ward1,2,30 | BS60: 0,0,0,0,1,ward1,2,30 | BT60: 0,0,0,0,1,ward1,2,30 | BU60: 0,0,0,0,1,ward1,2,30 | BV60: 0,0,0,0,1,ward1,2,30 | BW60: 0,0,0,0,1,ward1,2,30 | BX60: 0,0,0,0,1,ward1,2,30 | BY60: 0,0,0,0,1,ward1,2,30 | BZ60: 0,0,0,0,1,ward1,2,30 | CA60: 0,0,0,0,1,ward1,2,30 | CB60: 0,0,0,0,1,ward1,2,30 | CC60: 0,0,0,0,1,ward1,2,30 | CD60: 0,0,0,0,1,ward1,2,30 | CE60: 0,0,0,0,1,ward1,2,30 | CF60: 0,0,0,0,1,ward1,2,30 | CG60: 0,0,0,0,1,ward1,2,30 | CH60: 0,0,0,0,1,ward1,2,30 | CI60: 0,0,0,0,1,ward1,2,30 | CJ60: 0,0,0,0,1,ward1,2,30 | CK60: 0,0,0,0,1,ward1,2,30 | CL60: 0,0,0,0,1,ward1,2,30 | CM60: 0,0,0,0,1,ward1,2,30 | CN60: 0,0,0,0,1,ward1,2,30 | CO60: 0,0,0,0,1,ward1,2,30 | CP60: 0,0,0,0,1,ward1,2,30 | CQ60: 0,0,0,0,1,ward1,2,30 | CR60: 0,0,0,0,1,ward1,2,30 | CS60: 0,0,0,0,1,ward1,2,30 | CT60: 0,0,0,0,1,ward1,2,30 | CU60: 0,0,0,0,1,ward1,2,30 | CV60: 0,0,0,0,1,ward1,2,30 | CW60: 0,0,0,0,1,ward1,2,30 | CX60: 0,0,0,0,1,ward1,2,30 | CY60: 0,0,0,0,1,ward1,2,30
A61: Physician | B61: 7 | C61: 0,0,0,0,0,ward2,1 | D61: 0,0,0,0,0,ward2,1,26 | E61: 0,0,0,0,0,ward2,1,26 | F61: 0,0,0,0,0,ward2,1,26 | G61: 0,0,0,0,0,ward2,1,26 | H61: 0,0,0,0,0,ward2,1,26 | I61: 0,0,0,0,0,ward2,1,26 | J61: 0,0,0,0,0,ward2,1,26 | K61: 0,0,0,0,0,ward2,1,26 | L61: 1,0,0,1,0,ward1,2,26 | M61: 2,0,0,1,0,ward1,2,26 | N61: 3,0,0,1,0,ward1,2,26 | O61: 4,0,0,1,0,ward1,1,26 | P61: 5,1,0,1,0,0,0,26 | Q61: 6,1,0,1,0,0,0,26 | R61: 7,1,0,1,0,0,0,26 | S61: 8,1,0,1,0,0,0,26 | T61: 9,1,0,1,0,0,0,26 | U61: 10,1,0,1,0,0,0,26 | V61: 11,1,0,1,0,0,0,26 | W61: 12,1,0,1,0,0,0,26 | X61: 13,1,0,1,0,0,0,26 | Y61: 14,1,0,1,0,0,0,26 | Z61: 15,1,0,1,0,0,0,26 | AA61: 0,0,0,0,0,ward2,1,26 | AB61: 0,0,0,0,0,ward2,1,26 | AC61: 0,0,0,0,0,ward2,1,26 | AD61: 0,0,0,0,0,ward2,1,26 | AE61: 0,0,0,0,0,ward2,1,26 | AF61: 0,0,0,0,0,ward2,1,26 | AG61: 0,0,0,0,1,ward2,1,26 | AH61: 0,0,0,0,1,ward2,1,26 | AI61: 0,0,0,0,1,ward2,1,26 | AJ61: 0,0,0,0,1,ward2,1,26 | AK61: 0,0,0,0,1,ward2,1,26 | AL61: 0,0,0,0,1,ward2,1,26 | AM61: 0,0,0,0,1,ward2,1,26 | AN61: 0,0,0,0,1,ward2,1,26 | AO61: 0,0,0,0,1,ward2,1,26 | AP61: 0,0,0,0,1,ward2,1,26 | AQ61: 0,0,0,0,1,ward2,1,26 | AR61: 0,0,0,0,1,ward2,1,26 | AS61: 0,0,0,0,1,ward2,1,26 | AT61: 0,0,0,0,1,ward2,1,26 | AU61: 0,0,0,0,1,ward2,1,26 | AV61: 0,0,0,0,1,ward2,1,26 | AW61: 0,0,0,0,1,ward2,1,26 | AX61: 0,0,0,0,1,ward2,1,26 | AY61: 0,0,0,0,1,ward2,1,26 | AZ61: 0,0,0,0,1,ward2,1,26 | BA61: 0,0,0,0,1,ward2,1,26 | BB61: 0,0,0,0,1,ward2,1,26 | BC61: 0,0,0,0,1,ward2,1,26 | BD61: 0,0,0,0,1,ward2,1,26 | BE61: 0,0,0,0,1,ward2,1,26 | BF61: 0,0,0,0,1,ward2,1,26 | BG61: 0,0,0,0,1,ward2,1,26 | BH61: 0,0,0,0,1,ward2,1,26 | BI61: 0,0,0,0,1,ward2,1,26 | BJ61: 0,0,0,0,1,ward2,1,26 | BK61: 0,0,0,0,1,ward2,1,26 | BL61: 0,0,0,0,1,ward2,1,26 | BM61: 0,0,0,0,1,ward2,1,26 | BN61: 0,0,0,0,1,ward2,1,26 | BO61: 0,0,0,0,1,ward2,1,26 | BP61: 0,0,0,0,1,ward2,1,26 | BQ61: 0,0,0,0,1,ward2,1,26 | BR61: 0,0,0,0,1,ward2,1,26 | BS61: 0,0,0,0,1,ward2,1,26 | BT61: 0,0,0,0,1,ward2,1,26 | BU61: 0,0,0,0,1,ward2,1,26 | BV61: 0,0,0,0,1,ward2,1,26 | BW61: 0,0,0,0,1,ward2,1,26 | BX61: 0,0,0,0,1,ward2,1,26 | BY61: 0,0,0,0,1,ward2,1,26 | BZ61: 0,0,0,0,1,ward2,1,26 | CA61: 0,0,0,0,1,ward2,1,26 | CB61: 0,0,0,0,1,ward2,1,26 | CC61: 0,0,0,0,1,ward2,1,26 | CD61: 0,0,0,0,1,ward2,1,26 | CE61: 0,0,0,0,1,ward2,1,26 | CF61: 0,0,0,0,1,ward2,1,26 | CG61: 0,0,0,0,1,ward2,1,26 | CH61: 0,0,0,0,1,ward2,1,26 | CI61: 0,0,0,0,1,ward2,1,26 | CJ61: 0,0,0,0,1,ward2,1,26 | CK61: 0,0,0,0,1,ward2,1,26 | CL61: 0,0,0,0,1,ward2,1,26 | CM61: 0,0,0,0,1,ward2,1,26 | CN61: 0,0,0,0,1,ward2,1,26 | CO61: 0,0,0,0,1,ward2,1,26 | CP61: 0,0,0,0,1,ward2,1,26 | CQ61: 0,0,0,0,1,ward2,1,26 | CR61: 0,0,0,0,1,ward2,1,26 | CS61: 0,0,0,0,1,ward2,1,26 | CT61: 0,0,0,0,1,ward2,1,26 | CU61: 0,0,0,0,1,ward2,1,26 | CV61: 0,0,0,0,1,ward2,1,26 | CW61: 0,0,0,0,1,ward2,1,26 | CX61: 0,0,0,0,1,ward2,1,26 | CY61: 0,0,0,0,1,ward2,1,26
A62: Physician | B62: 8 | C62: 0,0,0,0,0,ward2,2 | D62: 0,0,0,0,0,ward2,2,31 | E62: 0,0,0,0,0,ward2,2,31 | F62: 0,0,0,0,0,ward2,2,31 | G62: 0,0,0,0,0,ward2,2,31 | H62: 0,0,0,0,0,ward2,2,31 | I62: 0,0,0,0,0,ward2,2,31 | J62: 0,0,0,0,0,ward2,2,31 | K62: 0,0,0,0,0,ward2,2,31 | L62: 0,0,0,0,0,ward2,1,31 | M62: 0,0,0,0,0,ward2,1,31 | N62: 0,0,0,0,0,ward2,1,31 | O62: 0,0,0,0,0,ward1,2,31 | P62: 0,0,0,0,0,ward1,1,31 | Q62: 0,0,0,0,0,ward1,1,31 | R62: 0,0,0,0,0,ward1,1,31 | S62: 0,0,0,0,0,ward1,1,31 | T62: 0,0,0,0,0,ward1,1,31 | U62: 0,0,0,0,0,ward1,1,31 | V62: 0,0,0,0,0,ward1,1,31 | W62: 0,0,0,0,0,ward1,2,31 | X62: 0,0,0,0,0,ward1,2,31 | Y62: 0,0,0,0,0,ward1,2,31 | Z62: 0,0,0,0,0,ward2,1,31 | AA62: 0,0,0,0,0,ward2,2,31 | AB62: 0,0,0,0,0,ward2,2,31 | AC62: 0,0,0,0,0,ward2,2,31 | AD62: 0,0,0,0,0,ward2,2,31 | AE62: 0,0,0,0,0,ward2,2,31 | AF62: 0,0,0,0,0,ward2,2,31 | AG62: 0,0,0,0,0,ward2,2,31 | AH62: 0,0,0,0,0,ward2,2,31 | AI62: 0,0,0,0,1,ward2,2,31 | AJ62: 0,0,0,0,1,ward2,2,31 | AK62: 0,0,0,0,1,ward2,2,31 | AL62: 0,0,0,0,1,ward2,2,31 | AM62: 0,0,0,0,1,ward2,2,31 | AN62: 0,0,0,0,1,ward2,2,31 | AO62: 0,0,0,0,1,ward2,2,31 | AP62: 0,0,0,0,1,ward2,2,31 | AQ62: 0,0,0,0,1,ward2,2,31 | AR62: 0,0,0,0,1,ward2,2,31 | AS62: 0,0,0,0,1,ward2,2,31 | AT62: 0,0,0,0,1,ward2,2,31 | AU62: 0,0,0,0,1,ward2,2,31 | AV62: 0,0,0,0,1,ward2,2,31 | AW62: 0,0,0,0,1,ward2,2,31 | AX62: 0,0,0,0,1,ward2,2,31 | AY62: 0,0,0,0,1,ward2,2,31 | AZ62: 0,0,0,0,1,ward2,2,31 | BA62: 0,0,0,0,1,ward2,2,31 | BB62: 0,0,0,0,1,ward2,2,31 | BC62: 0,0,0,0,1,ward2,2,31 | BD62: 0,0,0,0,1,ward2,2,31 | BE62: 0,0,0,0,1,ward2,2,31 | BF62: 0,0,0,0,1,ward2,2,31 | BG62: 0,0,0,0,1,ward2,2,31 | BH62: 0,0,0,0,1,ward2,2,31 | BI62: 0,0,0,0,1,ward2,2,31 | BJ62: 0,0,0,0,1,ward2,2,31 | BK62: 0,0,0,0,1,ward2,2,31 | BL62: 0,0,0,0,1,ward2,2,31 | BM62: 0,0,0,0,1,ward2,2,31 | BN62: 0,0,0,0,1,ward2,2,31 | BO62: 0,0,0,0,1,ward2,2,31 | BP62: 0,0,0,0,1,ward2,2,31 | BQ62: 0,0,0,0,1,ward2,2,31 | BR62: 0,0,0,0,1,ward2,2,31 | BS62: 0,0,0,0,1,ward2,2,31 | BT62: 0,0,0,0,1,ward2,2,31 | BU62: 0,0,0,0,1,ward2,2,31 | BV62: 0,0,0,0,1,ward2,2,31 | BW62: 0,0,0,0,1,ward2,2,31 | BX62: 0,0,0,0,1,ward2,2,31 | BY62: 0,0,0,0,1,ward2,2,31 | BZ62: 0,0,0,0,1,ward2,2,31 | CA62: 0,0,0,0,1,ward2,2,31 | CB62: 0,0,0,0,1,ward2,2,31 | CC62: 0,0,0,0,1,ward2,2,31 | CD62: 0,0,0,0,1,ward2,2,31 | CE62: 0,0,0,0,1,ward2,2,31 | CF62: 0,0,0,0,1,ward2,2,31 | CG62: 0,0,0,0,1,ward2,2,31 | CH62: 0,0,0,0,1,ward2,2,31 | CI62: 0,0,0,0,1,ward2,2,31 | CJ62: 0,0,0,0,1,ward2,2,31 | CK62: 0,0,0,0,1,ward2,2,31 | CL62: 0,0,0,0,1,ward2,2,31 | CM62: 0,0,0,0,1,ward2,2,31 | CN62: 0,0,0,0,1,ward2,2,31 | CO62: 0,0,0,0,1,ward2,2,31 | CP62: 0,0,0,0,1,ward2,2,31 | CQ62: 0,0,0,0,1,ward2,2,31 | CR62: 0,0,0,0,1,ward2,2,31 | CS62: 0,0,0,0,1,ward2,2,31 | CT62: 0,0,0,0,1,ward2,2,31 | CU62: 0,0,0,0,1,ward2,2,31 | CV62: 0,0,0,0,1,ward2,2,31 | CW62: 0,0,0,0,1,ward2,2,31 | CX62: 0,0,0,0,1,ward2,2,31 | CY62: 0,0,0,0,1,ward2,2,31
A63: Physician | B63: 9 | C63: 0,0,0,0,0,ward3,1 | D63: 0,0,0,0,0,ward3,1,31 | E63: 0,0,0,0,0,ward3,1,31 | F63: 0,0,0,0,0,ward3,1,31 | G63: 0,0,0,0,0,ward3,1,31 | H63: 0,0,0,0,0,ward3,1,31 | I63: 0,0,0,0,0,ward3,1,31 | J63: 0,0,0,0,0,ward3,1,31 | K63: 0,0,0,0,0,ward3,1,31 | L63: 0,0,0,0,0,ward2,2,31 | M63: 0,0,0,0,0,ward2,2,31 | N63: 0,0,0,0,0,ward2,2,31 | O63: 0,0,0,0,0,ward2,1,31 | P63: 0,0,0,0,0,ward1,2,31 | Q63: 0,0,0,0,0,ward1,2,31 | R63: 0,0,0,0,0,ward1,2,31 | S63: 0,0,0,0,0,ward1,2,31 | T63: 0,0,0,0,0,ward1,2,31 | U63: 0,0,0,0,0,ward1,2,31 | V63: 0,0,0,0,0,ward1,2,31 | W63: 0,0,0,0,0,ward2,1,31 | X63: 0,0,0,0,0,ward2,1,31 | Y63: 0,0,0,0,0,ward2,1,31 | Z63: 0,0,0,0,0,ward2,2,31 | AA63: 0,0,0,0,0,ward3,1,31 | AB63: 0,0,0,0,0,ward3,1,31 | AC63: 0,0,0,0,0,ward3,1,31 | AD63: 0,0,0,0,0,ward3,1,31 | AE63: 0,0,0,0,0,ward3,1,31 | AF63: 0,0,0,0,0,ward3,1,31 | AG63: 0,0,0,0,0,ward3,1,31 | AH63: 0,0,0,0,0,ward3,1,31 | AI63: 0,0,0,0,0,ward3,1,31 | AJ63: 0,0,0,0,1,ward3,1,31 | AK63: 0,0,0,0,1,ward3,1,31 | AL63: 0,0,0,0,1,ward3,1,31 | AM63: 0,0,0,0,1,ward3,1,31 | AN63: 0,0,0,0,1,ward3,1,31 | AO63: 0,0,0,0,1,ward3,1,31 | AP63: 0,0,0,0,1,ward3,1,31 | AQ63: 0,0,0,0,1,ward3,1,31 | AR63: 0,0,0,0,1,ward3,1,31 | AS63: 0,0,0,0,1,ward3,1,31 | AT63: 0,0,0,0,1,ward3,1,31 | AU63: 0,0,0,0,1,ward3,1,31 | AV63: 0,0,0,0,1,ward3,1,31 | AW63: 0,0,0,0,1,ward3,1,31 | AX63: 0,0,0,0,1,ward3,1,31 | AY63: 0,0,0,0,1,ward3,1,31 | AZ63: 0,0,0,0,1,ward3,1,31 | BA63: 0,0,0,0,1,ward3,1,31 | BB63: 0,0,0,0,1,ward3,1,31 | BC63: 0,0,0,0,1,ward3,1,31 | BD63: 0,0,0,0,1,ward3,1,31 | BE63: 0,0,0,0,1,ward3,1,31 | BF63: 0,0,0,0,1,ward3,1,31 | BG63: 0,0,0,0,1,ward3,1,31 | BH63: 0,0,0,0,1,ward3,1,31 | BI63: 0,0,0,0,1,ward3,1,31 | BJ63: 0,0,0,0,1,ward3,1,31 | BK63: 0,0,0,0,1,ward3,1,31 | BL63: 0,0,0,0,1,ward3,1,31 | BM63: 0,0,0,0,1,ward3,1,31 | BN63: 0,0,0,0,1,ward3,1,31 | BO63: 0,0,0,0,1,ward3,1,31 | BP63: 0,0,0,0,1,ward3,1,31 | BQ63: 0,0,0,0,1,ward3,1,31 | BR63: 0,0,0,0,1,ward3,1,31 | BS63: 0,0,0,0,1,ward3,1,31 | BT63: 0,0,0,0,1,ward3,1,31 | BU63: 0,0,0,0,1,ward3,1,31 | BV63: 0,0,0,0,1,ward3,1,31 | BW63: 0,0,0,0,1,ward3,1,31 | BX63: 0,0,0,0,1,ward3,1,31 | BY63: 0,0,0,0,1,ward3,1,31 | BZ63: 0,0,0,0,1,ward3,1,31 | CA63: 0,0,0,0,1,ward3,1,31 | CB63: 0,0,0,0,1,ward3,1,31 | CC63: 0,0,0,0,1,ward3,1,31 | CD63: 0,0,0,0,1,ward3,1,31 | CE63: 0,0,0,0,1,ward3,1,31 | CF63: 0,0,0,0,1,ward3,1,31 | CG63: 0,0,0,0,1,ward3,1,31 | CH63: 0,0,0,0,1,ward3,1,31 | CI63: 0,0,0,0,1,ward3,1,31 | CJ63: 0,0,0,0,1,ward3,1,31 | CK63: 0,0,0,0,1,ward3,1,31 | CL63: 0,0,0,0,1,ward3,1,31 | CM63: 0,0,0,0,1,ward3,1,31 | CN63: 0,0,0,0,1,ward3,1,31 | CO63: 0,0,0,0,1,ward3,1,31 | CP63: 0,0,0,0,1,ward3,1,31 | CQ63: 0,0,0,0,1,ward3,1,31 | CR63: 0,0,0,0,1,ward3,1,31 | CS63: 0,0,0,0,1,ward3,1,31 | CT63: 0,0,0,0,1,ward3,1,31 | CU63: 0,0,0,0,1,ward3,1,31 | CV63: 0,0,0,0,1,ward3,1,31 | CW63: 0,0,0,0,1,ward3,1,31 | CX63: 0,0,0,0,1,ward3,1,31 | CY63: 0,0,0,0,1,ward3,1,31
A64: Physician | B64: 10 | C64: 0,0,0,0,0,ward3,2 | D64: 0,0,0,0,0,ward3,2,30 | E64: 0,0,0,0,0,ward3,2,30 | F64: 0,0,0,0,0,ward3,2,30 | G64: 0,0,0,0,0,ward3,2,30 | H64: 0,0,0,0,0,ward3,2,30 | I64: 0,0,0,0,0,ward3,2,30 | J64: 0,0,0,0,0,ward3,2,30 | K64: 0,0,0,0,0,ward3,2,30 | L64: 0,0,0,0,0,ward3,1,30 | M64: 0,0,0,0,0,ward3,1,30 | N64: 0,0,0,0,0,ward3,1,30 | O64: 0,0,0,0,0,ward2,2,30 | P64: 0,0,0,0,0,ward2,1,30 | Q64: 0,0,0,0,0,ward2,1,30 | R64: 0,0,0,0,0,ward2,1,30 | S64: 0,0,0,0,0,ward2,1,30 | T64: 1,0,0,1,0,ward2,1,30 | U64: 2,0,0,1,0,ward2,1,30 | V64: 3,0,0,1,0,ward2,1,30 | W64: 4,0,0,1,0,ward2,2,30 | X64: 5,1,0,1,0,0,0,30 | Y64: 6,1,0,1,0,0,0,30 | Z64: 7,1,0,1,0,0,0,30 | AA64: 8,1,0,1,0,0,0,30 | AB64: 9,1,0,1,0,0,0,30 | AC64: 10,1,0,1,0,0,0,30 | AD64: 11,1,0,1,0,0,0,30 | AE64: 12,1,0,1,0,0,0,30 | AF64: 13,1,0,1,0,0,0,30 | AG64: 14,1,0,1,0,0,0,30 | AH64: 15,1,0,1,0,0,0,30 | AI64: 0,0,0,0,0,ward3,2,30 | AJ64: 0,0,0,0,0,ward3,2,30 | AK64: 0,0,0,0,1,ward3,2,30 | AL64: 0,0,0,0,1,ward3,2,30 | AM64: 0,0,0,0,1,ward3,2,30 | AN64: 0,0,0,0,1,ward3,2,30 | AO64: 0,0,0,0,1,ward3,2,30 | AP64: 0,0,0,0,1,ward3,2,30 | AQ64: 0,0,0,0,1,ward3,2,30 | AR64: 0,0,0,0,1,ward3,2,30 | AS64: 0,0,0,0,1,ward3,2,30 | AT64: 0,0,0,0,1,ward3,2,30 | AU64: 0,0,0,0,1,ward3,2,30 | AV64: 0,0,0,0,1,ward3,2,30 | AW64: 0,0,0,0,1,ward3,2,30 | AX64: 0,0,0,0,1,ward3,2,30 | AY64: 0,0,0,0,1,ward3,2,30 | AZ64: 0,0,0,0,1,ward3,2,30 | BA64: 0,0,0,0,1,ward3,2,30 | BB64: 0,0,0,0,1,ward3,2,30 | BC64: 0,0,0,0,1,ward3,2,30 | BD64: 0,0,0,0,1,ward3,2,30 | BE64: 0,0,0,0,1,ward3,2,30 | BF64: 0,0,0,0,1,ward3,2,30 | BG64: 0,0,0,0,1,ward3,2,30 | BH64: 0,0,0,0,1,ward3,2,30 | BI64: 0,0,0,0,1,ward3,2,30 | BJ64: 0,0,0,0,1,ward3,2,30 | BK64: 0,0,0,0,1,ward3,2,30 | BL64: 0,0,0,0,1,ward3,2,30 | BM64: 0,0,0,0,1,ward3,2,30 | BN64: 0,0,0,0,1,ward3,2,30 | BO64: 0,0,0,0,1,ward3,2,30 | BP64: 0,0,0,0,1,ward3,2,30 | BQ64: 0,0,0,0,1,ward3,2,30 | BR64: 0,0,0,0,1,ward3,2,30 | BS64: 0,0,0,0,1,ward3,2,30 | BT64: 0,0,0,0,1,ward3,2,30 | BU64: 0,0,0,0,1,ward3,2,30 | BV64: 0,0,0,0,1,ward3,2,30 | BW64: 0,0,0,0,1,ward3,2,30 | BX64: 0,0,0,0,1,ward3,2,30 | BY64: 0,0,0,0,1,ward3,2,30 | BZ64: 0,0,0,0,1,ward3,2,30 | CA64: 0,0,0,0,1,ward3,2,30 | CB64: 0,0,0,0,1,ward3,2,30 | CC64: 0,0,0,0,1,ward3,2,30 | CD64: 0,0,0,0,1,ward3,2,30 | CE64: 0,0,0,0,1,ward3,2,30 | CF64: 0,0,0,0,1,ward3,2,30 | CG64: 0,0,0,0,1,ward3,2,30 | CH64: 0,0,0,0,1,ward3,2,30 | CI64: 0,0,0,0,1,ward3,2,30 | CJ64: 0,0,0,0,1,ward3,2,30 | CK64: 0,0,0,0,1,ward3,2,30 | CL64: 0,0,0,0,1,ward3,2,30 | CM64: 0,0,0,0,1,ward3,2,30 | CN64: 0,0,0,0,1,ward3,2,30 | CO64: 0,0,0,0,1,ward3,2,30 | CP64: 0,0,0,0,1,ward3,2,30 | CQ64: 0,0,0,0,1,ward3,2,30 | CR64: 0,0,0,0,1,ward3,2,30 | CS64: 0,0,0,0,1,ward3,2,30 | CT64: 0,0,0,0,1,ward3,2,30 | CU64: 0,0,0,0,1,ward3,2,30 | CV64: 0,0,0,0,1,ward3,2,30 | CW64: 0,0,0,0,1,ward3,2,30 | CX64: 0,0,0,0,1,ward3,2,30 | CY64: 0,0,0,0,1,ward3,2,30
A65: Physician | B65: 11 | C65: 0,0,0,0,0,0,0 | D65: 0,0,0,0,0,0,0,28 | E65: 0,0,0,0,0,0,0,28 | F65: 0,0,0,0,0,0,0,28 | G65: 0,0,0,0,0,0,0,28 | H65: 0,0,0,0,0,0,0,28 | I65: 0,0,0,0,0,0,0,28 | J65: 0,0,0,0,0,0,0,28 | K65: 0,0,0,0,0,0,0,28 | L65: 0,0,0,0,0,ward3,2,28 | M65: 0,0,0,0,0,ward3,2,28 | N65: 0,0,0,0,0,ward3,2,28 | O65: 0,0,0,0,0,ward3,1,28 | P65: 0,0,0,0,0,ward2,2,28 | Q65: 0,0,0,0,0,ward2,2,28 | R65: 0,0,0,0,0,ward2,2,28 | S65: 1,0,0,1,0,ward2,2,28 | T65: 2,0,0,1,0,ward2,2,28 | U65: 3,0,0,1,0,ward2,2,28 | V65: 4,0,0,1,0,ward2,2,28 | W65: 5,1,0,1,0,0,0,28 | X65: 6,1,0,1,0,0,0,28 | Y65: 7,1,0,1,0,0,0,28 | Z65: 8,1,0,1,0,0,0,28 | AA65: 9,1,0,1,0,0,0,28 | AB65: 10,1,0,1,0,0,0,28 | AC65: 11,1,0,1,0,0,0,28 | AD65: 12,1,0,1,0,0,0,28 | AE65: 13,1,0,1,0,0,0,28 | AF65: 14,1,0,1,0,0,0,28 | AG65: 15,1,0,1,0,0,0,28 | AH65: 0,0,0,0,0,ward3,2,28 | AI65: 0,0,0,0,0,0,0,28 | AJ65: 0,0,0,0,0,0,0,28 | AK65: 0,0,0,0,0,0,0,28 | AL65: 0,0,0,0,1,0,0,28 | AM65: 0,0,0,0,1,0,0,28 | AN65: 0,0,0,0,1,0,0,28 | AO65: 0,0,0,0,1,0,0,28 | AP65: 0,0,0,0,1,0,0,28 | AQ65: 0,0,0,0,1,0,0,28 | AR65: 0,0,0,0,1,0,0,28 | AS65: 0,0,0,0,1,0,0,28 | AT65: 0,0,0,0,1,0,0,28 | AU65: 0,0,0,0,1,0,0,28 | AV65: 0,0,0,0,1,0,0,28 | AW65: 0,0,0,0,1,0,0,28 | AX65: 0,0,0,0,1,0,0,28 | AY65: 0,0,0,0,1,0,0,28 | AZ65: 0,0,0,0,1,0,0,28 | BA65: 0,0,0,0,1,0,0,28 | BB65: 0,0,0,0,1,0,0,28 | BC65: 0,0,0,0,1,0,0,28 | BD65: 0,0,0,0,1,0,0,28 | BE65: 0,0,0,0,1,0,0,28 | BF65: 0,0,0,0,1,0,0,28 | BG65: 0,0,0,0,1,0,0,28 | BH65: 0,0,0,0,1,0,0,28 | BI65: 0,0,0,0,1,0,0,28 | BJ65: 0,0,0,0,1,0,0,28 | BK65: 0,0,0,0,1,0,0,28 | BL65: 0,0,0,0,1,0,0,28 | BM65: 0,0,0,0,1,0,0,28 | BN65: 0,0,0,0,1,0,0,28 | BO65: 0,0,0,0,1,0,0,28 | BP65: 0,0,0,0,1,0,0,28 | BQ65: 0,0,0,0,1,0,0,28 | BR65: 0,0,0,0,1,0,0,28 | BS65: 0,0,0,0,1,0,0,28 | BT65: 0,0,0,0,1,0,0,28 | BU65: 0,0,0,0,1,0,0,28 | BV65: 0,0,0,0,1,0,0,28 | BW65: 0,0,0,0,1,0,0,28 | BX65: 0,0,0,0,1,0,0,28 | BY65: 0,0,0,0,1,0,0,28 | BZ65: 0,0,0,0,1,0,0,28 | CA65: 0,0,0,0,1,0,0,28 | CB65: 0,0,0,0,1,0,0,28 | CC65: 0,0,0,0,1,0,0,28 | CD65: 0,0,0,0,1,0,0,28 | CE65: 0,0,0,0,1,0,0,28 | CF65: 0,0,0,0,1,0,0,28 | CG65: 0,0,0,0,1,0,0,28 | CH65: 0,0,0,0,1,0,0,28 | CI65: 0,0,0,0,1,0,0,28 | CJ65: 0,0,0,0,1,0,0,28 | CK65: 0,0,0,0,1,0,0,28 | CL65: 0,0,0,0,1,0,0,28 | CM65: 0,0,0,0,1,0,0,28 | CN65: 0,0,0,0,1,0,0,28 | CO65: 0,0,0,0,1,0,0,28 | CP65: 0,0,0,0,1,0,0,28 | CQ65: 0,0,0,0,1,0,0,28 | CR65: 0,0,0,0,1,0,0,28 | CS65: 0,0,0,0,1,0,0,28 | CT65: 0,0,0,0,1,0,0,28 | CU65: 0,0,0,0,1,0,0,28 | CV65: 0,0,0,0,1,0,0,28 | CW65: 0,0,0,0,1,0,0,28 | CX65: 0,0,0,0,1,0,0,28 | CY65: 0,0,0,0,1,0,0,28
A66: Physician | B66: 12 | C66: 0,0,0,0,0,0,0 | D66: 0,0,0,0,0,0,0,28 | E66: 0,0,0,0,0,0,0,28 | F66: 0,0,0,0,0,0,0,28 | G66: 0,0,0,0,0,0,0,28 | H66: 0,0,0,0,0,0,0,28 | I66: 0,0,0,0,0,0,0,28 | J66: 0,0,0,0,0,0,0,28 | K66: 0,0,0,0,0,0,0,28 | L66: 0,0,0,0,0,0,0,28 | M66: 0,0,0,0,0,0,0,28 | N66: 0,0,0,0,0,0,0,28 | O66: 0,0,0,0,0,ward3,2,28 | P66: 0,0,0,0,0,ward3,1,28 | Q66: 0,0,0,0,0,ward3,1,28 | R66: 0,0,0,0,0,ward3,1,28 | S66: 0,0,0,0,0,ward3,1,28 | T66: 0,0,0,0,0,ward3,1,28 | U66: 0,0,0,0,0,ward3,1,28 | V66: 0,0,0,0,0,ward3,1,28 | W66: 0,0,0,0,0,ward3,1,28 | X66: 0,0,0,0,0,ward2,2,28 | Y66: 0,0,0,0,0,ward2,2,28 | Z66: 0,0,0,0,0,ward3,1,28 | AA66: 0,0,0,0,0,ward3,2,28 | AB66: 0,0,0,0,0,ward3,2,28 | AC66: 0,0,0,0,0,ward3,2,28 | AD66: 0,0,0,0,0,ward3,2,28 | AE66: 0,0,0,0,0,ward3,2,28 | AF66: 0,0,0,0,0,ward3,2,28 | AG66: 0,0,0,0,0,ward3,2,28 | AH66: 0,0,0,0,0,0,0,28 | AI66: 0,0,0,0,0,0,0,28 | AJ66: 0,0,0,0,0,0,0,28 | AK66: 0,0,0,0,0,0,0,28 | AL66: 0,0,0,0,0,0,0,28 | AM66: 0,0,0,0,1,0,0,28 | AN66: 0,0,0,0,1,0,0,28 | AO66: 0,0,0,0,1,0,0,28 | AP66: 0,0,0,0,1,0,0,28 | AQ66: 0,0,0,0,1,0,0,28 | AR66: 0,0,0,0,1,0,0,28 | AS66: 0,0,0,0,1,0,0,28 | AT66: 0,0,0,0,1,0,0,28 | AU66: 0,0,0,0,1,0,0,28 | AV66: 0,0,0,0,1,0,0,28 | AW66: 0,0,0,0,1,0,0,28 | AX66: 0,0,0,0,1,0,0,28 | AY66: 0,0,0,0,1,0,0,28 | AZ66: 0,0,0,0,1,0,0,28 | BA66: 0,0,0,0,1,0,0,28 | BB66: 0,0,0,0,1,0,0,28 | BC66: 0,0,0,0,1,0,0,28 | BD66: 0,0,0,0,1,0,0,28 | BE66: 0,0,0,0,1,0,0,28 | BF66: 0,0,0,0,1,0,0,28 | BG66: 0,0,0,0,1,0,0,28 | BH66: 0,0,0,0,1,0,0,28 | BI66: 0,0,0,0,1,0,0,28 | BJ66: 0,0,0,0,1,0,0,28 | BK66: 0,0,0,0,1,0,0,28 | BL66: 0,0,0,0,1,0,0,28 | BM66: 0,0,0,0,1,0,0,28 | BN66: 0,0,0,0,1,0,0,28 | BO66: 0,0,0,0,1,0,0,28 | BP66: 0,0,0,0,1,0,0,28 | BQ66: 0,0,0,0,1,0,0,28 | BR66: 0,0,0,0,1,0,0,28 | BS66: 0,0,0,0,1,0,0,28 | BT66: 0,0,0,0,1,0,0,28 | BU66: 0,0,0,0,1,0,0,28 | BV66: 0,0,0,0,1,0,0,28 | BW66: 0,0,0,0,1,0,0,28 | BX66: 0,0,0,0,1,0,0,28 | BY66: 0,0,0,0,1,0,0,28 | BZ66: 0,0,0,0,1,0,0,28 | CA66: 0,0,0,0,1,0,0,28 | CB66: 0,0,0,0,1,0,0,28 | CC66: 0,0,0,0,1,0,0,28 | CD66: 0,0,0,0,1,0,0,28 | CE66: 0,0,0,0,1,0,0,28 | CF66: 0,0,0,0,1,0,0,28 | CG66: 0,0,0,0,1,0,0,28 | CH66: 0,0,0,0,1,0,0,28 | CI66: 0,0,0,0,1,0,0,28 | CJ66: 0,0,0,0,1,0,0,28 | CK66: 0,0,0,0,1,0,0,28 | CL66: 0,0,0,0,1,0,0,28 | CM66: 0,0,0,0,1,0,0,28 | CN66: 0,0,0,0,1,0,0,28 | CO66: 0,0,0,0,1,0,0,28 | CP66: 0,0,0,0,1,0,0,28 | CQ66: 0,0,0,0,1,0,0,28 | CR66: 0,0,0,0,1,0,0,28 | CS66: 0,0,0,0,1,0,0,28 | CT66: 0,0,0,0,1,0,0,28 | CU66: 0,0,0,0,1,0,0,28 | CV66: 0,0,0,0,1,0,0,28 | CW66: 0,0,0,0,1,0,0,28 | CX66: 0,0,0,0,1,0,0,28 | CY66: 0,0,0,0,1,0,0,28
A67: Physician | B67: 13 | C67: 0,0,0,0,0,0,0 | D67: 0,0,0,0,0,0,0,27 | E67: 0,0,0,0,0,0,0,27 | F67: 0,0,0,0,0,0,0,27 | G67: 0,0,0,0,0,0,0,27 | H67: 0,0,0,0,0,0,0,27 | I67: 0,0,0,0,0,0,0,27 | J67: 0,0,0,0,0,0,0,27 | K67: 0,0,0,0,0,0,0,27 | L67: 0,0,0,0,0,0,0,27 | M67: 0,0,0,0,0,0,0,27 | N67: 0,0,0,0,0,0,0,27 | O67: 0,0,0,0,0,0,0,27 | P67: 0,0,0,0,0,ward3,2,27 | Q67: 0,0,0,0,0,ward3,2,27 | R67: 0,0,0,0,0,ward3,2,27 | S67: 0,0,0,0,0,ward3,2,27 | T67: 0,0,0,0,0,ward3,2,27 | U67: 0,0,0,0,0,ward3,2,27 | V67: 0,0,0,0,0,ward3,2,27 | W67: 0,0,0,0,0,ward3,2,27 | X67: 0,0,0,0,0,ward3,1,27 | Y67: 0,0,0,0,0,ward3,1,27 | Z67: 0,0,0,0,0,ward3,2,27 | AA67: 0,0,0,0,0,0,0,27 | AB67: 0,0,0,0,0,0,0,27 | AC67: 0,0,0,0,0,0,0,27 | AD67: 0,0,0,0,0,0,0,27 | AE67: 0,0,0,0,0,0,0,27 | AF67: 0,0,0,0,0,0,0,27 | AG67: 0,0,0,0,0,0,0,27 | AH67: 0,0,0,0,0,0,0,27 | AI67: 0,0,0,0,0,0,0,27 | AJ67: 0,0,0,0,0,0,0,27 | AK67: 0,0,0,0,0,0,0,27 | AL67: 0,0,0,0,0,0,0,27 | AM67: 0,0,0,0,0,0,0,27 | AN67: 0,0,0,0,0,0,0,27 | AO67: 0,0,0,0,0,0,0,27 | AP67: 0,0,0,0,1,0,0,27 | AQ67: 0,0,0,0,1,0,0,27 | AR67: 0,0,0,0,1,0,0,27 | AS67: 0,0,0,0,1,0,0,27 | AT67: 0,0,0,0,1,0,0,27 | AU67: 0,0,0,0,1,0,0,27 | AV67: 0,0,0,0,1,0,0,27 | AW67: 0,0,0,0,1,0,0,27 | AX67: 0,0,0,0,1,0,0,27 | AY67: 0,0,0,0,1,0,0,27 | AZ67: 0,0,0,0,1,0,0,27 | BA67: 0,0,0,0,1,0,0,27 | BB67: 0,0,0,0,1,0,0,27 | BC67: 0,0,0,0,1,0,0,27 | BD67: 0,0,0,0,1,0,0,27 | BE67: 0,0,0,0,1,0,0,27 | BF67: 0,0,0,0,1,0,0,27 | BG67: 0,0,0,0,1,0,0,27 | BH67: 0,0,0,0,1,0,0,27 | BI67: 0,0,0,0,1,0,0,27 | BJ67: 0,0,0,0,1,0,0,27 | BK67: 0,0,0,0,1,0,0,27 | BL67: 0,0,0,0,1,0,0,27 | BM67: 0,0,0,0,1,0,0,27 | BN67: 0,0,0,0,1,0,0,27 | BO67: 0,0,0,0,1,0,0,27 | BP67: 0,0,0,0,1,0,0,27 | BQ67: 0,0,0,0,1,0,0,27 | BR67: 0,0,0,0,1,0,0,27 | BS67: 0,0,0,0,1,0,0,27 | BT67: 0,0,0,0,1,0,0,27 | BU67: 0,0,0,0,1,0,0,27 | BV67: 0,0,0,0,1,0,0,27 | BW67: 0,0,0,0,1,0,0,27 | BX67: 0,0,0,0,1,0,0,27 | BY67: 0,0,0,0,1,0,0,27 | BZ67: 0,0,0,0,1,0,0,27 | CA67: 0,0,0,0,1,0,0,27 | CB67: 0,0,0,0,1,0,0,27 | CC67: 0,0,0,0,1,0,0,27 | CD67: 0,0,0,0,1,0,0,27 | CE67: 0,0,0,0,1,0,0,27 | CF67: 0,0,0,0,1,0,0,27 | CG67: 0,0,0,0,1,0,0,27 | CH67: 0,0,0,0,1,0,0,27 | CI67: 0,0,0,0,1,0,0,27 | CJ67: 0,0,0,0,1,0,0,27 | CK67: 0,0,0,0,1,0,0,27 | CL67: 0,0,0,0,1,0,0,27 | CM67: 0,0,0,0,1,0,0,27 | CN67: 0,0,0,0,1,0,0,27 | CO67: 0,0,0,0,1,0,0,27 | CP67: 0,0,0,0,1,0,0,27 | CQ67: 0,0,0,0,1,0,0,27 | CR67: 0,0,0,0,1,0,0,27 | CS67: 0,0,0,0,1,0,0,27 | CT67: 0,0,0,0,1,0,0,27 | CU67: 0,0,0,0,1,0,0,27 | CV67: 0,0,0,0,1,0,0,27 | CW67: 0,0,0,0,1,0,0,27 | CX67: 0,0,0,0,1,0,0,27 | CY67: 0,0,0,0,1,0,0,27
A68: Physician | B68: 14 | C68: 0,0,0,0,0,0,0 | D68: 0,0,0,0,0,0,0,25 | E68: 0,0,0,0,0,0,0,25 | F68: 0,0,0,0,0,0,0,25 | G68: 0,0,0,0,0,0,0,25 | H68: 0,0,0,0,0,0,0,25 | I68: 0,0,0,0,0,0,0,25 | J68: 0,0,0,0,0,0,0,25 | K68: 0,0,0,0,0,0,0,25 | L68: 0,0,0,0,0,0,0,25 | M68: 0,0,0,0,0,0,0,25 | N68: 0,0,0,0,0,0,0,25 | O68: 0,0,0,0,0,0,0,25 | P68: 0,0,0,0,0,0,0,25 | Q68: 0,0,0,0,0,0,0,25 | R68: 0,0,0,0,0,0,0,25 | S68: 0,0,0,0,0,0,0,25 | T68: 0,0,0,0,0,0,0,25 | U68: 0,0,0,0,0,0,0,25 | V68: 0,0,0,0,0,0,0,25 | W68: 0,0,0,0,0,0,0,25 | X68: 0,0,0,0,0,ward3,2,25 | Y68: 1,0,0,1,0,ward3,2,25 | Z68: 2,0,0,1,0,0,0,25 | AA68: 3,0,0,1,0,0,0,25 | AB68: 4,0,0,1,0,0,0,25 | AC68: 5,1,0,1,0,0,0,25 | AD68: 6,1,0,1,0,0,0,25 | AE68: 7,1,0,1,0,0,0,25 | AF68: 8,1,0,1,0,0,0,25 | AG68: 9,1,0,1,0,0,0,25 | AH68: 10,1,0,1,0,0,0,25 | AI68: 11,1,0,1,0,0,0,25 | AJ68: 12,1,0,1,0,0,0,25 | AK68: 13,1,0,1,0,0,0,25 | AL68: 14,1,0,1,0,0,0,25 | AM68: 15,1,0,1,0,0,0,25 | AN68: 0,0,0,0,0,0,0,25 | AO68: 0,0,0,0,0,0,0,25 | AP68: 0,0,0,0,0,0,0,25 | AQ68: 0,0,0,0,1,0,0,25 | AR68: 0,0,0,0,1,0,0,25 | AS68: 0,0,0,0,1,0,0,25 | AT68: 0,0,0,0,1,0,0,25 | AU68: 0,0,0,0,1,0,0,25 | AV68: 0,0,0,0,1,0,0,25 | AW68: 0,0,0,0,1,0,0,25 | AX68: 0,0,0,0,1,0,0,25 | AY68: 0,0,0,0,1,0,0,25 | AZ68: 0,0,0,0,1,0,0,25 | BA68: 0,0,0,0,1,0,0,25 | BB68: 0,0,0,0,1,0,0,25 | BC68: 0,0,0,0,1,0,0,25 | BD68: 0,0,0,0,1,0,0,25 | BE68: 0,0,0,0,1,0,0,25 | BF68: 0,0,0,0,1,0,0,25 | BG68: 0,0,0,0,1,0,0,25 | BH68: 0,0,0,0,1,0,0,25 | BI68: 0,0,0,0,1,0,0,25 | BJ68: 0,0,0,0,1,0,0,25 | BK68: 0,0,0,0,1,0,0,25 | BL68: 0,0,0,0,1,0,0,25 | BM68: 0,0,0,0,1,0,0,25 | BN68: 0,0,0,0,1,0,0,25 | BO68: 0,0,0,0,1,0,0,25 | BP68: 0,0,0,0,1,0,0,25 | BQ68: 0,0,0,0,1,0,0,25 | BR68: 0,0,0,0,1,0,0,25 | BS68: 0,0,0,0,1,0,0,25 | BT68: 0,0,0,0,1,0,0,25 | BU68: 0,0,0,0,1,0,0,25 | BV68: 0,0,0,0,1,0,0,25 | BW68: 0,0,0,0,1,0,0,25 | BX68: 0,0,0,0,1,0,0,25 | BY68: 0,0,0,0,1,0,0,25 | BZ68: 0,0,0,0,1,0,0,25 | CA68: 0,0,0,0,1,0,0,25 | CB68: 0,0,0,0,1,0,0,25 | CC68: 0,0,0,0,1,0,0,25 | CD68: 0,0,0,0,1,0,0,25 | CE68: 0,0,0,0,1,0,0,25 | CF68: 0,0,0,0,1,0,0,25 | CG68: 0,0,0,0,1,0,0,25 | CH68: 0,0,0,0,1,0,0,25 | CI68: 0,0,0,0,1,0,0,25 | CJ68: 0,0,0,0,1,0,0,25 | CK68: 0,0,0,0,1,0,0,25 | CL68: 0,0,0,0,1,0,0,25 | CM68: 0,0,0,0,1,0,0,25 | CN68: 0,0,0,0,1,0,0,25 | CO68: 0,0,0,0,1,0,0,25 | CP68: 0,0,0,0,1,0,0,25 | CQ68: 0,0,0,0,1,0,0,25 | CR68: 0,0,0,0,1,0,0,25 | CS68: 0,0,0,0,1,0,0,25 | CT68: 0,0,0,0,1,0,0,25 | CU68: 0,0,0,0,1,0,0,25 | CV68: 0,0,0,0,1,0,0,25 | CW68: 0,0,0,0,1,0,0,25 | CX68: 0,0,0,0,1,0,0,25 | CY68: 0,0,0,0,1,0,0,25
A69: Nurse | B69: 1 | C69: 0,0,0,0,0,A&E,0 | D69: 0,0,0,0,0,A&E,1,33 | E69: 0,0,0,0,0,A&E,1,33 | F69: 0,0,0,0,0,A&E,1,33 | G69: 0,0,0,0,0,A&E,1,33 | H69: 0,0,0,0,0,A&E,1,33 | I69: 0,0,0,0,0,A&E,1,33 | J69: 0,0,0,0,0,A&E,1,33 | K69: 0,0,0,0,1,A&E,1,33 | L69: 0,0,0,0,1,A&E,1,33 | M69: 0,0,0,0,1,A&E,1,33 | N69: 0,0,0,0,1,A&E,1,33 | O69: 0,0,0,0,1,A&E,1,33 | P69: 0,0,0,0,1,A&E,1,33 | Q69: 0,0,0,0,1,A&E,1,33 | R69: 0,0,0,0,1,A&E,1,33 | S69: 0,0,0,0,1,A&E,1,33 | T69: 0,0,0,0,1,A&E,1,33 | U69: 0,0,0,0,1,A&E,1,33 | V69: 0,0,0,0,1,A&E,1,33 | W69: 0,0,0,0,1,A&E,1,33 | X69: 0,0,0,0,1,A&E,1,33 | Y69: 0,0,0,0,1,A&E,1,33 | Z69: 0,0,0,0,1,A&E,1,33 | AA69: 0,0,0,0,1,A&E,1,33 | AB69: 0,0,0,0,1,A&E,1,33 | AC69: 0,0,0,0,1,A&E,1,33 | AD69: 0,0,0,0,1,A&E,1,33 | AE69: 0,0,0,0,1,A&E,1,33 | AF69: 0,0,0,0,1,A&E,1,33 | AG69: 0,0,0,0,1,A&E,1,33 | AH69: 0,0,0,0,1,A&E,1,33 | AI69: 0,0,0,0,1,A&E,1,33 | AJ69: 0,0,0,0,1,A&E,1,33 | AK69: 0,0,0,0,1,A&E,1,33 | AL69: 0,0,0,0,1,A&E,1,33 | AM69: 0,0,0,0,1,A&E,1,33 | AN69: 0,0,0,0,1,A&E,1,33 | AO69: 0,0,0,0,1,A&E,1,33 | AP69: 0,0,0,0,1,A&E,1,33 | AQ69: 0,0,0,0,1,A&E,1,33 | AR69: 0,0,0,0,1,A&E,1,33 | AS69: 0,0,0,0,1,A&E,1,33 | AT69: 0,0,0,0,1,A&E,1,33 | AU69: 0,0,0,0,1,A&E,1,33 | AV69: 0,0,0,0,1,A&E,1,33 | AW69: 0,0,0,0,1,A&E,1,33 | AX69: 0,0,0,0,1,A&E,1,33 | AY69: 0,0,0,0,1,A&E,1,33 | AZ69: 0,0,0,0,1,A&E,1,33 | BA69: 0,0,0,0,1,A&E,1,33 | BB69: 0,0,0,0,1,A&E,1,33 | BC69: 0,0,0,0,1,A&E,1,33 | BD69: 0,0,0,0,1,A&E,1,33 | BE69: 0,0,0,0,1,A&E,1,33 | BF69: 0,0,0,0,1,A&E,1,33 | BG69: 0,0,0,0,1,A&E,1,33 | BH69: 0,0,0,0,1,A&E,1,33 | BI69: 0,0,0,0,1,A&E,1,33 | BJ69: 0,0,0,0,1,A&E,1,33 | BK69: 0,0,0,0,1,A&E,1,33 | BL69: 0,0,0,0,1,A&E,1,33 | BM69: 0,0,0,0,1,A&E,1,33 | BN69: 0,0,0,0,1,A&E,1,33 | BO69: 0,0,0,0,1,A&E,1,33 | BP69: 0,0,0,0,1,A&E,1,33 | BQ69: 0,0,0,0,1,A&E,1,33 | BR69: 0,0,0,0,1,A&E,1,33 | BS69: 0,0,0,0,1,A&E,1,33 | BT69: 0,0,0,0,1,A&E,1,33 | BU69: 0,0,0,0,1,A&E,1,33 | BV69: 0,0,0,0,1,A&E,1,33 | BW69: 0,0,0,0,1,A&E,1,33 | BX69: 0,0,0,0,1,A&E,1,33 | BY69: 0,0,0,0,1,A&E,1,33 | BZ69: 0,0,0,0,1,A&E,1,33 | CA69: 0,0,0,0,1,A&E,1,33 | CB69: 0,0,0,0,1,A&E,1,33 | CC69: 0,0,0,0,1,A&E,1,33 | CD69: 0,0,0,0,1,A&E,1,33 | CE69: 0,0,0,0,1,A&E,1,33 | CF69: 0,0,0,0,1,A&E,1,33 | CG69: 0,0,0,0,1,A&E,1,33 | CH69: 0,0,0,0,1,A&E,1,33 | CI69: 0,0,0,0,1,A&E,1,33 | CJ69: 0,0,0,0,1,A&E,1,33 | CK69: 0,0,0,0,1,A&E,1,33 | CL69: 0,0,0,0,1,A&E,1,33 | CM69: 0,0,0,0,1,A&E,1,33 | CN69: 0,0,0,0,1,A&E,1,33 | CO69: 0,0,0,0,1,A&E,1,33 | CP69: 0,0,0,0,1,A&E,1,33 | CQ69: 0,0,0,0,1,A&E,1,33 | CR69: 0,0,0,0,1,A&E,1,33 | CS69: 0,0,0,0,1,A&E,1,33 | CT69: 0,0,0,0,1,A&E,1,33 | CU69: 0,0,0,0,1,A&E,1,33 | CV69: 0,0,0,0,1,A&E,1,33 | CW69: 0,0,0,0,1,A&E,1,33 | CX69: 0,0,0,0,1,A&E,1,33 | CY69: 0,0,0,0,1,A&E,1,33
A70: Nurse | B70: 2 | C70: 0,0,0,0,0,A&E,0 | D70: 0,0,0,0,0,A&E,2,59 | E70: 0,0,0,0,0,A&E,2,59 | F70: 0,0,0,0,0,A&E,2,59 | G70: 0,0,0,0,0,A&E,2,59 | H70: 1,0,0,1,0,A&E,2,59 | I70: 2,0,0,1,0,A&E,2,59 | J70: 3,0,0,1,0,A&E,2,59 | K70: 4,0,0,1,0,A&E,2,59 | L70: 0,0,0,0,1,A&E,2,59 | M70: 0,0,0,0,1,A&E,2,59 | N70: 0,0,0,0,1,A&E,2,59 | O70: 0,0,0,0,1,A&E,2,59 | P70: 0,0,0,0,1,A&E,2,59 | Q70: 0,0,0,0,1,A&E,2,59 | R70: 0,0,0,0,1,A&E,2,59 | S70: 0,0,0,0,1,A&E,2,59 | T70: 0,0,0,0,1,A&E,2,59 | U70: 0,0,0,0,1,A&E,2,59 | V70: 0,0,0,0,1,A&E,2,59 | W70: 0,0,0,0,1,A&E,2,59 | X70: 0,0,0,0,1,A&E,2,59 | Y70: 0,0,0,0,1,A&E,2,59 | Z70: 0,0,0,0,1,A&E,2,59 | AA70: 0,0,0,0,1,A&E,2,59 | AB70: 0,0,0,0,1,A&E,2,59 | AC70: 0,0,0,0,1,A&E,2,59 | AD70: 0,0,0,0,1,A&E,2,59 | AE70: 0,0,0,0,1,A&E,2,59 | AF70: 0,0,0,0,1,A&E,2,59 | AG70: 0,0,0,0,1,A&E,2,59 | AH70: 0,0,0,0,1,A&E,2,59 | AI70: 0,0,0,0,1,A&E,2,59 | AJ70: 0,0,0,0,1,A&E,2,59 | AK70: 0,0,0,0,1,A&E,2,59 | AL70: 0,0,0,0,1,A&E,2,59 | AM70: 0,0,0,0,1,A&E,2,59 | AN70: 0,0,0,0,1,A&E,2,59 | AO70: 0,0,0,0,1,A&E,2,59 | AP70: 0,0,0,0,1,A&E,2,59 | AQ70: 0,0,0,0,1,A&E,2,59 | AR70: 0,0,0,0,1,A&E,2,59 | AS70: 0,0,0,0,1,A&E,2,59 | AT70: 0,0,0,0,1,A&E,2,59 | AU70: 0,0,0,0,1,A&E,2,59 | AV70: 0,0,0,0,1,A&E,2,59 | AW70: 0,0,0,0,1,A&E,2,59 | AX70: 0,0,0,0,1,A&E,2,59 | AY70: 0,0,0,0,1,A&E,2,59 | AZ70: 0,0,0,0,1,A&E,2,59 | BA70: 0,0,0,0,1,A&E,2,59 | BB70: 0,0,0,0,1,A&E,2,59 | BC70: 0,0,0,0,1,A&E,2,59 | BD70: 0,0,0,0,1,A&E,2,59 | BE70: 0,0,0,0,1,A&E,2,59 | BF70: 0,0,0,0,1,A&E,2,59 | BG70: 0,0,0,0,1,A&E,2,59 | BH70: 0,0,0,0,1,A&E,2,59 | BI70: 0,0,0,0,1,A&E,2,59 | BJ70: 0,0,0,0,1,A&E,2,59 | BK70: 0,0,0,0,1,A&E,2,59 | BL70: 0,0,0,0,1,A&E,2,59 | BM70: 0,0,0,0,1,A&E,2,59 | BN70: 0,0,0,0,1,A&E,2,59 | BO70: 0,0,0,0,1,A&E,2,59 | BP70: 0,0,0,0,1,A&E,2,59 | BQ70: 0,0,0,0,1,A&E,2,59 | BR70: 0,0,0,0,1,A&E,2,59 | BS70: 0,0,0,0,1,A&E,2,59 | BT70: 0,0,0,0,1,A&E,2,59 | BU70: 0,0,0,0,1,A&E,2,59 | BV70: 0,0,0,0,1,A&E,2,59 | BW70: 0,0,0,0,1,A&E,2,59 | BX70: 0,0,0,0,1,A&E,2,59 | BY70: 0,0,0,0,1,A&E,2,59 | BZ70: 0,0,0,0,1,A&E,2,59 | CA70: 0,0,0,0,1,A&E,2,59 | CB70: 0,0,0,0,1,A&E,2,59 | CC70: 0,0,0,0,1,A&E,2,59 | CD70: 0,0,0,0,1,A&E,2,59 | CE70: 0,0,0,0,1,A&E,2,59 | CF70: 0,0,0,0,1,A&E,2,59 | CG70: 0,0,0,0,1,A&E,2,59 | CH70: 0,0,0,0,1,A&E,2,59 | CI70: 0,0,0,0,1,A&E,2,59 | CJ70: 0,0,0,0,1,A&E,2,59 | CK70: 0,0,0,0,1,A&E,2,59 | CL70: 0,0,0,0,1,A&E,2,59 | CM70: 0,0,0,0,1,A&E,2,59 | CN70: 0,0,0,0,1,A&E,2,59 | CO70: 0,0,0,0,1,A&E,2,59 | CP70: 0,0,0,0,1,A&E,2,59 | CQ70: 0,0,0,0,1,A&E,2,59 | CR70: 0,0,0,0,1,A&E,2,59 | CS70: 0,0,0,0,1,A&E,2,59 | CT70: 0,0,0,0,1,A&E,2,59 | CU70: 0,0,0,0,1,A&E,2,59 | CV70: 0,0,0,0,1,A&E,2,59 | CW70: 0,0,0,0,1,A&E,2,59 | CX70: 0,0,0,0,1,A&E,2,59 | CY70: 0,0,0,0,1,A&E,2,59
A71: Nurse | B71: 3 | C71: 0,0,0,0,0,A&E,0 | D71: 0,0,0,0,0,A&E,3,51 | E71: 0,0,0,0,0,A&E,3,51 | F71: 0,0,0,0,0,A&E,3,51 | G71: 0,0,0,0,0,A&E,3,51 | H71: 0,0,0,0,0,A&E,3,51 | I71: 0,0,0,0,0,A&E,3,51 | J71: 1,0,0,1,0,A&E,3,51 | K71: 2,0,0,1,0,A&E,3,51 | L71: 3,0,0,1,0,A&E,3,51 | M71: 0,0,0,0,1,A&E,3,51 | N71: 0,0,0,0,1,A&E,3,51 | O71: 0,0,0,0,1,A&E,3,51 | P71: 0,0,0,0,1,A&E,3,51 | Q71: 0,0,0,0,1,A&E,3,51 | R71: 0,0,0,0,1,A&E,3,51 | S71: 0,0,0,0,1,A&E,3,51 | T71: 0,0,0,0,1,A&E,3,51 | U71: 0,0,0,0,1,A&E,3,51 | V71: 0,0,0,0,1,A&E,3,51 | W71: 0,0,0,0,1,A&E,3,51 | X71: 0,0,0,0,1,A&E,3,51 | Y71: 0,0,0,0,1,A&E,3,51 | Z71: 0,0,0,0,1,A&E,3,51 | AA71: 0,0,0,0,1,A&E,3,51 | AB71: 0,0,0,0,1,A&E,3,51 | AC71: 0,0,0,0,1,A&E,3,51 | AD71: 0,0,0,0,1,A&E,3,51 | AE71: 0,0,0,0,1,A&E,3,51 | AF71: 0,0,0,0,1,A&E,3,51 | AG71: 0,0,0,0,1,A&E,3,51 | AH71: 0,0,0,0,1,A&E,3,51 | AI71: 0,0,0,0,1,A&E,3,51 | AJ71: 0,0,0,0,1,A&E,3,51 | AK71: 0,0,0,0,1,A&E,3,51 | AL71: 0,0,0,0,1,A&E,3,51 | AM71: 0,0,0,0,1,A&E,3,51 | AN71: 0,0,0,0,1,A&E,3,51 | AO71: 0,0,0,0,1,A&E,3,51 | AP71: 0,0,0,0,1,A&E,3,51 | AQ71: 0,0,0,0,1,A&E,3,51 | AR71: 0,0,0,0,1,A&E,3,51 | AS71: 0,0,0,0,1,A&E,3,51 | AT71: 0,0,0,0,1,A&E,3,51 | AU71: 0,0,0,0,1,A&E,3,51 | AV71: 0,0,0,0,1,A&E,3,51 | AW71: 0,0,0,0,1,A&E,3,51 | AX71: 0,0,0,0,1,A&E,3,51 | AY71: 0,0,0,0,1,A&E,3,51 | AZ71: 0,0,0,0,1,A&E,3,51 | BA71: 0,0,0,0,1,A&E,3,51 | BB71: 0,0,0,0,1,A&E,3,51 | BC71: 0,0,0,0,1,A&E,3,51 | BD71: 0,0,0,0,1,A&E,3,51 | BE71: 0,0,0,0,1,A&E,3,51 | BF71: 0,0,0,0,1,A&E,3,51 | BG71: 0,0,0,0,1,A&E,3,51 | BH71: 0,0,0,0,1,A&E,3,51 | BI71: 0,0,0,0,1,A&E,3,51 | BJ71: 0,0,0,0,1,A&E,3,51 | BK71: 0,0,0,0,1,A&E,3,51 | BL71: 0,0,0,0,1,A&E,3,51 | BM71: 0,0,0,0,1,A&E,3,51 | BN71: 0,0,0,0,1,A&E,3,51 | BO71: 0,0,0,0,1,A&E,3,51 | BP71: 0,0,0,0,1,A&E,3,51 | BQ71: 0,0,0,0,1,A&E,3,51 | BR71: 0,0,0,0,1,A&E,3,51 | BS71: 0,0,0,0,1,A&E,3,51 | BT71: 0,0,0,0,1,A&E,3,51 | BU71: 0,0,0,0,1,A&E,3,51 | BV71: 0,0,0,0,1,A&E,3,51 | BW71: 0,0,0,0,1,A&E,3,51 | BX71: 0,0,0,0,1,A&E,3,51 | BY71: 0,0,0,0,1,A&E,3,51 | BZ71: 0,0,0,0,1,A&E,3,51 | CA71: 0,0,0,0,1,A&E,3,51 | CB71: 0,0,0,0,1,A&E,3,51 | CC71: 0,0,0,0,1,A&E,3,51 | CD71: 0,0,0,0,1,A&E,3,51 | CE71: 0,0,0,0,1,A&E,3,51 | CF71: 0,0,0,0,1,A&E,3,51 | CG71: 0,0,0,0,1,A&E,3,51 | CH71: 0,0,0,0,1,A&E,3,51 | CI71: 0,0,0,0,1,A&E,3,51 | CJ71: 0,0,0,0,1,A&E,3,51 | CK71: 0,0,0,0,1,A&E,3,51 | CL71: 0,0,0,0,1,A&E,3,51 | CM71: 0,0,0,0,1,A&E,3,51 | CN71: 0,0,0,0,1,A&E,3,51 | CO71: 0,0,0,0,1,A&E,3,51 | CP71: 0,0,0,0,1,A&E,3,51 | CQ71: 0,0,0,0,1,A&E,3,51 | CR71: 0,0,0,0,1,A&E,3,51 | CS71: 0,0,0,0,1,A&E,3,51 | CT71: 0,0,0,0,1,A&E,3,51 | CU71: 0,0,0,0,1,A&E,3,51 | CV71: 0,0,0,0,1,A&E,3,51 | CW71: 0,0,0,0,1,A&E,3,51 | CX71: 0,0,0,0,1,A&E,3,51 | CY71: 0,0,0,0,1,A&E,3,51
A72: Nurse | B72: 4 | C72: 0,0,0,0,0,A&E,0 | D72: 0,0,0,0,0,A&E,4,39 | E72: 1,0,0,1,0,A&E,4,39 | F72: 2,0,0,1,0,A&E,4,39 | G72: 3,0,0,1,0,A&E,4,39 | H72: 4,0,0,1,0,A&E,4,39 | I72: 5,1,0,1,0,0,0,39 | J72: 6,1,0,1,0,0,0,39 | K72: 7,1,0,1,0,0,0,39 | L72: 8,1,0,1,0,0,0,39 | M72: 9,1,0,1,0,0,0,39 | N72: 10,1,0,1,0,0,0,39 | O72: 11,1,0,1,0,0,0,39 | P72: 12,1,0,1,0,0,0,39 | Q72: 13,1,0,1,0,0,0,39 | R72: 14,1,0,1,0,0,0,39 | S72: 15,1,0,1,0,0,0,39 | T72: 0,0,0,0,0,A&E,4,39 | U72: 0,0,0,0,1,A&E,4,39 | V72: 0,0,0,0,1,A&E,4,39 | W72: 0,0,0,0,1,A&E,4,39 | X72: 0,0,0,0,1,A&E,4,39 | Y72: 0,0,0,0,1,A&E,4,39 | Z72: 0,0,0,0,1,A&E,4,39 | AA72: 0,0,0,0,1,A&E,4,39 | AB72: 0,0,0,0,1,A&E,4,39 | AC72: 0,0,0,0,1,A&E,4,39 | AD72: 0,0,0,0,1,A&E,4,39 | AE72: 0,0,0,0,1,A&E,4,39 | AF72: 0,0,0,0,1,A&E,4,39 | AG72: 0,0,0,0,1,A&E,4,39 | AH72: 0,0,0,0,1,A&E,4,39 | AI72: 0,0,0,0,1,A&E,4,39 | AJ72: 0,0,0,0,1,A&E,4,39 | AK72: 0,0,0,0,1,A&E,4,39 | AL72: 0,0,0,0,1,A&E,4,39 | AM72: 0,0,0,0,1,A&E,4,39 | AN72: 0,0,0,0,1,A&E,4,39 | AO72: 0,0,0,0,1,A&E,4,39 | AP72: 0,0,0,0,1,A&E,4,39 | AQ72: 0,0,0,0,1,A&E,4,39 | AR72: 0,0,0,0,1,A&E,4,39 | AS72: 0,0,0,0,1,A&E,4,39 | AT72: 0,0,0,0,1,A&E,4,39 | AU72: 0,0,0,0,1,A&E,4,39 | AV72: 0,0,0,0,1,A&E,4,39 | AW72: 0,0,0,0,1,A&E,4,39 | AX72: 0,0,0,0,1,A&E,4,39 | AY72: 0,0,0,0,1,A&E,4,39 | AZ72: 0,0,0,0,1,A&E,4,39 | BA72: 0,0,0,0,1,A&E,4,39 | BB72: 0,0,0,0,1,A&E,4,39 | BC72: 0,0,0,0,1,A&E,4,39 | BD72: 0,0,0,0,1,A&E,4,39 | BE72: 0,0,0,0,1,A&E,4,39 | BF72: 0,0,0,0,1,A&E,4,39 | BG72: 0,0,0,0,1,A&E,4,39 | BH72: 0,0,0,0,1,A&E,4,39 | BI72: 0,0,0,0,1,A&E,4,39 | BJ72: 0,0,0,0,1,A&E,4,39 | BK72: 0,0,0,0,1,A&E,4,39 | BL72: 0,0,0,0,1,A&E,4,39 | BM72: 0,0,0,0,1,A&E,4,39 | BN72: 0,0,0,0,1,A&E,4,39 | BO72: 0,0,0,0,1,A&E,4,39 | BP72: 0,0,0,0,1,A&E,4,39 | BQ72: 0,0,0,0,1,A&E,4,39 | BR72: 0,0,0,0,1,A&E,4,39 | BS72: 0,0,0,0,1,A&E,4,39 | BT72: 0,0,0,0,1,A&E,4,39 | BU72: 0,0,0,0,1,A&E,4,39 | BV72: 0,0,0,0,1,A&E,4,39 | BW72: 0,0,0,0,1,A&E,4,39 | BX72: 0,0,0,0,1,A&E,4,39 | BY72: 0,0,0,0,1,A&E,4,39 | BZ72: 0,0,0,0,1,A&E,4,39 | CA72: 0,0,0,0,1,A&E,4,39 | CB72: 0,0,0,0,1,A&E,4,39 | CC72: 0,0,0,0,1,A&E,4,39 | CD72: 0,0,0,0,1,A&E,4,39 | CE72: 0,0,0,0,1,A&E,4,39 | CF72: 0,0,0,0,1,A&E,4,39 | CG72: 0,0,0,0,1,A&E,4,39 | CH72: 0,0,0,0,1,A&E,4,39 | CI72: 0,0,0,0,1,A&E,4,39 | CJ72: 0,0,0,0,1,A&E,4,39 | CK72: 0,0,0,0,1,A&E,4,39 | CL72: 0,0,0,0,1,A&E,4,39 | CM72: 0,0,0,0,1,A&E,4,39 | CN72: 0,0,0,0,1,A&E,4,39 | CO72: 0,0,0,0,1,A&E,4,39 | CP72: 0,0,0,0,1,A&E,4,39 | CQ72: 0,0,0,0,1,A&E,4,39 | CR72: 0,0,0,0,1,A&E,4,39 | CS72: 0,0,0,0,1,A&E,4,39 | CT72: 0,0,0,0,1,A&E,4,39 | CU72: 0,0,0,0,1,A&E,4,39 | CV72: 0,0,0,0,1,A&E,4,39 | CW72: 0,0,0,0,1,A&E,4,39 | CX72: 0,0,0,0,1,A&E,4,39 | CY72: 0,0,0,0,1,A&E,4,39
A73: Nurse | B73: 5 | C73: 0,0,0,0,0,A&E,0 | D73: 0,0,0,0,0,A&E,5,58 | E73: 0,0,0,0,0,A&E,5,58 | F73: 0,0,0,0,0,A&E,5,58 | G73: 0,0,0,0,0,A&E,5,58 | H73: 0,0,0,0,0,A&E,5,58 | I73: 0,0,0,0,0,A&E,4,58 | J73: 0,0,0,0,0,A&E,4,58 | K73: 0,0,0,0,0,A&E,4,58 | L73: 0,0,0,0,0,A&E,4,58 | M73: 0,0,0,0,0,A&E,4,58 | N73: 0,0,0,0,1,A&E,4,58 | O73: 0,0,0,0,1,A&E,4,58 | P73: 0,0,0,0,1,A&E,4,58 | Q73: 0,0,0,0,1,A&E,4,58 | R73: 0,0,0,0,1,A&E,4,58 | S73: 0,0,0,0,1,A&E,4,58 | T73: 0,0,0,0,1,A&E,5,58 | U73: 0,0,0,0,1,A&E,5,58 | V73: 0,0,0,0,1,A&E,5,58 | W73: 0,0,0,0,1,A&E,5,58 | X73: 0,0,0,0,1,A&E,5,58 | Y73: 0,0,0,0,1,A&E,5,58 | Z73: 0,0,0,0,1,A&E,5,58 | AA73: 0,0,0,0,1,A&E,5,58 | AB73: 0,0,0,0,1,A&E,5,58 | AC73: 0,0,0,0,1,A&E,5,58 | AD73: 0,0,0,0,1,A&E,5,58 | AE73: 0,0,0,0,1,A&E,5,58 | AF73: 0,0,0,0,1,A&E,5,58 | AG73: 0,0,0,0,1,A&E,5,58 | AH73: 0,0,0,0,1,A&E,5,58 | AI73: 0,0,0,0,1,A&E,5,58 | AJ73: 0,0,0,0,1,A&E,5,58 | AK73: 0,0,0,0,1,A&E,5,58 | AL73: 0,0,0,0,1,A&E,5,58 | AM73: 0,0,0,0,1,A&E,5,58 | AN73: 0,0,0,0,1,A&E,5,58 | AO73: 0,0,0,0,1,A&E,5,58 | AP73: 0,0,0,0,1,A&E,5,58 | AQ73: 0,0,0,0,1,A&E,5,58 | AR73: 0,0,0,0,1,A&E,5,58 | AS73: 0,0,0,0,1,A&E,5,58 | AT73: 0,0,0,0,1,A&E,5,58 | AU73: 0,0,0,0,1,A&E,5,58 | AV73: 0,0,0,0,1,A&E,5,58 | AW73: 0,0,0,0,1,A&E,5,58 | AX73: 0,0,0,0,1,A&E,5,58 | AY73: 0,0,0,0,1,A&E,5,58 | AZ73: 0,0,0,0,1,A&E,5,58 | BA73: 0,0,0,0,1,A&E,5,58 | BB73: 0,0,0,0,1,A&E,5,58 | BC73: 0,0,0,0,1,A&E,5,58 | BD73: 0,0,0,0,1,A&E,5,58 | BE73: 0,0,0,0,1,A&E,5,58 | BF73: 0,0,0,0,1,A&E,5,58 | BG73: 0,0,0,0,1,A&E,5,58 | BH73: 0,0,0,0,1,A&E,5,58 | BI73: 0,0,0,0,1,A&E,5,58 | BJ73: 0,0,0,0,1,A&E,5,58 | BK73: 0,0,0,0,1,A&E,5,58 | BL73: 0,0,0,0,1,A&E,5,58 | BM73: 0,0,0,0,1,A&E,5,58 | BN73: 0,0,0,0,1,A&E,5,58 | BO73: 0,0,0,0,1,A&E,5,58 | BP73: 0,0,0,0,1,A&E,5,58 | BQ73: 0,0,0,0,1,A&E,5,58 | BR73: 0,0,0,0,1,A&E,5,58 | BS73: 0,0,0,0,1,A&E,5,58 | BT73: 0,0,0,0,1,A&E,5,58 | BU73: 0,0,0,0,1,A&E,5,58 | BV73: 0,0,0,0,1,A&E,5,58 | BW73: 0,0,0,0,1,A&E,5,58 | BX73: 0,0,0,0,1,A&E,5,58 | BY73: 0,0,0,0,1,A&E,5,58 | BZ73: 0,0,0,0,1,A&E,5,58 | CA73: 0,0,0,0,1,A&E,5,58 | CB73: 0,0,0,0,1,A&E,5,58 | CC73: 0,0,0,0,1,A&E,5,58 | CD73: 0,0,0,0,1,A&E,5,58 | CE73: 0,0,0,0,1,A&E,5,58 | CF73: 0,0,0,0,1,A&E,5,58 | CG73: 0,0,0,0,1,A&E,5,58 | CH73: 0,0,0,0,1,A&E,5,58 | CI73: 0,0,0,0,1,A&E,5,58 | CJ73: 0,0,0,0,1,A&E,5,58 | CK73: 0,0,0,0,1,A&E,5,58 | CL73: 0,0,0,0,1,A&E,5,58 | CM73: 0,0,0,0,1,A&E,5,58 | CN73: 0,0,0,0,1,A&E,5,58 | CO73: 0,0,0,0,1,A&E,5,58 | CP73: 0,0,0,0,1,A&E,5,58 | CQ73: 0,0,0,0,1,A&E,5,58 | CR73: 0,0,0,0,1,A&E,5,58 | CS73: 0,0,0,0,1,A&E,5,58 | CT73: 0,0,0,0,1,A&E,5,58 | CU73: 0,0,0,0,1,A&E,5,58 | CV73: 0,0,0,0,1,A&E,5,58 | CW73: 0,0,0,0,1,A&E,5,58 | CX73: 0,0,0,0,1,A&E,5,58 | CY73: 0,0,0,0,1,A&E,5,58
A74: Nurse | B74: 6 | C74: 0,0,0,0,0,A&E,0 | D74: 0,0,0,0,0,A&E,6,39 | E74: 0,0,0,0,0,A&E,6,39 | F74: 0,0,0,0,0,A&E,6,39 | G74: 0,0,0,0,0,A&E,6,39 | H74: 0,0,0,0,0,A&E,6,39 | I74: 0,0,0,0,0,A&E,5,39 | J74: 0,0,0,0,0,A&E,5,39 | K74: 0,0,0,0,0,A&E,5,39 | L74: 0,0,0,0,0,A&E,5,39 | M74: 0,0,0,0,0,A&E,5,39 | N74: 0,0,0,0,0,A&E,5,39 | O74: 0,0,0,0,1,A&E,5,39 | P74: 0,0,0,0,1,A&E,5,39 | Q74: 0,0,0,0,1,A&E,5,39 | R74: 0,0,0,0,1,A&E,5,39 | S74: 0,0,0,0,1,A&E,5,39 | T74: 0,0,0,0,1,A&E,6,39 | U74: 0,0,0,0,1,A&E,6,39 | V74: 0,0,0,0,1,A&E,6,39 | W74: 0,0,0,0,1,A&E,6,39 | X74: 0,0,0,0,1,A&E,6,39 | Y74: 0,0,0,0,1,A&E,6,39 | Z74: 0,0,0,0,1,A&E,6,39 | AA74: 0,0,0,0,1,A&E,6,39 | AB74: 0,0,0,0,1,A&E,6,39 | AC74: 0,0,0,0,1,A&E,6,39 | AD74: 0,0,0,0,1,A&E,6,39 | AE74: 0,0,0,0,1,A&E,6,39 | AF74: 0,0,0,0,1,A&E,6,39 | AG74: 0,0,0,0,1,A&E,6,39 | AH74: 0,0,0,0,1,A&E,6,39 | AI74: 0,0,0,0,1,A&E,6,39 | AJ74: 0,0,0,0,1,A&E,6,39 | AK74: 0,0,0,0,1,A&E,6,39 | AL74: 0,0,0,0,1,A&E,6,39 | AM74: 0,0,0,0,1,A&E,6,39 | AN74: 0,0,0,0,1,A&E,6,39 | AO74: 0,0,0,0,1,A&E,6,39 | AP74: 0,0,0,0,1,A&E,6,39 | AQ74: 0,0,0,0,1,A&E,6,39 | AR74: 0,0,0,0,1,A&E,6,39 | AS74: 0,0,0,0,1,A&E,6,39 | AT74: 0,0,0,0,1,A&E,6,39 | AU74: 0,0,0,0,1,A&E,6,39 | AV74: 0,0,0,0,1,A&E,6,39 | AW74: 0,0,0,0,1,A&E,6,39 | AX74: 0,0,0,0,1,A&E,6,39 | AY74: 0,0,0,0,1,A&E,6,39 | AZ74: 0,0,0,0,1,A&E,6,39 | BA74: 0,0,0,0,1,A&E,6,39 | BB74: 0,0,0,0,1,A&E,6,39 | BC74: 0,0,0,0,1,A&E,6,39 | BD74: 0,0,0,0,1,A&E,6,39 | BE74: 0,0,0,0,1,A&E,6,39 | BF74: 0,0,0,0,1,A&E,6,39 | BG74: 0,0,0,0,1,A&E,6,39 | BH74: 0,0,0,0,1,A&E,6,39 | BI74: 0,0,0,0,1,A&E,6,39 | BJ74: 0,0,0,0,1,A&E,6,39 | BK74: 0,0,0,0,1,A&E,6,39 | BL74: 0,0,0,0,1,A&E,6,39 | BM74: 0,0,0,0,1,A&E,6,39 | BN74: 0,0,0,0,1,A&E,6,39 | BO74: 0,0,0,0,1,A&E,6,39 | BP74: 0,0,0,0,1,A&E,6,39 | BQ74: 0,0,0,0,1,A&E,6,39 | BR74: 0,0,0,0,1,A&E,6,39 | BS74: 0,0,0,0,1,A&E,6,39 | BT74: 0,0,0,0,1,A&E,6,39 | BU74: 0,0,0,0,1,A&E,6,39 | BV74: 0,0,0,0,1,A&E,6,39 | BW74: 0,0,0,0,1,A&E,6,39 | BX74: 0,0,0,0,1,A&E,6,39 | BY74: 0,0,0,0,1,A&E,6,39 | BZ74: 0,0,0,0,1,A&E,6,39 | CA74: 0,0,0,0,1,A&E,6,39 | CB74: 0,0,0,0,1,A&E,6,39 | CC74: 0,0,0,0,1,A&E,6,39 | CD74: 0,0,0,0,1,A&E,6,39 | CE74: 0,0,0,0,1,A&E,6,39 | CF74: 0,0,0,0,1,A&E,6,39 | CG74: 0,0,0,0,1,A&E,6,39 | CH74: 0,0,0,0,1,A&E,6,39 | CI74: 0,0,0,0,1,A&E,6,39 | CJ74: 0,0,0,0,1,A&E,6,39 | CK74: 0,0,0,0,1,A&E,6,39 | CL74: 0,0,0,0,1,A&E,6,39 | CM74: 0,0,0,0,1,A&E,6,39 | CN74: 0,0,0,0,1,A&E,6,39 | CO74: 0,0,0,0,1,A&E,6,39 | CP74: 0,0,0,0,1,A&E,6,39 | CQ74: 0,0,0,0,1,A&E,6,39 | CR74: 0,0,0,0,1,A&E,6,39 | CS74: 0,0,0,0,1,A&E,6,39 | CT74: 0,0,0,0,1,A&E,6,39 | CU74: 0,0,0,0,1,A&E,6,39 | CV74: 0,0,0,0,1,A&E,6,39 | CW74: 0,0,0,0,1,A&E,6,39 | CX74: 0,0,0,0,1,A&E,6,39 | CY74: 0,0,0,0,1,A&E,6,39
A75: Nurse | B75: 7 | C75: 0,0,0,0,0,A&E,0 | D75: 0,0,0,0,0,A&E,7,57 | E75: 0,0,0,0,0,A&E,7,57 | F75: 0,0,0,0,0,A&E,7,57 | G75: 0,0,0,0,0,A&E,7,57 | H75: 0,0,0,0,0,A&E,7,57 | I75: 0,0,0,0,0,A&E,6,57 | J75: 0,0,0,0,0,A&E,6,57 | K75: 0,0,0,0,0,A&E,6,57 | L75: 0,0,0,0,0,A&E,6,57 | M75: 0,0,0,0,0,A&E,6,57 | N75: 1,0,0,1,0,A&E,6,57 | O75: 2,0,0,1,0,A&E,6,57 | P75: 0,0,0,0,1,A&E,6,57 | Q75: 0,0,0,0,1,A&E,6,57 | R75: 0,0,0,0,1,A&E,6,57 | S75: 0,0,0,0,1,A&E,6,57 | T75: 0,0,0,0,1,A&E,7,57 | U75: 0,0,0,0,1,A&E,7,57 | V75: 0,0,0,0,1,A&E,7,57 | W75: 0,0,0,0,1,A&E,7,57 | X75: 0,0,0,0,1,A&E,7,57 | Y75: 0,0,0,0,1,A&E,7,57 | Z75: 0,0,0,0,1,A&E,7,57 | AA75: 0,0,0,0,1,A&E,7,57 | AB75: 0,0,0,0,1,A&E,7,57 | AC75: 0,0,0,0,1,A&E,7,57 | AD75: 0,0,0,0,1,A&E,7,57 | AE75: 0,0,0,0,1,A&E,7,57 | AF75: 0,0,0,0,1,A&E,7,57 | AG75: 0,0,0,0,1,A&E,7,57 | AH75: 0,0,0,0,1,A&E,7,57 | AI75: 0,0,0,0,1,A&E,7,57 | AJ75: 0,0,0,0,1,A&E,7,57 | AK75: 0,0,0,0,1,A&E,7,57 | AL75: 0,0,0,0,1,A&E,7,57 | AM75: 0,0,0,0,1,A&E,7,57 | AN75: 0,0,0,0,1,A&E,7,57 | AO75: 0,0,0,0,1,A&E,7,57 | AP75: 0,0,0,0,1,A&E,7,57 | AQ75: 0,0,0,0,1,A&E,7,57 | AR75: 0,0,0,0,1,A&E,7,57 | AS75: 0,0,0,0,1,A&E,7,57 | AT75: 0,0,0,0,1,A&E,7,57 | AU75: 0,0,0,0,1,A&E,7,57 | AV75: 0,0,0,0,1,A&E,7,57 | AW75: 0,0,0,0,1,A&E,7,57 | AX75: 0,0,0,0,1,A&E,7,57 | AY75: 0,0,0,0,1,A&E,7,57 | AZ75: 0,0,0,0,1,A&E,7,57 | BA75: 0,0,0,0,1,A&E,7,57 | BB75: 0,0,0,0,1,A&E,7,57 | BC75: 0,0,0,0,1,A&E,7,57 | BD75: 0,0,0,0,1,A&E,7,57 | BE75: 0,0,0,0,1,A&E,7,57 | BF75: 0,0,0,0,1,A&E,7,57 | BG75: 0,0,0,0,1,A&E,7,57 | BH75: 0,0,0,0,1,A&E,7,57 | BI75: 0,0,0,0,1,A&E,7,57 | BJ75: 0,0,0,0,1,A&E,7,57 | BK75: 0,0,0,0,1,A&E,7,57 | BL75: 0,0,0,0,1,A&E,7,57 | BM75: 0,0,0,0,1,A&E,7,57 | BN75: 0,0,0,0,1,A&E,7,57 | BO75: 0,0,0,0,1,A&E,7,57 | BP75: 0,0,0,0,1,A&E,7,57 | BQ75: 0,0,0,0,1,A&E,7,57 | BR75: 0,0,0,0,1,A&E,7,57 | BS75: 0,0,0,0,1,A&E,7,57 | BT75: 0,0,0,0,1,A&E,7,57 | BU75: 0,0,0,0,1,A&E,7,57 | BV75: 0,0,0,0,1,A&E,7,57 | BW75: 0,0,0,0,1,A&E,7,57 | BX75: 0,0,0,0,1,A&E,7,57 | BY75: 0,0,0,0,1,A&E,7,57 | BZ75: 0,0,0,0,1,A&E,7,57 | CA75: 0,0,0,0,1,A&E,7,57 | CB75: 0,0,0,0,1,A&E,7,57 | CC75: 0,0,0,0,1,A&E,7,57 | CD75: 0,0,0,0,1,A&E,7,57 | CE75: 0,0,0,0,1,A&E,7,57 | CF75: 0,0,0,0,1,A&E,7,57 | CG75: 0,0,0,0,1,A&E,7,57 | CH75: 0,0,0,0,1,A&E,7,57 | CI75: 0,0,0,0,1,A&E,7,57 | CJ75: 0,0,0,0,1,A&E,7,57 | CK75: 0,0,0,0,1,A&E,7,57 | CL75: 0,0,0,0,1,A&E,7,57 | CM75: 0,0,0,0,1,A&E,7,57 | CN75: 0,0,0,0,1,A&E,7,57 | CO75: 0,0,0,0,1,A&E,7,57 | CP75: 0,0,0,0,1,A&E,7,57 | CQ75: 0,0,0,0,1,A&E,7,57 | CR75: 0,0,0,0,1,A&E,7,57 | CS75: 0,0,0,0,1,A&E,7,57 | CT75: 0,0,0,0,1,A&E,7,57 | CU75: 0,0,0,0,1,A&E,7,57 | CV75: 0,0,0,0,1,A&E,7,57 | CW75: 0,0,0,0,1,A&E,7,57 | CX75: 0,0,0,0,1,A&E,7,57 | CY75: 0,0,0,0,1,A&E,7,57
A76: Nurse | B76: 8 | C76: 0,0,0,0,0,A&E,0 | D76: 0,0,0,0,0,A&E,8,26 | E76: 0,0,0,0,0,A&E,8,26 | F76: 0,0,0,0,0,A&E,8,26 | G76: 0,0,0,0,0,A&E,8,26 | H76: 0,0,0,0,0,A&E,8,26 | I76: 1,0,0,1,0,A&E,7,26 | J76: 2,0,0,1,0,A&E,7,26 | K76: 3,0,0,1,0,A&E,7,26 | L76: 4,0,0,1,0,A&E,7,26 | M76: 5,1,0,1,0,0,0,26 | N76: 6,1,0,1,0,0,0,26 | O76: 7,1,0,1,0,0,0,26 | P76: 8,1,0,1,0,0,0,26 | Q76: 9,1,0,1,0,0,0,26 | R76: 10,1,0,1,0,0,0,26 | S76: 11,1,0,1,0,0,0,26 | T76: 12,1,0,1,0,0,0,26 | U76: 13,1,0,1,0,0,0,26 | V76: 14,1,0,1,0,0,0,26 | W76: 15,1,0,1,0,0,0,26 | X76: 0,0,0,0,0,A&E,8,26 | Y76: 0,0,0,0,1,A&E,8,26 | Z76: 0,0,0,0,1,A&E,8,26 | AA76: 0,0,0,0,1,A&E,8,26 | AB76: 0,0,0,0,1,A&E,8,26 | AC76: 0,0,0,0,1,A&E,8,26 | AD76: 0,0,0,0,1,A&E,8,26 | AE76: 0,0,0,0,1,A&E,8,26 | AF76: 0,0,0,0,1,A&E,8,26 | AG76: 0,0,0,0,1,A&E,8,26 | AH76: 0,0,0,0,1,A&E,8,26 | AI76: 0,0,0,0,1,A&E,8,26 | AJ76: 0,0,0,0,1,A&E,8,26 | AK76: 0,0,0,0,1,A&E,8,26 | AL76: 0,0,0,0,1,A&E,8,26 | AM76: 0,0,0,0,1,A&E,8,26 | AN76: 0,0,0,0,1,A&E,8,26 | AO76: 0,0,0,0,1,A&E,8,26 | AP76: 0,0,0,0,1,A&E,8,26 | AQ76: 0,0,0,0,1,A&E,8,26 | AR76: 0,0,0,0,1,A&E,8,26 | AS76: 0,0,0,0,1,A&E,8,26 | AT76: 0,0,0,0,1,A&E,8,26 | AU76: 0,0,0,0,1,A&E,8,26 | AV76: 0,0,0,0,1,A&E,8,26 | AW76: 0,0,0,0,1,A&E,8,26 | AX76: 0,0,0,0,1,A&E,8,26 | AY76: 0,0,0,0,1,A&E,8,26 | AZ76: 0,0,0,0,1,A&E,8,26 | BA76: 0,0,0,0,1,A&E,8,26 | BB76: 0,0,0,0,1,A&E,8,26 | BC76: 0,0,0,0,1,A&E,8,26 | BD76: 0,0,0,0,1,A&E,8,26 | BE76: 0,0,0,0,1,A&E,8,26 | BF76: 0,0,0,0,1,A&E,8,26 | BG76: 0,0,0,0,1,A&E,8,26 | BH76: 0,0,0,0,1,A&E,8,26 | BI76: 0,0,0,0,1,A&E,8,26 | BJ76: 0,0,0,0,1,A&E,8,26 | BK76: 0,0,0,0,1,A&E,8,26 | BL76: 0,0,0,0,1,A&E,8,26 | BM76: 0,0,0,0,1,A&E,8,26 | BN76: 0,0,0,0,1,A&E,8,26 | BO76: 0,0,0,0,1,A&E,8,26 | BP76: 0,0,0,0,1,A&E,8,26 | BQ76: 0,0,0,0,1,A&E,8,26 | BR76: 0,0,0,0,1,A&E,8,26 | BS76: 0,0,0,0,1,A&E,8,26 | BT76: 0,0,0,0,1,A&E,8,26 | BU76: 0,0,0,0,1,A&E,8,26 | BV76: 0,0,0,0,1,A&E,8,26 | BW76: 0,0,0,0,1,A&E,8,26 | BX76: 0,0,0,0,1,A&E,8,26 | BY76: 0,0,0,0,1,A&E,8,26 | BZ76: 0,0,0,0,1,A&E,8,26 | CA76: 0,0,0,0,1,A&E,8,26 | CB76: 0,0,0,0,1,A&E,8,26 | CC76: 0,0,0,0,1,A&E,8,26 | CD76: 0,0,0,0,1,A&E,8,26 | CE76: 0,0,0,0,1,A&E,8,26 | CF76: 0,0,0,0,1,A&E,8,26 | CG76: 0,0,0,0,1,A&E,8,26 | CH76: 0,0,0,0,1,A&E,8,26 | CI76: 0,0,0,0,1,A&E,8,26 | CJ76: 0,0,0,0,1,A&E,8,26 | CK76: 0,0,0,0,1,A&E,8,26 | CL76: 0,0,0,0,1,A&E,8,26 | CM76: 0,0,0,0,1,A&E,8,26 | CN76: 0,0,0,0,1,A&E,8,26 | CO76: 0,0,0,0,1,A&E,8,26 | CP76: 0,0,0,0,1,A&E,8,26 | CQ76: 0,0,0,0,1,A&E,8,26 | CR76: 0,0,0,0,1,A&E,8,26 | CS76: 0,0,0,0,1,A&E,8,26 | CT76: 0,0,0,0,1,A&E,8,26 | CU76: 0,0,0,0,1,A&E,8,26 | CV76: 0,0,0,0,1,A&E,8,26 | CW76: 0,0,0,0,1,A&E,8,26 | CX76: 0,0,0,0,1,A&E,8,26 | CY76: 0,0,0,0,1,A&E,8,26
A77: Nurse | B77: 9 | C77: 0,0,0,0,0,A&E,0 | D77: 1,0,0,1,0,A&E,9,29 | E77: 2,0,0,1,0,A&E,9,29 | F77: 3,0,0,1,0,A&E,9,29 | G77: 4,0,0,1,0,A&E,9,29 | H77: 5,1,0,1,0,0,0,29 | I77: 6,1,0,1,0,0,0,29 | J77: 7,1,0,1,0,0,0,29 | K77: 8,1,0,1,0,0,0,29 | L77: 9,1,0,1,0,0,0,29 | M77: 10,1,0,1,0,0,0,29 | N77: 11,1,0,1,0,0,0,29 | O77: 12,1,0,1,0,0,0,29 | P77: 13,1,0,1,0,0,0,29 | Q77: 14,1,0,1,0,0,0,29 | R77: 15,1,0,1,0,0,0,29 | S77: 0,0,0,0,0,A&E,7,29 | T77: 0,0,0,0,1,A&E,8,29 | U77: 0,0,0,0,1,A&E,8,29 | V77: 0,0,0,0,1,A&E,8,29 | W77: 0,0,0,0,1,A&E,8,29 | X77: 0,0,0,0,1,A&E,9,29 | Y77: 0,0,0,0,1,A&E,9,29 | Z77: 0,0,0,0,1,A&E,9,29 | AA77: 0,0,0,0,1,A&E,9,29 | AB77: 0,0,0,0,1,A&E,9,29 | AC77: 0,0,0,0,1,A&E,9,29 | AD77: 0,0,0,0,1,A&E,9,29 | AE77: 0,0,0,0,1,A&E,9,29 | AF77: 0,0,0,0,1,A&E,9,29 | AG77: 0,0,0,0,1,A&E,9,29 | AH77: 0,0,0,0,1,A&E,9,29 | AI77: 0,0,0,0,1,A&E,9,29 | AJ77: 0,0,0,0,1,A&E,9,29 | AK77: 0,0,0,0,1,A&E,9,29 | AL77: 0,0,0,0,1,A&E,9,29 | AM77: 0,0,0,0,1,A&E,9,29 | AN77: 0,0,0,0,1,A&E,9,29 | AO77: 0,0,0,0,1,A&E,9,29 | AP77: 0,0,0,0,1,A&E,9,29 | AQ77: 0,0,0,0,1,A&E,9,29 | AR77: 0,0,0,0,1,A&E,9,29 | AS77: 0,0,0,0,1,A&E,9,29 | AT77: 0,0,0,0,1,A&E,9,29 | AU77: 0,0,0,0,1,A&E,9,29 | AV77: 0,0,0,0,1,A&E,9,29 | AW77: 0,0,0,0,1,A&E,9,29 | AX77: 0,0,0,0,1,A&E,9,29 | AY77: 0,0,0,0,1,A&E,9,29 | AZ77: 0,0,0,0,1,A&E,9,29 | BA77: 0,0,0,0,1,A&E,9,29 | BB77: 0,0,0,0,1,A&E,9,29 | BC77: 0,0,0,0,1,A&E,9,29 | BD77: 0,0,0,0,1,A&E,9,29 | BE77: 0,0,0,0,1,A&E,9,29 | BF77: 0,0,0,0,1,A&E,9,29 | BG77: 0,0,0,0,1,A&E,9,29 | BH77: 0,0,0,0,1,A&E,9,29 | BI77: 0,0,0,0,1,A&E,9,29 | BJ77: 0,0,0,0,1,A&E,9,29 | BK77: 0,0,0,0,1,A&E,9,29 | BL77: 0,0,0,0,1,A&E,9,29 | BM77: 0,0,0,0,1,A&E,9,29 | BN77: 0,0,0,0,1,A&E,9,29 | BO77: 0,0,0,0,1,A&E,9,29 | BP77: 0,0,0,0,1,A&E,9,29 | BQ77: 0,0,0,0,1,A&E,9,29 | BR77: 0,0,0,0,1,A&E,9,29 | BS77: 0,0,0,0,1,A&E,9,29 | BT77: 0,0,0,0,1,A&E,9,29 | BU77: 0,0,0,0,1,A&E,9,29 | BV77: 0,0,0,0,1,A&E,9,29 | BW77: 0,0,0,0,1,A&E,9,29 | BX77: 0,0,0,0,1,A&E,9,29 | BY77: 0,0,0,0,1,A&E,9,29 | BZ77: 0,0,0,0,1,A&E,9,29 | CA77: 0,0,0,0,1,A&E,9,29 | CB77: 0,0,0,0,1,A&E,9,29 | CC77: 0,0,0,0,1,A&E,9,29 | CD77: 0,0,0,0,1,A&E,9,29 | CE77: 0,0,0,0,1,A&E,9,29 | CF77: 0,0,0,0,1,A&E,9,29 | CG77: 0,0,0,0,1,A&E,9,29 | CH77: 0,0,0,0,1,A&E,9,29 | CI77: 0,0,0,0,1,A&E,9,29 | CJ77: 0,0,0,0,1,A&E,9,29 | CK77: 0,0,0,0,1,A&E,9,29 | CL77: 0,0,0,0,1,A&E,9,29 | CM77: 0,0,0,0,1,A&E,9,29 | CN77: 0,0,0,0,1,A&E,9,29 | CO77: 0,0,0,0,1,A&E,9,29 | CP77: 0,0,0,0,1,A&E,9,29 | CQ77: 0,0,0,0,1,A&E,9,29 | CR77: 0,0,0,0,1,A&E,9,29 | CS77: 0,0,0,0,1,A&E,9,29 | CT77: 0,0,0,0,1,A&E,9,29 | CU77: 0,0,0,0,1,A&E,9,29 | CV77: 0,0,0,0,1,A&E,9,29 | CW77: 0,0,0,0,1,A&E,9,29 | CX77: 0,0,0,0,1,A&E,9,29 | CY77: 0,0,0,0,1,A&E,9,29
A78: Nurse | B78: 10 | C78: 0,0,0,0,0,A&E,0 | D78: 0,0,0,0,0,A&E,10,32 | E78: 0,0,0,0,0,A&E,10,32 | F78: 0,0,0,0,0,A&E,10,32 | G78: 0,0,0,0,0,A&E,10,32 | H78: 1,0,0,1,0,A&E,9,32 | I78: 2,0,0,1,0,A&E,8,32 | J78: 3,0,0,1,0,A&E,8,32 | K78: 4,0,0,1,0,A&E,8,32 | L78: 5,1,0,1,0,0,0,32 | M78: 6,1,0,1,0,0,0,32 | N78: 7,1,0,1,0,0,0,32 | O78: 8,1,0,1,0,0,0,32 | P78: 9,1,0,1,0,0,0,32 | Q78: 10,1,0,1,0,0,0,32 | R78: 11,1,0,1,0,0,0,32 | S78: 12,1,0,1,0,0,0,32 | T78: 13,1,0,1,0,0,0,32 | U78: 14,1,0,1,0,0,0,32 | V78: 15,1,0,1,0,0,0,32 | W78: 0,0,0,0,0,A&E,9,32 | X78: 0,0,0,0,0,A&E,10,32 | Y78: 0,0,0,0,0,A&E,10,32 | Z78: 0,0,0,0,1,A&E,10,32 | AA78: 0,0,0,0,1,A&E,10,32 | AB78: 0,0,0,0,1,A&E,10,32 | AC78: 0,0,0,0,1,A&E,10,32 | AD78: 0,0,0,0,1,A&E,10,32 | AE78: 0,0,0,0,1,A&E,10,32 | AF78: 0,0,0,0,1,A&E,10,32 | AG78: 0,0,0,0,1,A&E,10,32 | AH78: 0,0,0,0,1,A&E,10,32 | AI78: 0,0,0,0,1,A&E,10,32 | AJ78: 0,0,0,0,1,A&E,10,32 | AK78: 0,0,0,0,1,A&E,10,32 | AL78: 0,0,0,0,1,A&E,10,32 | AM78: 0,0,0,0,1,A&E,10,32 | AN78: 0,0,0,0,1,A&E,10,32 | AO78: 0,0,0,0,1,A&E,10,32 | AP78: 0,0,0,0,1,A&E,10,32 | AQ78: 0,0,0,0,1,A&E,10,32 | AR78: 0,0,0,0,1,A&E,10,32 | AS78: 0,0,0,0,1,A&E,10,32 | AT78: 0,0,0,0,1,A&E,10,32 | AU78: 0,0,0,0,1,A&E,10,32 | AV78: 0,0,0,0,1,A&E,10,32 | AW78: 0,0,0,0,1,A&E,10,32 | AX78: 0,0,0,0,1,A&E,10,32 | AY78: 0,0,0,0,1,A&E,10,32 | AZ78: 0,0,0,0,1,A&E,10,32 | BA78: 0,0,0,0,1,A&E,10,32 | BB78: 0,0,0,0,1,A&E,10,32 | BC78: 0,0,0,0,1,A&E,10,32 | BD78: 0,0,0,0,1,A&E,10,32 | BE78: 0,0,0,0,1,A&E,10,32 | BF78: 0,0,0,0,1,A&E,10,32 | BG78: 0,0,0,0,1,A&E,10,32 | BH78: 0,0,0,0,1,A&E,10,32 | BI78: 0,0,0,0,1,A&E,10,32 | BJ78: 0,0,0,0,1,A&E,10,32 | BK78: 0,0,0,0,1,A&E,10,32 | BL78: 0,0,0,0,1,A&E,10,32 | BM78: 0,0,0,0,1,A&E,10,32 | BN78: 0,0,0,0,1,A&E,10,32 | BO78: 0,0,0,0,1,A&E,10,32 | BP78: 0,0,0,0,1,A&E,10,32 | BQ78: 0,0,0,0,1,A&E,10,32 | BR78: 0,0,0,0,1,A&E,10,32 | BS78: 0,0,0,0,1,A&E,10,32 | BT78: 0,0,0,0,1,A&E,10,32 | BU78: 0,0,0,0,1,A&E,10,32 | BV78: 0,0,0,0,1,A&E,10,32 | BW78: 0,0,0,0,1,A&E,10,32 | BX78: 0,0,0,0,1,A&E,10,32 | BY78: 0,0,0,0,1,A&E,10,32 | BZ78: 0,0,0,0,1,A&E,10,32 | CA78: 0,0,0,0,1,A&E,10,32 | CB78: 0,0,0,0,1,A&E,10,32 | CC78: 0,0,0,0,1,A&E,10,32 | CD78: 0,0,0,0,1,A&E,10,32 | CE78: 0,0,0,0,1,A&E,10,32 | CF78: 0,0,0,0,1,A&E,10,32 | CG78: 0,0,0,0,1,A&E,10,32 | CH78: 0,0,0,0,1,A&E,10,32 | CI78: 0,0,0,0,1,A&E,10,32 | CJ78: 0,0,0,0,1,A&E,10,32 | CK78: 0,0,0,0,1,A&E,10,32 | CL78: 0,0,0,0,1,A&E,10,32 | CM78: 0,0,0,0,1,A&E,10,32 | CN78: 0,0,0,0,1,A&E,10,32 | CO78: 0,0,0,0,1,A&E,10,32 | CP78: 0,0,0,0,1,A&E,10,32 | CQ78: 0,0,0,0,1,A&E,10,32 | CR78: 0,0,0,0,1,A&E,10,32 | CS78: 0,0,0,0,1,A&E,10,32 | CT78: 0,0,0,0,1,A&E,10,32 | CU78: 0,0,0,0,1,A&E,10,32 | CV78: 0,0,0,0,1,A&E,10,32 | CW78: 0,0,0,0,1,A&E,10,32 | CX78: 0,0,0,0,1,A&E,10,32 | CY78: 0,0,0,0,1,A&E,10,32
A79: Nurse | B79: 11 | C79: 0,0,0,0,0,ward1,1 | D79: 0,0,0,0,0,ward1,1,57 | E79: 0,0,0,0,0,ward1,1,57 | F79: 0,0,0,0,0,ward1,1,57 | G79: 0,0,0,0,0,ward1,1,57 | H79: 0,0,0,0,0,A&E,10,57 | I79: 0,0,0,0,0,A&E,9,57 | J79: 1,0,0,1,0,A&E,9,57 | K79: 2,0,0,1,0,A&E,9,57 | L79: 3,0,0,1,0,A&E,8,57 | M79: 4,0,0,1,0,A&E,7,57 | N79: 5,1,0,1,0,0,0,57 | O79: 6,1,0,1,0,0,0,57 | P79: 7,1,0,1,0,0,0,57 | Q79: 8,1,0,1,0,0,0,57 | R79: 9,1,0,1,0,0,0,57 | S79: 10,1,0,1,0,0,0,57 | T79: 11,1,0,1,0,0,0,57 | U79: 12,1,0,1,0,0,0,57 | V79: 13,1,0,1,0,0,0,57 | W79: 14,1,0,1,0,0,0,57 | X79: 15,1,0,1,0,0,0,57 | Y79: 0,0,0,0,0,ward1,1,57 | Z79: 0,0,0,0,0,ward1,1,57 | AA79: 0,0,0,0,0,ward1,1,57 | AB79: 0,0,0,0,0,ward1,1,57 | AC79: 0,0,0,0,0,ward1,1,57 | AD79: 0,0,0,0,0,ward1,1,57 | AE79: 0,0,0,0,0,ward1,1,57 | AF79: 0,0,0,0,0,ward1,1,57 | AG79: 0,0,0,0,0,ward1,1,57 | AH79: 0,0,0,0,0,ward1,1,57 | AI79: 0,0,0,0,0,ward1,1,57 | AJ79: 0,0,0,0,0,ward1,1,57 | AK79: 0,0,0,0,0,ward1,1,57 | AL79: 0,0,0,0,0,ward1,1,57 | AM79: 0,0,0,0,0,ward1,1,57 | AN79: 0,0,0,0,0,ward1,1,57 | AO79: 0,0,0,0,0,ward1,1,57 | AP79: 0,0,0,0,0,ward1,1,57 | AQ79: 0,0,0,0,0,ward1,1,57 | AR79: 0,0,0,0,1,ward1,1,57 | AS79: 0,0,0,0,1,ward1,1,57 | AT79: 0,0,0,0,1,ward1,1,57 | AU79: 0,0,0,0,1,ward1,1,57 | AV79: 0,0,0,0,1,ward1,1,57 | AW79: 0,0,0,0,1,ward1,1,57 | AX79: 0,0,0,0,1,ward1,1,57 | AY79: 0,0,0,0,1,ward1,1,57 | AZ79: 0,0,0,0,1,ward1,1,57 | BA79: 0,0,0,0,1,ward1,1,57 | BB79: 0,0,0,0,1,ward1,1,57 | BC79: 0,0,0,0,1,ward1,1,57 | BD79: 0,0,0,0,1,ward1,1,57 | BE79: 0,0,0,0,1,ward1,1,57 | BF79: 0,0,0,0,1,ward1,1,57 | BG79: 0,0,0,0,1,ward1,1,57 | BH79: 0,0,0,0,1,ward1,1,57 | BI79: 0,0,0,0,1,ward1,1,57 | BJ79: 0,0,0,0,1,ward1,1,57 | BK79: 0,0,0,0,1,ward1,1,57 | BL79: 0,0,0,0,1,ward1,1,57 | BM79: 0,0,0,0,1,ward1,1,57 | BN79: 0,0,0,0,1,ward1,1,57 | BO79: 0,0,0,0,1,ward1,1,57 | BP79: 0,0,0,0,1,ward1,1,57 | BQ79: 0,0,0,0,1,ward1,1,57 | BR79: 0,0,0,0,1,ward1,1,57 | BS79: 0,0,0,0,1,ward1,1,57 | BT79: 0,0,0,0,1,ward1,1,57 | BU79: 0,0,0,0,1,ward1,1,57 | BV79: 0,0,0,0,1,ward1,1,57 | BW79: 0,0,0,0,1,ward1,1,57 | BX79: 0,0,0,0,1,ward1,1,57 | BY79: 0,0,0,0,1,ward1,1,57 | BZ79: 0,0,0,0,1,ward1,1,57 | CA79: 0,0,0,0,1,ward1,1,57 | CB79: 0,0,0,0,1,ward1,1,57 | CC79: 0,0,0,0,1,ward1,1,57 | CD79: 0,0,0,0,1,ward1,1,57 | CE79: 0,0,0,0,1,ward1,1,57 | CF79: 0,0,0,0,1,ward1,1,57 | CG79: 0,0,0,0,1,ward1,1,57 | CH79: 0,0,0,0,1,ward1,1,57 | CI79: 0,0,0,0,1,ward1,1,57 | CJ79: 0,0,0,0,1,ward1,1,57 | CK79: 0,0,0,0,1,ward1,1,57 | CL79: 0,0,0,0,1,ward1,1,57 | CM79: 0,0,0,0,1,ward1,1,57 | CN79: 0,0,0,0,1,ward1,1,57 | CO79: 0,0,0,0,1,ward1,1,57 | CP79: 0,0,0,0,1,ward1,1,57 | CQ79: 0,0,0,0,1,ward1,1,57 | CR79: 0,0,0,0,1,ward1,1,57 | CS79: 0,0,0,0,1,ward1,1,57 | CT79: 0,0,0,0,1,ward1,1,57 | CU79: 0,0,0,0,1,ward1,1,57 | CV79: 0,0,0,0,1,ward1,1,57 | CW79: 0,0,0,0,1,ward1,1,57 | CX79: 0,0,0,0,1,ward1,1,57 | CY79: 0,0,0,0,1,ward1,1,57
A80: Nurse | B80: 12 | C80: 0,0,0,0,0,ward1,2 | D80: 0,0,0,0,0,ward1,2,22 | E80: 0,0,0,0,0,ward1,2,22 | F80: 0,0,0,0,0,ward1,2,22 | G80: 0,0,0,0,0,ward1,2,22 | H80: 0,0,0,0,0,ward1,1,22 | I80: 0,0,0,0,0,A&E,10,22 | J80: 0,0,0,0,0,A&E,10,22 | K80: 0,0,0,0,0,A&E,10,22 | L80: 0,0,0,0,0,A&E,9,22 | M80: 0,0,0,0,0,A&E,8,22 | N80: 0,0,0,0,0,A&E,7,22 | O80: 0,0,0,0,0,A&E,7,22 | P80: 0,0,0,0,0,A&E,7,22 | Q80: 0,0,0,0,1,A&E,7,22 | R80: 0,0,0,0,1,A&E,7,22 | S80: 0,0,0,0,1,A&E,8,22 | T80: 0,0,0,0,1,A&E,9,22 | U80: 0,0,0,0,1,A&E,9,22 | V80: 0,0,0,0,1,A&E,9,22 | W80: 0,0,0,0,1,A&E,10,22 | X80: 0,0,0,0,1,ward1,1,22 | Y80: 0,0,0,0,1,ward1,2,22 | Z80: 0,0,0,0,1,ward1,2,22 | AA80: 0,0,0,0,1,ward1,2,22 | AB80: 0,0,0,0,1,ward1,2,22 | AC80: 0,0,0,0,1,ward1,2,22 | AD80: 0,0,0,0,1,ward1,2,22 | AE80: 0,0,0,0,1,ward1,2,22 | AF80: 0,0,0,0,1,ward1,2,22 | AG80: 0,0,0,0,1,ward1,2,22 | AH80: 0,0,0,0,1,ward1,2,22 | AI80: 0,0,0,0,1,ward1,2,22 | AJ80: 0,0,0,0,1,ward1,2,22 | AK80: 0,0,0,0,1,ward1,2,22 | AL80: 0,0,0,0,1,ward1,2,22 | AM80: 0,0,0,0,1,ward1,2,22 | AN80: 0,0,0,0,1,ward1,2,22 | AO80: 0,0,0,0,1,ward1,2,22 | AP80: 0,0,0,0,1,ward1,2,22 | AQ80: 0,0,0,0,1,ward1,2,22 | AR80: 0,0,0,0,1,ward1,2,22 | AS80: 0,0,0,0,1,ward1,2,22 | AT80: 0,0,0,0,1,ward1,2,22 | AU80: 0,0,0,0,1,ward1,2,22 | AV80: 0,0,0,0,1,ward1,2,22 | AW80: 0,0,0,0,1,ward1,2,22 | AX80: 0,0,0,0,1,ward1,2,22 | AY80: 0,0,0,0,1,ward1,2,22 | AZ80: 0,0,0,0,1,ward1,2,22 | BA80: 0,0,0,0,1,ward1,2,22 | BB80: 0,0,0,0,1,ward1,2,22 | BC80: 0,0,0,0,1,ward1,2,22 | BD80: 0,0,0,0,1,ward1,2,22 | BE80: 0,0,0,0,1,ward1,2,22 | BF80: 0,0,0,0,1,ward1,2,22 | BG80: 0,0,0,0,1,ward1,2,22 | BH80: 0,0,0,0,1,ward1,2,22 | BI80: 0,0,0,0,1,ward1,2,22 | BJ80: 0,0,0,0,1,ward1,2,22 | BK80: 0,0,0,0,1,ward1,2,22 | BL80: 0,0,0,0,1,ward1,2,22 | BM80: 0,0,0,0,1,ward1,2,22 | BN80: 0,0,0,0,1,ward1,2,22 | BO80: 0,0,0,0,1,ward1,2,22 | BP80: 0,0,0,0,1,ward1,2,22 | BQ80: 0,0,0,0,1,ward1,2,22 | BR80: 0,0,0,0,1,ward1,2,22 | BS80: 0,0,0,0,1,ward1,2,22 | BT80: 0,0,0,0,1,ward1,2,22 | BU80: 0,0,0,0,1,ward1,2,22 | BV80: 0,0,0,0,1,ward1,2,22 | BW80: 0,0,0,0,1,ward1,2,22 | BX80: 0,0,0,0,1,ward1,2,22 | BY80: 0,0,0,0,1,ward1,2,22 | BZ80: 0,0,0,0,1,ward1,2,22 | CA80: 0,0,0,0,1,ward1,2,22 | CB80: 0,0,0,0,1,ward1,2,22 | CC80: 0,0,0,0,1,ward1,2,22 | CD80: 0,0,0,0,1,ward1,2,22 | CE80: 0,0,0,0,1,ward1,2,22 | CF80: 0,0,0,0,1,ward1,2,22 | CG80: 0,0,0,0,1,ward1,2,22 | CH80: 0,0,0,0,1,ward1,2,22 | CI80: 0,0,0,0,1,ward1,2,22 | CJ80: 0,0,0,0,1,ward1,2,22 | CK80: 0,0,0,0,1,ward1,2,22 | CL80: 0,0,0,0,1,ward1,2,22 | CM80: 0,0,0,0,1,ward1,2,22 | CN80: 0,0,0,0,1,ward1,2,22 | CO80: 0,0,0,0,1,ward1,2,22 | CP80: 0,0,0,0,1,ward1,2,22 | CQ80: 0,0,0,0,1,ward1,2,22 | CR80: 0,0,0,0,1,ward1,2,22 | CS80: 0,0,0,0,1,ward1,2,22 | CT80: 0,0,0,0,1,ward1,2,22 | CU80: 0,0,0,0,1,ward1,2,22 | CV80: 0,0,0,0,1,ward1,2,22 | CW80: 0,0,0,0,1,ward1,2,22 | CX80: 0,0,0,0,1,ward1,2,22 | CY80: 0,0,0,0,1,ward1,2,22
A81: Nurse | B81: 13 | C81: 0,0,0,0,0,ward1,3 | D81: 1,0,0,1,0,ward1,3,39 | E81: 2,0,0,1,0,ward1,3,39 | F81: 3,0,0,1,0,ward1,3,39 | G81: 4,0,0,1,0,ward1,3,39 | H81: 5,1,0,1,0,0,0,39 | I81: 6,1,0,1,0,0,0,39 | J81: 7,1,0,1,0,0,0,39 | K81: 8,1,0,1,0,0,0,39 | L81: 9,1,0,1,0,0,0,39 | M81: 10,1,0,1,0,0,0,39 | N81: 11,1,0,1,0,0,0,39 | O81: 12,1,0,1,0,0,0,39 | P81: 13,1,0,1,0,0,0,39 | Q81: 14,1,0,1,0,0,0,39 | R81: 15,1,0,1,0,0,0,39 | S81: 0,0,0,0,0,A&E,9,39 | T81: 0,0,0,0,0,A&E,10,39 | U81: 1,0,0,1,0,A&E,10,39 | V81: 0,0,0,0,1,A&E,10,39 | W81: 0,0,0,0,1,ward1,1,39 | X81: 0,0,0,0,1,ward1,2,39 | Y81: 0,0,0,0,1,ward1,3,39 | Z81: 0,0,0,0,1,ward1,3,39 | AA81: 0,0,0,0,1,ward1,3,39 | AB81: 0,0,0,0,1,ward1,3,39 | AC81: 0,0,0,0,1,ward1,3,39 | AD81: 0,0,0,0,1,ward1,3,39 | AE81: 0,0,0,0,1,ward1,3,39 | AF81: 0,0,0,0,1,ward1,3,39 | AG81: 0,0,0,0,1,ward1,3,39 | AH81: 0,0,0,0,1,ward1,3,39 | AI81: 0,0,0,0,1,ward1,3,39 | AJ81: 0,0,0,0,1,ward1,3,39 | AK81: 0,0,0,0,1,ward1,3,39 | AL81: 0,0,0,0,1,ward1,3,39 | AM81: 0,0,0,0,1,ward1,3,39 | AN81: 0,0,0,0,1,ward1,3,39 | AO81: 0,0,0,0,1,ward1,3,39 | AP81: 0,0,0,0,1,ward1,3,39 | AQ81: 0,0,0,0,1,ward1,3,39 | AR81: 0,0,0,0,1,ward1,3,39 | AS81: 0,0,0,0,1,ward1,3,39 | AT81: 0,0,0,0,1,ward1,3,39 | AU81: 0,0,0,0,1,ward1,3,39 | AV81: 0,0,0,0,1,ward1,3,39 | AW81: 0,0,0,0,1,ward1,3,39 | AX81: 0,0,0,0,1,ward1,3,39 | AY81: 0,0,0,0,1,ward1,3,39 | AZ81: 0,0,0,0,1,ward1,3,39 | BA81: 0,0,0,0,1,ward1,3,39 | BB81: 0,0,0,0,1,ward1,3,39 | BC81: 0,0,0,0,1,ward1,3,39 | BD81: 0,0,0,0,1,ward1,3,39 | BE81: 0,0,0,0,1,ward1,3,39 | BF81: 0,0,0,0,1,ward1,3,39 | BG81: 0,0,0,0,1,ward1,3,39 | BH81: 0,0,0,0,1,ward1,3,39 | BI81: 0,0,0,0,1,ward1,3,39 | BJ81: 0,0,0,0,1,ward1,3,39 | BK81: 0,0,0,0,1,ward1,3,39 | BL81: 0,0,0,0,1,ward1,3,39 | BM81: 0,0,0,0,1,ward1,3,39 | BN81: 0,0,0,0,1,ward1,3,39 | BO81: 0,0,0,0,1,ward1,3,39 | BP81: 0,0,0,0,1,ward1,3,39 | BQ81: 0,0,0,0,1,ward1,3,39 | BR81: 0,0,0,0,1,ward1,3,39 | BS81: 0,0,0,0,1,ward1,3,39 | BT81: 0,0,0,0,1,ward1,3,39 | BU81: 0,0,0,0,1,ward1,3,39 | BV81: 0,0,0,0,1,ward1,3,39 | BW81: 0,0,0,0,1,ward1,3,39 | BX81: 0,0,0,0,1,ward1,3,39 | BY81: 0,0,0,0,1,ward1,3,39 | BZ81: 0,0,0,0,1,ward1,3,39 | CA81: 0,0,0,0,1,ward1,3,39 | CB81: 0,0,0,0,1,ward1,3,39 | CC81: 0,0,0,0,1,ward1,3,39 | CD81: 0,0,0,0,1,ward1,3,39 | CE81: 0,0,0,0,1,ward1,3,39 | CF81: 0,0,0,0,1,ward1,3,39 | CG81: 0,0,0,0,1,ward1,3,39 | CH81: 0,0,0,0,1,ward1,3,39 | CI81: 0,0,0,0,1,ward1,3,39 | CJ81: 0,0,0,0,1,ward1,3,39 | CK81: 0,0,0,0,1,ward1,3,39 | CL81: 0,0,0,0,1,ward1,3,39 | CM81: 0,0,0,0,1,ward1,3,39 | CN81: 0,0,0,0,1,ward1,3,39 | CO81: 0,0,0,0,1,ward1,3,39 | CP81: 0,0,0,0,1,ward1,3,39 | CQ81: 0,0,0,0,1,ward1,3,39 | CR81: 0,0,0,0,1,ward1,3,39 | CS81: 0,0,0,0,1,ward1,3,39 | CT81: 0,0,0,0,1,ward1,3,39 | CU81: 0,0,0,0,1,ward1,3,39 | CV81: 0,0,0,0,1,ward1,3,39 | CW81: 0,0,0,0,1,ward1,3,39 | CX81: 0,0,0,0,1,ward1,3,39 | CY81: 0,0,0,0,1,ward1,3,39
A82: Nurse | B82: 14 | C82: 0,0,0,0,0,ward1,4 | D82: 0,0,0,0,0,ward1,4,33 | E82: 0,0,0,0,0,ward1,4,33 | F82: 0,0,0,0,0,ward1,4,33 | G82: 0,0,0,0,0,ward1,4,33 | H82: 0,0,0,0,0,ward1,2,33 | I82: 0,0,0,0,0,ward1,1,33 | J82: 0,0,0,0,0,ward1,1,33 | K82: 0,0,0,0,0,ward1,1,33 | L82: 0,0,0,0,0,A&E,10,33 | M82: 1,0,0,1,0,A&E,9,33 | N82: 2,0,0,1,0,A&E,8,33 | O82: 3,0,0,1,0,A&E,8,33 | P82: 4,0,0,1,0,A&E,8,33 | Q82: 5,1,0,1,0,0,0,33 | R82: 6,1,0,1,0,0,0,33 | S82: 7,1,0,1,0,0,0,33 | T82: 8,1,0,1,0,0,0,33 | U82: 9,1,0,1,0,0,0,33 | V82: 10,1,0,1,0,0,0,33 | W82: 11,1,0,1,0,0,0,33 | X82: 12,1,0,1,0,0,0,33 | Y82: 13,1,0,1,0,0,0,33 | Z82: 14,1,0,1,0,0,0,33 | AA82: 15,1,0,1,0,0,0,33 | AB82: 0,0,0,0,0,ward1,4,33 | AC82: 0,0,0,0,0,ward1,4,33 | AD82: 0,0,0,0,0,ward1,4,33 | AE82: 0,0,0,0,0,ward1,4,33 | AF82: 0,0,0,0,0,ward1,4,33 | AG82: 0,0,0,0,0,ward1,4,33 | AH82: 0,0,0,0,0,ward1,4,33 | AI82: 0,0,0,0,0,ward1,4,33 | AJ82: 0,0,0,0,0,ward1,4,33 | AK82: 0,0,0,0,0,ward1,4,33 | AL82: 0,0,0,0,0,ward1,4,33 | AM82: 0,0,0,0,0,ward1,4,33 | AN82: 0,0,0,0,0,ward1,4,33 | AO82: 0,0,0,0,0,ward1,4,33 | AP82: 0,0,0,0,0,ward1,4,33 | AQ82: 0,0,0,0,0,ward1,4,33 | AR82: 0,0,0,0,0,ward1,4,33 | AS82: 0,0,0,0,1,ward1,4,33 | AT82: 0,0,0,0,1,ward1,4,33 | AU82: 0,0,0,0,1,ward1,4,33 | AV82: 0,0,0,0,1,ward1,4,33 | AW82: 0,0,0,0,1,ward1,4,33 | AX82: 0,0,0,0,1,ward1,4,33 | AY82: 0,0,0,0,1,ward1,4,33 | AZ82: 0,0,0,0,1,ward1,4,33 | BA82: 0,0,0,0,1,ward1,4,33 | BB82: 0,0,0,0,1,ward1,4,33 | BC82: 0,0,0,0,1,ward1,4,33 | BD82: 0,0,0,0,1,ward1,4,33 | BE82: 0,0,0,0,1,ward1,4,33 | BF82: 0,0,0,0,1,ward1,4,33 | BG82: 0,0,0,0,1,ward1,4,33 | BH82: 0,0,0,0,1,ward1,4,33 | BI82: 0,0,0,0,1,ward1,4,33 | BJ82: 0,0,0,0,1,ward1,4,33 | BK82: 0,0,0,0,1,ward1,4,33 | BL82: 0,0,0,0,1,ward1,4,33 | BM82: 0,0,0,0,1,ward1,4,33 | BN82: 0,0,0,0,1,ward1,4,33 | BO82: 0,0,0,0,1,ward1,4,33 | BP82: 0,0,0,0,1,ward1,4,33 | BQ82: 0,0,0,0,1,ward1,4,33 | BR82: 0,0,0,0,1,ward1,4,33 | BS82: 0,0,0,0,1,ward1,4,33 | BT82: 0,0,0,0,1,ward1,4,33 | BU82: 0,0,0,0,1,ward1,4,33 | BV82: 0,0,0,0,1,ward1,4,33 | BW82: 0,0,0,0,1,ward1,4,33 | BX82: 0,0,0,0,1,ward1,4,33 | BY82: 0,0,0,0,1,ward1,4,33 | BZ82: 0,0,0,0,1,ward1,4,33 | CA82: 0,0,0,0,1,ward1,4,33 | CB82: 0,0,0,0,1,ward1,4,33 | CC82: 0,0,0,0,1,ward1,4,33 | CD82: 0,0,0,0,1,ward1,4,33 | CE82: 0,0,0,0,1,ward1,4,33 | CF82: 0,0,0,0,1,ward1,4,33 | CG82: 0,0,0,0,1,ward1,4,33 | CH82: 0,0,0,0,1,ward1,4,33 | CI82: 0,0,0,0,1,ward1,4,33 | CJ82: 0,0,0,0,1,ward1,4,33 | CK82: 0,0,0,0,1,ward1,4,33 | CL82: 0,0,0,0,1,ward1,4,33 | CM82: 0,0,0,0,1,ward1,4,33 | CN82: 0,0,0,0,1,ward1,4,33 | CO82: 0,0,0,0,1,ward1,4,33 | CP82: 0,0,0,0,1,ward1,4,33 | CQ82: 0,0,0,0,1,ward1,4,33 | CR82: 0,0,0,0,1,ward1,4,33 | CS82: 0,0,0,0,1,ward1,4,33 | CT82: 0,0,0,0,1,ward1,4,33 | CU82: 0,0,0,0,1,ward1,4,33 | CV82: 0,0,0,0,1,ward1,4,33 | CW82: 0,0,0,0,1,ward1,4,33 | CX82: 0,0,0,0,1,ward1,4,33 | CY82: 0,0,0,0,1,ward1,4,33
A83: Nurse | B83: 15 | C83: 0,0,0,0,0,ward1,5 | D83: 0,0,0,0,0,ward1,5,45 | E83: 0,0,0,0,0,ward1,5,45 | F83: 0,0,0,0,0,ward1,5,45 | G83: 0,0,0,0,0,ward1,5,45 | H83: 0,0,0,0,0,ward1,3,45 | I83: 0,0,0,0,0,ward1,2,45 | J83: 0,0,0,0,0,ward1,2,45 | K83: 0,0,0,0,0,ward1,2,45 | L83: 0,0,0,0,0,ward1,1,45 | M83: 0,0,0,0,0,A&E,10,45 | N83: 0,0,0,0,0,A&E,9,45 | O83: 1,0,0,1,0,A&E,9,45 | P83: 2,0,0,1,0,A&E,9,45 | Q83: 3,0,0,1,0,A&E,8,45 | R83: 0,0,0,0,1,A&E,8,45 | S83: 0,0,0,0,1,A&E,10,45 | T83: 0,0,0,0,1,ward1,1,45 | U83: 0,0,0,0,1,ward1,1,45 | V83: 0,0,0,0,1,ward1,1,45 | W83: 0,0,0,0,1,ward1,2,45 | X83: 0,0,0,0,1,ward1,3,45 | Y83: 0,0,0,0,1,ward1,4,45 | Z83: 0,0,0,0,1,ward1,4,45 | AA83: 0,0,0,0,1,ward1,4,45 | AB83: 0,0,0,0,1,ward1,5,45 | AC83: 0,0,0,0,1,ward1,5,45 | AD83: 0,0,0,0,1,ward1,5,45 | AE83: 0,0,0,0,1,ward1,5,45 | AF83: 0,0,0,0,1,ward1,5,45 | AG83: 0,0,0,0,1,ward1,5,45 | AH83: 0,0,0,0,1,ward1,5,45 | AI83: 0,0,0,0,1,ward1,5,45 | AJ83: 0,0,0,0,1,ward1,5,45 | AK83: 0,0,0,0,1,ward1,5,45 | AL83: 0,0,0,0,1,ward1,5,45 | AM83: 0,0,0,0,1,ward1,5,45 | AN83: 0,0,0,0,1,ward1,5,45 | AO83: 0,0,0,0,1,ward1,5,45 | AP83: 0,0,0,0,1,ward1,5,45 | AQ83: 0,0,0,0,1,ward1,5,45 | AR83: 0,0,0,0,1,ward1,5,45 | AS83: 0,0,0,0,1,ward1,5,45 | AT83: 0,0,0,0,1,ward1,5,45 | AU83: 0,0,0,0,1,ward1,5,45 | AV83: 0,0,0,0,1,ward1,5,45 | AW83: 0,0,0,0,1,ward1,5,45 | AX83: 0,0,0,0,1,ward1,5,45 | AY83: 0,0,0,0,1,ward1,5,45 | AZ83: 0,0,0,0,1,ward1,5,45 | BA83: 0,0,0,0,1,ward1,5,45 | BB83: 0,0,0,0,1,ward1,5,45 | BC83: 0,0,0,0,1,ward1,5,45 | BD83: 0,0,0,0,1,ward1,5,45 | BE83: 0,0,0,0,1,ward1,5,45 | BF83: 0,0,0,0,1,ward1,5,45 | BG83: 0,0,0,0,1,ward1,5,45 | BH83: 0,0,0,0,1,ward1,5,45 | BI83: 0,0,0,0,1,ward1,5,45 | BJ83: 0,0,0,0,1,ward1,5,45 | BK83: 0,0,0,0,1,ward1,5,45 | BL83: 0,0,0,0,1,ward1,5,45 | BM83: 0,0,0,0,1,ward1,5,45 | BN83: 0,0,0,0,1,ward1,5,45 | BO83: 0,0,0,0,1,ward1,5,45 | BP83: 0,0,0,0,1,ward1,5,45 | BQ83: 0,0,0,0,1,ward1,5,45 | BR83: 0,0,0,0,1,ward1,5,45 | BS83: 0,0,0,0,1,ward1,5,45 | BT83: 0,0,0,0,1,ward1,5,45 | BU83: 0,0,0,0,1,ward1,5,45 | BV83: 0,0,0,0,1,ward1,5,45 | BW83: 0,0,0,0,1,ward1,5,45 | BX83: 0,0,0,0,1,ward1,5,45 | BY83: 0,0,0,0,1,ward1,5,45 | BZ83: 0,0,0,0,1,ward1,5,45 | CA83: 0,0,0,0,1,ward1,5,45 | CB83: 0,0,0,0,1,ward1,5,45 | CC83: 0,0,0,0,1,ward1,5,45 | CD83: 0,0,0,0,1,ward1,5,45 | CE83: 0,0,0,0,1,ward1,5,45 | CF83: 0,0,0,0,1,ward1,5,45 | CG83: 0,0,0,0,1,ward1,5,45 | CH83: 0,0,0,0,1,ward1,5,45 | CI83: 0,0,0,0,1,ward1,5,45 | CJ83: 0,0,0,0,1,ward1,5,45 | CK83: 0,0,0,0,1,ward1,5,45 | CL83: 0,0,0,0,1,ward1,5,45 | CM83: 0,0,0,0,1,ward1,5,45 | CN83: 0,0,0,0,1,ward1,5,45 | CO83: 0,0,0,0,1,ward1,5,45 | CP83: 0,0,0,0,1,ward1,5,45 | CQ83: 0,0,0,0,1,ward1,5,45 | CR83: 0,0,0,0,1,ward1,5,45 | CS83: 0,0,0,0,1,ward1,5,45 | CT83: 0,0,0,0,1,ward1,5,45 | CU83: 0,0,0,0,1,ward1,5,45 | CV83: 0,0,0,0,1,ward1,5,45 | CW83: 0,0,0,0,1,ward1,5,45 | CX83: 0,0,0,0,1,ward1,5,45 | CY83: 0,0,0,0,1,ward1,5,45
A84: Nurse | B84: 16 | C84: 0,0,0,0,0,ward2,1 | D84: 0,0,0,0,0,ward2,1,49 | E84: 0,0,0,0,0,ward2,1,49 | F84: 0,0,0,0,0,ward2,1,49 | G84: 0,0,0,0,0,ward2,1,49 | H84: 0,0,0,0,0,ward1,4,49 | I84: 1,0,0,1,0,ward1,3,49 | J84: 2,0,0,1,0,ward1,3,49 | K84: 3,0,0,1,0,ward1,3,49 | L84: 4,0,0,1,0,ward1,2,49 | M84: 5,1,0,1,0,0,0,49 | N84: 6,1,0,1,0,0,0,49 | O84: 7,1,0,1,0,0,0,49 | P84: 8,1,0,1,0,0,0,49 | Q84: 9,1,0,1,0,0,0,49 | R84: 10,1,0,1,0,0,0,49 | S84: 11,1,0,1,0,0,0,49 | T84: 12,1,0,1,0,0,0,49 | U84: 13,1,0,1,0,0,0,49 | V84: 14,1,0,1,0,0,0,49 | W84: 15,1,0,1,0,0,0,49 | X84: 0,0,0,0,0,ward1,4,49 | Y84: 0,0,0,0,0,ward1,5,49 | Z84: 0,0,0,0,0,ward1,5,49 | AA84: 0,0,0,0,0,ward1,5,49 | AB84: 0,0,0,0,0,ward2,1,49 | AC84: 0,0,0,0,0,ward2,1,49 | AD84: 0,0,0,0,0,ward2,1,49 | AE84: 0,0,0,0,0,ward2,1,49 | AF84: 0,0,0,0,0,ward2,1,49 | AG84: 0,0,0,0,0,ward2,1,49 | AH84: 0,0,0,0,0,ward2,1,49 | AI84: 0,0,0,0,0,ward2,1,49 | AJ84: 0,0,0,0,0,ward2,1,49 | AK84: 0,0,0,0,0,ward2,1,49 | AL84: 0,0,0,0,0,ward2,1,49 | AM84: 0,0,0,0,0,ward2,1,49 | AN84: 0,0,0,0,0,ward2,1,49 | AO84: 0,0,0,0,0,ward2,1,49 | AP84: 0,0,0,0,0,ward2,1,49 | AQ84: 0,0,0,0,0,ward2,1,49 | AR84: 0,0,0,0,0,ward2,1,49 | AS84: 0,0,0,0,0,ward2,1,49 | AT84: 0,0,0,0,1,ward2,1,49 | AU84: 0,0,0,0,1,ward2,1,49 | AV84: 0,0,0,0,1,ward2,1,49 | AW84: 0,0,0,0,1,ward2,1,49 | AX84: 0,0,0,0,1,ward2,1,49 | AY84: 0,0,0,0,1,ward2,1,49 | AZ84: 0,0,0,0,1,ward2,1,49 | BA84: 0,0,0,0,1,ward2,1,49 | BB84: 0,0,0,0,1,ward2,1,49 | BC84: 0,0,0,0,1,ward2,1,49 | BD84: 0,0,0,0,1,ward2,1,49 | BE84: 0,0,0,0,1,ward2,1,49 | BF84: 0,0,0,0,1,ward2,1,49 | BG84: 0,0,0,0,1,ward2,1,49 | BH84: 0,0,0,0,1,ward2,1,49 | BI84: 0,0,0,0,1,ward2,1,49 | BJ84: 0,0,0,0,1,ward2,1,49 | BK84: 0,0,0,0,1,ward2,1,49 | BL84: 0,0,0,0,1,ward2,1,49 | BM84: 0,0,0,0,1,ward2,1,49 | BN84: 0,0,0,0,1,ward2,1,49 | BO84: 0,0,0,0,1,ward2,1,49 | BP84: 0,0,0,0,1,ward2,1,49 | BQ84: 0,0,0,0,1,ward2,1,49 | BR84: 0,0,0,0,1,ward2,1,49 | BS84: 0,0,0,0,1,ward2,1,49 | BT84: 0,0,0,0,1,ward2,1,49 | BU84: 0,0,0,0,1,ward2,1,49 | BV84: 0,0,0,0,1,ward2,1,49 | BW84: 0,0,0,0,1,ward2,1,49 | BX84: 0,0,0,0,1,ward2,1,49 | BY84: 0,0,0,0,1,ward2,1,49 | BZ84: 0,0,0,0,1,ward2,1,49 | CA84: 0,0,0,0,1,ward2,1,49 | CB84: 0,0,0,0,1,ward2,1,49 | CC84: 0,0,0,0,1,ward2,1,49 | CD84: 0,0,0,0,1,ward2,1,49 | CE84: 0,0,0,0,1,ward2,1,49 | CF84: 0,0,0,0,1,ward2,1,49 | CG84: 0,0,0,0,1,ward2,1,49 | CH84: 0,0,0,0,1,ward2,1,49 | CI84: 0,0,0,0,1,ward2,1,49 | CJ84: 0,0,0,0,1,ward2,1,49 | CK84: 0,0,0,0,1,ward2,1,49 | CL84: 0,0,0,0,1,ward2,1,49 | CM84: 0,0,0,0,1,ward2,1,49 | CN84: 0,0,0,0,1,ward2,1,49 | CO84: 0,0,0,0,1,ward2,1,49 | CP84: 0,0,0,0,1,ward2,1,49 | CQ84: 0,0,0,0,1,ward2,1,49 | CR84: 0,0,0,0,1,ward2,1,49 | CS84: 0,0,0,0,1,ward2,1,49 | CT84: 0,0,0,0,1,ward2,1,49 | CU84: 0,0,0,0,1,ward2,1,49 | CV84: 0,0,0,0,1,ward2,1,49 | CW84: 0,0,0,0,1,ward2,1,49 | CX84: 0,0,0,0,1,ward2,1,49 | CY84: 0,0,0,0,1,ward2,1,49
A85: Nurse | B85: 17 | C85: 0,0,0,0,0,ward2,2 | D85: 0,0,0,0,0,ward2,2,46 | E85: 0,0,0,0,0,ward2,2,46 | F85: 0,0,0,0,0,ward2,2,46 | G85: 0,0,0,0,0,ward2,2,46 | H85: 0,0,0,0,0,ward1,5,46 | I85: 0,0,0,0,0,ward1,4,46 | J85: 0,0,0,0,0,ward1,4,46 | K85: 0,0,0,0,0,ward1,4,46 | L85: 0,0,0,0,0,ward1,3,46 | M85: 0,0,0,0,0,ward1,1,46 | N85: 0,0,0,0,0,A&E,10,46 | O85: 0,0,0,0,0,A&E,10,46 | P85: 0,0,0,0,0,A&E,10,46 | Q85: 0,0,0,0,0,A&E,9,46 | R85: 0,0,0,0,0,A&E,9,46 | S85: 0,0,0,0,1,ward1,1,46 | T85: 0,0,0,0,1,ward1,2,46 | U85: 0,0,0,0,1,ward1,2,46 | V85: 0,0,0,0,1,ward1,2,46 | W85: 0,0,0,0,1,ward1,3,46 | X85: 0,0,0,0,1,ward1,5,46 | Y85: 0,0,0,0,1,ward2,1,46 | Z85: 0,0,0,0,1,ward2,1,46 | AA85: 0,0,0,0,1,ward2,1,46 | AB85: 0,0,0,0,1,ward2,2,46 | AC85: 0,0,0,0,1,ward2,2,46 | AD85: 0,0,0,0,1,ward2,2,46 | AE85: 0,0,0,0,1,ward2,2,46 | AF85: 0,0,0,0,1,ward2,2,46 | AG85: 0,0,0,0,1,ward2,2,46 | AH85: 0,0,0,0,1,ward2,2,46 | AI85: 0,0,0,0,1,ward2,2,46 | AJ85: 0,0,0,0,1,ward2,2,46 | AK85: 0,0,0,0,1,ward2,2,46 | AL85: 0,0,0,0,1,ward2,2,46 | AM85: 0,0,0,0,1,ward2,2,46 | AN85: 0,0,0,0,1,ward2,2,46 | AO85: 0,0,0,0,1,ward2,2,46 | AP85: 0,0,0,0,1,ward2,2,46 | AQ85: 0,0,0,0,1,ward2,2,46 | AR85: 0,0,0,0,1,ward2,2,46 | AS85: 0,0,0,0,1,ward2,2,46 | AT85: 0,0,0,0,1,ward2,2,46 | AU85: 0,0,0,0,1,ward2,2,46 | AV85: 0,0,0,0,1,ward2,2,46 | AW85: 0,0,0,0,1,ward2,2,46 | AX85: 0,0,0,0,1,ward2,2,46 | AY85: 0,0,0,0,1,ward2,2,46 | AZ85: 0,0,0,0,1,ward2,2,46 | BA85: 0,0,0,0,1,ward2,2,46 | BB85: 0,0,0,0,1,ward2,2,46 | BC85: 0,0,0,0,1,ward2,2,46 | BD85: 0,0,0,0,1,ward2,2,46 | BE85: 0,0,0,0,1,ward2,2,46 | BF85: 0,0,0,0,1,ward2,2,46 | BG85: 0,0,0,0,1,ward2,2,46 | BH85: 0,0,0,0,1,ward2,2,46 | BI85: 0,0,0,0,1,ward2,2,46 | BJ85: 0,0,0,0,1,ward2,2,46 | BK85: 0,0,0,0,1,ward2,2,46 | BL85: 0,0,0,0,1,ward2,2,46 | BM85: 0,0,0,0,1,ward2,2,46 | BN85: 0,0,0,0,1,ward2,2,46 | BO85: 0,0,0,0,1,ward2,2,46 | BP85: 0,0,0,0,1,ward2,2,46 | BQ85: 0,0,0,0,1,ward2,2,46 | BR85: 0,0,0,0,1,ward2,2,46 | BS85: 0,0,0,0,1,ward2,2,46 | BT85: 0,0,0,0,1,ward2,2,46 | BU85: 0,0,0,0,1,ward2,2,46 | BV85: 0,0,0,0,1,ward2,2,46 | BW85: 0,0,0,0,1,ward2,2,46 | BX85: 0,0,0,0,1,ward2,2,46 | BY85: 0,0,0,0,1,ward2,2,46 | BZ85: 0,0,0,0,1,ward2,2,46 | CA85: 0,0,0,0,1,ward2,2,46 | CB85: 0,0,0,0,1,ward2,2,46 | CC85: 0,0,0,0,1,ward2,2,46 | CD85: 0,0,0,0,1,ward2,2,46 | CE85: 0,0,0,0,1,ward2,2,46 | CF85: 0,0,0,0,1,ward2,2,46 | CG85: 0,0,0,0,1,ward2,2,46 | CH85: 0,0,0,0,1,ward2,2,46 | CI85: 0,0,0,0,1,ward2,2,46 | CJ85: 0,0,0,0,1,ward2,2,46 | CK85: 0,0,0,0,1,ward2,2,46 | CL85: 0,0,0,0,1,ward2,2,46 | CM85: 0,0,0,0,1,ward2,2,46 | CN85: 0,0,0,0,1,ward2,2,46 | CO85: 0,0,0,0,1,ward2,2,46 | CP85: 0,0,0,0,1,ward2,2,46 | CQ85: 0,0,0,0,1,ward2,2,46 | CR85: 0,0,0,0,1,ward2,2,46 | CS85: 0,0,0,0,1,ward2,2,46 | CT85: 0,0,0,0,1,ward2,2,46 | CU85: 0,0,0,0,1,ward2,2,46 | CV85: 0,0,0,0,1,ward2,2,46 | CW85: 0,0,0,0,1,ward2,2,46 | CX85: 0,0,0,0,1,ward2,2,46 | CY85: 0,0,0,0,1,ward2,2,46
A86: Nurse | B86: 18 | C86: 0,0,0,0,0,ward2,3 | D86: 0,0,0,0,0,ward2,3,46 | E86: 0,0,0,0,0,ward2,3,46 | F86: 0,0,0,0,0,ward2,3,46 | G86: 0,0,0,0,0,ward2,3,46 | H86: 0,0,0,0,0,ward2,1,46 | I86: 0,0,0,0,0,ward1,5,46 | J86: 0,0,0,0,0,ward1,5,46 | K86: 0,0,0,0,0,ward1,5,46 | L86: 0,0,0,0,0,ward1,4,46 | M86: 0,0,0,0,0,ward1,2,46 | N86: 0,0,0,0,0,ward1,1,46 | O86: 0,0,0,0,0,ward1,1,46 | P86: 0,0,0,0,0,ward1,1,46 | Q86: 0,0,0,0,0,A&E,10,46 | R86: 0,0,0,0,0,A&E,10,46 | S86: 0,0,0,0,0,ward1,2,46 | T86: 0,0,0,0,0,ward1,3,46 | U86: 0,0,0,0,0,ward1,3,46 | V86: 0,0,0,0,0,ward1,3,46 | W86: 0,0,0,0,0,ward1,4,46 | X86: 0,0,0,0,0,ward2,1,46 | Y86: 0,0,0,0,0,ward2,2,46 | Z86: 0,0,0,0,0,ward2,2,46 | AA86: 0,0,0,0,0,ward2,2,46 | AB86: 0,0,0,0,0,ward2,3,46 | AC86: 0,0,0,0,0,ward2,3,46 | AD86: 0,0,0,0,0,ward2,3,46 | AE86: 0,0,0,0,0,ward2,3,46 | AF86: 0,0,0,0,0,ward2,3,46 | AG86: 0,0,0,0,0,ward2,3,46 | AH86: 0,0,0,0,0,ward2,3,46 | AI86: 0,0,0,0,0,ward2,3,46 | AJ86: 0,0,0,0,0,ward2,3,46 | AK86: 0,0,0,0,0,ward2,3,46 | AL86: 0,0,0,0,0,ward2,3,46 | AM86: 0,0,0,0,0,ward2,3,46 | AN86: 0,0,0,0,0,ward2,3,46 | AO86: 0,0,0,0,0,ward2,3,46 | AP86: 0,0,0,0,0,ward2,3,46 | AQ86: 0,0,0,0,0,ward2,3,46 | AR86: 0,0,0,0,0,ward2,3,46 | AS86: 0,0,0,0,0,ward2,3,46 | AT86: 0,0,0,0,0,ward2,3,46 | AU86: 0,0,0,0,1,ward2,3,46 | AV86: 0,0,0,0,1,ward2,3,46 | AW86: 0,0,0,0,1,ward2,3,46 | AX86: 0,0,0,0,1,ward2,3,46 | AY86: 0,0,0,0,1,ward2,3,46 | AZ86: 0,0,0,0,1,ward2,3,46 | BA86: 0,0,0,0,1,ward2,3,46 | BB86: 0,0,0,0,1,ward2,3,46 | BC86: 0,0,0,0,1,ward2,3,46 | BD86: 0,0,0,0,1,ward2,3,46 | BE86: 0,0,0,0,1,ward2,3,46 | BF86: 0,0,0,0,1,ward2,3,46 | BG86: 0,0,0,0,1,ward2,3,46 | BH86: 0,0,0,0,1,ward2,3,46 | BI86: 0,0,0,0,1,ward2,3,46 | BJ86: 0,0,0,0,1,ward2,3,46 | BK86: 0,0,0,0,1,ward2,3,46 | BL86: 0,0,0,0,1,ward2,3,46 | BM86: 0,0,0,0,1,ward2,3,46 | BN86: 0,0,0,0,1,ward2,3,46 | BO86: 0,0,0,0,1,ward2,3,46 | BP86: 0,0,0,0,1,ward2,3,46 | BQ86: 0,0,0,0,1,ward2,3,46 | BR86: 0,0,0,0,1,ward2,3,46 | BS86: 0,0,0,0,1,ward2,3,46 | BT86: 0,0,0,0,1,ward2,3,46 | BU86: 0,0,0,0,1,ward2,3,46 | BV86: 0,0,0,0,1,ward2,3,46 | BW86: 0,0,0,0,1,ward2,3,46 | BX86: 0,0,0,0,1,ward2,3,46 | BY86: 0,0,0,0,1,ward2,3,46 | BZ86: 0,0,0,0,1,ward2,3,46 | CA86: 0,0,0,0,1,ward2,3,46 | CB86: 0,0,0,0,1,ward2,3,46 | CC86: 0,0,0,0,1,ward2,3,46 | CD86: 0,0,0,0,1,ward2,3,46 | CE86: 0,0,0,0,1,ward2,3,46 | CF86: 0,0,0,0,1,ward2,3,46 | CG86: 0,0,0,0,1,ward2,3,46 | CH86: 0,0,0,0,1,ward2,3,46 | CI86: 0,0,0,0,1,ward2,3,46 | CJ86: 0,0,0,0,1,ward2,3,46 | CK86: 0,0,0,0,1,ward2,3,46 | CL86: 0,0,0,0,1,ward2,3,46 | CM86: 0,0,0,0,1,ward2,3,46 | CN86: 0,0,0,0,1,ward2,3,46 | CO86: 0,0,0,0,1,ward2,3,46 | CP86: 0,0,0,0,1,ward2,3,46 | CQ86: 0,0,0,0,1,ward2,3,46 | CR86: 0,0,0,0,1,ward2,3,46 | CS86: 0,0,0,0,1,ward2,3,46 | CT86: 0,0,0,0,1,ward2,3,46 | CU86: 0,0,0,0,1,ward2,3,46 | CV86: 0,0,0,0,1,ward2,3,46 | CW86: 0,0,0,0,1,ward2,3,46 | CX86: 0,0,0,0,1,ward2,3,46 | CY86: 0,0,0,0,1,ward2,3,46
A87: Nurse | B87: 19 | C87: 0,0,0,0,0,ward2,4 | D87: 0,0,0,0,0,ward2,4,51 | E87: 0,0,0,0,0,ward2,4,51 | F87: 0,0,0,0,0,ward2,4,51 | G87: 0,0,0,0,0,ward2,4,51 | H87: 0,0,0,0,0,ward2,2,51 | I87: 0,0,0,0,0,ward2,1,51 | J87: 0,0,0,0,0,ward2,1,51 | K87: 0,0,0,0,0,ward2,1,51 | L87: 0,0,0,0,0,ward1,5,51 | M87: 0,0,0,0,0,ward1,3,51 | N87: 0,0,0,0,0,ward1,2,51 | O87: 0,0,0,0,0,ward1,2,51 | P87: 0,0,0,0,0,ward1,2,51 | Q87: 0,0,0,0,0,ward1,1,51 | R87: 0,0,0,0,0,ward1,1,51 | S87: 0,0,0,0,0,ward1,3,51 | T87: 0,0,0,0,0,ward1,4,51 | U87: 0,0,0,0,0,ward1,4,51 | V87: 0,0,0,0,0,ward1,4,51 | W87: 0,0,0,0,0,ward1,5,51 | X87: 0,0,0,0,0,ward2,2,51 | Y87: 0,0,0,0,0,ward2,3,51 | Z87: 0,0,0,0,0,ward2,3,51 | AA87: 0,0,0,0,0,ward2,3,51 | AB87: 0,0,0,0,0,ward2,4,51 | AC87: 0,0,0,0,0,ward2,4,51 | AD87: 0,0,0,0,0,ward2,4,51 | AE87: 0,0,0,0,0,ward2,4,51 | AF87: 0,0,0,0,0,ward2,4,51 | AG87: 0,0,0,0,0,ward2,4,51 | AH87: 0,0,0,0,0,ward2,4,51 | AI87: 0,0,0,0,0,ward2,4,51 | AJ87: 0,0,0,0,0,ward2,4,51 | AK87: 0,0,0,0,0,ward2,4,51 | AL87: 0,0,0,0,0,ward2,4,51 | AM87: 0,0,0,0,0,ward2,4,51 | AN87: 0,0,0,0,0,ward2,4,51 | AO87: 0,0,0,0,0,ward2,4,51 | AP87: 0,0,0,0,0,ward2,4,51 | AQ87: 0,0,0,0,0,ward2,4,51 | AR87: 0,0,0,0,0,ward2,4,51 | AS87: 0,0,0,0,0,ward2,4,51 | AT87: 0,0,0,0,0,ward2,4,51 | AU87: 0,0,0,0,0,ward2,4,51 | AV87: 0,0,0,0,1,ward2,4,51 | AW87: 0,0,0,0,1,ward2,4,51 | AX87: 0,0,0,0,1,ward2,4,51 | AY87: 0,0,0,0,1,ward2,4,51 | AZ87: 0,0,0,0,1,ward2,4,51 | BA87: 0,0,0,0,1,ward2,4,51 | BB87: 0,0,0,0,1,ward2,4,51 | BC87: 0,0,0,0,1,ward2,4,51 | BD87: 0,0,0,0,1,ward2,4,51 | BE87: 0,0,0,0,1,ward2,4,51 | BF87: 0,0,0,0,1,ward2,4,51 | BG87: 0,0,0,0,1,ward2,4,51 | BH87: 0,0,0,0,1,ward2,4,51 | BI87: 0,0,0,0,1,ward2,4,51 | BJ87: 0,0,0,0,1,ward2,4,51 | BK87: 0,0,0,0,1,ward2,4,51 | BL87: 0,0,0,0,1,ward2,4,51 | BM87: 0,0,0,0,1,ward2,4,51 | BN87: 0,0,0,0,1,ward2,4,51 | BO87: 0,0,0,0,1,ward2,4,51 | BP87: 0,0,0,0,1,ward2,4,51 | BQ87: 0,0,0,0,1,ward2,4,51 | BR87: 0,0,0,0,1,ward2,4,51 | BS87: 0,0,0,0,1,ward2,4,51 | BT87: 0,0,0,0,1,ward2,4,51 | BU87: 0,0,0,0,1,ward2,4,51 | BV87: 0,0,0,0,1,ward2,4,51 | BW87: 0,0,0,0,1,ward2,4,51 | BX87: 0,0,0,0,1,ward2,4,51 | BY87: 0,0,0,0,1,ward2,4,51 | BZ87: 0,0,0,0,1,ward2,4,51 | CA87: 0,0,0,0,1,ward2,4,51 | CB87: 0,0,0,0,1,ward2,4,51 | CC87: 0,0,0,0,1,ward2,4,51 | CD87: 0,0,0,0,1,ward2,4,51 | CE87: 0,0,0,0,1,ward2,4,51 | CF87: 0,0,0,0,1,ward2,4,51 | CG87: 0,0,0,0,1,ward2,4,51 | CH87: 0,0,0,0,1,ward2,4,51 | CI87: 0,0,0,0,1,ward2,4,51 | CJ87: 0,0,0,0,1,ward2,4,51 | CK87: 0,0,0,0,1,ward2,4,51 | CL87: 0,0,0,0,1,ward2,4,51 | CM87: 0,0,0,0,1,ward2,4,51 | CN87: 0,0,0,0,1,ward2,4,51 | CO87: 0,0,0,0,1,ward2,4,51 | CP87: 0,0,0,0,1,ward2,4,51 | CQ87: 0,0,0,0,1,ward2,4,51 | CR87: 0,0,0,0,1,ward2,4,51 | CS87: 0,0,0,0,1,ward2,4,51 | CT87: 0,0,0,0,1,ward2,4,51 | CU87: 0,0,0,0,1,ward2,4,51 | CV87: 0,0,0,0,1,ward2,4,51 | CW87: 0,0,0,0,1,ward2,4,51 | CX87: 0,0,0,0,1,ward2,4,51 | CY87: 0,0,0,0,1,ward2,4,51
A88: Nurse | B88: 20 | C88: 0,0,0,0,0,ward2,5 | D88: 0,0,0,0,0,ward2,5,25 | E88: 0,0,0,0,0,ward2,5,25 | F88: 0,0,0,0,0,ward2,5,25 | G88: 0,0,0,0,0,ward2,5,25 | H88: 0,0,0,0,0,ward2,3,25 | I88: 0,0,0,0,0,ward2,2,25 | J88: 0,0,0,0,0,ward2,2,25 | K88: 0,0,0,0,0,ward2,2,25 | L88: 0,0,0,0,0,ward2,1,25 | M88: 0,0,0,0,0,ward1,4,25 | N88: 0,0,0,0,0,ward1,3,25 | O88: 0,0,0,0,0,ward1,3,25 | P88: 0,0,0,0,0,ward1,3,25 | Q88: 0,0,0,0,0,ward1,2,25 | R88: 0,0,0,0,0,ward1,2,25 | S88: 1,0,0,1,0,ward1,4,25 | T88: 2,0,0,1,0,ward1,5,25 | U88: 3,0,0,1,0,ward1,5,25 | V88: 4,0,0,1,0,ward1,5,25 | W88: 5,1,0,1,0,0,0,25 | X88: 6,1,0,1,0,0,0,25 | Y88: 7,1,0,1,0,0,0,25 | Z88: 8,1,0,1,0,0,0,25 | AA88: 9,1,0,1,0,0,0,25 | AB88: 10,1,0,1,0,0,0,25 | AC88: 11,1,0,1,0,0,0,25 | AD88: 12,1,0,1,0,0,0,25 | AE88: 13,1,0,1,0,0,0,25 | AF88: 14,1,0,1,0,0,0,25 | AG88: 15,1,0,1,0,0,0,25 | AH88: 0,0,0,0,0,ward2,5,25 | AI88: 0,0,0,0,0,ward2,5,25 | AJ88: 0,0,0,0,0,ward2,5,25 | AK88: 0,0,0,0,0,ward2,5,25 | AL88: 0,0,0,0,0,ward2,5,25 | AM88: 0,0,0,0,0,ward2,5,25 | AN88: 0,0,0,0,0,ward2,5,25 | AO88: 0,0,0,0,0,ward2,5,25 | AP88: 0,0,0,0,0,ward2,5,25 | AQ88: 0,0,0,0,0,ward2,5,25 | AR88: 0,0,0,0,0,ward2,5,25 | AS88: 0,0,0,0,0,ward2,5,25 | AT88: 0,0,0,0,0,ward2,5,25 | AU88: 0,0,0,0,0,ward2,5,25 | AV88: 0,0,0,0,0,ward2,5,25 | AW88: 0,0,0,0,1,ward2,5,25 | AX88: 0,0,0,0,1,ward2,5,25 | AY88: 0,0,0,0,1,ward2,5,25 | AZ88: 0,0,0,0,1,ward2,5,25 | BA88: 0,0,0,0,1,ward2,5,25 | BB88: 0,0,0,0,1,ward2,5,25 | BC88: 0,0,0,0,1,ward2,5,25 | BD88: 0,0,0,0,1,ward2,5,25 | BE88: 0,0,0,0,1,ward2,5,25 | BF88: 0,0,0,0,1,ward2,5,25 | BG88: 0,0,0,0,1,ward2,5,25 | BH88: 0,0,0,0,1,ward2,5,25 | BI88: 0,0,0,0,1,ward2,5,25 | BJ88: 0,0,0,0,1,ward2,5,25 | BK88: 0,0,0,0,1,ward2,5,25 | BL88: 0,0,0,0,1,ward2,5,25 | BM88: 0,0,0,0,1,ward2,5,25 | BN88: 0,0,0,0,1,ward2,5,25 | BO88: 0,0,0,0,1,ward2,5,25 | BP88: 0,0,0,0,1,ward2,5,25 | BQ88: 0,0,0,0,1,ward2,5,25 | BR88: 0,0,0,0,1,ward2,5,25 | BS88: 0,0,0,0,1,ward2,5,25 | BT88: 0,0,0,0,1,ward2,5,25 | BU88: 0,0,0,0,1,ward2,5,25 | BV88: 0,0,0,0,1,ward2,5,25 | BW88: 0,0,0,0,1,ward2,5,25 | BX88: 0,0,0,0,1,ward2,5,25 | BY88: 0,0,0,0,1,ward2,5,25 | BZ88: 0,0,0,0,1,ward2,5,25 | CA88: 0,0,0,0,1,ward2,5,25 | CB88: 0,0,0,0,1,ward2,5,25 | CC88: 0,0,0,0,1,ward2,5,25 | CD88: 0,0,0,0,1,ward2,5,25 | CE88: 0,0,0,0,1,ward2,5,25 | CF88: 0,0,0,0,1,ward2,5,25 | CG88: 0,0,0,0,1,ward2,5,25 | CH88: 0,0,0,0,1,ward2,5,25 | CI88: 0,0,0,0,1,ward2,5,25 | CJ88: 0,0,0,0,1,ward2,5,25 | CK88: 0,0,0,0,1,ward2,5,25 | CL88: 0,0,0,0,1,ward2,5,25 | CM88: 0,0,0,0,1,ward2,5,25 | CN88: 0,0,0,0,1,ward2,5,25 | CO88: 0,0,0,0,1,ward2,5,25 | CP88: 0,0,0,0,1,ward2,5,25 | CQ88: 0,0,0,0,1,ward2,5,25 | CR88: 0,0,0,0,1,ward2,5,25 | CS88: 0,0,0,0,1,ward2,5,25 | CT88: 0,0,0,0,1,ward2,5,25 | CU88: 0,0,0,0,1,ward2,5,25 | CV88: 0,0,0,0,1,ward2,5,25 | CW88: 0,0,0,0,1,ward2,5,25 | CX88: 0,0,0,0,1,ward2,5,25 | CY88: 0,0,0,0,1,ward2,5,25
A89: Nurse | B89: 21 | C89: 0,0,0,0,0,ward3,1 | D89: 0,0,0,0,0,ward3,1,29 | E89: 0,0,0,0,0,ward3,1,29 | F89: 0,0,0,0,0,ward3,1,29 | G89: 0,0,0,0,0,ward3,1,29 | H89: 0,0,0,0,0,ward2,4,29 | I89: 0,0,0,0,0,ward2,3,29 | J89: 0,0,0,0,0,ward2,3,29 | K89: 0,0,0,0,0,ward2,3,29 | L89: 0,0,0,0,0,ward2,2,29 | M89: 0,0,0,0,0,ward1,5,29 | N89: 0,0,0,0,0,ward1,4,29 | O89: 0,0,0,0,0,ward1,4,29 | P89: 0,0,0,0,0,ward1,4,29 | Q89: 0,0,0,0,0,ward1,3,29 | R89: 0,0,0,0,0,ward1,3,29 | S89: 0,0,0,0,0,ward1,5,29 | T89: 0,0,0,0,0,ward2,1,29 | U89: 0,0,0,0,0,ward2,1,29 | V89: 0,0,0,0,0,ward2,1,29 | W89: 0,0,0,0,0,ward2,1,29 | X89: 0,0,0,0,0,ward2,3,29 | Y89: 0,0,0,0,0,ward2,4,29 | Z89: 0,0,0,0,0,ward2,4,29 | AA89: 0,0,0,0,0,ward2,4,29 | AB89: 0,0,0,0,0,ward2,5,29 | AC89: 0,0,0,0,0,ward2,5,29 | AD89: 0,0,0,0,0,ward2,5,29 | AE89: 0,0,0,0,0,ward2,5,29 | AF89: 0,0,0,0,0,ward2,5,29 | AG89: 0,0,0,0,0,ward2,5,29 | AH89: 0,0,0,0,0,ward3,1,29 | AI89: 0,0,0,0,0,ward3,1,29 | AJ89: 0,0,0,0,0,ward3,1,29 | AK89: 0,0,0,0,0,ward3,1,29 | AL89: 0,0,0,0,0,ward3,1,29 | AM89: 0,0,0,0,0,ward3,1,29 | AN89: 0,0,0,0,0,ward3,1,29 | AO89: 0,0,0,0,0,ward3,1,29 | AP89: 0,0,0,0,0,ward3,1,29 | AQ89: 0,0,0,0,0,ward3,1,29 | AR89: 0,0,0,0,0,ward3,1,29 | AS89: 0,0,0,0,0,ward3,1,29 | AT89: 0,0,0,0,0,ward3,1,29 | AU89: 0,0,0,0,0,ward3,1,29 | AV89: 0,0,0,0,0,ward3,1,29 | AW89: 0,0,0,0,0,ward3,1,29 | AX89: 0,0,0,0,1,ward3,1,29 | AY89: 0,0,0,0,1,ward3,1,29 | AZ89: 0,0,0,0,1,ward3,1,29 | BA89: 0,0,0,0,1,ward3,1,29 | BB89: 0,0,0,0,1,ward3,1,29 | BC89: 0,0,0,0,1,ward3,1,29 | BD89: 0,0,0,0,1,ward3,1,29 | BE89: 0,0,0,0,1,ward3,1,29 | BF89: 0,0,0,0,1,ward3,1,29 | BG89: 0,0,0,0,1,ward3,1,29 | BH89: 0,0,0,0,1,ward3,1,29 | BI89: 0,0,0,0,1,ward3,1,29 | BJ89: 0,0,0,0,1,ward3,1,29 | BK89: 0,0,0,0,1,ward3,1,29 | BL89: 0,0,0,0,1,ward3,1,29 | BM89: 0,0,0,0,1,ward3,1,29 | BN89: 0,0,0,0,1,ward3,1,29 | BO89: 0,0,0,0,1,ward3,1,29 | BP89: 0,0,0,0,1,ward3,1,29 | BQ89: 0,0,0,0,1,ward3,1,29 | BR89: 0,0,0,0,1,ward3,1,29 | BS89: 0,0,0,0,1,ward3,1,29 | BT89: 0,0,0,0,1,ward3,1,29 | BU89: 0,0,0,0,1,ward3,1,29 | BV89: 0,0,0,0,1,ward3,1,29 | BW89: 0,0,0,0,1,ward3,1,29 | BX89: 0,0,0,0,1,ward3,1,29 | BY89: 0,0,0,0,1,ward3,1,29 | BZ89: 0,0,0,0,1,ward3,1,29 | CA89: 0,0,0,0,1,ward3,1,29 | CB89: 0,0,0,0,1,ward3,1,29 | CC89: 0,0,0,0,1,ward3,1,29 | CD89: 0,0,0,0,1,ward3,1,29 | CE89: 0,0,0,0,1,ward3,1,29 | CF89: 0,0,0,0,1,ward3,1,29 | CG89: 0,0,0,0,1,ward3,1,29 | CH89: 0,0,0,0,1,ward3,1,29 | CI89: 0,0,0,0,1,ward3,1,29 | CJ89: 0,0,0,0,1,ward3,1,29 | CK89: 0,0,0,0,1,ward3,1,29 | CL89: 0,0,0,0,1,ward3,1,29 | CM89: 0,0,0,0,1,ward3,1,29 | CN89: 0,0,0,0,1,ward3,1,29 | CO89: 0,0,0,0,1,ward3,1,29 | CP89: 0,0,0,0,1,ward3,1,29 | CQ89: 0,0,0,0,1,ward3,1,29 | CR89: 0,0,0,0,1,ward3,1,29 | CS89: 0,0,0,0,1,ward3,1,29 | CT89: 0,0,0,0,1,ward3,1,29 | CU89: 0,0,0,0,1,ward3,1,29 | CV89: 0,0,0,0,1,ward3,1,29 | CW89: 0,0,0,0,1,ward3,1,29 | CX89: 0,0,0,0,1,ward3,1,29 | CY89: 0,0,0,0,1,ward3,1,29
A90: Nurse | B90: 22 | C90: 0,0,0,0,0,ward3,2 | D90: 0,0,0,0,0,ward3,2,58 | E90: 0,0,0,0,0,ward3,2,58 | F90: 0,0,0,0,0,ward3,2,58 | G90: 0,0,0,0,0,ward3,2,58 | H90: 0,0,0,0,0,ward2,5,58 | I90: 0,0,0,0,0,ward2,4,58 | J90: 0,0,0,0,0,ward2,4,58 | K90: 0,0,0,0,0,ward2,4,58 | L90: 0,0,0,0,0,ward2,3,58 | M90: 0,0,0,0,0,ward2,1,58 | N90: 0,0,0,0,0,ward1,5,58 | O90: 0,0,0,0,0,ward1,5,58 | P90: 0,0,0,0,0,ward1,5,58 | Q90: 0,0,0,0,0,ward1,4,58 | R90: 0,0,0,0,0,ward1,4,58 | S90: 0,0,0,0,0,ward2,1,58 | T90: 0,0,0,0,0,ward2,2,58 | U90: 0,0,0,0,0,ward2,2,58 | V90: 0,0,0,0,0,ward2,2,58 | W90: 0,0,0,0,0,ward2,2,58 | X90: 0,0,0,0,0,ward2,4,58 | Y90: 0,0,0,0,0,ward2,5,58 | Z90: 0,0,0,0,0,ward2,5,58 | AA90: 0,0,0,0,0,ward2,5,58 | AB90: 0,0,0,0,0,ward3,1,58 | AC90: 0,0,0,0,0,ward3,1,58 | AD90: 0,0,0,0,0,ward3,1,58 | AE90: 0,0,0,0,0,ward3,1,58 | AF90: 0,0,0,0,0,ward3,1,58 | AG90: 0,0,0,0,0,ward3,1,58 | AH90: 0,0,0,0,0,ward3,2,58 | AI90: 0,0,0,0,0,ward3,2,58 | AJ90: 0,0,0,0,0,ward3,2,58 | AK90: 0,0,0,0,0,ward3,2,58 | AL90: 0,0,0,0,0,ward3,2,58 | AM90: 0,0,0,0,0,ward3,2,58 | AN90: 0,0,0,0,0,ward3,2,58 | AO90: 0,0,0,0,0,ward3,2,58 | AP90: 0,0,0,0,0,ward3,2,58 | AQ90: 0,0,0,0,0,ward3,2,58 | AR90: 0,0,0,0,0,ward3,2,58 | AS90: 0,0,0,0,0,ward3,2,58 | AT90: 0,0,0,0,0,ward3,2,58 | AU90: 0,0,0,0,0,ward3,2,58 | AV90: 0,0,0,0,0,ward3,2,58 | AW90: 0,0,0,0,0,ward3,2,58 | AX90: 0,0,0,0,0,ward3,2,58 | AY90: 0,0,0,0,1,ward3,2,58 | AZ90: 0,0,0,0,1,ward3,2,58 | BA90: 0,0,0,0,1,ward3,2,58 | BB90: 0,0,0,0,1,ward3,2,58 | BC90: 0,0,0,0,1,ward3,2,58 | BD90: 0,0,0,0,1,ward3,2,58 | BE90: 0,0,0,0,1,ward3,2,58 | BF90: 0,0,0,0,1,ward3,2,58 | BG90: 0,0,0,0,1,ward3,2,58 | BH90: 0,0,0,0,1,ward3,2,58 | BI90: 0,0,0,0,1,ward3,2,58 | BJ90: 0,0,0,0,1,ward3,2,58 | BK90: 0,0,0,0,1,ward3,2,58 | BL90: 0,0,0,0,1,ward3,2,58 | BM90: 0,0,0,0,1,ward3,2,58 | BN90: 0,0,0,0,1,ward3,2,58 | BO90: 0,0,0,0,1,ward3,2,58 | BP90: 0,0,0,0,1,ward3,2,58 | BQ90: 0,0,0,0,1,ward3,2,58 | BR90: 0,0,0,0,1,ward3,2,58 | BS90: 0,0,0,0,1,ward3,2,58 | BT90: 0,0,0,0,1,ward3,2,58 | BU90: 0,0,0,0,1,ward3,2,58 | BV90: 0,0,0,0,1,ward3,2,58 | BW90: 0,0,0,0,1,ward3,2,58 | BX90: 0,0,0,0,1,ward3,2,58 | BY90: 0,0,0,0,1,ward3,2,58 | BZ90: 0,0,0,0,1,ward3,2,58 | CA90: 0,0,0,0,1,ward3,2,58 | CB90: 0,0,0,0,1,ward3,2,58 | CC90: 0,0,0,0,1,ward3,2,58 | CD90: 0,0,0,0,1,ward3,2,58 | CE90: 0,0,0,0,1,ward3,2,58 | CF90: 0,0,0,0,1,ward3,2,58 | CG90: 0,0,0,0,1,ward3,2,58 | CH90: 0,0,0,0,1,ward3,2,58 | CI90: 0,0,0,0,1,ward3,2,58 | CJ90: 0,0,0,0,1,ward3,2,58 | CK90: 0,0,0,0,1,ward3,2,58 | CL90: 0,0,0,0,1,ward3,2,58 | CM90: 0,0,0,0,1,ward3,2,58 | CN90: 0,0,0,0,1,ward3,2,58 | CO90: 0,0,0,0,1,ward3,2,58 | CP90: 0,0,0,0,1,ward3,2,58 | CQ90: 0,0,0,0,1,ward3,2,58 | CR90: 0,0,0,0,1,ward3,2,58 | CS90: 0,0,0,0,1,ward3,2,58 | CT90: 0,0,0,0,1,ward3,2,58 | CU90: 0,0,0,0,1,ward3,2,58 | CV90: 0,0,0,0,1,ward3,2,58 | CW90: 0,0,0,0,1,ward3,2,58 | CX90: 0,0,0,0,1,ward3,2,58 | CY90: 0,0,0,0,1,ward3,2,58
A91: Nurse | B91: 23 | C91: 0,0,0,0,0,ward3,3 | D91: 0,0,0,0,0,ward3,3,63 | E91: 0,0,0,0,0,ward3,3,63 | F91: 0,0,0,0,0,ward3,3,63 | G91: 0,0,0,0,0,ward3,3,63 | H91: 0,0,0,0,0,ward3,1,63 | I91: 0,0,0,0,0,ward2,5,63 | J91: 0,0,0,0,0,ward2,5,63 | K91: 0,0,0,0,0,ward2,5,63 | L91: 0,0,0,0,0,ward2,4,63 | M91: 0,0,0,0,0,ward2,2,63 | N91: 0,0,0,0,0,ward2,1,63 | O91: 0,0,0,0,0,ward2,1,63 | P91: 0,0,0,0,0,ward2,1,63 | Q91: 0,0,0,0,0,ward1,5,63 | R91: 0,0,0,0,0,ward1,5,63 | S91: 0,0,0,0,0,ward2,2,63 | T91: 0,0,0,0,0,ward2,3,63 | U91: 0,0,0,0,0,ward2,3,63 | V91: 0,0,0,0,0,ward2,3,63 | W91: 0,0,0,0,0,ward2,3,63 | X91: 0,0,0,0,0,ward2,5,63 | Y91: 1,0,0,1,0,ward3,1,63 | Z91: 2,0,0,1,0,ward3,1,63 | AA91: 3,0,0,1,0,ward3,1,63 | AB91: 4,0,0,1,0,ward3,2,63 | AC91: 5,1,0,1,0,0,0,63 | AD91: 6,1,0,1,0,0,0,63 | AE91: 7,1,0,1,0,0,0,63 | AF91: 8,1,0,1,0,0,0,63 | AG91: 9,1,0,1,0,0,0,63 | AH91: 10,1,0,1,0,0,0,63 | AI91: 11,1,0,1,0,0,0,63 | AJ91: 12,1,0,1,0,0,0,63 | AK91: 13,1,0,1,0,0,0,63 | AL91: 14,1,0,1,0,0,0,63 | AM91: 15,1,0,1,0,0,0,63 | AN91: 0,0,0,0,0,ward3,3,63 | AO91: 0,0,0,0,0,ward3,3,63 | AP91: 0,0,0,0,0,ward3,3,63 | AQ91: 0,0,0,0,0,ward3,3,63 | AR91: 0,0,0,0,0,ward3,3,63 | AS91: 0,0,0,0,0,ward3,3,63 | AT91: 0,0,0,0,0,ward3,3,63 | AU91: 0,0,0,0,0,ward3,3,63 | AV91: 0,0,0,0,0,ward3,3,63 | AW91: 0,0,0,0,0,ward3,3,63 | AX91: 0,0,0,0,0,ward3,3,63 | AY91: 0,0,0,0,0,ward3,3,63 | AZ91: 0,0,0,0,1,ward3,3,63 | BA91: 0,0,0,0,1,ward3,3,63 | BB91: 0,0,0,0,1,ward3,3,63 | BC91: 0,0,0,0,1,ward3,3,63 | BD91: 0,0,0,0,1,ward3,3,63 | BE91: 0,0,0,0,1,ward3,3,63 | BF91: 0,0,0,0,1,ward3,3,63 | BG91: 0,0,0,0,1,ward3,3,63 | BH91: 0,0,0,0,1,ward3,3,63 | BI91: 0,0,0,0,1,ward3,3,63 | BJ91: 0,0,0,0,1,ward3,3,63 | BK91: 0,0,0,0,1,ward3,3,63 | BL91: 0,0,0,0,1,ward3,3,63 | BM91: 0,0,0,0,1,ward3,3,63 | BN91: 0,0,0,0,1,ward3,3,63 | BO91: 0,0,0,0,1,ward3,3,63 | BP91: 0,0,0,0,1,ward3,3,63 | BQ91: 0,0,0,0,1,ward3,3,63 | BR91: 0,0,0,0,1,ward3,3,63 | BS91: 0,0,0,0,1,ward3,3,63 | BT91: 0,0,0,0,1,ward3,3,63 | BU91: 0,0,0,0,1,ward3,3,63 | BV91: 0,0,0,0,1,ward3,3,63 | BW91: 0,0,0,0,1,ward3,3,63 | BX91: 0,0,0,0,1,ward3,3,63 | BY91: 0,0,0,0,1,ward3,3,63 | BZ91: 0,0,0,0,1,ward3,3,63 | CA91: 0,0,0,0,1,ward3,3,63 | CB91: 0,0,0,0,1,ward3,3,63 | CC91: 0,0,0,0,1,ward3,3,63 | CD91: 0,0,0,0,1,ward3,3,63 | CE91: 0,0,0,0,1,ward3,3,63 | CF91: 0,0,0,0,1,ward3,3,63 | CG91: 0,0,0,0,1,ward3,3,63 | CH91: 0,0,0,0,1,ward3,3,63 | CI91: 0,0,0,0,1,ward3,3,63 | CJ91: 0,0,0,0,1,ward3,3,63 | CK91: 0,0,0,0,1,ward3,3,63 | CL91: 0,0,0,0,1,ward3,3,63 | CM91: 0,0,0,0,1,ward3,3,63 | CN91: 0,0,0,0,1,ward3,3,63 | CO91: 0,0,0,0,1,ward3,3,63 | CP91: 0,0,0,0,1,ward3,3,63 | CQ91: 0,0,0,0,1,ward3,3,63 | CR91: 0,0,0,0,1,ward3,3,63 | CS91: 0,0,0,0,1,ward3,3,63 | CT91: 0,0,0,0,1,ward3,3,63 | CU91: 0,0,0,0,1,ward3,3,63 | CV91: 0,0,0,0,1,ward3,3,63 | CW91: 0,0,0,0,1,ward3,3,63 | CX91: 0,0,0,0,1,ward3,3,63 | CY91: 0,0,0,0,1,ward3,3,63
A92: Nurse | B92: 24 | C92: 0,0,0,0,0,ward3,4 | D92: 0,0,0,0,0,ward3,4,44 | E92: 0,0,0,0,0,ward3,4,44 | F92: 0,0,0,0,0,ward3,4,44 | G92: 0,0,0,0,0,ward3,4,44 | H92: 0,0,0,0,0,ward3,2,44 | I92: 0,0,0,0,0,ward3,1,44 | J92: 0,0,0,0,0,ward3,1,44 | K92: 0,0,0,0,0,ward3,1,44 | L92: 0,0,0,0,0,ward2,5,44 | M92: 0,0,0,0,0,ward2,3,44 | N92: 0,0,0,0,0,ward2,2,44 | O92: 0,0,0,0,0,ward2,2,44 | P92: 0,0,0,0,0,ward2,2,44 | Q92: 0,0,0,0,0,ward2,1,44 | R92: 0,0,0,0,0,ward2,1,44 | S92: 0,0,0,0,0,ward2,3,44 | T92: 0,0,0,0,0,ward2,4,44 | U92: 0,0,0,0,0,ward2,4,44 | V92: 0,0,0,0,0,ward2,4,44 | W92: 0,0,0,0,0,ward2,4,44 | X92: 0,0,0,0,0,ward3,1,44 | Y92: 0,0,0,0,0,ward3,2,44 | Z92: 0,0,0,0,0,ward3,2,44 | AA92: 0,0,0,0,0,ward3,2,44 | AB92: 0,0,0,0,0,ward3,3,44 | AC92: 0,0,0,0,0,ward3,2,44 | AD92: 0,0,0,0,0,ward3,2,44 | AE92: 0,0,0,0,0,ward3,2,44 | AF92: 0,0,0,0,0,ward3,2,44 | AG92: 0,0,0,0,0,ward3,2,44 | AH92: 0,0,0,0,0,ward3,3,44 | AI92: 0,0,0,0,0,ward3,3,44 | AJ92: 0,0,0,0,0,ward3,3,44 | AK92: 0,0,0,0,0,ward3,3,44 | AL92: 0,0,0,0,0,ward3,3,44 | AM92: 0,0,0,0,0,ward3,3,44 | AN92: 0,0,0,0,0,ward3,4,44 | AO92: 0,0,0,0,0,ward3,4,44 | AP92: 0,0,0,0,0,ward3,4,44 | AQ92: 0,0,0,0,0,ward3,4,44 | AR92: 0,0,0,0,0,ward3,4,44 | AS92: 0,0,0,0,0,ward3,4,44 | AT92: 0,0,0,0,0,ward3,4,44 | AU92: 0,0,0,0,0,ward3,4,44 | AV92: 0,0,0,0,0,ward3,4,44 | AW92: 0,0,0,0,0,ward3,4,44 | AX92: 0,0,0,0,0,ward3,4,44 | AY92: 0,0,0,0,0,ward3,4,44 | AZ92: 0,0,0,0,0,ward3,4,44 | BA92: 0,0,0,0,1,ward3,4,44 | BB92: 0,0,0,0,1,ward3,4,44 | BC92: 0,0,0,0,1,ward3,4,44 | BD92: 0,0,0,0,1,ward3,4,44 | BE92: 0,0,0,0,1,ward3,4,44 | BF92: 0,0,0,0,1,ward3,4,44 | BG92: 0,0,0,0,1,ward3,4,44 | BH92: 0,0,0,0,1,ward3,4,44 | BI92: 0,0,0,0,1,ward3,4,44 | BJ92: 0,0,0,0,1,ward3,4,44 | BK92: 0,0,0,0,1,ward3,4,44 | BL92: 0,0,0,0,1,ward3,4,44 | BM92: 0,0,0,0,1,ward3,4,44 | BN92: 0,0,0,0,1,ward3,4,44 | BO92: 0,0,0,0,1,ward3,4,44 | BP92: 0,0,0,0,1,ward3,4,44 | BQ92: 0,0,0,0,1,ward3,4,44 | BR92: 0,0,0,0,1,ward3,4,44 | BS92: 0,0,0,0,1,ward3,4,44 | BT92: 0,0,0,0,1,ward3,4,44 | BU92: 0,0,0,0,1,ward3,4,44 | BV92: 0,0,0,0,1,ward3,4,44 | BW92: 0,0,0,0,1,ward3,4,44 | BX92: 0,0,0,0,1,ward3,4,44 | BY92: 0,0,0,0,1,ward3,4,44 | BZ92: 0,0,0,0,1,ward3,4,44 | CA92: 0,0,0,0,1,ward3,4,44 | CB92: 0,0,0,0,1,ward3,4,44 | CC92: 0,0,0,0,1,ward3,4,44 | CD92: 0,0,0,0,1,ward3,4,44 | CE92: 0,0,0,0,1,ward3,4,44 | CF92: 0,0,0,0,1,ward3,4,44 | CG92: 0,0,0,0,1,ward3,4,44 | CH92: 0,0,0,0,1,ward3,4,44 | CI92: 0,0,0,0,1,ward3,4,44 | CJ92: 0,0,0,0,1,ward3,4,44 | CK92: 0,0,0,0,1,ward3,4,44 | CL92: 0,0,0,0,1,ward3,4,44 | CM92: 0,0,0,0,1,ward3,4,44 | CN92: 0,0,0,0,1,ward3,4,44 | CO92: 0,0,0,0,1,ward3,4,44 | CP92: 0,0,0,0,1,ward3,4,44 | CQ92: 0,0,0,0,1,ward3,4,44 | CR92: 0,0,0,0,1,ward3,4,44 | CS92: 0,0,0,0,1,ward3,4,44 | CT92: 0,0,0,0,1,ward3,4,44 | CU92: 0,0,0,0,1,ward3,4,44 | CV92: 0,0,0,0,1,ward3,4,44 | CW92: 0,0,0,0,1,ward3,4,44 | CX92: 0,0,0,0,1,ward3,4,44 | CY92: 0,0,0,0,1,ward3,4,44
A93: Nurse | B93: 25 | C93: 0,0,0,0,0,ward3,5 | D93: 0,0,0,0,0,ward3,5,40 | E93: 0,0,0,0,0,ward3,5,40 | F93: 0,0,0,0,0,ward3,5,40 | G93: 0,0,0,0,0,ward3,5,40 | H93: 0,0,0,0,0,ward3,3,40 | I93: 0,0,0,0,0,ward3,2,40 | J93: 0,0,0,0,0,ward3,2,40 | K93: 0,0,0,0,0,ward3,2,40 | L93: 0,0,0,0,0,ward3,1,40 | M93: 0,0,0,0,0,ward2,4,40 | N93: 0,0,0,0,0,ward2,3,40 | O93: 0,0,0,0,0,ward2,3,40 | P93: 0,0,0,0,0,ward2,3,40 | Q93: 0,0,0,0,0,ward2,2,40 | R93: 0,0,0,0,0,ward2,2,40 | S93: 0,0,0,0,0,ward2,4,40 | T93: 0,0,0,0,0,ward2,5,40 | U93: 0,0,0,0,0,ward2,5,40 | V93: 0,0,0,0,0,ward2,5,40 | W93: 0,0,0,0,0,ward2,5,40 | X93: 0,0,0,0,0,ward3,2,40 | Y93: 0,0,0,0,0,ward3,3,40 | Z93: 0,0,0,0,0,ward3,3,40 | AA93: 0,0,0,0,0,ward3,3,40 | AB93: 1,0,0,1,0,ward3,4,40 | AC93: 2,0,0,1,0,ward3,3,40 | AD93: 3,0,0,1,0,ward3,3,40 | AE93: 4,0,0,1,0,ward3,3,40 | AF93: 5,1,0,1,0,0,0,40 | AG93: 6,1,0,1,0,0,0,40 | AH93: 7,1,0,1,0,0,0,40 | AI93: 8,1,0,1,0,0,0,40 | AJ93: 9,1,0,1,0,0,0,40 | AK93: 10,1,0,1,0,0,0,40 | AL93: 11,1,0,1,0,0,0,40 | AM93: 12,1,0,1,0,0,0,40 | AN93: 13,1,0,1,0,0,0,40 | AO93: 14,1,0,1,0,0,0,40 | AP93: 15,1,0,1,0,0,0,40 | AQ93: 0,0,0,0,0,ward3,5,40 | AR93: 0,0,0,0,0,ward3,5,40 | AS93: 0,0,0,0,0,ward3,5,40 | AT93: 0,0,0,0,0,ward3,5,40 | AU93: 0,0,0,0,0,ward3,5,40 | AV93: 0,0,0,0,0,ward3,5,40 | AW93: 0,0,0,0,0,ward3,5,40 | AX93: 0,0,0,0,0,ward3,5,40 | AY93: 0,0,0,0,0,ward3,5,40 | AZ93: 0,0,0,0,0,ward3,5,40 | BA93: 0,0,0,0,0,ward3,5,40 | BB93: 0,0,0,0,1,ward3,5,40 | BC93: 0,0,0,0,1,ward3,5,40 | BD93: 0,0,0,0,1,ward3,5,40 | BE93: 0,0,0,0,1,ward3,5,40 | BF93: 0,0,0,0,1,ward3,5,40 | BG93: 0,0,0,0,1,ward3,5,40 | BH93: 0,0,0,0,1,ward3,5,40 | BI93: 0,0,0,0,1,ward3,5,40 | BJ93: 0,0,0,0,1,ward3,5,40 | BK93: 0,0,0,0,1,ward3,5,40 | BL93: 0,0,0,0,1,ward3,5,40 | BM93: 0,0,0,0,1,ward3,5,40 | BN93: 0,0,0,0,1,ward3,5,40 | BO93: 0,0,0,0,1,ward3,5,40 | BP93: 0,0,0,0,1,ward3,5,40 | BQ93: 0,0,0,0,1,ward3,5,40 | BR93: 0,0,0,0,1,ward3,5,40 | BS93: 0,0,0,0,1,ward3,5,40 | BT93: 0,0,0,0,1,ward3,5,40 | BU93: 0,0,0,0,1,ward3,5,40 | BV93: 0,0,0,0,1,ward3,5,40 | BW93: 0,0,0,0,1,ward3,5,40 | BX93: 0,0,0,0,1,ward3,5,40 | BY93: 0,0,0,0,1,ward3,5,40 | BZ93: 0,0,0,0,1,ward3,5,40 | CA93: 0,0,0,0,1,ward3,5,40 | CB93: 0,0,0,0,1,ward3,5,40 | CC93: 0,0,0,0,1,ward3,5,40 | CD93: 0,0,0,0,1,ward3,5,40 | CE93: 0,0,0,0,1,ward3,5,40 | CF93: 0,0,0,0,1,ward3,5,40 | CG93: 0,0,0,0,1,ward3,5,40 | CH93: 0,0,0,0,1,ward3,5,40 | CI93: 0,0,0,0,1,ward3,5,40 | CJ93: 0,0,0,0,1,ward3,5,40 | CK93: 0,0,0,0,1,ward3,5,40 | CL93: 0,0,0,0,1,ward3,5,40 | CM93: 0,0,0,0,1,ward3,5,40 | CN93: 0,0,0,0,1,ward3,5,40 | CO93: 0,0,0,0,1,ward3,5,40 | CP93: 0,0,0,0,1,ward3,5,40 | CQ93: 0,0,0,0,1,ward3,5,40 | CR93: 0,0,0,0,1,ward3,5,40 | CS93: 0,0,0,0,1,ward3,5,40 | CT93: 0,0,0,0,1,ward3,5,40 | CU93: 0,0,0,0,1,ward3,5,40 | CV93: 0,0,0,0,1,ward3,5,40 | CW93: 0,0,0,0,1,ward3,5,40 | CX93: 0,0,0,0,1,ward3,5,40 | CY93: 0,0,0,0,1,ward3,5,40
A94: Nurse | B94: 26 | C94: 0,0,0,0,0,0,0 | D94: 0,0,0,0,0,0,0,52 | E94: 0,0,0,0,0,0,0,52 | F94: 0,0,0,0,0,0,0,52 | G94: 0,0,0,0,0,0,0,52 | H94: 0,0,0,0,0,ward3,4,52 | I94: 0,0,0,0,0,ward3,3,52 | J94: 0,0,0,0,0,ward3,3,52 | K94: 0,0,0,0,0,ward3,3,52 | L94: 1,0,0,1,0,ward3,2,52 | M94: 2,0,0,1,0,ward2,5,52 | N94: 3,0,0,1,0,ward2,4,52 | O94: 4,0,0,1,0,ward2,4,52 | P94: 5,1,0,1,0,0,0,52 | Q94: 6,1,0,1,0,0,0,52 | R94: 7,1,0,1,0,0,0,52 | S94: 8,1,0,1,0,0,0,52 | T94: 9,1,0,1,0,0,0,52 | U94: 10,1,0,1,0,0,0,52 | V94: 11,1,0,1,0,0,0,52 | W94: 12,1,0,1,0,0,0,52 | X94: 13,1,0,1,0,0,0,52 | Y94: 14,1,0,1,0,0,0,52 | Z94: 15,1,0,1,0,0,0,52 | AA94: 0,0,0,0,0,ward3,4,52 | AB94: 0,0,0,0,0,ward3,5,52 | AC94: 0,0,0,0,0,ward3,4,52 | AD94: 0,0,0,0,0,ward3,4,52 | AE94: 0,0,0,0,0,ward3,4,52 | AF94: 0,0,0,0,0,ward3,3,52 | AG94: 0,0,0,0,0,ward3,3,52 | AH94: 0,0,0,0,0,ward3,4,52 | AI94: 0,0,0,0,0,ward3,4,52 | AJ94: 0,0,0,0,0,ward3,4,52 | AK94: 0,0,0,0,0,ward3,4,52 | AL94: 0,0,0,0,0,ward3,4,52 | AM94: 0,0,0,0,0,ward3,4,52 | AN94: 0,0,0,0,0,ward3,5,52 | AO94: 0,0,0,0,0,ward3,5,52 | AP94: 0,0,0,0,0,ward3,5,52 | AQ94: 0,0,0,0,0,0,0,52 | AR94: 0,0,0,0,0,0,0,52 | AS94: 0,0,0,0,0,0,0,52 | AT94: 0,0,0,0,0,0,0,52 | AU94: 0,0,0,0,0,0,0,52 | AV94: 0,0,0,0,0,0,0,52 | AW94: 0,0,0,0,0,0,0,52 | AX94: 0,0,0,0,0,0,0,52 | AY94: 0,0,0,0,0,0,0,52 | AZ94: 0,0,0,0,0,0,0,52 | BA94: 0,0,0,0,0,0,0,52 | BB94: 0,0,0,0,0,0,0,52 | BC94: 0,0,0,0,1,0,0,52 | BD94: 0,0,0,0,1,0,0,52 | BE94: 0,0,0,0,1,0,0,52 | BF94: 0,0,0,0,1,0,0,52 | BG94: 0,0,0,0,1,0,0,52 | BH94: 0,0,0,0,1,0,0,52 | BI94: 0,0,0,0,1,0,0,52 | BJ94: 0,0,0,0,1,0,0,52 | BK94: 0,0,0,0,1,0,0,52 | BL94: 0,0,0,0,1,0,0,52 | BM94: 0,0,0,0,1,0,0,52 | BN94: 0,0,0,0,1,0,0,52 | BO94: 0,0,0,0,1,0,0,52 | BP94: 0,0,0,0,1,0,0,52 | BQ94: 0,0,0,0,1,0,0,52 | BR94: 0,0,0,0,1,0,0,52 | BS94: 0,0,0,0,1,0,0,52 | BT94: 0,0,0,0,1,0,0,52 | BU94: 0,0,0,0,1,0,0,52 | BV94: 0,0,0,0,1,0,0,52 | BW94: 0,0,0,0,1,0,0,52 | BX94: 0,0,0,0,1,0,0,52 | BY94: 0,0,0,0,1,0,0,52 | BZ94: 0,0,0,0,1,0,0,52 | CA94: 0,0,0,0,1,0,0,52 | CB94: 0,0,0,0,1,0,0,52 | CC94: 0,0,0,0,1,0,0,52 | CD94: 0,0,0,0,1,0,0,52 | CE94: 0,0,0,0,1,0,0,52 | CF94: 0,0,0,0,1,0,0,52 | CG94: 0,0,0,0,1,0,0,52 | CH94: 0,0,0,0,1,0,0,52 | CI94: 0,0,0,0,1,0,0,52 | CJ94: 0,0,0,0,1,0,0,52 | CK94: 0,0,0,0,1,0,0,52 | CL94: 0,0,0,0,1,0,0,52 | CM94: 0,0,0,0,1,0,0,52 | CN94: 0,0,0,0,1,0,0,52 | CO94: 0,0,0,0,1,0,0,52 | CP94: 0,0,0,0,1,0,0,52 | CQ94: 0,0,0,0,1,0,0,52 | CR94: 0,0,0,0,1,0,0,52 | CS94: 0,0,0,0,1,0,0,52 | CT94: 0,0,0,0,1,0,0,52 | CU94: 0,0,0,0,1,0,0,52 | CV94: 0,0,0,0,1,0,0,52 | CW94: 0,0,0,0,1,0,0,52 | CX94: 0,0,0,0,1,0,0,52 | CY94: 0,0,0,0,1,0,0,52
A95: Nurse | B95: 27 | C95: 0,0,0,0,0,0,0 | D95: 0,0,0,0,0,0,0,47 | E95: 0,0,0,0,0,0,0,47 | F95: 0,0,0,0,0,0,0,47 | G95: 0,0,0,0,0,0,0,47 | H95: 0,0,0,0,0,ward3,5,47 | I95: 0,0,0,0,0,ward3,4,47 | J95: 0,0,0,0,0,ward3,4,47 | K95: 0,0,0,0,0,ward3,4,47 | L95: 0,0,0,0,0,ward3,3,47 | M95: 0,0,0,0,0,ward3,1,47 | N95: 0,0,0,0,0,ward2,5,47 | O95: 0,0,0,0,0,ward2,5,47 | P95: 0,0,0,0,0,ward2,4,47 | Q95: 0,0,0,0,0,ward2,3,47 | R95: 0,0,0,0,0,ward2,3,47 | S95: 0,0,0,0,0,ward2,5,47 | T95: 0,0,0,0,0,ward3,1,47 | U95: 0,0,0,0,0,ward3,1,47 | V95: 0,0,0,0,0,ward3,1,47 | W95: 0,0,0,0,0,ward3,1,47 | X95: 0,0,0,0,0,ward3,3,47 | Y95: 0,0,0,0,0,ward3,4,47 | Z95: 1,0,0,1,0,ward3,4,47 | AA95: 2,0,0,1,0,ward3,5,47 | AB95: 3,0,0,1,0,0,0,47 | AC95: 4,0,0,1,0,ward3,5,47 | AD95: 5,1,0,1,0,0,0,47 | AE95: 6,1,0,1,0,0,0,47 | AF95: 7,1,0,1,0,0,0,47 | AG95: 8,1,0,1,0,0,0,47 | AH95: 9,1,0,1,0,0,0,47 | AI95: 10,1,0,1,0,0,0,47 | AJ95: 11,1,0,1,0,0,0,47 | AK95: 12,1,0,1,0,0,0,47 | AL95: 13,1,0,1,0,0,0,47 | AM95: 14,1,0,1,0,0,0,47 | AN95: 15,1,0,1,0,0,0,47 | AO95: 0,0,0,0,0,0,0,47 | AP95: 0,0,0,0,0,0,0,47 | AQ95: 0,0,0,0,0,0,0,47 | AR95: 0,0,0,0,0,0,0,47 | AS95: 0,0,0,0,0,0,0,47 | AT95: 0,0,0,0,0,0,0,47 | AU95: 0,0,0,0,0,0,0,47 | AV95: 0,0,0,0,0,0,0,47 | AW95: 0,0,0,0,0,0,0,47 | AX95: 0,0,0,0,0,0,0,47 | AY95: 0,0,0,0,0,0,0,47 | AZ95: 0,0,0,0,0,0,0,47 | BA95: 0,0,0,0,0,0,0,47 | BB95: 0,0,0,0,0,0,0,47 | BC95: 0,0,0,0,0,0,0,47 | BD95: 0,0,0,0,1,0,0,47 | BE95: 0,0,0,0,1,0,0,47 | BF95: 0,0,0,0,1,0,0,47 | BG95: 0,0,0,0,1,0,0,47 | BH95: 0,0,0,0,1,0,0,47 | BI95: 0,0,0,0,1,0,0,47 | BJ95: 0,0,0,0,1,0,0,47 | BK95: 0,0,0,0,1,0,0,47 | BL95: 0,0,0,0,1,0,0,47 | BM95: 0,0,0,0,1,0,0,47 | BN95: 0,0,0,0,1,0,0,47 | BO95: 0,0,0,0,1,0,0,47 | BP95: 0,0,0,0,1,0,0,47 | BQ95: 0,0,0,0,1,0,0,47 | BR95: 0,0,0,0,1,0,0,47 | BS95: 0,0,0,0,1,0,0,47 | BT95: 0,0,0,0,1,0,0,47 | BU95: 0,0,0,0,1,0,0,47 | BV95: 0,0,0,0,1,0,0,47 | BW95: 0,0,0,0,1,0,0,47 | BX95: 0,0,0,0,1,0,0,47 | BY95: 0,0,0,0,1,0,0,47 | BZ95: 0,0,0,0,1,0,0,47 | CA95: 0,0,0,0,1,0,0,47 | CB95: 0,0,0,0,1,0,0,47 | CC95: 0,0,0,0,1,0,0,47 | CD95: 0,0,0,0,1,0,0,47 | CE95: 0,0,0,0,1,0,0,47 | CF95: 0,0,0,0,1,0,0,47 | CG95: 0,0,0,0,1,0,0,47 | CH95: 0,0,0,0,1,0,0,47 | CI95: 0,0,0,0,1,0,0,47 | CJ95: 0,0,0,0,1,0,0,47 | CK95: 0,0,0,0,1,0,0,47 | CL95: 0,0,0,0,1,0,0,47 | CM95: 0,0,0,0,1,0,0,47 | CN95: 0,0,0,0,1,0,0,47 | CO95: 0,0,0,0,1,0,0,47 | CP95: 0,0,0,0,1,0,0,47 | CQ95: 0,0,0,0,1,0,0,47 | CR95: 0,0,0,0,1,0,0,47 | CS95: 0,0,0,0,1,0,0,47 | CT95: 0,0,0,0,1,0,0,47 | CU95: 0,0,0,0,1,0,0,47 | CV95: 0,0,0,0,1,0,0,47 | CW95: 0,0,0,0,1,0,0,47 | CX95: 0,0,0,0,1,0,0,47 | CY95: 0,0,0,0,1,0,0,47
A96: Nurse | B96: 28 | C96: 0,0,0,0,0,0,0 | D96: 0,0,0,0,0,0,0,60 | E96: 0,0,0,0,0,0,0,60 | F96: 0,0,0,0,0,0,0,60 | G96: 0,0,0,0,0,0,0,60 | H96: 0,0,0,0,0,0,0,60 | I96: 0,0,0,0,0,ward3,5,60 | J96: 0,0,0,0,0,ward3,5,60 | K96: 0,0,0,0,0,ward3,5,60 | L96: 0,0,0,0,0,ward3,4,60 | M96: 0,0,0,0,0,ward3,2,60 | N96: 0,0,0,0,0,ward3,1,60 | O96: 0,0,0,0,0,ward3,1,60 | P96: 0,0,0,0,0,ward2,5,60 | Q96: 0,0,0,0,0,ward2,4,60 | R96: 0,0,0,0,0,ward2,4,60 | S96: 0,0,0,0,0,ward3,1,60 | T96: 0,0,0,0,0,ward3,2,60 | U96: 0,0,0,0,0,ward3,2,60 | V96: 0,0,0,0,0,ward3,2,60 | W96: 0,0,0,0,0,ward3,2,60 | X96: 0,0,0,0,0,ward3,4,60 | Y96: 0,0,0,0,0,ward3,5,60 | Z96: 0,0,0,0,0,ward3,5,60 | AA96: 0,0,0,0,0,0,0,60 | AB96: 0,0,0,0,0,0,0,60 | AC96: 0,0,0,0,0,0,0,60 | AD96: 0,0,0,0,0,ward3,5,60 | AE96: 0,0,0,0,0,ward3,5,60 | AF96: 0,0,0,0,0,ward3,4,60 | AG96: 0,0,0,0,0,ward3,4,60 | AH96: 0,0,0,0,0,ward3,5,60 | AI96: 0,0,0,0,0,ward3,5,60 | AJ96: 0,0,0,0,0,ward3,5,60 | AK96: 0,0,0,0,0,ward3,5,60 | AL96: 0,0,0,0,0,ward3,5,60 | AM96: 0,0,0,0,0,ward3,5,60 | AN96: 0,0,0,0,0,0,0,60 | AO96: 0,0,0,0,0,0,0,60 | AP96: 0,0,0,0,0,0,0,60 | AQ96: 0,0,0,0,0,0,0,60 | AR96: 0,0,0,0,0,0,0,60 | AS96: 0,0,0,0,0,0,0,60 | AT96: 0,0,0,0,0,0,0,60 | AU96: 0,0,0,0,0,0,0,60 | AV96: 0,0,0,0,0,0,0,60 | AW96: 0,0,0,0,0,0,0,60 | AX96: 0,0,0,0,0,0,0,60 | AY96: 0,0,0,0,0,0,0,60 | AZ96: 0,0,0,0,0,0,0,60 | BA96: 0,0,0,0,0,0,0,60 | BB96: 0,0,0,0,0,0,0,60 | BC96: 0,0,0,0,0,0,0,60 | BD96: 0,0,0,0,0,0,0,60 | BE96: 0,0,0,0,1,0,0,60 | BF96: 0,0,0,0,1,0,0,60 | BG96: 0,0,0,0,1,0,0,60 | BH96: 0,0,0,0,1,0,0,60 | BI96: 0,0,0,0,1,0,0,60 | BJ96: 0,0,0,0,1,0,0,60 | BK96: 0,0,0,0,1,0,0,60 | BL96: 0,0,0,0,1,0,0,60 | BM96: 0,0,0,0,1,0,0,60 | BN96: 0,0,0,0,1,0,0,60 | BO96: 0,0,0,0,1,0,0,60 | BP96: 0,0,0,0,1,0,0,60 | BQ96: 0,0,0,0,1,0,0,60 | BR96: 0,0,0,0,1,0,0,60 | BS96: 0,0,0,0,1,0,0,60 | BT96: 0,0,0,0,1,0,0,60 | BU96: 0,0,0,0,1,0,0,60 | BV96: 0,0,0,0,1,0,0,60 | BW96: 0,0,0,0,1,0,0,60 | BX96: 0,0,0,0,1,0,0,60 | BY96: 0,0,0,0,1,0,0,60 | BZ96: 0,0,0,0,1,0,0,60 | CA96: 0,0,0,0,1,0,0,60 | CB96: 0,0,0,0,1,0,0,60 | CC96: 0,0,0,0,1,0,0,60 | CD96: 0,0,0,0,1,0,0,60 | CE96: 0,0,0,0,1,0,0,60 | CF96: 0,0,0,0,1,0,0,60 | CG96: 0,0,0,0,1,0,0,60 | CH96: 0,0,0,0,1,0,0,60 | CI96: 0,0,0,0,1,0,0,60 | CJ96: 0,0,0,0,1,0,0,60 | CK96: 0,0,0,0,1,0,0,60 | CL96: 0,0,0,0,1,0,0,60 | CM96: 0,0,0,0,1,0,0,60 | CN96: 0,0,0,0,1,0,0,60 | CO96: 0,0,0,0,1,0,0,60 | CP96: 0,0,0,0,1,0,0,60 | CQ96: 0,0,0,0,1,0,0,60 | CR96: 0,0,0,0,1,0,0,60 | CS96: 0,0,0,0,1,0,0,60 | CT96: 0,0,0,0,1,0,0,60 | CU96: 0,0,0,0,1,0,0,60 | CV96: 0,0,0,0,1,0,0,60 | CW96: 0,0,0,0,1,0,0,60 | CX96: 0,0,0,0,1,0,0,60 | CY96: 0,0,0,0,1,0,0,60
A97: Nurse | B97: 29 | C97: 0,0,0,0,0,0,0 | D97: 0,0,0,0,0,0,0,22 | E97: 0,0,0,0,0,0,0,22 | F97: 0,0,0,0,0,0,0,22 | G97: 0,0,0,0,0,0,0,22 | H97: 0,0,0,0,0,0,0,22 | I97: 0,0,0,0,0,0,0,22 | J97: 0,0,0,0,0,0,0,22 | K97: 0,0,0,0,0,0,0,22 | L97: 0,0,0,0,0,ward3,5,22 | M97: 0,0,0,0,0,ward3,3,22 | N97: 0,0,0,0,0,ward3,2,22 | O97: 0,0,0,0,0,ward3,2,22 | P97: 0,0,0,0,0,ward3,1,22 | Q97: 0,0,0,0,0,ward2,5,22 | R97: 0,0,0,0,0,ward2,5,22 | S97: 0,0,0,0,0,ward3,2,22 | T97: 0,0,0,0,0,ward3,3,22 | U97: 0,0,0,0,0,ward3,3,22 | V97: 0,0,0,0,0,ward3,3,22 | W97: 0,0,0,0,0,ward3,3,22 | X97: 0,0,0,0,0,ward3,5,22 | Y97: 0,0,0,0,0,0,0,22 | Z97: 0,0,0,0,0,0,0,22 | AA97: 0,0,0,0,0,0,0,22 | AB97: 0,0,0,0,0,0,0,22 | AC97: 0,0,0,0,0,0,0,22 | AD97: 0,0,0,0,0,0,0,22 | AE97: 0,0,0,0,0,0,0,22 | AF97: 0,0,0,0,0,ward3,5,22 | AG97: 0,0,0,0,0,ward3,5,22 | AH97: 0,0,0,0,0,0,0,22 | AI97: 0,0,0,0,0,0,0,22 | AJ97: 0,0,0,0,0,0,0,22 | AK97: 0,0,0,0,0,0,0,22 | AL97: 0,0,0,0,0,0,0,22 | AM97: 0,0,0,0,0,0,0,22 | AN97: 0,0,0,0,0,0,0,22 | AO97: 0,0,0,0,0,0,0,22 | AP97: 0,0,0,0,0,0,0,22 | AQ97: 0,0,0,0,0,0,0,22 | AR97: 0,0,0,0,0,0,0,22 | AS97: 0,0,0,0,0,0,0,22 | AT97: 0,0,0,0,0,0,0,22 | AU97: 0,0,0,0,0,0,0,22 | AV97: 0,0,0,0,0,0,0,22 | AW97: 0,0,0,0,0,0,0,22 | AX97: 0,0,0,0,0,0,0,22 | AY97: 0,0,0,0,0,0,0,22 | AZ97: 0,0,0,0,0,0,0,22 | BA97: 0,0,0,0,0,0,0,22 | BB97: 0,0,0,0,0,0,0,22 | BC97: 0,0,0,0,0,0,0,22 | BD97: 0,0,0,0,0,0,0,22 | BE97: 0,0,0,0,0,0,0,22 | BF97: 0,0,0,0,1,0,0,22 | BG97: 0,0,0,0,1,0,0,22 | BH97: 0,0,0,0,1,0,0,22 | BI97: 0,0,0,0,1,0,0,22 | BJ97: 0,0,0,0,1,0,0,22 | BK97: 0,0,0,0,1,0,0,22 | BL97: 0,0,0,0,1,0,0,22 | BM97: 0,0,0,0,1,0,0,22 | BN97: 0,0,0,0,1,0,0,22 | BO97: 0,0,0,0,1,0,0,22 | BP97: 0,0,0,0,1,0,0,22 | BQ97: 0,0,0,0,1,0,0,22 | BR97: 0,0,0,0,1,0,0,22 | BS97: 0,0,0,0,1,0,0,22 | BT97: 0,0,0,0,1,0,0,22 | BU97: 0,0,0,0,1,0,0,22 | BV97: 0,0,0,0,1,0,0,22 | BW97: 0,0,0,0,1,0,0,22 | BX97: 0,0,0,0,1,0,0,22 | BY97: 0,0,0,0,1,0,0,22 | BZ97: 0,0,0,0,1,0,0,22 | CA97: 0,0,0,0,1,0,0,22 | CB97: 0,0,0,0,1,0,0,22 | CC97: 0,0,0,0,1,0,0,22 | CD97: 0,0,0,0,1,0,0,22 | CE97: 0,0,0,0,1,0,0,22 | CF97: 0,0,0,0,1,0,0,22 | CG97: 0,0,0,0,1,0,0,22 | CH97: 0,0,0,0,1,0,0,22 | CI97: 0,0,0,0,1,0,0,22 | CJ97: 0,0,0,0,1,0,0,22 | CK97: 0,0,0,0,1,0,0,22 | CL97: 0,0,0,0,1,0,0,22 | CM97: 0,0,0,0,1,0,0,22 | CN97: 0,0,0,0,1,0,0,22 | CO97: 0,0,0,0,1,0,0,22 | CP97: 0,0,0,0,1,0,0,22 | CQ97: 0,0,0,0,1,0,0,22 | CR97: 0,0,0,0,1,0,0,22 | CS97: 0,0,0,0,1,0,0,22 | CT97: 0,0,0,0,1,0,0,22 | CU97: 0,0,0,0,1,0,0,22 | CV97: 0,0,0,0,1,0,0,22 | CW97: 0,0,0,0,1,0,0,22 | CX97: 0,0,0,0,1,0,0,22 | CY97: 0,0,0,0,1,0,0,22
A98: Nurse | B98: 30 | C98: 0,0,0,0,0,0,0 | D98: 0,0,0,0,0,0,0,33 | E98: 0,0,0,0,0,0,0,33 | F98: 0,0,0,0,0,0,0,33 | G98: 0,0,0,0,0,0,0,33 | H98: 0,0,0,0,0,0,0,33 | I98: 0,0,0,0,0,0,0,33 | J98: 0,0,0,0,0,0,0,33 | K98: 0,0,0,0,0,0,0,33 | L98: 0,0,0,0,0,0,0,33 | M98: 0,0,0,0,0,ward3,4,33 | N98: 0,0,0,0,0,ward3,3,33 | O98: 0,0,0,0,0,ward3,3,33 | P98: 0,0,0,0,0,ward3,2,33 | Q98: 0,0,0,0,0,ward3,1,33 | R98: 0,0,0,0,0,ward3,1,33 | S98: 0,0,0,0,0,ward3,3,33 | T98: 0,0,0,0,0,ward3,4,33 | U98: 0,0,0,0,0,ward3,4,33 | V98: 0,0,0,0,0,ward3,4,33 | W98: 0,0,0,0,0,ward3,4,33 | X98: 0,0,0,0,0,0,0,33 | Y98: 0,0,0,0,0,0,0,33 | Z98: 0,0,0,0,0,0,0,33 | AA98: 0,0,0,0,0,0,0,33 | AB98: 0,0,0,0,0,0,0,33 | AC98: 0,0,0,0,0,0,0,33 | AD98: 0,0,0,0,0,0,0,33 | AE98: 0,0,0,0,0,0,0,33 | AF98: 0,0,0,0,0,0,0,33 | AG98: 0,0,0,0,0,0,0,33 | AH98: 0,0,0,0,0,0,0,33 | AI98: 0,0,0,0,0,0,0,33 | AJ98: 0,0,0,0,0,0,0,33 | AK98: 0,0,0,0,0,0,0,33 | AL98: 0,0,0,0,0,0,0,33 | AM98: 0,0,0,0,0,0,0,33 | AN98: 0,0,0,0,0,0,0,33 | AO98: 0,0,0,0,0,0,0,33 | AP98: 0,0,0,0,0,0,0,33 | AQ98: 0,0,0,0,0,0,0,33 | AR98: 0,0,0,0,0,0,0,33 | AS98: 0,0,0,0,0,0,0,33 | AT98: 0,0,0,0,0,0,0,33 | AU98: 0,0,0,0,0,0,0,33 | AV98: 0,0,0,0,0,0,0,33 | AW98: 0,0,0,0,0,0,0,33 | AX98: 0,0,0,0,0,0,0,33 | AY98: 0,0,0,0,0,0,0,33 | AZ98: 0,0,0,0,0,0,0,33 | BA98: 0,0,0,0,0,0,0,33 | BB98: 0,0,0,0,0,0,0,33 | BC98: 0,0,0,0,0,0,0,33 | BD98: 0,0,0,0,0,0,0,33 | BE98: 0,0,0,0,0,0,0,33 | BF98: 0,0,0,0,0,0,0,33 | BG98: 0,0,0,0,1,0,0,33 | BH98: 0,0,0,0,1,0,0,33 | BI98: 0,0,0,0,1,0,0,33 | BJ98: 0,0,0,0,1,0,0,33 | BK98: 0,0,0,0,1,0,0,33 | BL98: 0,0,0,0,1,0,0,33 | BM98: 0,0,0,0,1,0,0,33 | BN98: 0,0,0,0,1,0,0,33 | BO98: 0,0,0,0,1,0,0,33 | BP98: 0,0,0,0,1,0,0,33 | BQ98: 0,0,0,0,1,0,0,33 | BR98: 0,0,0,0,1,0,0,33 | BS98: 0,0,0,0,1,0,0,33 | BT98: 0,0,0,0,1,0,0,33 | BU98: 0,0,0,0,1,0,0,33 | BV98: 0,0,0,0,1,0,0,33 | BW98: 0,0,0,0,1,0,0,33 | BX98: 0,0,0,0,1,0,0,33 | BY98: 0,0,0,0,1,0,0,33 | BZ98: 0,0,0,0,1,0,0,33 | CA98: 0,0,0,0,1,0,0,33 | CB98: 0,0,0,0,1,0,0,33 | CC98: 0,0,0,0,1,0,0,33 | CD98: 0,0,0,0,1,0,0,33 | CE98: 0,0,0,0,1,0,0,33 | CF98: 0,0,0,0,1,0,0,33 | CG98: 0,0,0,0,1,0,0,33 | CH98: 0,0,0,0,1,0,0,33 | CI98: 0,0,0,0,1,0,0,33 | CJ98: 0,0,0,0,1,0,0,33 | CK98: 0,0,0,0,1,0,0,33 | CL98: 0,0,0,0,1,0,0,33 | CM98: 0,0,0,0,1,0,0,33 | CN98: 0,0,0,0,1,0,0,33 | CO98: 0,0,0,0,1,0,0,33 | CP98: 0,0,0,0,1,0,0,33 | CQ98: 0,0,0,0,1,0,0,33 | CR98: 0,0,0,0,1,0,0,33 | CS98: 0,0,0,0,1,0,0,33 | CT98: 0,0,0,0,1,0,0,33 | CU98: 0,0,0,0,1,0,0,33 | CV98: 0,0,0,0,1,0,0,33 | CW98: 0,0,0,0,1,0,0,33 | CX98: 0,0,0,0,1,0,0,33 | CY98: 0,0,0,0,1,0,0,33
A99: Nurse | B99: 31 | C99: 0,0,0,0,0,0,0 | D99: 0,0,0,0,0,0,0,20 | E99: 0,0,0,0,0,0,0,20 | F99: 0,0,0,0,0,0,0,20 | G99: 0,0,0,0,0,0,0,20 | H99: 0,0,0,0,0,0,0,20 | I99: 0,0,0,0,0,0,0,20 | J99: 0,0,0,0,0,0,0,20 | K99: 0,0,0,0,0,0,0,20 | L99: 0,0,0,0,0,0,0,20 | M99: 0,0,0,0,0,ward3,5,20 | N99: 0,0,0,0,0,ward3,4,20 | O99: 0,0,0,0,0,ward3,4,20 | P99: 0,0,0,0,0,ward3,3,20 | Q99: 0,0,0,0,0,ward3,2,20 | R99: 0,0,0,0,0,ward3,2,20 | S99: 0,0,0,0,0,ward3,4,20 | T99: 0,0,0,0,0,ward3,5,20 | U99: 0,0,0,0,0,ward3,5,20 | V99: 0,0,0,0,0,ward3,5,20 | W99: 0,0,0,0,0,ward3,5,20 | X99: 0,0,0,0,0,0,0,20 | Y99: 0,0,0,0,0,0,0,20 | Z99: 0,0,0,0,0,0,0,20 | AA99: 0,0,0,0,0,0,0,20 | AB99: 0,0,0,0,0,0,0,20 | AC99: 0,0,0,0,0,0,0,20 | AD99: 0,0,0,0,0,0,0,20 | AE99: 0,0,0,0,0,0,0,20 | AF99: 0,0,0,0,0,0,0,20 | AG99: 0,0,0,0,0,0,0,20 | AH99: 0,0,0,0,0,0,0,20 | AI99: 0,0,0,0,0,0,0,20 | AJ99: 0,0,0,0,0,0,0,20 | AK99: 0,0,0,0,0,0,0,20 | AL99: 0,0,0,0,0,0,0,20 | AM99: 0,0,0,0,0,0,0,20 | AN99: 0,0,0,0,0,0,0,20 | AO99: 0,0,0,0,0,0,0,20 | AP99: 0,0,0,0,0,0,0,20 | AQ99: 0,0,0,0,0,0,0,20 | AR99: 0,0,0,0,0,0,0,20 | AS99: 0,0,0,0,0,0,0,20 | AT99: 0,0,0,0,0,0,0,20 | AU99: 0,0,0,0,0,0,0,20 | AV99: 0,0,0,0,0,0,0,20 | AW99: 0,0,0,0,0,0,0,20 | AX99: 0,0,0,0,0,0,0,20 | AY99: 0,0,0,0,0,0,0,20 | AZ99: 0,0,0,0,0,0,0,20 | BA99: 0,0,0,0,0,0,0,20 | BB99: 0,0,0,0,0,0,0,20 | BC99: 0,0,0,0,0,0,0,20 | BD99: 0,0,0,0,0,0,0,20 | BE99: 0,0,0,0,0,0,0,20 | BF99: 0,0,0,0,0,0,0,20 | BG99: 0,0,0,0,0,0,0,20 | BH99: 0,0,0,0,1,0,0,20 | BI99: 0,0,0,0,1,0,0,20 | BJ99: 0,0,0,0,1,0,0,20 | BK99: 0,0,0,0,1,0,0,20 | BL99: 0,0,0,0,1,0,0,20 | BM99: 0,0,0,0,1,0,0,20 | BN99: 0,0,0,0,1,0,0,20 | BO99: 0,0,0,0,1,0,0,20 | BP99: 0,0,0,0,1,0,0,20 | BQ99: 0,0,0,0,1,0,0,20 | BR99: 0,0,0,0,1,0,0,20 | BS99: 0,0,0,0,1,0,0,20 | BT99: 0,0,0,0,1,0,0,20 | BU99: 0,0,0,0,1,0,0,20 | BV99: 0,0,0,0,1,0,0,20 | BW99: 0,0,0,0,1,0,0,20 | BX99: 0,0,0,0,1,0,0,20 | BY99: 0,0,0,0,1,0,0,20 | BZ99: 0,0,0,0,1,0,0,20 | CA99: 0,0,0,0,1,0,0,20 | CB99: 0,0,0,0,1,0,0,20 | CC99: 0,0,0,0,1,0,0,20 | CD99: 0,0,0,0,1,0,0,20 | CE99: 0,0,0,0,1,0,0,20 | CF99: 0,0,0,0,1,0,0,20 | CG99: 0,0,0,0,1,0,0,20 | CH99: 0,0,0,0,1,0,0,20 | CI99: 0,0,0,0,1,0,0,20 | CJ99: 0,0,0,0,1,0,0,20 | CK99: 0,0,0,0,1,0,0,20 | CL99: 0,0,0,0,1,0,0,20 | CM99: 0,0,0,0,1,0,0,20 | CN99: 0,0,0,0,1,0,0,20 | CO99: 0,0,0,0,1,0,0,20 | CP99: 0,0,0,0,1,0,0,20 | CQ99: 0,0,0,0,1,0,0,20 | CR99: 0,0,0,0,1,0,0,20 | CS99: 0,0,0,0,1,0,0,20 | CT99: 0,0,0,0,1,0,0,20 | CU99: 0,0,0,0,1,0,0,20 | CV99: 0,0,0,0,1,0,0,20 | CW99: 0,0,0,0,1,0,0,20 | CX99: 0,0,0,0,1,0,0,20 | CY99: 0,0,0,0,1,0,0,20
A100: Nurse | B100: 32 | C100: 0,0,0,0,0,0,0 | D100: 0,0,0,0,0,0,0,62 | E100: 0,0,0,0,0,0,0,62 | F100: 0,0,0,0,0,0,0,62 | G100: 0,0,0,0,0,0,0,62 | H100: 0,0,0,0,0,0,0,62 | I100: 0,0,0,0,0,0,0,62 | J100: 0,0,0,0,0,0,0,62 | K100: 0,0,0,0,0,0,0,62 | L100: 0,0,0,0,0,0,0,62 | M100: 0,0,0,0,0,0,0,62 | N100: 0,0,0,0,0,ward3,5,62 | O100: 0,0,0,0,0,ward3,5,62 | P100: 0,0,0,0,0,ward3,4,62 | Q100: 0,0,0,0,0,ward3,3,62 | R100: 0,0,0,0,0,ward3,3,62 | S100: 0,0,0,0,0,ward3,5,62 | T100: 0,0,0,0,0,0,0,62 | U100: 0,0,0,0,0,0,0,62 | V100: 0,0,0,0,0,0,0,62 | W100: 0,0,0,0,0,0,0,62 | X100: 0,0,0,0,0,0,0,62 | Y100: 0,0,0,0,0,0,0,62 | Z100: 0,0,0,0,0,0,0,62 | AA100: 0,0,0,0,0,0,0,62 | AB100: 0,0,0,0,0,0,0,62 | AC100: 0,0,0,0,0,0,0,62 | AD100: 0,0,0,0,0,0,0,62 | AE100: 0,0,0,0,0,0,0,62 | AF100: 0,0,0,0,0,0,0,62 | AG100: 0,0,0,0,0,0,0,62 | AH100: 0,0,0,0,0,0,0,62 | AI100: 0,0,0,0,0,0,0,62 | AJ100: 0,0,0,0,0,0,0,62 | AK100: 0,0,0,0,0,0,0,62 | AL100: 0,0,0,0,0,0,0,62 | AM100: 0,0,0,0,0,0,0,62 | AN100: 0,0,0,0,0,0,0,62 | AO100: 0,0,0,0,0,0,0,62 | AP100: 0,0,0,0,0,0,0,62 | AQ100: 0,0,0,0,0,0,0,62 | AR100: 0,0,0,0,0,0,0,62 | AS100: 0,0,0,0,0,0,0,62 | AT100: 0,0,0,0,0,0,0,62 | AU100: 0,0,0,0,0,0,0,62 | AV100: 0,0,0,0,0,0,0,62 | AW100: 0,0,0,0,0,0,0,62 | AX100: 0,0,0,0,0,0,0,62 | AY100: 0,0,0,0,0,0,0,62 | AZ100: 0,0,0,0,0,0,0,62 | BA100: 0,0,0,0,0,0,0,62 | BB100: 0,0,0,0,0,0,0,62 | BC100: 0,0,0,0,0,0,0,62 | BD100: 0,0,0,0,0,0,0,62 | BE100: 0,0,0,0,0,0,0,62 | BF100: 0,0,0,0,0,0,0,62 | BG100: 0,0,0,0,0,0,0,62 | BH100: 0,0,0,0,0,0,0,62 | BI100: 0,0,0,0,1,0,0,62 | BJ100: 0,0,0,0,1,0,0,62 | BK100: 0,0,0,0,1,0,0,62 | BL100: 0,0,0,0,1,0,0,62 | BM100: 0,0,0,0,1,0,0,62 | BN100: 0,0,0,0,1,0,0,62 | BO100: 0,0,0,0,1,0,0,62 | BP100: 0,0,0,0,1,0,0,62 | BQ100: 0,0,0,0,1,0,0,62 | BR100: 0,0,0,0,1,0,0,62 | BS100: 0,0,0,0,1,0,0,62 | BT100: 0,0,0,0,1,0,0,62 | BU100: 0,0,0,0,1,0,0,62 | BV100: 0,0,0,0,1,0,0,62 | BW100: 0,0,0,0,1,0,0,62 | BX100: 0,0,0,0,1,0,0,62 | BY100: 0,0,0,0,1,0,0,62 | BZ100: 0,0,0,0,1,0,0,62 | CA100: 0,0,0,0,1,0,0,62 | CB100: 0,0,0,0,1,0,0,62 | CC100: 0,0,0,0,1,0,0,62 | CD100: 0,0,0,0,1,0,0,62 | CE100: 0,0,0,0,1,0,0,62 | CF100: 0,0,0,0,1,0,0,62 | CG100: 0,0,0,0,1,0,0,62 | CH100: 0,0,0,0,1,0,0,62 | CI100: 0,0,0,0,1,0,0,62 | CJ100: 0,0,0,0,1,0,0,62 | CK100: 0,0,0,0,1,0,0,62 | CL100: 0,0,0,0,1,0,0,62 | CM100: 0,0,0,0,1,0,0,62 | CN100: 0,0,0,0,1,0,0,62 | CO100: 0,0,0,0,1,0,0,62 | CP100: 0,0,0,0,1,0,0,62 | CQ100: 0,0,0,0,1,0,0,62 | CR100: 0,0,0,0,1,0,0,62 | CS100: 0,0,0,0,1,0,0,62 | CT100: 0,0,0,0,1,0,0,62 | CU100: 0,0,0,0,1,0,0,62 | CV100: 0,0,0,0,1,0,0,62 | CW100: 0,0,0,0,1,0,0,62 | CX100: 0,0,0,0,1,0,0,62 | CY100: 0,0,0,0,1,0,0,62
A101: Nurse | B101: 33 | C101: 0,0,0,0,0,0,0 | D101: 0,0,0,0,0,0,0,45 | E101: 0,0,0,0,0,0,0,45 | F101: 0,0,0,0,0,0,0,45 | G101: 0,0,0,0,0,0,0,45 | H101: 0,0,0,0,0,0,0,45 | I101: 0,0,0,0,0,0,0,45 | J101: 0,0,0,0,0,0,0,45 | K101: 0,0,0,0,0,0,0,45 | L101: 0,0,0,0,0,0,0,45 | M101: 0,0,0,0,0,0,0,45 | N101: 1,0,0,1,0,0,0,45 | O101: 2,0,0,1,0,0,0,45 | P101: 3,0,0,1,0,ward3,5,45 | Q101: 4,0,0,1,0,ward3,4,45 | R101: 5,1,0,1,0,0,0,45 | S101: 6,1,0,1,0,0,0,45 | T101: 7,1,0,1,0,0,0,45 | U101: 8,1,0,1,0,0,0,45 | V101: 9,1,0,1,0,0,0,45 | W101: 10,1,0,1,0,0,0,45 | X101: 11,1,0,1,0,0,0,45 | Y101: 12,1,0,1,0,0,0,45 | Z101: 13,1,0,1,0,0,0,45 | AA101: 14,1,0,1,0,0,0,45 | AB101: 15,1,0,1,0,0,0,45 | AC101: 0,0,0,0,0,0,0,45 | AD101: 0,0,0,0,0,0,0,45 | AE101: 0,0,0,0,0,0,0,45 | AF101: 0,0,0,0,0,0,0,45 | AG101: 0,0,0,0,0,0,0,45 | AH101: 0,0,0,0,0,0,0,45 | AI101: 0,0,0,0,0,0,0,45 | AJ101: 0,0,0,0,0,0,0,45 | AK101: 0,0,0,0,0,0,0,45 | AL101: 0,0,0,0,0,0,0,45 | AM101: 0,0,0,0,0,0,0,45 | AN101: 0,0,0,0,0,0,0,45 | AO101: 0,0,0,0,0,0,0,45 | AP101: 0,0,0,0,0,0,0,45 | AQ101: 0,0,0,0,0,0,0,45 | AR101: 0,0,0,0,0,0,0,45 | AS101: 0,0,0,0,0,0,0,45 | AT101: 0,0,0,0,0,0,0,45 | AU101: 0,0,0,0,0,0,0,45 | AV101: 0,0,0,0,0,0,0,45 | AW101: 0,0,0,0,0,0,0,45 | AX101: 0,0,0,0,0,0,0,45 | AY101: 0,0,0,0,0,0,0,45 | AZ101: 0,0,0,0,0,0,0,45 | BA101: 0,0,0,0,0,0,0,45 | BB101: 0,0,0,0,0,0,0,45 | BC101: 0,0,0,0,0,0,0,45 | BD101: 0,0,0,0,0,0,0,45 | BE101: 0,0,0,0,0,0,0,45 | BF101: 0,0,0,0,0,0,0,45 | BG101: 0,0,0,0,0,0,0,45 | BH101: 0,0,0,0,0,0,0,45 | BI101: 0,0,0,0,0,0,0,45 | BJ101: 0,0,0,0,1,0,0,45 | BK101: 0,0,0,0,1,0,0,45 | BL101: 0,0,0,0,1,0,0,45 | BM101: 0,0,0,0,1,0,0,45 | BN101: 0,0,0,0,1,0,0,45 | BO101: 0,0,0,0,1,0,0,45 | BP101: 0,0,0,0,1,0,0,45 | BQ101: 0,0,0,0,1,0,0,45 | BR101: 0,0,0,0,1,0,0,45 | BS101: 0,0,0,0,1,0,0,45 | BT101: 0,0,0,0,1,0,0,45 | BU101: 0,0,0,0,1,0,0,45 | BV101: 0,0,0,0,1,0,0,45 | BW101: 0,0,0,0,1,0,0,45 | BX101: 0,0,0,0,1,0,0,45 | BY101: 0,0,0,0,1,0,0,45 | BZ101: 0,0,0,0,1,0,0,45 | CA101: 0,0,0,0,1,0,0,45 | CB101: 0,0,0,0,1,0,0,45 | CC101: 0,0,0,0,1,0,0,45 | CD101: 0,0,0,0,1,0,0,45 | CE101: 0,0,0,0,1,0,0,45 | CF101: 0,0,0,0,1,0,0,45 | CG101: 0,0,0,0,1,0,0,45 | CH101: 0,0,0,0,1,0,0,45 | CI101: 0,0,0,0,1,0,0,45 | CJ101: 0,0,0,0,1,0,0,45 | CK101: 0,0,0,0,1,0,0,45 | CL101: 0,0,0,0,1,0,0,45 | CM101: 0,0,0,0,1,0,0,45 | CN101: 0,0,0,0,1,0,0,45 | CO101: 0,0,0,0,1,0,0,45 | CP101: 0,0,0,0,1,0,0,45 | CQ101: 0,0,0,0,1,0,0,45 | CR101: 0,0,0,0,1,0,0,45 | CS101: 0,0,0,0,1,0,0,45 | CT101: 0,0,0,0,1,0,0,45 | CU101: 0,0,0,0,1,0,0,45 | CV101: 0,0,0,0,1,0,0,45 | CW101: 0,0,0,0,1,0,0,45 | CX101: 0,0,0,0,1,0,0,45 | CY101: 0,0,0,0,1,0,0,45

Sheet 02.1 rollout top down
B4: Staff per unit
B5: Time [d] | C5: 0 | D5: 1 | E5: 2 | F5: 3 | G5: 4 | H5: 5 | I5: 6 | J5: 7 | K5: 8 | L5: 9 | M5: 10 | N5: 11 | O5: 12 | P5: 13 | Q5: 14 | R5: 15 | S5: 16 | T5: 17 | U5: 18 | V5: 19 | W5: 20 | X5: 21 | Y5: 22 | Z5: 23 | AA5: 24 | AB5: 25 | AC5: 26 | AD5: 27 | AE5: 28 | AF5: 29 | AG5: 30 | AH5: 31 | AI5: 32 | AJ5: 33 | AK5: 34 | AL5: 35 | AM5: 36 | AN5: 37 | AO5: 38 | AP5: 39 | AQ5: 40 | AR5: 41 | AS5: 42 | AT5: 43 | AU5: 44 | AV5: 45 | AW5: 46 | AX5: 47 | AY5: 48 | AZ5: 49 | BA5: 50 | BB5: 51 | BC5: 52 | BD5: 53 | BE5: 54 | BF5: 55 | BG5: 56 | BH5: 57 | BI5: 58 | BJ5: 59 | BK5: 60 | BL5: 61 | BM5: 62 | BN5: 63 | BO5: 64 | BP5: 65 | BQ5: 66 | BR5: 67 | BS5: 68 | BT5: 69 | BU5: 70 | BV5: 71 | BW5: 72 | BX5: 73 | BY5: 74 | BZ5: 75 | CA5: 76 | CB5: 77 | CC5: 78 | CD5: 79 | CE5: 80 | CF5: 81 | CG5: 82 | CH5: 83 | CI5: 84 | CJ5: 85 | CK5: 86 | CL5: 87 | CM5: 88 | CN5: 89 | CO5: 90 | CP5: 91 | CQ5: 92 | CR5: 93 | CS5: 94 | CT5: 95 | CU5: 96 | CV5: 97 | CW5: 98 | CX5: 99 | CY5: 100
B6: A&E-SenExec | C6: 1 | D6: 1 | E6: 1 | F6: 1 | G6: 1 | H6: 1 | I6: 1 | J6: 1 | K6: 1 | L6: 1 | M6: 1 | N6: 1 | O6: 1 | P6: 1 | Q6: 1 | R6: 1 | S6: 1 | T6: 1 | U6: 1 | V6: 1 | W6: 1 | X6: 1 | Y6: 1 | Z6: 1 | AA6: 1 | AB6: 1 | AC6: 1 | AD6: 1 | AE6: 1 | AF6: 1 | AG6: 1 | AH6: 1 | AI6: 1 | AJ6: 1 | AK6: 1 | AL6: 1 | AM6: 1 | AN6: 1 | AO6: 1 | AP6: 1 | AQ6: 1 | AR6: 1 | AS6: 1 | AT6: 1 | AU6: 1 | AV6: 1 | AW6: 1 | AX6: 1 | AY6: 1 | AZ6: 1 | BA6: 1 | BB6: 1 | BC6: 1 | BD6: 1 | BE6: 1 | BF6: 1 | BG6: 1 | BH6: 1 | BI6: 1 | BJ6: 1 | BK6: 1 | BL6: 1 | BM6: 1 | BN6: 1 | BO6: 1 | BP6: 1 | BQ6: 1 | BR6: 1 | BS6: 1 | BT6: 1 | BU6: 1 | BV6: 1 | BW6: 1 | BX6: 1 | BY6: 1 | BZ6: 1 | CA6: 1 | CB6: 1 | CC6: 1 | CD6: 1 | CE6: 1 | CF6: 1 | CG6: 1 | CH6: 1 | CI6: 1 | CJ6: 1 | CK6: 1 | CL6: 1 | CM6: 1 | CN6: 1 | CO6: 1 | CP6: 1 | CQ6: 1 | CR6: 1 | CS6: 1 | CT6: 1 | CU6: 1 | CV6: 1 | CW6: 1 | CX6: 1 | CY6: 1
B7: A&E-Sen | C7: 1 | D7: 1 | E7: 1 | F7: 1 | G7: 1 | H7: 1 | I7: 1 | J7: 1 | K7: 1 | L7: 1 | M7: 1 | N7: 1 | O7: 1 | P7: 1 | Q7: 1 | R7: 1 | S7: 1 | T7: 1 | U7: 1 | V7: 1 | W7: 1 | X7: 1 | Y7: 1 | Z7: 1 | AA7: 1 | AB7: 1 | AC7: 1 | AD7: 1 | AE7: 1 | AF7: 1 | AG7: 1 | AH7: 1 | AI7: 1 | AJ7: 1 | AK7: 1 | AL7: 1 | AM7: 1 | AN7: 1 | AO7: 1 | AP7: 1 | AQ7: 1 | AR7: 1 | AS7: 1 | AT7: 1 | AU7: 1 | AV7: 1 | AW7: 1 | AX7: 1 | AY7: 1 | AZ7: 1 | BA7: 1 | BB7: 1 | BC7: 1 | BD7: 1 | BE7: 1 | BF7: 1 | BG7: 1 | BH7: 1 | BI7: 1 | BJ7: 1 | BK7: 1 | BL7: 1 | BM7: 1 | BN7: 1 | BO7: 1 | BP7: 1 | BQ7: 1 | BR7: 1 | BS7: 1 | BT7: 1 | BU7: 1 | BV7: 1 | BW7: 1 | BX7: 1 | BY7: 1 | BZ7: 1 | CA7: 1 | CB7: 1 | CC7: 1 | CD7: 1 | CE7: 1 | CF7: 1 | CG7: 1 | CH7: 1 | CI7: 1 | CJ7: 1 | CK7: 1 | CL7: 1 | CM7: 1 | CN7: 1 | CO7: 1 | CP7: 1 | CQ7: 1 | CR7: 1 | CS7: 1 | CT7: 1 | CU7: 1 | CV7: 1 | CW7: 1 | CX7: 1 | CY7: 1
B8: A&E-Physicians | C8: 4 | D8: 4 | E8: 4 | F8: 4 | G8: 4 | H8: 4 | I8: 4 | J8: 4 | K8: 4 | L8: 4 | M8: 4 | N8: 4 | O8: 4 | P8: 4 | Q8: 4 | R8: 3.998 | S8: 3.994 | T8: 4 | U8: 4 | V8: 3.998 | W8: 3.998 | X8: 4 | Y8: 4 | Z8: 4 | AA8: 4 | AB8: 4 | AC8: 4 | AD8: 4 | AE8: 4 | AF8: 4 | AG8: 4 | AH8: 4 | AI8: 4 | AJ8: 4 | AK8: 4 | AL8: 4 | AM8: 4 | AN8: 4 | AO8: 4 | AP8: 4 | AQ8: 4 | AR8: 4 | AS8: 4 | AT8: 4 | AU8: 4 | AV8: 4 | AW8: 4 | AX8: 4 | AY8: 4 | AZ8: 4 | BA8: 4 | BB8: 4 | BC8: 4 | BD8: 4 | BE8: 4 | BF8: 4 | BG8: 4 | BH8: 4 | BI8: 4 | BJ8: 4 | BK8: 4 | BL8: 4 | BM8: 4 | BN8: 4 | BO8: 4 | BP8: 4 | BQ8: 4 | BR8: 4 | BS8: 4 | BT8: 4 | BU8: 4 | BV8: 4 | BW8: 4 | BX8: 4 | BY8: 4 | BZ8: 4 | CA8: 4 | CB8: 4 | CC8: 4 | CD8: 4 | CE8: 4 | CF8: 4 | CG8: 4 | CH8: 4 | CI8: 4 | CJ8: 4 | CK8: 4 | CL8: 4 | CM8: 4 | CN8: 4 | CO8: 4 | CP8: 4 | CQ8: 4 | CR8: 4 | CS8: 4 | CT8: 4 | CU8: 4 | CV8: 4 | CW8: 4 | CX8: 4 | CY8: 4
B9: A&E-Nurse | C9: 10 | D9: 10 | E9: 10 | F9: 10 | G9: 10 | H9: 10 | I9: 10 | J9: 10 | K9: 10 | L9: 10 | M9: 10 | N9: 10 | O9: 10 | P9: 9.994 | Q9: 9.986 | R9: 9.972 | S9: 9.984 | T9: 9.982 | U9: 9.986 | V9: 9.988 | W9: 9.992 | X9: 9.996 | Y9: 9.996 | Z9: 10 | AA9: 10 | AB9: 10 | AC9: 10 | AD9: 10 | AE9: 9.998 | AF9: 9.998 | AG9: 10 | AH9: 10 | AI9: 10 | AJ9: 10 | AK9: 10 | AL9: 10 | AM9: 10 | AN9: 10 | AO9: 10 | AP9: 10 | AQ9: 10 | AR9: 10 | AS9: 10 | AT9: 10 | AU9: 10 | AV9: 10 | AW9: 10 | AX9: 10 | AY9: 10 | AZ9: 10 | BA9: 10 | BB9: 10 | BC9: 10 | BD9: 10 | BE9: 10 | BF9: 10 | BG9: 10 | BH9: 10 | BI9: 10 | BJ9: 10 | BK9: 10 | BL9: 10 | BM9: 10 | BN9: 10 | BO9: 10 | BP9: 10 | BQ9: 10 | BR9: 10 | BS9: 10 | BT9: 10 | BU9: 10 | BV9: 10 | BW9: 10 | BX9: 10 | BY9: 10 | BZ9: 10 | CA9: 10 | CB9: 10 | CC9: 10 | CD9: 10 | CE9: 10 | CF9: 10 | CG9: 10 | CH9: 10 | CI9: 10 | CJ9: 10 | CK9: 10 | CL9: 10 | CM9: 10 | CN9: 10 | CO9: 10 | CP9: 10 | CQ9: 10 | CR9: 10 | CS9: 10 | CT9: 10 | CU9: 10 | CV9: 10 | CW9: 10 | CX9: 10 | CY9: 10
B10: Ward-1-SenExec | C10: 1 | D10: 1 | E10: 1 | F10: 1 | G10: 1 | H10: 1 | I10: 1 | J10: 1 | K10: 1 | L10: 1 | M10: 1 | N10: 1 | O10: 1 | P10: 1 | Q10: 1 | R10: 1 | S10: 1 | T10: 1 | U10: 1 | V10: 1 | W10: 1 | X10: 1 | Y10: 1 | Z10: 1 | AA10: 1 | AB10: 1 | AC10: 1 | AD10: 1 | AE10: 1 | AF10: 1 | AG10: 1 | AH10: 1 | AI10: 1 | AJ10: 1 | AK10: 1 | AL10: 1 | AM10: 1 | AN10: 1 | AO10: 1 | AP10: 1 | AQ10: 1 | AR10: 1 | AS10: 1 | AT10: 1 | AU10: 1 | AV10: 1 | AW10: 1 | AX10: 1 | AY10: 1 | AZ10: 1 | BA10: 1 | BB10: 1 | BC10: 1 | BD10: 1 | BE10: 1 | BF10: 1 | BG10: 1 | BH10: 1 | BI10: 1 | BJ10: 1 | BK10: 1 | BL10: 1 | BM10: 1 | BN10: 1 | BO10: 1 | BP10: 1 | BQ10: 1 | BR10: 1 | BS10: 1 | BT10: 1 | BU10: 1 | BV10: 1 | BW10: 1 | BX10: 1 | BY10: 1 | BZ10: 1 | CA10: 1 | CB10: 1 | CC10: 1 | CD10: 1 | CE10: 1 | CF10: 1 | CG10: 1 | CH10: 1 | CI10: 1 | CJ10: 1 | CK10: 1 | CL10: 1 | CM10: 1 | CN10: 1 | CO10: 1 | CP10: 1 | CQ10: 1 | CR10: 1 | CS10: 1 | CT10: 1 | CU10: 1 | CV10: 1 | CW10: 1 | CX10: 1 | CY10: 1
B11: Ward-1-Sen | C11: 1 | D11: 1 | E11: 1 | F11: 1 | G11: 1 | H11: 1 | I11: 1 | J11: 1 | K11: 1 | L11: 1 | M11: 1 | N11: 1 | O11: 1 | P11: 1 | Q11: 1 | R11: 1 | S11: 1 | T11: 1 | U11: 1 | V11: 1 | W11: 1 | X11: 1 | Y11: 1 | Z11: 1 | AA11: 1 | AB11: 1 | AC11: 1 | AD11: 1 | AE11: 1 | AF11: 1 | AG11: 1 | AH11: 1 | AI11: 1 | AJ11: 1 | AK11: 1 | AL11: 1 | AM11: 1 | AN11: 1 | AO11: 1 | AP11: 1 | AQ11: 1 | AR11: 1 | AS11: 1 | AT11: 1 | AU11: 1 | AV11: 1 | AW11: 1 | AX11: 1 | AY11: 1 | AZ11: 1 | BA11: 1 | BB11: 1 | BC11: 1 | BD11: 1 | BE11: 1 | BF11: 1 | BG11: 1 | BH11: 1 | BI11: 1 | BJ11: 1 | BK11: 1 | BL11: 1 | BM11: 1 | BN11: 1 | BO11: 1 | BP11: 1 | BQ11: 1 | BR11: 1 | BS11: 1 | BT11: 1 | BU11: 1 | BV11: 1 | BW11: 1 | BX11: 1 | BY11: 1 | BZ11: 1 | CA11: 1 | CB11: 1 | CC11: 1 | CD11: 1 | CE11: 1 | CF11: 1 | CG11: 1 | CH11: 1 | CI11: 1 | CJ11: 1 | CK11: 1 | CL11: 1 | CM11: 1 | CN11: 1 | CO11: 1 | CP11: 1 | CQ11: 1 | CR11: 1 | CS11: 1 | CT11: 1 | CU11: 1 | CV11: 1 | CW11: 1 | CX11: 1 | CY11: 1
B12: Ward-1-Physicians | C12: 2 | D12: 2 | E12: 2 | F12: 2 | G12: 2 | H12: 2 | I12: 2 | J12: 2 | K12: 2 | L12: 2 | M12: 2 | N12: 2 | O12: 1.998 | P12: 1.996 | Q12: 1.98 | R12: 1.938 | S12: 1.916 | T12: 1.926 | U12: 1.938 | V12: 1.95 | W12: 1.972 | X12: 1.982 | Y12: 1.998 | Z12: 1.996 | AA12: 2 | AB12: 2 | AC12: 2 | AD12: 2 | AE12: 2 | AF12: 2 | AG12: 2 | AH12: 2 | AI12: 2 | AJ12: 2 | AK12: 2 | AL12: 2 | AM12: 2 | AN12: 2 | AO12: 2 | AP12: 2 | AQ12: 2 | AR12: 2 | AS12: 2 | AT12: 2 | AU12: 2 | AV12: 2 | AW12: 2 | AX12: 2 | AY12: 2 | AZ12: 2 | BA12: 2 | BB12: 2 | BC12: 2 | BD12: 2 | BE12: 2 | BF12: 2 | BG12: 2 | BH12: 2 | BI12: 2 | BJ12: 2 | BK12: 2 | BL12: 2 | BM12: 2 | BN12: 2 | BO12: 2 | BP12: 2 | BQ12: 2 | BR12: 2 | BS12: 2 | BT12: 2 | BU12: 2 | BV12: 2 | BW12: 2 | BX12: 2 | BY12: 2 | BZ12: 2 | CA12: 2 | CB12: 2 | CC12: 2 | CD12: 2 | CE12: 2 | CF12: 2 | CG12: 2 | CH12: 2 | CI12: 2 | CJ12: 2 | CK12: 2 | CL12: 2 | CM12: 2 | CN12: 2 | CO12: 2 | CP12: 2 | CQ12: 2 | CR12: 2 | CS12: 2 | CT12: 2 | CU12: 2 | CV12: 2 | CW12: 2 | CX12: 2 | CY12: 2
B13: Ward-1-Nurse | C13: 5 | D13: 5 | E13: 5 | F13: 5 | G13: 5 | H13: 5 | I13: 5 | J13: 5 | K13: 5 | L13: 5 | M13: 4.996 | N13: 4.994 | O13: 4.958 | P13: 4.836 | Q13: 4.6 | R13: 4.138 | S13: 4.188 | T13: 4.328 | U13: 4.44 | V13: 4.61 | W13: 4.674 | X13: 4.736 | Y13: 4.764 | Z13: 4.764 | AA13: 4.762 | AB13: 4.746 | AC13: 4.8 | AD13: 4.838 | AE13: 4.85 | AF13: 4.884 | AG13: 4.892 | AH13: 4.908 | AI13: 4.94 | AJ13: 4.952 | AK13: 4.962 | AL13: 4.972 | AM13: 4.968 | AN13: 4.992 | AO13: 4.992 | AP13: 4.998 | AQ13: 5 | AR13: 5 | AS13: 5 | AT13: 5 | AU13: 5 | AV13: 5 | AW13: 5 | AX13: 5 | AY13: 5 | AZ13: 5 | BA13: 5 | BB13: 5 | BC13: 5 | BD13: 5 | BE13: 5 | BF13: 5 | BG13: 5 | BH13: 5 | BI13: 5 | BJ13: 5 | BK13: 5 | BL13: 5 | BM13: 5 | BN13: 5 | BO13: 5 | BP13: 5 | BQ13: 5 | BR13: 5 | BS13: 5 | BT13: 5 | BU13: 5 | BV13: 5 | BW13: 5 | BX13: 5 | BY13: 5 | BZ13: 5 | CA13: 5 | CB13: 5 | CC13: 5 | CD13: 5 | CE13: 5 | CF13: 5 | CG13: 5 | CH13: 5 | CI13: 5 | CJ13: 5 | CK13: 5 | CL13: 5 | CM13: 5 | CN13: 5 | CO13: 5 | CP13: 5 | CQ13: 5 | CR13: 5 | CS13: 5 | CT13: 5 | CU13: 5 | CV13: 5 | CW13: 5 | CX13: 5 | CY13: 5
B14: Ward-2-SenExec | C14: 1 | D14: 1 | E14: 1 | F14: 1 | G14: 1 | H14: 1 | I14: 1 | J14: 1 | K14: 1 | L14: 1 | M14: 1 | N14: 1 | O14: 1 | P14: 1 | Q14: 1 | R14: 1 | S14: 1 | T14: 1 | U14: 1 | V14: 1 | W14: 1 | X14: 1 | Y14: 1 | Z14: 1 | AA14: 1 | AB14: 1 | AC14: 1 | AD14: 1 | AE14: 1 | AF14: 1 | AG14: 1 | AH14: 1 | AI14: 1 | AJ14: 1 | AK14: 1 | AL14: 1 | AM14: 1 | AN14: 1 | AO14: 1 | AP14: 1 | AQ14: 1 | AR14: 1 | AS14: 1 | AT14: 1 | AU14: 1 | AV14: 1 | AW14: 1 | AX14: 1 | AY14: 1 | AZ14: 1 | BA14: 1 | BB14: 1 | BC14: 1 | BD14: 1 | BE14: 1 | BF14: 1 | BG14: 1 | BH14: 1 | BI14: 1 | BJ14: 1 | BK14: 1 | BL14: 1 | BM14: 1 | BN14: 1 | BO14: 1 | BP14: 1 | BQ14: 1 | BR14: 1 | BS14: 1 | BT14: 1 | BU14: 1 | BV14: 1 | BW14: 1 | BX14: 1 | BY14: 1 | BZ14: 1 | CA14: 1 | CB14: 1 | CC14: 1 | CD14: 1 | CE14: 1 | CF14: 1 | CG14: 1 | CH14: 1 | CI14: 1 | CJ14: 1 | CK14: 1 | CL14: 1 | CM14: 1 | CN14: 1 | CO14: 1 | CP14: 1 | CQ14: 1 | CR14: 1 | CS14: 1 | CT14: 1 | CU14: 1 | CV14: 1 | CW14: 1 | CX14: 1 | CY14: 1
B15: Ward-2-Sen | C15: 1 | D15: 1 | E15: 1 | F15: 1 | G15: 1 | H15: 1 | I15: 1 | J15: 1 | K15: 1 | L15: 1 | M15: 0.998 | N15: 0.998 | O15: 0.998 | P15: 0.998 | Q15: 0.998 | R15: 0.998 | S15: 1 | T15: 1 | U15: 1 | V15: 1 | W15: 1 | X15: 1 | Y15: 1 | Z15: 1 | AA15: 1 | AB15: 1 | AC15: 1 | AD15: 1 | AE15: 1 | AF15: 1 | AG15: 1 | AH15: 1 | AI15: 1 | AJ15: 1 | AK15: 1 | AL15: 1 | AM15: 1 | AN15: 1 | AO15: 1 | AP15: 1 | AQ15: 1 | AR15: 1 | AS15: 1 | AT15: 1 | AU15: 1 | AV15: 1 | AW15: 1 | AX15: 1 | AY15: 1 | AZ15: 1 | BA15: 1 | BB15: 1 | BC15: 1 | BD15: 1 | BE15: 1 | BF15: 1 | BG15: 1 | BH15: 1 | BI15: 1 | BJ15: 1 | BK15: 1 | BL15: 1 | BM15: 1 | BN15: 1 | BO15: 1 | BP15: 1 | BQ15: 1 | BR15: 1 | BS15: 1 | BT15: 1 | BU15: 1 | BV15: 1 | BW15: 1 | BX15: 1 | BY15: 1 | BZ15: 1 | CA15: 1 | CB15: 1 | CC15: 1 | CD15: 1 | CE15: 1 | CF15: 1 | CG15: 1 | CH15: 1 | CI15: 1 | CJ15: 1 | CK15: 1 | CL15: 1 | CM15: 1 | CN15: 1 | CO15: 1 | CP15: 1 | CQ15: 1 | CR15: 1 | CS15: 1 | CT15: 1 | CU15: 1 | CV15: 1 | CW15: 1 | CX15: 1 | CY15: 1
B16: Ward-2-Physicians | C16: 2 | D16: 2 | E16: 2 | F16: 2 | G16: 2 | H16: 2 | I16: 2 | J16: 2 | K16: 2 | L16: 2 | M16: 1.992 | N16: 1.958 | O16: 1.868 | P16: 1.73 | Q16: 1.542 | R16: 1.334 | S16: 1.368 | T16: 1.428 | U16: 1.486 | V16: 1.566 | W16: 1.668 | X16: 1.786 | Y16: 1.88 | Z16: 1.944 | AA16: 1.966 | AB16: 1.99 | AC16: 1.996 | AD16: 2 | AE16: 2 | AF16: 2 | AG16: 2 | AH16: 2 | AI16: 2 | AJ16: 2 | AK16: 2 | AL16: 2 | AM16: 2 | AN16: 2 | AO16: 2 | AP16: 2 | AQ16: 2 | AR16: 2 | AS16: 2 | AT16: 2 | AU16: 2 | AV16: 2 | AW16: 2 | AX16: 2 | AY16: 2 | AZ16: 2 | BA16: 2 | BB16: 2 | BC16: 2 | BD16: 2 | BE16: 2 | BF16: 2 | BG16: 2 | BH16: 2 | BI16: 2 | BJ16: 2 | BK16: 2 | BL16: 2 | BM16: 2 | BN16: 2 | BO16: 2 | BP16: 2 | BQ16: 2 | BR16: 2 | BS16: 2 | BT16: 2 | BU16: 2 | BV16: 2 | BW16: 2 | BX16: 2 | BY16: 2 | BZ16: 2 | CA16: 2 | CB16: 2 | CC16: 2 | CD16: 2 | CE16: 2 | CF16: 2 | CG16: 2 | CH16: 2 | CI16: 2 | CJ16: 2 | CK16: 2 | CL16: 2 | CM16: 2 | CN16: 2 | CO16: 2 | CP16: 2 | CQ16: 2 | CR16: 2 | CS16: 2 | CT16: 2 | CU16: 2 | CV16: 2 | CW16: 2 | CX16: 2 | CY16: 2
B17: Ward-2-Nurse | C17: 5 | D17: 5 | E17: 5 | F17: 5 | G17: 5 | H17: 5 | I17: 5 | J17: 5 | K17: 4.994 | L17: 4.986 | M17: 4.908 | N17: 4.602 | O17: 3.948 | P17: 3.18 | Q17: 2.274 | R17: 1.43 | S17: 1.386 | T17: 1.486 | U17: 1.784 | V17: 1.978 | W17: 2.126 | X17: 2.216 | Y17: 2.284 | Z17: 2.32 | AA17: 2.318 | AB17: 2.338 | AC17: 2.462 | AD17: 2.662 | AE17: 2.882 | AF17: 3.062 | AG17: 3.238 | AH17: 3.318 | AI17: 3.542 | AJ17: 3.762 | AK17: 4.034 | AL17: 4.236 | AM17: 4.414 | AN17: 4.574 | AO17: 4.674 | AP17: 4.768 | AQ17: 4.89 | AR17: 4.93 | AS17: 4.962 | AT17: 4.984 | AU17: 4.994 | AV17: 5 | AW17: 5 | AX17: 5 | AY17: 5 | AZ17: 5 | BA17: 5 | BB17: 5 | BC17: 5 | BD17: 5 | BE17: 5 | BF17: 5 | BG17: 5 | BH17: 5 | BI17: 5 | BJ17: 5 | BK17: 5 | BL17: 5 | BM17: 5 | BN17: 5 | BO17: 5 | BP17: 5 | BQ17: 5 | BR17: 5 | BS17: 5 | BT17: 5 | BU17: 5 | BV17: 5 | BW17: 5 | BX17: 5 | BY17: 5 | BZ17: 5 | CA17: 5 | CB17: 5 | CC17: 5 | CD17: 5 | CE17: 5 | CF17: 5 | CG17: 5 | CH17: 5 | CI17: 5 | CJ17: 5 | CK17: 5 | CL17: 5 | CM17: 5 | CN17: 5 | CO17: 5 | CP17: 5 | CQ17: 5 | CR17: 5 | CS17: 5 | CT17: 5 | CU17: 5 | CV17: 5 | CW17: 5 | CX17: 5 | CY17: 5
B18: Ward-3-SenExec | C18: 1 | D18: 1 | E18: 1 | F18: 1 | G18: 1 | H18: 1 | I18: 1 | J18: 1 | K18: 1 | L18: 1 | M18: 1 | N18: 1 | O18: 1 | P18: 1 | Q18: 1 | R18: 1 | S18: 1 | T18: 1 | U18: 1 | V18: 1 | W18: 1 | X18: 1 | Y18: 1 | Z18: 1 | AA18: 1 | AB18: 1 | AC18: 1 | AD18: 1 | AE18: 1 | AF18: 1 | AG18: 1 | AH18: 1 | AI18: 1 | AJ18: 1 | AK18: 1 | AL18: 1 | AM18: 1 | AN18: 1 | AO18: 1 | AP18: 1 | AQ18: 1 | AR18: 1 | AS18: 1 | AT18: 1 | AU18: 1 | AV18: 1 | AW18: 1 | AX18: 1 | AY18: 1 | AZ18: 1 | BA18: 1 | BB18: 1 | BC18: 1 | BD18: 1 | BE18: 1 | BF18: 1 | BG18: 1 | BH18: 1 | BI18: 1 | BJ18: 1 | BK18: 1 | BL18: 1 | BM18: 1 | BN18: 1 | BO18: 1 | BP18: 1 | BQ18: 1 | BR18: 1 | BS18: 1 | BT18: 1 | BU18: 1 | BV18: 1 | BW18: 1 | BX18: 1 | BY18: 1 | BZ18: 1 | CA18: 1 | CB18: 1 | CC18: 1 | CD18: 1 | CE18: 1 | CF18: 1 | CG18: 1 | CH18: 1 | CI18: 1 | CJ18: 1 | CK18: 1 | CL18: 1 | CM18: 1 | CN18: 1 | CO18: 1 | CP18: 1 | CQ18: 1 | CR18: 1 | CS18: 1 | CT18: 1 | CU18: 1 | CV18: 1 | CW18: 1 | CX18: 1 | CY18: 1
B19: Ward-3-Sen | C19: 1 | D19: 1 | E19: 1 | F19: 1 | G19: 1 | H19: 1 | I19: 1 | J19: 0.998 | K19: 0.998 | L19: 0.996 | M19: 0.996 | N19: 0.996 | O19: 0.996 | P19: 0.996 | Q19: 0.996 | R19: 0.996 | S19: 0.998 | T19: 1 | U19: 1 | V19: 1 | W19: 1 | X19: 1 | Y19: 1 | Z19: 1 | AA19: 1 | AB19: 1 | AC19: 1 | AD19: 1 | AE19: 1 | AF19: 1 | AG19: 1 | AH19: 1 | AI19: 1 | AJ19: 1 | AK19: 1 | AL19: 1 | AM19: 1 | AN19: 1 | AO19: 1 | AP19: 1 | AQ19: 1 | AR19: 1 | AS19: 1 | AT19: 1 | AU19: 1 | AV19: 1 | AW19: 1 | AX19: 1 | AY19: 1 | AZ19: 1 | BA19: 1 | BB19: 1 | BC19: 1 | BD19: 1 | BE19: 1 | BF19: 1 | BG19: 1 | BH19: 1 | BI19: 1 | BJ19: 1 | BK19: 1 | BL19: 1 | BM19: 1 | BN19: 1 | BO19: 1 | BP19: 1 | BQ19: 1 | BR19: 1 | BS19: 1 | BT19: 1 | BU19: 1 | BV19: 1 | BW19: 1 | BX19: 1 | BY19: 1 | BZ19: 1 | CA19: 1 | CB19: 1 | CC19: 1 | CD19: 1 | CE19: 1 | CF19: 1 | CG19: 1 | CH19: 1 | CI19: 1 | CJ19: 1 | CK19: 1 | CL19: 1 | CM19: 1 | CN19: 1 | CO19: 1 | CP19: 1 | CQ19: 1 | CR19: 1 | CS19: 1 | CT19: 1 | CU19: 1 | CV19: 1 | CW19: 1 | CX19: 1 | CY19: 1
B20: Ward-3-Physicians | C20: 2 | D20: 2 | E20: 2 | F20: 2 | G20: 2 | H20: 2 | I20: 2 | J20: 1.986 | K20: 1.952 | L20: 1.86 | M20: 1.714 | N20: 1.418 | O20: 1.092 | P20: 0.864 | Q20: 0.642 | R20: 0.478 | S20: 0.488 | T20: 0.52 | U20: 0.668 | V20: 0.81 | W20: 0.966 | X20: 1.184 | Y20: 1.39 | Z20: 1.574 | AA20: 1.722 | AB20: 1.842 | AC20: 1.936 | AD20: 1.976 | AE20: 1.994 | AF20: 2 | AG20: 2 | AH20: 2 | AI20: 2 | AJ20: 2 | AK20: 2 | AL20: 2 | AM20: 2 | AN20: 2 | AO20: 2 | AP20: 2 | AQ20: 2 | AR20: 2 | AS20: 2 | AT20: 2 | AU20: 2 | AV20: 2 | AW20: 2 | AX20: 2 | AY20: 2 | AZ20: 2 | BA20: 2 | BB20: 2 | BC20: 2 | BD20: 2 | BE20: 2 | BF20: 2 | BG20: 2 | BH20: 2 | BI20: 2 | BJ20: 2 | BK20: 2 | BL20: 2 | BM20: 2 | BN20: 2 | BO20: 2 | BP20: 2 | BQ20: 2 | BR20: 2 | BS20: 2 | BT20: 2 | BU20: 2 | BV20: 2 | BW20: 2 | BX20: 2 | BY20: 2 | BZ20: 2 | CA20: 2 | CB20: 2 | CC20: 2 | CD20: 2 | CE20: 2 | CF20: 2 | CG20: 2 | CH20: 2 | CI20: 2 | CJ20: 2 | CK20: 2 | CL20: 2 | CM20: 2 | CN20: 2 | CO20: 2 | CP20: 2 | CQ20: 2 | CR20: 2 | CS20: 2 | CT20: 2 | CU20: 2 | CV20: 2 | CW20: 2 | CX20: 2 | CY20: 2
B21: Ward-3-Nurse | C21: 5 | D21: 5 | E21: 5 | F21: 5 | G21: 5 | H21: 5 | I21: 4.994 | J21: 4.898 | K21: 4.566 | L21: 3.966 | M21: 2.956 | N21: 1.87 | O21: 1.07 | P21: 0.504 | Q21: 0.202 | R21: 0.064 | S21: 0.052 | T21: 0.072 | U21: 0.102 | V21: 0.146 | W21: 0.182 | X21: 0.166 | Y21: 0.2 | Z21: 0.216 | AA21: 0.232 | AB21: 0.254 | AC21: 0.252 | AD21: 0.31 | AE21: 0.376 | AF21: 0.462 | AG21: 0.552 | AH21: 0.65 | AI21: 0.806 | AJ21: 1.038 | AK21: 1.34 | AL21: 1.616 | AM21: 1.984 | AN21: 2.218 | AO21: 2.546 | AP21: 2.882 | AQ21: 3.23 | AR21: 3.624 | AS21: 4.032 | AT21: 4.402 | AU21: 4.65 | AV21: 4.81 | AW21: 4.934 | AX21: 4.976 | AY21: 4.982 | AZ21: 4.99 | BA21: 4.994 | BB21: 4.998 | BC21: 5 | BD21: 5 | BE21: 5 | BF21: 5 | BG21: 5 | BH21: 5 | BI21: 5 | BJ21: 5 | BK21: 5 | BL21: 5 | BM21: 5 | BN21: 5 | BO21: 5 | BP21: 5 | BQ21: 5 | BR21: 5 | BS21: 5 | BT21: 5 | BU21: 5 | BV21: 5 | BW21: 5 | BX21: 5 | BY21: 5 | BZ21: 5 | CA21: 5 | CB21: 5 | CC21: 5 | CD21: 5 | CE21: 5 | CF21: 5 | CG21: 5 | CH21: 5 | CI21: 5 | CJ21: 5 | CK21: 5 | CL21: 5 | CM21: 5 | CN21: 5 | CO21: 5 | CP21: 5 | CQ21: 5 | CR21: 5 | CS21: 5 | CT21: 5 | CU21: 5 | CV21: 5 | CW21: 5 | CX21: 5 | CY21: 5
B52: Staff infectious, non-syptomatic
B53: Time [d] | C53: 0 | D53: 1 | E53: 2 | F53: 3 | G53: 4 | H53: 5 | I53: 6 | J53: 7 | K53: 8 | L53: 9 | M53: 10 | N53: 11 | O53: 12 | P53: 13 | Q53: 14 | R53: 15 | S53: 16 | T53: 17 | U53: 18 | V53: 19 | W53: 20 | X53: 21 | Y53: 22 | Z53: 23 | AA53: 24 | AB53: 25 | AC53: 26 | AD53: 27 | AE53: 28 | AF53: 29 | AG53: 30 | AH53: 31 | AI53: 32 | AJ53: 33 | AK53: 34 | AL53: 35 | AM53: 36 | AN53: 37 | AO53: 38 | AP53: 39 | AQ53: 40 | AR53: 41 | AS53: 42 | AT53: 43 | AU53: 44 | AV53: 45 | AW53: 46 | AX53: 47 | AY53: 48 | AZ53: 49 | BA53: 50 | BB53: 51 | BC53: 52 | BD53: 53 | BE53: 54 | BF53: 55 | BG53: 56 | BH53: 57 | BI53: 58 | BJ53: 59 | BK53: 60 | BL53: 61 | BM53: 62 | BN53: 63 | BO53: 64 | BP53: 65 | BQ53: 66 | BR53: 67 | BS53: 68 | BT53: 69 | BU53: 70 | BV53: 71 | BW53: 72 | BX53: 73 | BY53: 74 | BZ53: 75 | CA53: 76 | CB53: 77 | CC53: 78 | CD53: 79 | CE53: 80 | CF53: 81 | CG53: 82 | CH53: 83 | CI53: 84 | CJ53: 85 | CK53: 86 | CL53: 87 | CM53: 88 | CN53: 89 | CO53: 90 | CP53: 91 | CQ53: 92 | CR53: 93 | CS53: 94 | CT53: 95 | CU53: 96 | CV53: 97 | CW53: 98 | CX53: 99 | CY53: 100
B54: A&E | C54: 0 | D54: 1.73 | E54: 3.828 | F54: 6.116 | G54: 8.252 | H54: 8.434 | I54: 8.314 | J54: 7.57 | K54: 7.27 | L54: 7.264 | M54: 7.166 | N54: 7.052 | O54: 7.054 | P54: 7.18 | Q54: 7.202 | R54: 7.166 | S54: 6.536 | T54: 5.736 | U54: 5.01 | V54: 4.514 | W54: 4.452 | X54: 4.43 | Y54: 4.42 | Z54: 4.42 | AA54: 4.496 | AB54: 4.466 | AC54: 4.52 | AD54: 4.248 | AE54: 4.02 | AF54: 3.848 | AG54: 3.626 | AH54: 3.518 | AI54: 3.226 | AJ54: 3.008 | AK54: 2.596 | AL54: 2.138 | AM54: 1.536 | AN54: 1.016 | AO54: 0.524 | AP54: 0.192 | AQ54: 0.054 | AR54: 0.008 | AS54: 0.002 | AT54: 0 | AU54: 0 | AV54: 0 | AW54: 0 | AX54: 0 | AY54: 0 | AZ54: 0 | BA54: 0 | BB54: 0 | BC54: 0 | BD54: 0 | BE54: 0 | BF54: 0 | BG54: 0 | BH54: 0 | BI54: 0 | BJ54: 0 | BK54: 0 | BL54: 0 | BM54: 0 | BN54: 0 | BO54: 0 | BP54: 0 | BQ54: 0 | BR54: 0 | BS54: 0 | BT54: 0 | BU54: 0 | BV54: 0 | BW54: 0 | BX54: 0 | BY54: 0 | BZ54: 0 | CA54: 0 | CB54: 0 | CC54: 0 | CD54: 0 | CE54: 0 | CF54: 0 | CG54: 0 | CH54: 0 | CI54: 0 | CJ54: 0 | CK54: 0 | CL54: 0 | CM54: 0 | CN54: 0 | CO54: 0 | CP54: 0 | CQ54: 0 | CR54: 0 | CS54: 0 | CT54: 0 | CU54: 0 | CV54: 0 | CW54: 0 | CX54: 0 | CY54: 0
B55: Ward-1 | C55: 0 | D55: 0.104 | E55: 0.16 | F55: 0.274 | G55: 0.394 | H55: 0.446 | I55: 0.502 | J55: 0.498 | K55: 0.45 | L55: 0.42 | M55: 0.416 | N55: 0.498 | O55: 0.504 | P55: 0.424 | Q55: 0.388 | R55: 0.352 | S55: 0.62 | T55: 1.054 | U55: 1.45 | V55: 1.67 | W55: 1.642 | X55: 1.41 | Y55: 1.098 | Z55: 0.848 | AA55: 0.634 | AB55: 0.52 | AC55: 0.494 | AD55: 0.466 | AE55: 0.444 | AF55: 0.382 | AG55: 0.358 | AH55: 0.31 | AI55: 0.346 | AJ55: 0.418 | AK55: 0.634 | AL55: 0.77 | AM55: 0.898 | AN55: 0.944 | AO55: 0.918 | AP55: 0.818 | AQ55: 0.614 | AR55: 0.38 | AS55: 0.216 | AT55: 0.096 | AU55: 0.034 | AV55: 0.014 | AW55: 0.002 | AX55: 0 | AY55: 0 | AZ55: 0 | BA55: 0 | BB55: 0 | BC55: 0 | BD55: 0 | BE55: 0 | BF55: 0 | BG55: 0 | BH55: 0 | BI55: 0 | BJ55: 0 | BK55: 0 | BL55: 0 | BM55: 0 | BN55: 0 | BO55: 0 | BP55: 0 | BQ55: 0 | BR55: 0 | BS55: 0 | BT55: 0 | BU55: 0 | BV55: 0 | BW55: 0 | BX55: 0 | BY55: 0 | BZ55: 0 | CA55: 0 | CB55: 0 | CC55: 0 | CD55: 0 | CE55: 0 | CF55: 0 | CG55: 0 | CH55: 0 | CI55: 0 | CJ55: 0 | CK55: 0 | CL55: 0 | CM55: 0 | CN55: 0 | CO55: 0 | CP55: 0 | CQ55: 0 | CR55: 0 | CS55: 0 | CT55: 0 | CU55: 0 | CV55: 0 | CW55: 0 | CX55: 0 | CY55: 0
B56: Ward-2 | C56: 0 | D56: 0.116 | E56: 0.234 | F56: 0.292 | G56: 0.402 | H56: 0.424 | I56: 0.474 | J56: 0.45 | K56: 0.47 | L56: 0.47 | M56: 0.444 | N56: 0.382 | O56: 0.328 | P56: 0.282 | Q56: 0.22 | R56: 0.16 | S56: 0.148 | T56: 0.192 | U56: 0.23 | V56: 0.308 | W56: 0.35 | X56: 0.354 | Y56: 0.328 | Z56: 0.244 | AA56: 0.178 | AB56: 0.15 | AC56: 0.134 | AD56: 0.14 | AE56: 0.142 | AF56: 0.152 | AG56: 0.146 | AH56: 0.156 | AI56: 0.174 | AJ56: 0.174 | AK56: 0.208 | AL56: 0.232 | AM56: 0.27 | AN56: 0.302 | AO56: 0.322 | AP56: 0.274 | AQ56: 0.322 | AR56: 0.326 | AS56: 0.34 | AT56: 0.348 | AU56: 0.254 | AV56: 0.186 | AW56: 0.11 | AX56: 0.048 | AY56: 0.016 | AZ56: 0.008 | BA56: 0 | BB56: 0 | BC56: 0 | BD56: 0 | BE56: 0 | BF56: 0 | BG56: 0 | BH56: 0 | BI56: 0 | BJ56: 0 | BK56: 0 | BL56: 0 | BM56: 0 | BN56: 0 | BO56: 0 | BP56: 0 | BQ56: 0 | BR56: 0 | BS56: 0 | BT56: 0 | BU56: 0 | BV56: 0 | BW56: 0 | BX56: 0 | BY56: 0 | BZ56: 0 | CA56: 0 | CB56: 0 | CC56: 0 | CD56: 0 | CE56: 0 | CF56: 0 | CG56: 0 | CH56: 0 | CI56: 0 | CJ56: 0 | CK56: 0 | CL56: 0 | CM56: 0 | CN56: 0 | CO56: 0 | CP56: 0 | CQ56: 0 | CR56: 0 | CS56: 0 | CT56: 0 | CU56: 0 | CV56: 0 | CW56: 0 | CX56: 0 | CY56: 0
B57: Ward-3 | C57: 0 | D57: 0.07 | E57: 0.172 | F57: 0.274 | G57: 0.386 | H57: 0.386 | I57: 0.384 | J57: 0.402 | K57: 0.372 | L57: 0.33 | M57: 0.256 | N57: 0.168 | O57: 0.092 | P57: 0.06 | Q57: 0.042 | R57: 0.032 | S57: 0.026 | T57: 0.016 | U57: 0.038 | V57: 0.044 | W57: 0.05 | X57: 0.066 | Y57: 0.064 | Z57: 0.066 | AA57: 0.042 | AB57: 0.026 | AC57: 0.016 | AD57: 0.018 | AE57: 0.022 | AF57: 0.024 | AG57: 0.032 | AH57: 0.04 | AI57: 0.048 | AJ57: 0.062 | AK57: 0.06 | AL57: 0.07 | AM57: 0.096 | AN57: 0.096 | AO57: 0.108 | AP57: 0.154 | AQ57: 0.164 | AR57: 0.172 | AS57: 0.184 | AT57: 0.21 | AU57: 0.242 | AV57: 0.226 | AW57: 0.236 | AX57: 0.246 | AY57: 0.212 | AZ57: 0.15 | BA57: 0.098 | BB57: 0.046 | BC57: 0.012 | BD57: 0.002 | BE57: 0 | BF57: 0 | BG57: 0 | BH57: 0 | BI57: 0 | BJ57: 0 | BK57: 0 | BL57: 0 | BM57: 0 | BN57: 0 | BO57: 0 | BP57: 0 | BQ57: 0 | BR57: 0 | BS57: 0 | BT57: 0 | BU57: 0 | BV57: 0 | BW57: 0 | BX57: 0 | BY57: 0 | BZ57: 0 | CA57: 0 | CB57: 0 | CC57: 0 | CD57: 0 | CE57: 0 | CF57: 0 | CG57: 0 | CH57: 0 | CI57: 0 | CJ57: 0 | CK57: 0 | CL57: 0 | CM57: 0 | CN57: 0 | CO57: 0 | CP57: 0 | CQ57: 0 | CR57: 0 | CS57: 0 | CT57: 0 | CU57: 0 | CV57: 0 | CW57: 0 | CX57: 0 | CY57: 0
B58: Infection events
B59: Time [d] | C59: 0 | D59: 1 | E59: 2 | F59: 3 | G59: 4 | H59: 5 | I59: 6 | J59: 7 | K59: 8 | L59: 9 | M59: 10 | N59: 11 | O59: 12 | P59: 13 | Q59: 14 | R59: 15 | S59: 16 | T59: 17 | U59: 18 | V59: 19 | W59: 20 | X59: 21 | Y59: 22 | Z59: 23 | AA59: 24 | AB59: 25 | AC59: 26 | AD59: 27 | AE59: 28 | AF59: 29 | AG59: 30 | AH59: 31 | AI59: 32 | AJ59: 33 | AK59: 34 | AL59: 35 | AM59: 36 | AN59: 37 | AO59: 38 | AP59: 39 | AQ59: 40 | AR59: 41 | AS59: 42 | AT59: 43 | AU59: 44 | AV59: 45 | AW59: 46 | AX59: 47 | AY59: 48 | AZ59: 49 | BA59: 50 | BB59: 51 | BC59: 52 | BD59: 53 | BE59: 54 | BF59: 55 | BG59: 56 | BH59: 57 | BI59: 58 | BJ59: 59 | BK59: 60 | BL59: 61 | BM59: 62 | BN59: 63 | BO59: 64 | BP59: 65 | BQ59: 66 | BR59: 67 | BS59: 68 | BT59: 69 | BU59: 70 | BV59: 71 | BW59: 72 | BX59: 73 | BY59: 74 | BZ59: 75 | CA59: 76 | CB59: 77 | CC59: 78 | CD59: 79 | CE59: 80 | CF59: 81 | CG59: 82 | CH59: 83 | CI59: 84 | CJ59: 85 | CK59: 86 | CL59: 87 | CM59: 88 | CN59: 89 | CO59: 90 | CP59: 91 | CQ59: 92 | CR59: 93 | CS59: 94 | CT59: 95 | CU59: 96 | CV59: 97 | CW59: 98 | CX59: 99 | CY59: 100
B60: A&E | C60: 0 | D60: 1.758 | E60: 2.098 | F60: 2.288 | G60: 2.136 | H60: 1.822 | I60: 1.848 | J60: 1.844 | K60: 1.724 | L60: 1.67 | M60: 1.68 | N60: 1.698 | O60: 1.738 | P60: 1.84 | Q60: 1.71 | R60: 1.696 | S60: 1.488 | T60: 1.578 | U60: 1.512 | V60: 1.448 | W60: 1.362 | X60: 1.302 | Y60: 1.132 | Z60: 1.17 | AA60: 1.202 | AB60: 1.154 | AC60: 1.186 | AD60: 1.078 | AE60: 1.052 | AF60: 0.956 | AG60: 0.886 | AH60: 0.886 | AI60: 0.782 | AJ60: 0.772 | AK60: 0.662 | AL60: 0.54 | AM60: 0.382 | AN60: 0.278 | AO60: 0.15 | AP60: 0.082 | AQ60: 0.028 | AR60: 0.018 | AS60: 0.004 | AT60: 0 | AU60: 0 | AV60: 0 | AW60: 0 | AX60: 0 | AY60: 0 | AZ60: 0 | BA60: 0 | BB60: 0 | BC60: 0 | BD60: 0 | BE60: 0 | BF60: 0 | BG60: 0 | BH60: 0 | BI60: 0 | BJ60: 0 | BK60: 0 | BL60: 0 | BM60: 0 | BN60: 0 | BO60: 0 | BP60: 0 | BQ60: 0 | BR60: 0 | BS60: 0 | BT60: 0 | BU60: 0 | BV60: 0 | BW60: 0 | BX60: 0 | BY60: 0 | BZ60: 0 | CA60: 0 | CB60: 0 | CC60: 0 | CD60: 0 | CE60: 0 | CF60: 0 | CG60: 0 | CH60: 0 | CI60: 0 | CJ60: 0 | CK60: 0 | CL60: 0 | CM60: 0 | CN60: 0 | CO60: 0 | CP60: 0 | CQ60: 0 | CR60: 0 | CS60: 0 | CT60: 0 | CU60: 0 | CV60: 0 | CW60: 0 | CX60: 0 | CY60: 0
B61: Ward-1 | C61: 0 | D61: 0.076 | E61: 0.084 | F61: 0.114 | G61: 0.12 | H61: 0.118 | I61: 0.158 | J61: 0.126 | K61: 0.106 | L61: 0.1 | M61: 0.09 | N61: 0.108 | O61: 0.138 | P61: 0.106 | Q61: 0.102 | R61: 0.096 | S61: 0.086 | T61: 0.136 | U61: 0.124 | V61: 0.196 | W61: 0.17 | X61: 0.156 | Y61: 0.12 | Z61: 0.09 | AA61: 0.076 | AB61: 0.084 | AC61: 0.066 | AD61: 0.058 | AE61: 0.06 | AF61: 0.07 | AG61: 0.07 | AH61: 0.068 | AI61: 0.054 | AJ61: 0.086 | AK61: 0.092 | AL61: 0.1 | AM61: 0.082 | AN61: 0.096 | AO61: 0.066 | AP61: 0.092 | AQ61: 0.106 | AR61: 0.064 | AS61: 0.03 | AT61: 0.026 | AU61: 0.018 | AV61: 0.006 | AW61: 0 | AX61: 0 | AY61: 0 | AZ61: 0 | BA61: 0 | BB61: 0 | BC61: 0 | BD61: 0 | BE61: 0 | BF61: 0 | BG61: 0 | BH61: 0 | BI61: 0 | BJ61: 0 | BK61: 0 | BL61: 0 | BM61: 0 | BN61: 0 | BO61: 0 | BP61: 0 | BQ61: 0 | BR61: 0 | BS61: 0 | BT61: 0 | BU61: 0 | BV61: 0 | BW61: 0 | BX61: 0 | BY61: 0 | BZ61: 0 | CA61: 0 | CB61: 0 | CC61: 0 | CD61: 0 | CE61: 0 | CF61: 0 | CG61: 0 | CH61: 0 | CI61: 0 | CJ61: 0 | CK61: 0 | CL61: 0 | CM61: 0 | CN61: 0 | CO61: 0 | CP61: 0 | CQ61: 0 | CR61: 0 | CS61: 0 | CT61: 0 | CU61: 0 | CV61: 0 | CW61: 0 | CX61: 0 | CY61: 0
B62: Ward-2 | C62: 0 | D62: 0.116 | E62: 0.118 | F62: 0.088 | G62: 0.11 | H62: 0.116 | I62: 0.142 | J62: 0.094 | K62: 0.128 | L62: 0.12 | M62: 0.12 | N62: 0.1 | O62: 0.094 | P62: 0.082 | Q62: 0.092 | R62: 0.036 | S62: 0.04 | T62: 0.03 | U62: 0.03 | V62: 0.04 | W62: 0.048 | X62: 0.044 | Y62: 0.054 | Z62: 0.036 | AA62: 0.028 | AB62: 0.03 | AC62: 0.04 | AD62: 0.03 | AE62: 0.03 | AF62: 0.044 | AG62: 0.028 | AH62: 0.042 | AI62: 0.046 | AJ62: 0.044 | AK62: 0.05 | AL62: 0.052 | AM62: 0.05 | AN62: 0.066 | AO62: 0.08 | AP62: 0.068 | AQ62: 0.06 | AR62: 0.068 | AS62: 0.08 | AT62: 0.07 | AU62: 0.038 | AV62: 0.04 | AW62: 0.034 | AX62: 0.016 | AY62: 0.008 | AZ62: 0.004 | BA62: 0 | BB62: 0 | BC62: 0 | BD62: 0 | BE62: 0 | BF62: 0 | BG62: 0 | BH62: 0 | BI62: 0 | BJ62: 0 | BK62: 0 | BL62: 0 | BM62: 0 | BN62: 0 | BO62: 0 | BP62: 0 | BQ62: 0 | BR62: 0 | BS62: 0 | BT62: 0 | BU62: 0 | BV62: 0 | BW62: 0 | BX62: 0 | BY62: 0 | BZ62: 0 | CA62: 0 | CB62: 0 | CC62: 0 | CD62: 0 | CE62: 0 | CF62: 0 | CG62: 0 | CH62: 0 | CI62: 0 | CJ62: 0 | CK62: 0 | CL62: 0 | CM62: 0 | CN62: 0 | CO62: 0 | CP62: 0 | CQ62: 0 | CR62: 0 | CS62: 0 | CT62: 0 | CU62: 0 | CV62: 0 | CW62: 0 | CX62: 0 | CY62: 0
B63: Ward-3 | C63: 0 | D63: 0.07 | E63: 0.102 | F63: 0.102 | G63: 0.136 | H63: 0.122 | I63: 0.126 | J63: 0.12 | K63: 0.142 | L63: 0.104 | M63: 0.094 | N63: 0.046 | O63: 0.036 | P63: 0.026 | Q63: 0.02 | R63: 0.008 | S63: 0.002 | T63: 0.006 | U63: 0.014 | V63: 0.002 | W63: 0.012 | X63: 0.002 | Y63: 0.006 | Z63: 0.01 | AA63: 0.022 | AB63: 0.008 | AC63: 0 | AD63: 0 | AE63: 0.006 | AF63: 0.008 | AG63: 0.008 | AH63: 0.006 | AI63: 0.01 | AJ63: 0.012 | AK63: 0.012 | AL63: 0.016 | AM63: 0.024 | AN63: 0.02 | AO63: 0.016 | AP63: 0.032 | AQ63: 0.038 | AR63: 0.034 | AS63: 0.05 | AT63: 0.058 | AU63: 0.062 | AV63: 0.046 | AW63: 0.074 | AX63: 0.072 | AY63: 0.052 | AZ63: 0.022 | BA63: 0.022 | BB63: 0.018 | BC63: 0.006 | BD63: 0 | BE63: 0 | BF63: 0 | BG63: 0 | BH63: 0 | BI63: 0 | BJ63: 0 | BK63: 0 | BL63: 0 | BM63: 0 | BN63: 0 | BO63: 0 | BP63: 0 | BQ63: 0 | BR63: 0 | BS63: 0 | BT63: 0 | BU63: 0 | BV63: 0 | BW63: 0 | BX63: 0 | BY63: 0 | BZ63: 0 | CA63: 0 | CB63: 0 | CC63: 0 | CD63: 0 | CE63: 0 | CF63: 0 | CG63: 0 | CH63: 0 | CI63: 0 | CJ63: 0 | CK63: 0 | CL63: 0 | CM63: 0 | CN63: 0 | CO63: 0 | CP63: 0 | CQ63: 0 | CR63: 0 | CS63: 0 | CT63: 0 | CU63: 0 | CV63: 0 | CW63: 0 | CX63: 0 | CY63: 0
B72: Unit operational
B73: Time [d] | C73: 0 | D73: 1 | E73: 2 | F73: 3 | G73: 4 | H73: 5 | I73: 6 | J73: 7 | K73: 8 | L73: 9 | M73: 10 | N73: 11 | O73: 12 | P73: 13 | Q73: 14 | R73: 15 | S73: 16 | T73: 17 | U73: 18 | V73: 19 | W73: 20 | X73: 21 | Y73: 22 | Z73: 23 | AA73: 24 | AB73: 25 | AC73: 26 | AD73: 27 | AE73: 28 | AF73: 29 | AG73: 30 | AH73: 31 | AI73: 32 | AJ73: 33 | AK73: 34 | AL73: 35 | AM73: 36 | AN73: 37 | AO73: 38 | AP73: 39 | AQ73: 40 | AR73: 41 | AS73: 42 | AT73: 43 | AU73: 44 | AV73: 45 | AW73: 46 | AX73: 47 | AY73: 48 | AZ73: 49 | BA73: 50 | BB73: 51 | BC73: 52 | BD73: 53 | BE73: 54 | BF73: 55 | BG73: 56 | BH73: 57 | BI73: 58 | BJ73: 59 | BK73: 60 | BL73: 61 | BM73: 62 | BN73: 63 | BO73: 64 | BP73: 65 | BQ73: 66 | BR73: 67 | BS73: 68 | BT73: 69 | BU73: 70 | BV73: 71 | BW73: 72 | BX73: 73 | BY73: 74 | BZ73: 75 | CA73: 76 | CB73: 77 | CC73: 78 | CD73: 79 | CE73: 80 | CF73: 81 | CG73: 82 | CH73: 83 | CI73: 84 | CJ73: 85 | CK73: 86 | CL73: 87 | CM73: 88 | CN73: 89 | CO73: 90 | CP73: 91 | CQ73: 92 | CR73: 93 | CS73: 94 | CT73: 95 | CU73: 96 | CV73: 97 | CW73: 98 | CX73: 99 | CY73: 100
B74: A&E | C74: 1 | D74: 1 | E74: 1 | F74: 1 | G74: 1 | H74: 1 | I74: 1 | J74: 1 | K74: 1 | L74: 1 | M74: 1 | N74: 1 | O74: 1 | P74: 0.999 | Q74: 0.998 | R74: 0.991 | S74: 0.992 | T74: 0.994 | U74: 0.997 | V74: 0.995 | W74: 0.997 | X74: 0.998 | Y74: 0.999 | Z74: 1 | AA74: 1 | AB74: 1 | AC74: 1 | AD74: 1 | AE74: 0.999 | AF74: 0.999 | AG74: 1 | AH74: 1 | AI74: 1 | AJ74: 1 | AK74: 1 | AL74: 1 | AM74: 1 | AN74: 1 | AO74: 1 | AP74: 1 | AQ74: 1 | AR74: 1 | AS74: 1 | AT74: 1 | AU74: 1 | AV74: 1 | AW74: 1 | AX74: 1 | AY74: 1 | AZ74: 1 | BA74: 1 | BB74: 1 | BC74: 1 | BD74: 1 | BE74: 1 | BF74: 1 | BG74: 1 | BH74: 1 | BI74: 1 | BJ74: 1 | BK74: 1 | BL74: 1 | BM74: 1 | BN74: 1 | BO74: 1 | BP74: 1 | BQ74: 1 | BR74: 1 | BS74: 1 | BT74: 1 | BU74: 1 | BV74: 1 | BW74: 1 | BX74: 1 | BY74: 1 | BZ74: 1 | CA74: 1 | CB74: 1 | CC74: 1 | CD74: 1 | CE74: 1 | CF74: 1 | CG74: 1 | CH74: 1 | CI74: 1 | CJ74: 1 | CK74: 1 | CL74: 1 | CM74: 1 | CN74: 1 | CO74: 1 | CP74: 1 | CQ74: 1 | CR74: 1 | CS74: 1 | CT74: 1 | CU74: 1 | CV74: 1 | CW74: 1 | CX74: 1 | CY74: 1 | CZ74: 0
B75: Ward-1 | C75: 1 | D75: 1 | E75: 1 | F75: 1 | G75: 1 | H75: 1 | I75: 1 | J75: 1 | K75: 1 | L75: 1 | M75: 0.999 | N75: 0.998 | O75: 0.983 | P75: 0.946 | Q75: 0.867 | R75: 0.731 | S75: 0.736 | T75: 0.763 | U75: 0.801 | V75: 0.85 | W75: 0.875 | X75: 0.905 | Y75: 0.912 | Z75: 0.919 | AA75: 0.918 | AB75: 0.91 | AC75: 0.93 | AD75: 0.942 | AE75: 0.951 | AF75: 0.962 | AG75: 0.96 | AH75: 0.97 | AI75: 0.978 | AJ75: 0.982 | AK75: 0.989 | AL75: 0.991 | AM75: 0.99 | AN75: 0.997 | AO75: 0.997 | AP75: 0.999 | AQ75: 1 | AR75: 1 | AS75: 1 | AT75: 1 | AU75: 1 | AV75: 1 | AW75: 1 | AX75: 1 | AY75: 1 | AZ75: 1 | BA75: 1 | BB75: 1 | BC75: 1 | BD75: 1 | BE75: 1 | BF75: 1 | BG75: 1 | BH75: 1 | BI75: 1 | BJ75: 1 | BK75: 1 | BL75: 1 | BM75: 1 | BN75: 1 | BO75: 1 | BP75: 1 | BQ75: 1 | BR75: 1 | BS75: 1 | BT75: 1 | BU75: 1 | BV75: 1 | BW75: 1 | BX75: 1 | BY75: 1 | BZ75: 1 | CA75: 1 | CB75: 1 | CC75: 1 | CD75: 1 | CE75: 1 | CF75: 1 | CG75: 1 | CH75: 1 | CI75: 1 | CJ75: 1 | CK75: 1 | CL75: 1 | CM75: 1 | CN75: 1 | CO75: 1 | CP75: 1 | CQ75: 1 | CR75: 1 | CS75: 1 | CT75: 1 | CU75: 1 | CV75: 1 | CW75: 1 | CX75: 1 | CY75: 1 | CZ75: 0
B76: Ward-2 | C76: 1 | D76: 1 | E76: 1 | F76: 1 | G76: 1 | H76: 1 | I76: 1 | J76: 1 | K76: 0.998 | L76: 0.995 | M76: 0.962 | N76: 0.855 | O76: 0.668 | P76: 0.467 | Q76: 0.291 | R76: 0.151 | S76: 0.142 | T76: 0.159 | U76: 0.202 | V76: 0.229 | W76: 0.262 | X76: 0.293 | Y76: 0.302 | Z76: 0.329 | AA76: 0.328 | AB76: 0.337 | AC76: 0.362 | AD76: 0.393 | AE76: 0.434 | AF76: 0.474 | AG76: 0.52 | AH76: 0.546 | AI76: 0.585 | AJ76: 0.663 | AK76: 0.719 | AL76: 0.779 | AM76: 0.827 | AN76: 0.872 | AO76: 0.894 | AP76: 0.93 | AQ76: 0.967 | AR76: 0.976 | AS76: 0.987 | AT76: 0.994 | AU76: 0.998 | AV76: 1 | AW76: 1 | AX76: 1 | AY76: 1 | AZ76: 1 | BA76: 1 | BB76: 1 | BC76: 1 | BD76: 1 | BE76: 1 | BF76: 1 | BG76: 1 | BH76: 1 | BI76: 1 | BJ76: 1 | BK76: 1 | BL76: 1 | BM76: 1 | BN76: 1 | BO76: 1 | BP76: 1 | BQ76: 1 | BR76: 1 | BS76: 1 | BT76: 1 | BU76: 1 | BV76: 1 | BW76: 1 | BX76: 1 | BY76: 1 | BZ76: 1 | CA76: 1 | CB76: 1 | CC76: 1 | CD76: 1 | CE76: 1 | CF76: 1 | CG76: 1 | CH76: 1 | CI76: 1 | CJ76: 1 | CK76: 1 | CL76: 1 | CM76: 1 | CN76: 1 | CO76: 1 | CP76: 1 | CQ76: 1 | CR76: 1 | CS76: 1 | CT76: 1 | CU76: 1 | CV76: 1 | CW76: 1 | CX76: 1 | CY76: 1 | CZ76: 0
B77: Ward-3 | C77: 1 | D77: 1 | E77: 1 | F77: 1 | G77: 1 | H77: 1 | I77: 0.998 | J77: 0.956 | K77: 0.836 | L77: 0.655 | M77: 0.404 | N77: 0.202 | O77: 0.085 | P77: 0.031 | Q77: 0.013 | R77: 0.001 | S77: 0 | T77: 0.002 | U77: 0.003 | V77: 0.005 | W77: 0.005 | X77: 0.008 | Y77: 0.017 | Z77: 0.016 | AA77: 0.015 | AB77: 0.014 | AC77: 0.02 | AD77: 0.022 | AE77: 0.029 | AF77: 0.043 | AG77: 0.054 | AH77: 0.066 | AI77: 0.09 | AJ77: 0.123 | AK77: 0.175 | AL77: 0.219 | AM77: 0.282 | AN77: 0.332 | AO77: 0.394 | AP77: 0.461 | AQ77: 0.539 | AR77: 0.626 | AS77: 0.722 | AT77: 0.816 | AU77: 0.887 | AV77: 0.934 | AW77: 0.975 | AX77: 0.991 | AY77: 0.994 | AZ77: 0.997 | BA77: 0.997 | BB77: 0.999 | BC77: 1 | BD77: 1 | BE77: 1 | BF77: 1 | BG77: 1 | BH77: 1 | BI77: 1 | BJ77: 1 | BK77: 1 | BL77: 1 | BM77: 1 | BN77: 1 | BO77: 1 | BP77: 1 | BQ77: 1 | BR77: 1 | BS77: 1 | BT77: 1 | BU77: 1 | BV77: 1 | BW77: 1 | BX77: 1 | BY77: 1 | BZ77: 1 | CA77: 1 | CB77: 1 | CC77: 1 | CD77: 1 | CE77: 1 | CF77: 1 | CG77: 1 | CH77: 1 | CI77: 1 | CJ77: 1 | CK77: 1 | CL77: 1 | CM77: 1 | CN77: 1 | CO77: 1 | CP77: 1 | CQ77: 1 | CR77: 1 | CS77: 1 | CT77: 1 | CU77: 1 | CV77: 1 | CW77: 1 | CX77: 1 | CY77: 1 | CZ77: 0
B78: Open-beds | C78: 1 | D78: 1 | E78: 1 | F78: 1 | G78: 1 | H78: 1 | I78: 0.9993333333 | J78: 0.9853333333 | K78: 0.9446666667 | L78: 0.8833333333 | M78: 0.7883333333 | N78: 0.685 | O78: 0.5786666667 | P78: 0.4813333333 | Q78: 0.3903333333 | R78: 0.2943333333 | S78: 0.2926666667 | T78: 0.308 | U78: 0.3353333333 | V78: 0.3613333333 | W78: 0.3806666667 | X78: 0.402 | Y78: 0.4103333333 | Z78: 0.4213333333 | AA78: 0.4203333333 | AB78: 0.4203333333 | AC78: 0.4373333333 | AD78: 0.4523333333 | AE78: 0.4713333333 | AF78: 0.493 | AG78: 0.5113333333 | AH78: 0.5273333333 | AI78: 0.551 | AJ78: 0.5893333333 | AK78: 0.6276666667 | AL78: 0.663 | AM78: 0.6996666667 | AN78: 0.7336666667 | AO78: 0.7616666667 | AP78: 0.7966666667 | AQ78: 0.8353333333 | AR78: 0.8673333333 | AS78: 0.903 | AT78: 0.9366666667 | AU78: 0.9616666667 | AV78: 0.978 | AW78: 0.9916666667 | AX78: 0.997 | AY78: 0.998 | AZ78: 0.999 | BA78: 0.999 | BB78: 0.9996666667 | BC78: 1 | BD78: 1 | BE78: 1 | BF78: 1 | BG78: 1 | BH78: 1 | BI78: 1 | BJ78: 1 | BK78: 1 | BL78: 1 | BM78: 1 | BN78: 1 | BO78: 1 | BP78: 1 | BQ78: 1 | BR78: 1 | BS78: 1 | BT78: 1 | BU78: 1 | BV78: 1 | BW78: 1 | BX78: 1 | BY78: 1 | BZ78: 1 | CA78: 1 | CB78: 1 | CC78: 1 | CD78: 1 | CE78: 1 | CF78: 1 | CG78: 1 | CH78: 1 | CI78: 1 | CJ78: 1 | CK78: 1 | CL78: 1 | CM78: 1 | CN78: 1 | CO78: 1 | CP78: 1 | CQ78: 1 | CR78: 1 | CS78: 1 | CT78: 1 | CU78: 1 | CV78: 1 | CW78: 1 | CX78: 1 | CY78: 1 | CZ78: 0
C102: n | D102: n-10 | E102: increment
B103: average | C103: =AVERAGE(C111:CY111) -> 0.8852772277 | D103: =AVERAGE(C112:CY112) -> 0.8852924833 | E103: =(C103-D103)/10 -> -1.525560719e-06
B104: rel std dev | C104: =AVERAGE(C113:CY113) -> 0.07662430626
B107: cross-check: | C107: =SUM(C74:C77)/4-C111 -> 0 | D107: =SUM(D74:D77)/4-D111 -> 0 | E107: 0 | F107: 0 | G107: =SUM(G74:G77)/4-G111 -> 0 | H107: 0 | I107: 0 | J107: 0 | K107: 0 | L107: 0 | M107: 0 | N107: 0 | O107: 0 | P107: 0 | Q107: 0 | R107: 0 | S107: 0 | T107: 0 | U107: 0 | V107: 0 | W107: 0 | X107: 0 | Y107: 0 | Z107: 0 | AA107: 0 | AB107: 0 | AC107: 0 | AD107: 0 | AE107: 0 | AF107: 0 | AG107: 0 | AH107: 0 | AI107: 0 | AJ107: 0 | AK107: 0 | AL107: 0 | AM107: 0 | AN107: 0 | AO107: 0 | AP107: 0 | AQ107: 0 | AR107: 0 | AS107: 0 | AT107: 0 | AU107: 0 | AV107: 0 | AW107: 0 | AX107: 0 | AY107: 0 | AZ107: 0 | BA107: 0 | BB107: 0 | BC107: 0 | BD107: 0 | BE107: 0 | BF107: 0 | BG107: 0 | BH107: 0 | BI107: 0 | BJ107: 0 | BK107: 0 | BL107: 0 | BM107: 0 | BN107: 0 | BO107: 0 | BP107: =SUM(BP74:BP77)/4-BP111 -> 0 | BQ107: 0 | BR107: 0 | BS107: 0 | BT107: 0 | BU107: 0 | BV107: 0 | BW107: 0 | BX107: 0 | BY107: 0 | BZ107: 0 | CA107: 0 | CB107: 0 | CC107: 0 | CD107: 0 | CE107: 0 | CF107: 0 | CG107: 0 | CH107: 0 | CI107: 0 | CJ107: 0 | CK107: 0 | CL107: 0 | CM107: 0 | CN107: 0 | CO107: 0 | CP107: 0 | CQ107: 0 | CR107: 0 | CS107: 0 | CT107: 0 | CU107: 0 | CV107: 0 | CW107: 0 | CX107: 0 | CY107: 0
B109: Hospital operational - statistical evaluation
B110: Time [d] | C110: 0 | D110: 1 | E110: 2 | F110: 3 | G110: 4 | H110: 5 | I110: 6 | J110: 7 | K110: 8 | L110: 9 | M110: 10 | N110: 11 | O110: 12 | P110: 13 | Q110: 14 | R110: 15 | S110: 16 | T110: 17 | U110: 18 | V110: 19 | W110: 20 | X110: 21 | Y110: 22 | Z110: 23 | AA110: 24 | AB110: 25 | AC110: 26 | AD110: 27 | AE110: 28 | AF110: 29 | AG110: 30 | AH110: 31 | AI110: 32 | AJ110: 33 | AK110: 34 | AL110: 35 | AM110: 36 | AN110: 37 | AO110: 38 | AP110: 39 | AQ110: 40 | AR110: 41 | AS110: 42 | AT110: 43 | AU110: 44 | AV110: 45 | AW110: 46 | AX110: 47 | AY110: 48 | AZ110: 49 | BA110: 50 | BB110: 51 | BC110: 52 | BD110: 53 | BE110: 54 | BF110: 55 | BG110: 56 | BH110: 57 | BI110: 58 | BJ110: 59 | BK110: 60 | BL110: 61 | BM110: 62 | BN110: 63 | BO110: 64 | BP110: 65 | BQ110: 66 | BR110: 67 | BS110: 68 | BT110: 69 | BU110: 70 | BV110: 71 | BW110: 72 | BX110: 73 | BY110: 74 | BZ110: 75 | CA110: 76 | CB110: 77 | CC110: 78 | CD110: 79 | CE110: 80 | CF110: 81 | CG110: 82 | CH110: 83 | CI110: 84 | CJ110: 85 | CK110: 86 | CL110: 87 | CM110: 88 | CN110: 89 | CO110: 90 | CP110: 91 | CQ110: 92 | CR110: 93 | CS110: 94 | CT110: 95 | CU110: 96 | CV110: 97 | CW110: 98 | CX110: 99 | CY110: 100
B111: top down | C111: 1 | D111: =AVERAGE(D119:D50000) -> 1 | E111: =AVERAGE(E119:E50000) -> 1 | F111: 1 | G111: 1 | H111: 1 | I111: 0.9995 | J111: 0.989 | K111: 0.9585 | L111: 0.9125 | M111: 0.84125 | N111: 0.76375 | O111: 0.684 | P111: 0.61075 | Q111: 0.54225 | R111: 0.4685 | S111: 0.4675 | T111: 0.4795 | U111: 0.50075 | V111: 0.51975 | W111: 0.53475 | X111: 0.551 | Y111: 0.5575 | Z111: 0.566 | AA111: 0.56525 | AB111: 0.56525 | AC111: 0.578 | AD111: 0.58925 | AE111: 0.60325 | AF111: 0.6195 | AG111: 0.6335 | AH111: 0.6455 | AI111: 0.66325 | AJ111: 0.692 | AK111: 0.72075 | AL111: 0.74725 | AM111: 0.77475 | AN111: 0.80025 | AO111: 0.82125 | AP111: 0.8475 | AQ111: 0.8765 | AR111: 0.9005 | AS111: 0.92725 | AT111: 0.9525 | AU111: 0.97125 | AV111: 0.9835 | AW111: 0.99375 | AX111: 0.99775 | AY111: 0.9985 | AZ111: 0.99925 | BA111: 0.99925 | BB111: 0.99975 | BC111: 1 | BD111: 1 | BE111: 1 | BF111: 1 | BG111: 1 | BH111: 1 | BI111: 1 | BJ111: 1 | BK111: 1 | BL111: 1 | BM111: 1 | BN111: 1 | BO111: 1 | BP111: 1 | BQ111: =AVERAGE(BQ119:BQ50000) -> 1 | BR111: 1 | BS111: 1 | BT111: 1 | BU111: 1 | BV111: 1 | BW111: 1 | BX111: 1 | BY111: 1 | BZ111: 1 | CA111: 1 | CB111: 1 | CC111: 1 | CD111: 1 | CE111: 1 | CF111: 1 | CG111: 1 | CH111: 1 | CI111: 1 | CJ111: 1 | CK111: 1 | CL111: 1 | CM111: 1 | CN111: 1 | CO111: 1 | CP111: 1 | CQ111: 1 | CR111: 1 | CS111: 1 | CT111: 1 | CU111: 1 | CV111: 1 | CW111: 1 | CX111: 1 | CY111: 1
B112: average(n-10) | C112: 1 | D112: =AVERAGE(D129:D50000) -> 1 | E112: =AVERAGE(E129:E50000) -> 1 | F112: 1 | G112: 1 | H112: 1 | I112: 0.9994897959 | J112: 0.9887755102 | K112: 0.9579081633 | L112: 0.9125 | M112: 0.8408163265 | N112: 0.7632653061 | O112: 0.6834183673 | P112: 0.6099489796 | Q112: 0.5413265306 | R112: 0.4681122449 | S112: 0.4676020408 | T112: 0.4795918367 | U112: 0.5007653061 | V112: 0.5198979592 | W112: 0.5346938776 | X112: 0.550255102 | Y112: 0.5579081633 | Z112: 0.5660714286 | AA112: 0.5650510204 | AB112: 0.5645408163 | AC112: 0.5775510204 | AD112: 0.587755102 | AE112: 0.6020408163 | AF112: 0.6196428571 | AG112: 0.6336734694 | AH112: 0.6454081633 | AI112: 0.6637755102 | AJ112: 0.6918367347 | AK112: 0.7214285714 | AL112: 0.7477040816 | AM112: 0.7757653061 | AN112: 0.8007653061 | AO112: 0.8224489796 | AP112: 0.8489795918 | AQ112: 0.8772959184 | AR112: 0.9015306122 | AS112: 0.9285714286 | AT112: 0.9530612245 | AU112: 0.9716836735 | AV112: 0.9834183673 | AW112: 0.993877551 | AX112: 0.9977040816 | AY112: 0.9984693878 | AZ112: 0.9992346939 | BA112: 0.9992346939 | BB112: 0.999744898 | BC112: 1 | BD112: 1 | BE112: 1 | BF112: 1 | BG112: 1 | BH112: 1 | BI112: 1 | BJ112: 1 | BK112: 1 | BL112: 1 | BM112: 1 | BN112: 1 | BO112: 1 | BP112: 1 | BQ112: =AVERAGE(BQ129:BQ50000) -> 1 | BR112: 1 | BS112: 1 | BT112: 1 | BU112: 1 | BV112: 1 | BW112: 1 | BX112: 1 | BY112: 1 | BZ112: 1 | CA112: 1 | CB112: 1 | CC112: 1 | CD112: 1 | CE112: 1 | CF112: 1 | CG112: 1 | CH112: 1 | CI112: 1 | CJ112: 1 | CK112: 1 | CL112: 1 | CM112: 1 | CN112: 1 | CO112: 1 | CP112: 1 | CQ112: 1 | CR112: 1 | CS112: 1 | CT112: 1 | CU112: 1 | CV112: 1 | CW112: 1 | CX112: 1 | CY112: 1
B113: stddev(n) | C113: 0 | D113: =STDEVA(D119:D50000)/D111 -> 0 | E113: =STDEVA(E119:E50000)/E111 -> 0 | F113: 0 | G113: 0 | H113: 0 | I113: 0.0079017195 | J113: 0.04005932594 | K113: 0.07496562189 | L113: 0.1035259673 | M113: 0.1357588756 | N113: 0.1620095972 | O113: 0.1984799851 | P113: 0.2304237372 | Q113: 0.2686803771 | R113: 0.3059737304 | S113: 0.2961588995 | T113: 0.2850330905 | U113: 0.2807031378 | V113: 0.262511145 | W113: 0.2499094713 | X113: 0.2348501528 | Y113: 0.241770735 | Z113: 0.2374015996 | AA113: 0.23815937 | AB113: 0.2434501129 | AC113: 0.2346207069 | AD113: 0.2271417053 | AE113: 0.2290752644 | AF113: 0.2301184735 | AG113: 0.2289269466 | AH113: 0.227474053 | AI113: 0.2219691568 | AJ113: 0.2182349504 | AK113: 0.2122834443 | AL113: 0.2057300251 | AM113: 0.1982487176 | AN113: 0.1837049699 | AO113: 0.1774905704 | AP113: 0.1617049312 | AQ113: 0.1418860319 | AR113: 0.1314083723 | AS113: 0.1141260344 | AT113: 0.08905734999 | AU113: 0.06926881473 | AV113: 0.05001973776 | AW113: 0.0296629331 | AX113: 0.0184634382 | AY113: 0.01577950923 | AZ113: 0.009670287876 | BA113: 0.009670287876 | BB113: 0.005591567836 | BC113: 0 | BD113: 0 | BE113: 0 | BF113: 0 | BG113: 0 | BH113: 0 | BI113: 0 | BJ113: 0 | BK113: 0 | BL113: 0 | BM113: 0 | BN113: 0 | BO113: 0 | BP113: 0 | BQ113: =STDEVA(BQ119:BQ50000)/BQ111 -> 0 | BR113: 0 | BS113: 0 | BT113: 0 | BU113: 0 | BV113: 0 | BW113: 0 | BX113: 0 | BY113: 0 | BZ113: 0 | CA113: 0 | CB113: 0 | CC113: 0 | CD113: 0 | CE113: 0 | CF113: 0 | CG113: 0 | CH113: 0 | CI113: 0 | CJ113: 0 | CK113: 0 | CL113: 0 | CM113: 0 | CN113: 0 | CO113: 0 | CP113: 0 | CQ113: 0 | CR113: 0 | CS113: 0 | CT113: 0 | CU113: 0 | CV113: 0 | CW113: 0 | CX113: 0 | CY113: 0
B114: ± std dev top | C114: 0 | D114: =D111+D113*D111 -> 1 | E114: =E111+E113*E111 -> 1 | F114: 1 | G114: 1 | H114: 1 | I114: 1.007397769 | J114: 1.028618673 | K114: 1.030354549 | L114: 1.006967445 | M114: 0.9554571541 | N114: 0.8874848298 | O114: 0.8197603098 | P114: 0.7514812975 | Q114: 0.6879419345 | R114: 0.6118486927 | S114: 0.6059542855 | T114: 0.6161733669 | U114: 0.6413120963 | V114: 0.6561901676 | W114: 0.6683890898 | X114: 0.6804024342 | Y114: 0.6922871847 | Z114: 0.7003693054 | AA114: 0.6998695839 | AB114: 0.7028601763 | AC114: 0.7136107686 | AD114: 0.7230932499 | AE114: 0.7414396532 | AF114: 0.7620583943 | AG114: 0.7785252207 | AH114: 0.7923345012 | AI114: 0.8104710432 | AJ114: 0.8430185857 | AK114: 0.8737532925 | AL114: 0.9009817612 | AM114: 0.928343194 | AN114: 0.9472599021 | AO114: 0.9670141309 | AP114: 0.9845449292 | AQ114: 1.000863107 | AR114: 1.018833239 | AS114: 1.033073365 | AT114: 1.037327126 | AU114: 1.038527336 | AV114: 1.032694412 | AW114: 1.02322754 | AX114: 1.016171895 | AY114: 1.01425584 | AZ114: 1.008913035 | BA114: 1.008913035 | BB114: 1.00534017 | BC114: 1 | BD114: 1 | BE114: 1 | BF114: 1 | BG114: 1 | BH114: 1 | BI114: 1 | BJ114: 1 | BK114: 1 | BL114: 1 | BM114: 1 | BN114: 1 | BO114: 1 | BP114: 1 | BQ114: =BQ111+BQ113*BQ111 -> 1 | BR114: 1 | BS114: 1 | BT114: 1 | BU114: 1 | BV114: 1 | BW114: 1 | BX114: 1 | BY114: 1 | BZ114: 1 | CA114: 1 | CB114: 1 | CC114: 1 | CD114: 1 | CE114: 1 | CF114: 1 | CG114: 1 | CH114: 1 | CI114: 1 | CJ114: 1 | CK114: 1 | CL114: 1 | CM114: 1 | CN114: 1 | CO114: 1 | CP114: 1 | CQ114: 1 | CR114: 1 | CS114: 1 | CT114: 1 | CU114: 1 | CV114: 1 | CW114: 1 | CX114: 1 | CY114: 1
B115: lower bound top | C115: 0 | D115: =D111-D113*D111 -> 1 | E115: =E111-E113*E111 -> 1 | F115: 1 | G115: 1 | H115: 1 | I115: 0.9916022314 | J115: 0.9493813266 | K115: 0.8866454514 | L115: 0.8180325548 | M115: 0.7270428459 | N115: 0.6400151702 | O115: 0.5482396902 | P115: 0.4700187025 | Q115: 0.3965580655 | R115: 0.3251513073 | S115: 0.3290457145 | T115: 0.3428266331 | U115: 0.3601879037 | V115: 0.3833098324 | W115: 0.4011109102 | X115: 0.4215975658 | Y115: 0.4227128153 | Z115: 0.4316306946 | AA115: 0.4306304161 | AB115: 0.4276398237 | AC115: 0.4423892314 | AD115: 0.4554067501 | AE115: 0.4650603468 | AF115: 0.4769416057 | AG115: 0.4884747793 | AH115: 0.4986654988 | AI115: 0.5160289568 | AJ115: 0.5409814143 | AK115: 0.5677467075 | AL115: 0.5935182388 | AM115: 0.621156806 | AN115: 0.6532400979 | AO115: 0.6754858691 | AP115: 0.7104550708 | AQ115: 0.7521368931 | AR115: 0.7821667608 | AS115: 0.8214266346 | AT115: 0.8676728741 | AU115: 0.9039726637 | AV115: 0.9343055879 | AW115: 0.9642724602 | AX115: 0.9793281045 | AY115: 0.98274416 | AZ115: 0.9895869648 | BA115: 0.9895869648 | BB115: 0.9941598301 | BC115: 1 | BD115: 1 | BE115: 1 | BF115: 1 | BG115: 1 | BH115: 1 | BI115: 1 | BJ115: 1 | BK115: 1 | BL115: 1 | BM115: 1 | BN115: 1 | BO115: 1 | BP115: 1 | BQ115: =BQ111-BQ113*BQ111 -> 1 | BR115: 1 | BS115: 1 | BT115: 1 | BU115: 1 | BV115: 1 | BW115: 1 | BX115: 1 | BY115: 1 | BZ115: 1 | CA115: 1 | CB115: 1 | CC115: 1 | CD115: 1 | CE115: 1 | CF115: 1 | CG115: 1 | CH115: 1 | CI115: 1 | CJ115: 1 | CK115: 1 | CL115: 1 | CM115: 1 | CN115: 1 | CO115: 1 | CP115: 1 | CQ115: 1 | CR115: 1 | CS115: 1 | CT115: 1 | CU115: 1 | CV115: 1 | CW115: 1 | CX115: 1 | CY115: 1
B118: Time [d] | C118: 0 | D118: 1 | E118: 2 | F118: 3 | G118: 4 | H118: 5 | I118: 6 | J118: 7 | K118: 8 | L118: 9 | M118: 10 | N118: 11 | O118: 12 | P118: 13 | Q118: 14 | R118: 15 | S118: 16 | T118: 17 | U118: 18 | V118: 19 | W118: 20 | X118: 21 | Y118: 22 | Z118: 23 | AA118: 24 | AB118: 25 | AC118: 26 | AD118: 27 | AE118: 28 | AF118: 29 | AG118: 30 | AH118: 31 | AI118: 32 | AJ118: 33 | AK118: 34 | AL118: 35 | AM118: 36 | AN118: 37 | AO118: 38 | AP118: 39 | AQ118: 40 | AR118: 41 | AS118: 42 | AT118: 43 | AU118: 44 | AV118: 45 | AW118: 46 | AX118: 47 | AY118: 48 | AZ118: 49 | BA118: 50 | BB118: 51 | BC118: 52 | BD118: 53 | BE118: 54 | BF118: 55 | BG118: 56 | BH118: 57 | BI118: 58 | BJ118: 59 | BK118: 60 | BL118: 61 | BM118: 62 | BN118: 63 | BO118: 64 | BP118: 65 | BQ118: 66 | BR118: 67 | BS118: 68 | BT118: 69 | BU118: 70 | BV118: 71 | BW118: 72 | BX118: 73 | BY118: 74 | BZ118: 75 | CA118: 76 | CB118: 77 | CC118: 78 | CD118: 79 | CE118: 80 | CF118: 81 | CG118: 82 | CH118: 83 | CI118: 84 | CJ118: 85 | CK118: 86 | CL118: 87 | CM118: 88 | CN118: 89 | CO118: 90 | CP118: 91 | CQ118: 92 | CR118: 93 | CS118: 94 | CT118: 95 | CU118: 96 | CV118: 97 | CW118: 98 | CX118: 99 | CY118: 100
A119: n: | B119: 1 | D119: 1 | E119: 1 | F119: 1 | G119: 1 | H119: 1 | I119: 1 | J119: 1 | K119: 1 | L119: 1 | M119: 1 | N119: 0.875 | O119: 0.875 | P119: 0.75 | Q119: 0.75 | R119: 0.625 | S119: 0.375 | T119: 0.5 | U119: 0.375 | V119: 0.375 | W119: 0.5 | X119: 0.625 | Y119: 0.625 | Z119: 0.625 | AA119: 0.625 | AB119: 0.625 | AC119: 0.625 | AD119: 0.625 | AE119: 0.625 | AF119: 0.5 | AG119: 0.625 | AH119: 0.625 | AI119: 0.625 | AJ119: 0.75 | AK119: 0.625 | AL119: 0.625 | AM119: 0.625 | AN119: 0.75 | AO119: 0.875 | AP119: 0.875 | AQ119: 0.875 | AR119: 0.875 | AS119: 0.875 | AT119: 1 | AU119: 1 | AV119: 1 | AW119: 1 | AX119: 1 | AY119: 1 | AZ119: 1 | BA119: 1 | BB119: 1 | BC119: 1 | BD119: 1 | BE119: 1 | BF119: 1 | BG119: 1 | BH119: 1 | BI119: 1 | BJ119: 1 | BK119: 1 | BL119: 1 | BM119: 1 | BN119: 1 | BO119: 1 | BP119: 1 | BQ119: 1 | BR119: 1 | BS119: 1 | BT119: 1 | BU119: 1 | BV119: 1 | BW119: 1 | BX119: 1 | BY119: 1 | BZ119: 1 | CA119: 1 | CB119: 1 | CC119: 1 | CD119: 1 | CE119: 1 | CF119: 1 | CG119: 1 | CH119: 1 | CI119: 1 | CJ119: 1 | CK119: 1 | CL119: 1 | CM119: 1 | CN119: 1 | CO119: 1 | CP119: 1 | CQ119: 1 | CR119: 1 | CS119: 1 | CT119: 1 | CU119: 1 | CV119: 1 | CW119: 1 | CX119: 1 | CY119: 1
B120: 2 | D120: 1 | E120: 1 | F120: 1 | G120: 1 | H120: 1 | I120: 1 | J120: 1 | K120: 1 | L120: 0.875 | M120: 0.75 | N120: 0.75 | O120: 0.625 | P120: 0.625 | Q120: 0.625 | R120: 0.5 | S120: 0.375 | T120: 0.5 | U120: 0.625 | V120: 0.625 | W120: 0.5 | X120: 0.625 | Y120: 0.5 | Z120: 0.5 | AA120: 0.5 | AB120: 0.5 | AC120: 0.5 | AD120: 0.625 | AE120: 0.5 | AF120: 0.5 | AG120: 0.375 | AH120: 0.5 | AI120: 0.5 | AJ120: 0.5 | AK120: 0.5 | AL120: 0.5 | AM120: 0.625 | AN120: 0.75 | AO120: 0.625 | AP120: 0.75 | AQ120: 0.75 | AR120: 0.75 | AS120: 0.75 | AT120: 0.875 | AU120: 1 | AV120: 1 | AW120: 1 | AX120: 1 | AY120: 1 | AZ120: 1 | BA120: 1 | BB120: 1 | BC120: 1 | BD120: 1 | BE120: 1 | BF120: 1 | BG120: 1 | BH120: 1 | BI120: 1 | BJ120: 1 | BK120: 1 | BL120: 1 | BM120: 1 | BN120: 1 | BO120: 1 | BP120: 1 | BQ120: 1 | BR120: 1 | BS120: 1 | BT120: 1 | BU120: 1 | BV120: 1 | BW120: 1 | BX120: 1 | BY120: 1 | BZ120: 1 | CA120: 1 | CB120: 1 | CC120: 1 | CD120: 1 | CE120: 1 | CF120: 1 | CG120: 1 | CH120: 1 | CI120: 1 | CJ120: 1 | CK120: 1 | CL120: 1 | CM120: 1 | CN120: 1 | CO120: 1 | CP120: 1 | CQ120: 1 | CR120: 1 | CS120: 1 | CT120: 1 | CU120: 1 | CV120: 1 | CW120: 1 | CX120: 1 | CY120: 1
B121: 3 | D121: 1 | E121: 1 | F121: 1 | G121: 1 | H121: 1 | I121: 1 | J121: 1 | K121: 1 | L121: 0.875 | M121: 0.875 | N121: 0.75 | O121: 0.625 | P121: 0.625 | Q121: 0.625 | R121: 0.625 | S121: 0.625 | T121: 0.625 | U121: 0.625 | V121: 0.625 | W121: 0.625 | X121: 0.75 | Y121: 0.75 | Z121: 0.75 | AA121: 0.75 | AB121: 0.75 | AC121: 0.75 | AD121: 0.875 | AE121: 0.75 | AF121: 0.625 | AG121: 0.75 | AH121: 0.75 | AI121: 0.625 | AJ121: 0.75 | AK121: 0.625 | AL121: 0.75 | AM121: 0.625 | AN121: 0.625 | AO121: 0.5 | AP121: 0.625 | AQ121: 0.75 | AR121: 0.75 | AS121: 0.75 | AT121: 0.875 | AU121: 0.875 | AV121: 1 | AW121: 1 | AX121: 1 | AY121: 1 | AZ121: 1 | BA121: 1 | BB121: 1 | BC121: 1 | BD121: 1 | BE121: 1 | BF121: 1 | BG121: 1 | BH121: 1 | BI121: 1 | BJ121: 1 | BK121: 1 | BL121: 1 | BM121: 1 | BN121: 1 | BO121: 1 | BP121: 1 | BQ121: 1 | BR121: 1 | BS121: 1 | BT121: 1 | BU121: 1 | BV121: 1 | BW121: 1 | BX121: 1 | BY121: 1 | BZ121: 1 | CA121: 1 | CB121: 1 | CC121: 1 | CD121: 1 | CE121: 1 | CF121: 1 | CG121: 1 | CH121: 1 | CI121: 1 | CJ121: 1 | CK121: 1 | CL121: 1 | CM121: 1 | CN121: 1 | CO121: 1 | CP121: 1 | CQ121: 1 | CR121: 1 | CS121: 1 | CT121: 1 | CU121: 1 | CV121: 1 | CW121: 1 | CX121: 1 | CY121: 1
B122: 4 | D122: 1 | E122: 1 | F122: 1 | G122: 1 | H122: 1 | I122: 1 | J122: 1 | K122: 1 | L122: 1 | M122: 1 | N122: 0.875 | O122: 0.875 | P122: 0.75 | Q122: 0.5 | R122: 0.375 | S122: 0.375 | T122: 0.375 | U122: 0.375 | V122: 0.375 | W122: 0.375 | X122: 0.25 | Y122: 0.375 | Z122: 0.375 | AA122: 0.5 | AB122: 0.75 | AC122: 0.625 | AD122: 0.75 | AE122: 0.75 | AF122: 0.875 | AG122: 0.75 | AH122: 0.875 | AI122: 1 | AJ122: 1 | AK122: 1 | AL122: 1 | AM122: 1 | AN122: 1 | AO122: 1 | AP122: 0.875 | AQ122: 1 | AR122: 1 | AS122: 1 | AT122: 1 | AU122: 1 | AV122: 1 | AW122: 1 | AX122: 1 | AY122: 1 | AZ122: 1 | BA122: 1 | BB122: 1 | BC122: 1 | BD122: 1 | BE122: 1 | BF122: 1 | BG122: 1 | BH122: 1 | BI122: 1 | BJ122: 1 | BK122: 1 | BL122: 1 | BM122: 1 | BN122: 1 | BO122: 1 | BP122: 1 | BQ122: 1 | BR122: 1 | BS122: 1 | BT122: 1 | BU122: 1 | BV122: 1 | BW122: 1 | BX122: 1 | BY122: 1 | BZ122: 1 | CA122: 1 | CB122: 1 | CC122: 1 | CD122: 1 | CE122: 1 | CF122: 1 | CG122: 1 | CH122: 1 | CI122: 1 | CJ122: 1 | CK122: 1 | CL122: 1 | CM122: 1 | CN122: 1 | CO122: 1 | CP122: 1 | CQ122: 1 | CR122: 1 | CS122: 1 | CT122: 1 | CU122: 1 | CV122: 1 | CW122: 1 | CX122: 1 | CY122: 1
B123: 5 | D123: 1 | E123: 1 | F123: 1 | G123: 1 | H123: 1 | I123: 1 | J123: 1 | K123: 0.875 | L123: 0.75 | M123: 0.75 | N123: 0.75 | O123: 0.75 | P123: 0.625 | Q123: 0.5 | R123: 0.375 | S123: 0.375 | T123: 0.25 | U123: 0.375 | V123: 0.5 | W123: 0.5 | X123: 0.625 | Y123: 0.5 | Z123: 0.5 | AA123: 0.5 | AB123: 0.5 | AC123: 0.5 | AD123: 0.5 | AE123: 0.5 | AF123: 0.5 | AG123: 0.625 | AH123: 0.5 | AI123: 0.5 | AJ123: 0.5 | AK123: 0.625 | AL123: 0.75 | AM123: 0.75 | AN123: 0.75 | AO123: 0.75 | AP123: 0.75 | AQ123: 0.75 | AR123: 0.75 | AS123: 0.75 | AT123: 0.875 | AU123: 1 | AV123: 1 | AW123: 1 | AX123: 1 | AY123: 1 | AZ123: 1 | BA123: 1 | BB123: 1 | BC123: 1 | BD123: 1 | BE123: 1 | BF123: 1 | BG123: 1 | BH123: 1 | BI123: 1 | BJ123: 1 | BK123: 1 | BL123: 1 | BM123: 1 | BN123: 1 | BO123: 1 | BP123: 1 | BQ123: 1 | BR123: 1 | BS123: 1 | BT123: 1 | BU123: 1 | BV123: 1 | BW123: 1 | BX123: 1 | BY123: 1 | BZ123: 1 | CA123: 1 | CB123: 1 | CC123: 1 | CD123: 1 | CE123: 1 | CF123: 1 | CG123: 1 | CH123: 1 | CI123: 1 | CJ123: 1 | CK123: 1 | CL123: 1 | CM123: 1 | CN123: 1 | CO123: 1 | CP123: 1 | CQ123: 1 | CR123: 1 | CS123: 1 | CT123: 1 | CU123: 1 | CV123: 1 | CW123: 1 | CX123: 1 | CY123: 1
B124: 6 | D124: 1 | E124: 1 | F124: 1 | G124: 1 | H124: 1 | I124: 1 | J124: 1 | K124: 1 | L124: 0.875 | M124: 0.75 | N124: 0.625 | O124: 0.5 | P124: 0.375 | Q124: 0.375 | R124: 0.25 | S124: 0.375 | T124: 0.25 | U124: 0.25 | V124: 0.375 | W124: 0.5 | X124: 0.625 | Y124: 0.5 | Z124: 0.625 | AA124: 0.625 | AB124: 0.625 | AC124: 0.75 | AD124: 0.625 | AE124: 0.75 | AF124: 0.625 | AG124: 0.625 | AH124: 0.5 | AI124: 0.5 | AJ124: 0.625 | AK124: 0.625 | AL124: 0.75 | AM124: 0.625 | AN124: 0.625 | AO124: 0.75 | AP124: 0.75 | AQ124: 0.75 | AR124: 0.75 | AS124: 0.75 | AT124: 0.875 | AU124: 0.875 | AV124: 1 | AW124: 1 | AX124: 1 | AY124: 1 | AZ124: 1 | BA124: 1 | BB124: 1 | BC124: 1 | BD124: 1 | BE124: 1 | BF124: 1 | BG124: 1 | BH124: 1 | BI124: 1 | BJ124: 1 | BK124: 1 | BL124: 1 | BM124: 1 | BN124: 1 | BO124: 1 | BP124: 1 | BQ124: 1 | BR124: 1 | BS124: 1 | BT124: 1 | BU124: 1 | BV124: 1 | BW124: 1 | BX124: 1 | BY124: 1 | BZ124: 1 | CA124: 1 | CB124: 1 | CC124: 1 | CD124: 1 | CE124: 1 | CF124: 1 | CG124: 1 | CH124: 1 | CI124: 1 | CJ124: 1 | CK124: 1 | CL124: 1 | CM124: 1 | CN124: 1 | CO124: 1 | CP124: 1 | CQ124: 1 | CR124: 1 | CS124: 1 | CT124: 1 | CU124: 1 | CV124: 1 | CW124: 1 | CX124: 1 | CY124: 1
B125: 7 | D125: 1 | E125: 1 | F125: 1 | G125: 1 | H125: 1 | I125: 1 | J125: 1 | K125: 1 | L125: 1 | M125: 0.875 | N125: 0.75 | O125: 0.625 | P125: 0.625 | Q125: 0.5 | R125: 0.5 | S125: 0.5 | T125: 0.5 | U125: 0.5 | V125: 0.375 | W125: 0.5 | X125: 0.5 | Y125: 0.5 | Z125: 0.625 | AA125: 0.625 | AB125: 0.625 | AC125: 0.5 | AD125: 0.625 | AE125: 0.625 | AF125: 0.75 | AG125: 0.75 | AH125: 0.75 | AI125: 0.75 | AJ125: 0.875 | AK125: 0.875 | AL125: 0.75 | AM125: 0.875 | AN125: 1 | AO125: 1 | AP125: 1 | AQ125: 1 | AR125: 1 | AS125: 1 | AT125: 1 | AU125: 1 | AV125: 1 | AW125: 1 | AX125: 1 | AY125: 1 | AZ125: 1 | BA125: 1 | BB125: 1 | BC125: 1 | BD125: 1 | BE125: 1 | BF125: 1 | BG125: 1 | BH125: 1 | BI125: 1 | BJ125: 1 | BK125: 1 | BL125: 1 | BM125: 1 | BN125: 1 | BO125: 1 | BP125: 1 | BQ125: 1 | BR125: 1 | BS125: 1 | BT125: 1 | BU125: 1 | BV125: 1 | BW125: 1 | BX125: 1 | BY125: 1 | BZ125: 1 | CA125: 1 | CB125: 1 | CC125: 1 | CD125: 1 | CE125: 1 | CF125: 1 | CG125: 1 | CH125: 1 | CI125: 1 | CJ125: 1 | CK125: 1 | CL125: 1 | CM125: 1 | CN125: 1 | CO125: 1 | CP125: 1 | CQ125: 1 | CR125: 1 | CS125: 1 | CT125: 1 | CU125: 1 | CV125: 1 | CW125: 1 | CX125: 1 | CY125: 1
B126: 8 | D126: 1 | E126: 1 | F126: 1 | G126: 1 | H126: 1 | I126: 1 | J126: 1 | K126: 1 | L126: 0.875 | M126: 0.875 | N126: 0.75 | O126: 0.75 | P126: 0.75 | Q126: 0.75 | R126: 0.625 | S126: 0.625 | T126: 0.625 | U126: 0.75 | V126: 0.625 | W126: 0.625 | X126: 0.625 | Y126: 0.5 | Z126: 0.5 | AA126: 0.5 | AB126: 0.5 | AC126: 0.5 | AD126: 0.625 | AE126: 0.75 | AF126: 0.5 | AG126: 0.625 | AH126: 0.75 | AI126: 0.625 | AJ126: 0.75 | AK126: 0.75 | AL126: 0.75 | AM126: 0.625 | AN126: 0.625 | AO126: 0.5 | AP126: 0.5 | AQ126: 0.75 | AR126: 0.75 | AS126: 0.75 | AT126: 0.75 | AU126: 0.75 | AV126: 0.875 | AW126: 0.875 | AX126: 1 | AY126: 1 | AZ126: 1 | BA126: 1 | BB126: 1 | BC126: 1 | BD126: 1 | BE126: 1 | BF126: 1 | BG126: 1 | BH126: 1 | BI126: 1 | BJ126: 1 | BK126: 1 | BL126: 1 | BM126: 1 | BN126: 1 | BO126: 1 | BP126: 1 | BQ126: 1 | BR126: 1 | BS126: 1 | BT126: 1 | BU126: 1 | BV126: 1 | BW126: 1 | BX126: 1 | BY126: 1 | BZ126: 1 | CA126: 1 | CB126: 1 | CC126: 1 | CD126: 1 | CE126: 1 | CF126: 1 | CG126: 1 | CH126: 1 | CI126: 1 | CJ126: 1 | CK126: 1 | CL126: 1 | CM126: 1 | CN126: 1 | CO126: 1 | CP126: 1 | CQ126: 1 | CR126: 1 | CS126: 1 | CT126: 1 | CU126: 1 | CV126: 1 | CW126: 1 | CX126: 1 | CY126: 1
B127: 9 | D127: 1 | E127: 1 | F127: 1 | G127: 1 | H127: 1 | I127: 1 | J127: 1 | K127: 1 | L127: 1 | M127: 1 | N127: 1 | O127: 0.875 | P127: 0.75 | Q127: 0.75 | R127: 0.5 | S127: 0.5 | T127: 0.5 | U127: 0.5 | V127: 0.5 | W127: 0.5 | X127: 0.5 | Y127: 0.375 | Z127: 0.375 | AA127: 0.375 | AB127: 0.375 | AC127: 0.5 | AD127: 0.625 | AE127: 0.625 | AF127: 0.5 | AG127: 0.5 | AH127: 0.5 | AI127: 0.5 | AJ127: 0.5 | AK127: 0.5 | AL127: 0.5 | AM127: 0.625 | AN127: 0.625 | AO127: 0.625 | AP127: 0.625 | AQ127: 0.75 | AR127: 0.875 | AS127: 1 | AT127: 1 | AU127: 1 | AV127: 1 | AW127: 1 | AX127: 1 | AY127: 1 | AZ127: 1 | BA127: 1 | BB127: 1 | BC127: 1 | BD127: 1 | BE127: 1 | BF127: 1 | BG127: 1 | BH127: 1 | BI127: 1 | BJ127: 1 | BK127: 1 | BL127: 1 | BM127: 1 | BN127: 1 | BO127: 1 | BP127: 1 | BQ127: 1 | BR127: 1 | BS127: 1 | BT127: 1 | BU127: 1 | BV127: 1 | BW127: 1 | BX127: 1 | BY127: 1 | BZ127: 1 | CA127: 1 | CB127: 1 | CC127: 1 | CD127: 1 | CE127: 1 | CF127: 1 | CG127: 1 | CH127: 1 | CI127: 1 | CJ127: 1 | CK127: 1 | CL127: 1 | CM127: 1 | CN127: 1 | CO127: 1 | CP127: 1 | CQ127: 1 | CR127: 1 | CS127: 1 | CT127: 1 | CU127: 1 | CV127: 1 | CW127: 1 | CX127: 1 | CY127: 1
B128: 10 | D128: 1 | E128: 1 | F128: 1 | G128: 1 | H128: 1 | I128: 1 | J128: 1 | K128: 1 | L128: 0.875 | M128: 0.75 | N128: 0.75 | O128: 0.625 | P128: 0.625 | Q128: 0.5 | R128: 0.5 | S128: 0.5 | T128: 0.625 | U128: 0.625 | V128: 0.75 | W128: 0.75 | X128: 0.75 | Y128: 0.75 | Z128: 0.75 | AA128: 0.75 | AB128: 0.75 | AC128: 0.75 | AD128: 0.75 | AE128: 0.75 | AF128: 0.75 | AG128: 0.625 | AH128: 0.75 | AI128: 0.75 | AJ128: 0.75 | AK128: 0.75 | AL128: 0.875 | AM128: 0.875 | AN128: 1 | AO128: 1 | AP128: 1 | AQ128: 1 | AR128: 1 | AS128: 1 | AT128: 1 | AU128: 1 | AV128: 1 | AW128: 1 | AX128: 1 | AY128: 1 | AZ128: 1 | BA128: 1 | BB128: 1 | BC128: 1 | BD128: 1 | BE128: 1 | BF128: 1 | BG128: 1 | BH128: 1 | BI128: 1 | BJ128: 1 | BK128: 1 | BL128: 1 | BM128: 1 | BN128: 1 | BO128: 1 | BP128: 1 | BQ128: 1 | BR128: 1 | BS128: 1 | BT128: 1 | BU128: 1 | BV128: 1 | BW128: 1 | BX128: 1 | BY128: 1 | BZ128: 1 | CA128: 1 | CB128: 1 | CC128: 1 | CD128: 1 | CE128: 1 | CF128: 1 | CG128: 1 | CH128: 1 | CI128: 1 | CJ128: 1 | CK128: 1 | CL128: 1 | CM128: 1 | CN128: 1 | CO128: 1 | CP128: 1 | CQ128: 1 | CR128: 1 | CS128: 1 | CT128: 1 | CU128: 1 | CV128: 1 | CW128: 1 | CX128: 1 | CY128: 1
B129: 11 | D129: 1 | E129: 1 | F129: 1 | G129: 1 | H129: 1 | I129: 1 | J129: 1 | K129: 0.875 | L129: 0.875 | M129: 0.75 | N129: 0.75 | O129: 0.625 | P129: 0.625 | Q129: 0.5 | R129: 0.5 | S129: 0.5 | T129: 0.5 | U129: 0.5 | V129: 0.5 | W129: 0.5 | X129: 0.5 | Y129: 0.625 | Z129: 0.5 | AA129: 0.625 | AB129: 0.625 | AC129: 0.5 | AD129: 0.625 | AE129: 0.75 | AF129: 0.75 | AG129: 0.75 | AH129: 0.875 | AI129: 0.875 | AJ129: 0.75 | AK129: 0.875 | AL129: 0.875 | AM129: 1 | AN129: 1 | AO129: 1 | AP129: 1 | AQ129: 1 | AR129: 1 | AS129: 1 | AT129: 1 | AU129: 1 | AV129: 1 | AW129: 1 | AX129: 1 | AY129: 1 | AZ129: 1 | BA129: 1 | BB129: 1 | BC129: 1 | BD129: 1 | BE129: 1 | BF129: 1 | BG129: 1 | BH129: 1 | BI129: 1 | BJ129: 1 | BK129: 1 | BL129: 1 | BM129: 1 | BN129: 1 | BO129: 1 | BP129: 1 | BQ129: 1 | BR129: 1 | BS129: 1 | BT129: 1 | BU129: 1 | BV129: 1 | BW129: 1 | BX129: 1 | BY129: 1 | BZ129: 1 | CA129: 1 | CB129: 1 | CC129: 1 | CD129: 1 | CE129: 1 | CF129: 1 | CG129: 1 | CH129: 1 | CI129: 1 | CJ129: 1 | CK129: 1 | CL129: 1 | CM129: 1 | CN129: 1 | CO129: 1 | CP129: 1 | CQ129: 1 | CR129: 1 | CS129: 1 | CT129: 1 | CU129: 1 | CV129: 1 | CW129: 1 | CX129: 1 | CY129: 1
B130: 12 | D130: 1 | E130: 1 | F130: 1 | G130: 1 | H130: 1 | I130: 1 | J130: 1 | K130: 0.75 | L130: 0.75 | M130: 0.625 | N130: 0.5 | O130: 0.5 | P130: 0.5 | Q130: 0.5 | R130: 0.375 | S130: 0.625 | T130: 0.5 | U130: 0.5 | V130: 0.5 | W130: 0.5 | X130: 0.5 | Y130: 0.5 | Z130: 0.5 | AA130: 0.375 | AB130: 0.5 | AC130: 0.375 | AD130: 0.375 | AE130: 0.625 | AF130: 0.625 | AG130: 0.625 | AH130: 0.5 | AI130: 0.625 | AJ130: 0.5 | AK130: 0.625 | AL130: 0.625 | AM130: 0.5 | AN130: 0.625 | AO130: 0.625 | AP130: 0.625 | AQ130: 0.75 | AR130: 0.875 | AS130: 1 | AT130: 1 | AU130: 1 | AV130: 1 | AW130: 1 | AX130: 1 | AY130: 1 | AZ130: 1 | BA130: 1 | BB130: 1 | BC130: 1 | BD130: 1 | BE130: 1 | BF130: 1 | BG130: 1 | BH130: 1 | BI130: 1 | BJ130: 1 | BK130: 1 | BL130: 1 | BM130: 1 | BN130: 1 | BO130: 1 | BP130: 1 | BQ130: 1 | BR130: 1 | BS130: 1 | BT130: 1 | BU130: 1 | BV130: 1 | BW130: 1 | BX130: 1 | BY130: 1 | BZ130: 1 | CA130: 1 | CB130: 1 | CC130: 1 | CD130: 1 | CE130: 1 | CF130: 1 | CG130: 1 | CH130: 1 | CI130: 1 | CJ130: 1 | CK130: 1 | CL130: 1 | CM130: 1 | CN130: 1 | CO130: 1 | CP130: 1 | CQ130: 1 | CR130: 1 | CS130: 1 | CT130: 1 | CU130: 1 | CV130: 1 | CW130: 1 | CX130: 1 | CY130: 1
B131: 13 | D131: 1 | E131: 1 | F131: 1 | G131: 1 | H131: 1 | I131: 1 | J131: 1 | K131: 1 | L131: 1 | M131: 0.75 | N131: 0.625 | O131: 0.625 | P131: 0.5 | Q131: 0.5 | R131: 0.375 | S131: 0.5 | T131: 0.5 | U131: 0.5 | V131: 0.5 | W131: 0.5 | X131: 0.375 | Y131: 0.375 | Z131: 0.625 | AA131: 0.625 | AB131: 0.625 | AC131: 0.625 | AD131: 0.5 | AE131: 0.5 | AF131: 0.5 | AG131: 0.5 | AH131: 0.625 | AI131: 0.625 | AJ131: 0.75 | AK131: 0.625 | AL131: 0.625 | AM131: 0.5 | AN131: 0.625 | AO131: 0.75 | AP131: 0.875 | AQ131: 0.875 | AR131: 1 | AS131: 1 | AT131: 1 | AU131: 1 | AV131: 1 | AW131: 1 | AX131: 1 | AY131: 1 | AZ131: 1 | BA131: 1 | BB131: 1 | BC131: 1 | BD131: 1 | BE131: 1 | BF131: 1 | BG131: 1 | BH131: 1 | BI131: 1 | BJ131: 1 | BK131: 1 | BL131: 1 | BM131: 1 | BN131: 1 | BO131: 1 | BP131: 1 | BQ131: 1 | BR131: 1 | BS131: 1 | BT131: 1 | BU131: 1 | BV131: 1 | BW131: 1 | BX131: 1 | BY131: 1 | BZ131: 1 | CA131: 1 | CB131: 1 | CC131: 1 | CD131: 1 | CE131: 1 | CF131: 1 | CG131: 1 | CH131: 1 | CI131: 1 | CJ131: 1 | CK131: 1 | CL131: 1 | CM131: 1 | CN131: 1 | CO131: 1 | CP131: 1 | CQ131: 1 | CR131: 1 | CS131: 1 | CT131: 1 | CU131: 1 | CV131: 1 | CW131: 1 | CX131: 1 | CY131: 1
B132: 14 | D132: 1 | E132: 1 | F132: 1 | G132: 1 | H132: 1 | I132: 1 | J132: 1 | K132: 1 | L132: 1 | M132: 0.75 | N132: 0.625 | O132: 0.5 | P132: 0.5 | Q132: 0.5 | R132: 0.5 | S132: 0.25 | T132: 0.25 | U132: 0.25 | V132: 0.25 | W132: 0.375 | X132: 0.5 | Y132: 0.5 | Z132: 0.625 | AA132: 0.5 | AB132: 0.5 | AC132: 0.5 | AD132: 0.625 | AE132: 0.75 | AF132: 0.75 | AG132: 0.875 | AH132: 0.875 | AI132: 0.875 | AJ132: 1 | AK132: 1 | AL132: 1 | AM132: 1 | AN132: 1 | AO132: 1 | AP132: 1 | AQ132: 1 | AR132: 1 | AS132: 1 | AT132: 1 | AU132: 1 | AV132: 1 | AW132: 1 | AX132: 1 | AY132: 1 | AZ132: 1 | BA132: 1 | BB132: 1 | BC132: 1 | BD132: 1 | BE132: 1 | BF132: 1 | BG132: 1 | BH132: 1 | BI132: 1 | BJ132: 1 | BK132: 1 | BL132: 1 | BM132: 1 | BN132: 1 | BO132: 1 | BP132: 1 | BQ132: 1 | BR132: 1 | BS132: 1 | BT132: 1 | BU132: 1 | BV132: 1 | BW132: 1 | BX132: 1 | BY132: 1 | BZ132: 1 | CA132: 1 | CB132: 1 | CC132: 1 | CD132: 1 | CE132: 1 | CF132: 1 | CG132: 1 | CH132: 1 | CI132: 1 | CJ132: 1 | CK132: 1 | CL132: 1 | CM132: 1 | CN132: 1 | CO132: 1 | CP132: 1 | CQ132: 1 | CR132: 1 | CS132: 1 | CT132: 1 | CU132: 1 | CV132: 1 | CW132: 1 | CX132: 1 | CY132: 1
B133: 15 | D133: 1 | E133: 1 | F133: 1 | G133: 1 | H133: 1 | I133: 1 | J133: 1 | K133: 1 | L133: 1 | M133: 1 | N133: 0.875 | O133: 0.75 | P133: 0.75 | Q133: 0.5 | R133: 0.5 | S133: 0.5 | T133: 0.5 | U133: 0.375 | V133: 0.125 | W133: 0.125 | X133: 0.375 | Y133: 0.5 | Z133: 0.375 | AA133: 0.5 | AB133: 0.625 | AC133: 0.625 | AD133: 0.625 | AE133: 0.75 | AF133: 0.5 | AG133: 0.625 | AH133: 0.5 | AI133: 0.625 | AJ133: 0.625 | AK133: 0.625 | AL133: 0.625 | AM133: 0.625 | AN133: 0.625 | AO133: 0.625 | AP133: 0.5 | AQ133: 0.75 | AR133: 0.75 | AS133: 0.75 | AT133: 0.75 | AU133: 0.875 | AV133: 1 | AW133: 1 | AX133: 1 | AY133: 1 | AZ133: 1 | BA133: 1 | BB133: 1 | BC133: 1 | BD133: 1 | BE133: 1 | BF133: 1 | BG133: 1 | BH133: 1 | BI133: 1 | BJ133: 1 | BK133: 1 | BL133: 1 | BM133: 1 | BN133: 1 | BO133: 1 | BP133: 1 | BQ133: 1 | BR133: 1 | BS133: 1 | BT133: 1 | BU133: 1 | BV133: 1 | BW133: 1 | BX133: 1 | BY133: 1 | BZ133: 1 | CA133: 1 | CB133: 1 | CC133: 1 | CD133: 1 | CE133: 1 | CF133: 1 | CG133: 1 | CH133: 1 | CI133: 1 | CJ133: 1 | CK133: 1 | CL133: 1 | CM133: 1 | CN133: 1 | CO133: 1 | CP133: 1 | CQ133: 1 | CR133: 1 | CS133: 1 | CT133: 1 | CU133: 1 | CV133: 1 | CW133: 1 | CX133: 1 | CY133: 1
B134: 16 | D134: 1 | E134: 1 | F134: 1 | G134: 1 | H134: 1 | I134: 1 | J134: 1 | K134: 0.875 | L134: 0.875 | M134: 0.75 | N134: 0.75 | O134: 0.625 | P134: 0.625 | Q134: 0.625 | R134: 0.625 | S134: 0.5 | T134: 0.625 | U134: 0.75 | V134: 0.75 | W134: 0.75 | X134: 0.875 | Y134: 0.875 | Z134: 0.75 | AA134: 0.75 | AB134: 0.75 | AC134: 0.75 | AD134: 0.625 | AE134: 0.625 | AF134: 0.625 | AG134: 0.5 | AH134: 0.5 | AI134: 0.5 | AJ134: 0.5 | AK134: 0.5 | AL134: 0.5 | AM134: 0.625 | AN134: 0.625 | AO134: 0.75 | AP134: 0.75 | AQ134: 0.75 | AR134: 0.875 | AS134: 0.875 | AT134: 0.875 | AU134: 1 | AV134: 1 | AW134: 1 | AX134: 1 | AY134: 1 | AZ134: 1 | BA134: 1 | BB134: 1 | BC134: 1 | BD134: 1 | BE134: 1 | BF134: 1 | BG134: 1 | BH134: 1 | BI134: 1 | BJ134: 1 | BK134: 1 | BL134: 1 | BM134: 1 | BN134: 1 | BO134: 1 | BP134: 1 | BQ134: 1 | BR134: 1 | BS134: 1 | BT134: 1 | BU134: 1 | BV134: 1 | BW134: 1 | BX134: 1 | BY134: 1 | BZ134: 1 | CA134: 1 | CB134: 1 | CC134: 1 | CD134: 1 | CE134: 1 | CF134: 1 | CG134: 1 | CH134: 1 | CI134: 1 | CJ134: 1 | CK134: 1 | CL134: 1 | CM134: 1 | CN134: 1 | CO134: 1 | CP134: 1 | CQ134: 1 | CR134: 1 | CS134: 1 | CT134: 1 | CU134: 1 | CV134: 1 | CW134: 1 | CX134: 1 | CY134: 1
B135: 17 | D135: 1 | E135: 1 | F135: 1 | G135: 1 | H135: 1 | I135: 1 | J135: 1 | K135: 1 | L135: 1 | M135: 1 | N135: 0.875 | O135: 0.75 | P135: 0.75 | Q135: 0.5 | R135: 0.5 | S135: 0.5 | T135: 0.375 | U135: 0.5 | V135: 0.5 | W135: 0.5 | X135: 0.375 | Y135: 0.375 | Z135: 0.375 | AA135: 0.375 | AB135: 0.375 | AC135: 0.375 | AD135: 0.375 | AE135: 0.5 | AF135: 0.5 | AG135: 0.375 | AH135: 0.5 | AI135: 0.625 | AJ135: 0.75 | AK135: 0.75 | AL135: 0.75 | AM135: 0.875 | AN135: 0.75 | AO135: 0.875 | AP135: 0.875 | AQ135: 0.875 | AR135: 1 | AS135: 1 | AT135: 1 | AU135: 1 | AV135: 1 | AW135: 1 | AX135: 1 | AY135: 1 | AZ135: 1 | BA135: 1 | BB135: 1 | BC135: 1 | BD135: 1 | BE135: 1 | BF135: 1 | BG135: 1 | BH135: 1 | BI135: 1 | BJ135: 1 | BK135: 1 | BL135: 1 | BM135: 1 | BN135: 1 | BO135: 1 | BP135: 1 | BQ135: 1 | BR135: 1 | BS135: 1 | BT135: 1 | BU135: 1 | BV135: 1 | BW135: 1 | BX135: 1 | BY135: 1 | BZ135: 1 | CA135: 1 | CB135: 1 | CC135: 1 | CD135: 1 | CE135: 1 | CF135: 1 | CG135: 1 | CH135: 1 | CI135: 1 | CJ135: 1 | CK135: 1 | CL135: 1 | CM135: 1 | CN135: 1 | CO135: 1 | CP135: 1 | CQ135: 1 | CR135: 1 | CS135: 1 | CT135: 1 | CU135: 1 | CV135: 1 | CW135: 1 | CX135: 1 | CY135: 1
B136: 18 | D136: 1 | E136: 1 | F136: 1 | G136: 1 | H136: 1 | I136: 1 | J136: 1 | K136: 1 | L136: 1 | M136: 1 | N136: 0.875 | O136: 0.875 | P136: 0.75 | Q136: 0.75 | R136: 0.625 | S136: 0.5 | T136: 0.625 | U136: 0.5 | V136: 0.5 | W136: 0.625 | X136: 0.5 | Y136: 0.625 | Z136: 0.625 | AA136: 0.5 | AB136: 0.5 | AC136: 0.625 | AD136: 0.75 | AE136: 0.75 | AF136: 0.875 | AG136: 0.75 | AH136: 0.75 | AI136: 0.875 | AJ136: 0.875 | AK136: 0.875 | AL136: 1 | AM136: 1 | AN136: 1 | AO136: 1 | AP136: 1 | AQ136: 1 | AR136: 1 | AS136: 1 | AT136: 1 | AU136: 1 | AV136: 1 | AW136: 1 | AX136: 1 | AY136: 1 | AZ136: 1 | BA136: 1 | BB136: 1 | BC136: 1 | BD136: 1 | BE136: 1 | BF136: 1 | BG136: 1 | BH136: 1 | BI136: 1 | BJ136: 1 | BK136: 1 | BL136: 1 | BM136: 1 | BN136: 1 | BO136: 1 | BP136: 1 | BQ136: 1 | BR136: 1 | BS136: 1 | BT136: 1 | BU136: 1 | BV136: 1 | BW136: 1 | BX136: 1 | BY136: 1 | BZ136: 1 | CA136: 1 | CB136: 1 | CC136: 1 | CD136: 1 | CE136: 1 | CF136: 1 | CG136: 1 | CH136: 1 | CI136: 1 | CJ136: 1 | CK136: 1 | CL136: 1 | CM136: 1 | CN136: 1 | CO136: 1 | CP136: 1 | CQ136: 1 | CR136: 1 | CS136: 1 | CT136: 1 | CU136: 1 | CV136: 1 | CW136: 1 | CX136: 1 | CY136: 1
B137: 19 | D137: 1 | E137: 1 | F137: 1 | G137: 1 | H137: 1 | I137: 1 | J137: 1 | K137: 1 | L137: 1 | M137: 0.875 | N137: 0.75 | O137: 0.75 | P137: 0.625 | Q137: 0.5 | R137: 0.5 | S137: 0.5 | T137: 0.375 | U137: 0.5 | V137: 0.375 | W137: 0.375 | X137: 0.5 | Y137: 0.5 | Z137: 0.625 | AA137: 0.625 | AB137: 0.5 | AC137: 0.5 | AD137: 0.5 | AE137: 0.625 | AF137: 0.625 | AG137: 0.75 | AH137: 0.75 | AI137: 0.75 | AJ137: 0.875 | AK137: 0.875 | AL137: 0.875 | AM137: 1 | AN137: 1 | AO137: 1 | AP137: 1 | AQ137: 1 | AR137: 1 | AS137: 1 | AT137: 1 | AU137: 1 | AV137: 1 | AW137: 1 | AX137: 1 | AY137: 1 | AZ137: 1 | BA137: 1 | BB137: 1 | BC137: 1 | BD137: 1 | BE137: 1 | BF137: 1 | BG137: 1 | BH137: 1 | BI137: 1 | BJ137: 1 | BK137: 1 | BL137: 1 | BM137: 1 | BN137: 1 | BO137: 1 | BP137: 1 | BQ137: 1 | BR137: 1 | BS137: 1 | BT137: 1 | BU137: 1 | BV137: 1 | BW137: 1 | BX137: 1 | BY137: 1 | BZ137: 1 | CA137: 1 | CB137: 1 | CC137: 1 | CD137: 1 | CE137: 1 | CF137: 1 | CG137: 1 | CH137: 1 | CI137: 1 | CJ137: 1 | CK137: 1 | CL137: 1 | CM137: 1 | CN137: 1 | CO137: 1 | CP137: 1 | CQ137: 1 | CR137: 1 | CS137: 1 | CT137: 1 | CU137: 1 | CV137: 1 | CW137: 1 | CX137: 1 | CY137: 1
B138: 20 | D138: 1 | E138: 1 | F138: 1 | G138: 1 | H138: 1 | I138: 1 | J138: 1 | K138: 0.875 | L138: 0.875 | M138: 0.875 | N138: 0.75 | O138: 0.625 | P138: 0.5 | Q138: 0.375 | R138: 0.375 | S138: 0.5 | T138: 0.5 | U138: 0.5 | V138: 0.5 | W138: 0.375 | X138: 0.375 | Y138: 0.375 | Z138: 0.375 | AA138: 0.375 | AB138: 0.375 | AC138: 0.375 | AD138: 0.375 | AE138: 0.5 | AF138: 0.5 | AG138: 0.75 | AH138: 0.75 | AI138: 0.625 | AJ138: 0.625 | AK138: 0.75 | AL138: 0.875 | AM138: 1 | AN138: 0.875 | AO138: 0.875 | AP138: 0.875 | AQ138: 0.875 | AR138: 0.875 | AS138: 1 | AT138: 1 | AU138: 1 | AV138: 1 | AW138: 1 | AX138: 1 | AY138: 1 | AZ138: 1 | BA138: 1 | BB138: 1 | BC138: 1 | BD138: 1 | BE138: 1 | BF138: 1 | BG138: 1 | BH138: 1 | BI138: 1 | BJ138: 1 | BK138: 1 | BL138: 1 | BM138: 1 | BN138: 1 | BO138: 1 | BP138: 1 | BQ138: 1 | BR138: 1 | BS138: 1 | BT138: 1 | BU138: 1 | BV138: 1 | BW138: 1 | BX138: 1 | BY138: 1 | BZ138: 1 | CA138: 1 | CB138: 1 | CC138: 1 | CD138: 1 | CE138: 1 | CF138: 1 | CG138: 1 | CH138: 1 | CI138: 1 | CJ138: 1 | CK138: 1 | CL138: 1 | CM138: 1 | CN138: 1 | CO138: 1 | CP138: 1 | CQ138: 1 | CR138: 1 | CS138: 1 | CT138: 1 | CU138: 1 | CV138: 1 | CW138: 1 | CX138: 1 | CY138: 1
B139: 21 | D139: 1 | E139: 1 | F139: 1 | G139: 1 | H139: 1 | I139: 0.875 | J139: 0.875 | K139: 0.75 | L139: 0.75 | M139: 0.75 | N139: 0.625 | O139: 0.5 | P139: 0.5 | Q139: 0.375 | R139: 0.25 | S139: 0.5 | T139: 0.625 | U139: 0.625 | V139: 0.625 | W139: 0.5 | X139: 0.625 | Y139: 0.5 | Z139: 0.75 | AA139: 0.75 | AB139: 0.625 | AC139: 0.75 | AD139: 0.75 | AE139: 0.75 | AF139: 0.75 | AG139: 0.625 | AH139: 0.75 | AI139: 0.75 | AJ139: 0.75 | AK139: 0.75 | AL139: 0.75 | AM139: 0.75 | AN139: 0.75 | AO139: 0.875 | AP139: 0.875 | AQ139: 0.875 | AR139: 1 | AS139: 1 | AT139: 1 | AU139: 1 | AV139: 1 | AW139: 1 | AX139: 1 | AY139: 1 | AZ139: 1 | BA139: 1 | BB139: 1 | BC139: 1 | BD139: 1 | BE139: 1 | BF139: 1 | BG139: 1 | BH139: 1 | BI139: 1 | BJ139: 1 | BK139: 1 | BL139: 1 | BM139: 1 | BN139: 1 | BO139: 1 | BP139: 1 | BQ139: 1 | BR139: 1 | BS139: 1 | BT139: 1 | BU139: 1 | BV139: 1 | BW139: 1 | BX139: 1 | BY139: 1 | BZ139: 1 | CA139: 1 | CB139: 1 | CC139: 1 | CD139: 1 | CE139: 1 | CF139: 1 | CG139: 1 | CH139: 1 | CI139: 1 | CJ139: 1 | CK139: 1 | CL139: 1 | CM139: 1 | CN139: 1 | CO139: 1 | CP139: 1 | CQ139: 1 | CR139: 1 | CS139: 1 | CT139: 1 | CU139: 1 | CV139: 1 | CW139: 1 | CX139: 1 | CY139: 1
B140: 22 | D140: 1 | E140: 1 | F140: 1 | G140: 1 | H140: 1 | I140: 1 | J140: 1 | K140: 1 | L140: 1 | M140: 0.875 | N140: 0.75 | O140: 0.75 | P140: 0.625 | Q140: 0.625 | R140: 0.5 | S140: 0.5 | T140: 0.5 | U140: 0.5 | V140: 0.5 | W140: 0.25 | X140: 0.5 | Y140: 0.5 | Z140: 0.5 | AA140: 0.5 | AB140: 0.5 | AC140: 0.375 | AD140: 0.375 | AE140: 0.5 | AF140: 0.5 | AG140: 0.5 | AH140: 0.625 | AI140: 0.75 | AJ140: 0.75 | AK140: 0.75 | AL140: 0.75 | AM140: 0.75 | AN140: 0.75 | AO140: 0.875 | AP140: 0.875 | AQ140: 0.875 | AR140: 0.875 | AS140: 0.875 | AT140: 0.875 | AU140: 1 | AV140: 1 | AW140: 1 | AX140: 1 | AY140: 1 | AZ140: 1 | BA140: 1 | BB140: 1 | BC140: 1 | BD140: 1 | BE140: 1 | BF140: 1 | BG140: 1 | BH140: 1 | BI140: 1 | BJ140: 1 | BK140: 1 | BL140: 1 | BM140: 1 | BN140: 1 | BO140: 1 | BP140: 1 | BQ140: 1 | BR140: 1 | BS140: 1 | BT140: 1 | BU140: 1 | BV140: 1 | BW140: 1 | BX140: 1 | BY140: 1 | BZ140: 1 | CA140: 1 | CB140: 1 | CC140: 1 | CD140: 1 | CE140: 1 | CF140: 1 | CG140: 1 | CH140: 1 | CI140: 1 | CJ140: 1 | CK140: 1 | CL140: 1 | CM140: 1 | CN140: 1 | CO140: 1 | CP140: 1 | CQ140: 1 | CR140: 1 | CS140: 1 | CT140: 1 | CU140: 1 | CV140: 1 | CW140: 1 | CX140: 1 | CY140: 1
B141: 23 | D141: 1 | E141: 1 | F141: 1 | G141: 1 | H141: 1 | I141: 1 | J141: 1 | K141: 1 | L141: 1 | M141: 1 | N141: 0.875 | O141: 0.75 | P141: 0.75 | Q141: 0.625 | R141: 0.5 | S141: 0.5 | T141: 0.5 | U141: 0.5 | V141: 0.625 | W141: 0.5 | X141: 0.5 | Y141: 0.5 | Z141: 0.5 | AA141: 0.5 | AB141: 0.5 | AC141: 0.5 | AD141: 0.625 | AE141: 0.625 | AF141: 0.625 | AG141: 0.625 | AH141: 0.75 | AI141: 0.75 | AJ141: 0.75 | AK141: 0.875 | AL141: 0.875 | AM141: 1 | AN141: 1 | AO141: 1 | AP141: 1 | AQ141: 1 | AR141: 1 | AS141: 1 | AT141: 1 | AU141: 1 | AV141: 1 | AW141: 1 | AX141: 1 | AY141: 1 | AZ141: 1 | BA141: 1 | BB141: 1 | BC141: 1 | BD141: 1 | BE141: 1 | BF141: 1 | BG141: 1 | BH141: 1 | BI141: 1 | BJ141: 1 | BK141: 1 | BL141: 1 | BM141: 1 | BN141: 1 | BO141: 1 | BP141: 1 | BQ141: 1 | BR141: 1 | BS141: 1 | BT141: 1 | BU141: 1 | BV141: 1 | BW141: 1 | BX141: 1 | BY141: 1 | BZ141: 1 | CA141: 1 | CB141: 1 | CC141: 1 | CD141: 1 | CE141: 1 | CF141: 1 | CG141: 1 | CH141: 1 | CI141: 1 | CJ141: 1 | CK141: 1 | CL141: 1 | CM141: 1 | CN141: 1 | CO141: 1 | CP141: 1 | CQ141: 1 | CR141: 1 | CS141: 1 | CT141: 1 | CU141: 1 | CV141: 1 | CW141: 1 | CX141: 1 | CY141: 1
B142: 24 | D142: 1 | E142: 1 | F142: 1 | G142: 1 | H142: 1 | I142: 1 | J142: 1 | K142: 1 | L142: 0.875 | M142: 0.875 | N142: 0.75 | O142: 0.625 | P142: 0.5 | Q142: 0.5 | R142: 0.5 | S142: 0.5 | T142: 0.5 | U142: 0.5 | V142: 0.5 | W142: 0.5 | X142: 0.5 | Y142: 0.625 | Z142: 0.75 | AA142: 0.75 | AB142: 0.75 | AC142: 0.75 | AD142: 0.625 | AE142: 0.75 | AF142: 0.75 | AG142: 0.875 | AH142: 1 | AI142: 1 | AJ142: 0.875 | AK142: 0.875 | AL142: 0.875 | AM142: 0.875 | AN142: 1 | AO142: 1 | AP142: 1 | AQ142: 1 | AR142: 1 | AS142: 1 | AT142: 1 | AU142: 1 | AV142: 1 | AW142: 1 | AX142: 1 | AY142: 1 | AZ142: 1 | BA142: 1 | BB142: 1 | BC142: 1 | BD142: 1 | BE142: 1 | BF142: 1 | BG142: 1 | BH142: 1 | BI142: 1 | BJ142: 1 | BK142: 1 | BL142: 1 | BM142: 1 | BN142: 1 | BO142: 1 | BP142: 1 | BQ142: 1 | BR142: 1 | BS142: 1 | BT142: 1 | BU142: 1 | BV142: 1 | BW142: 1 | BX142: 1 | BY142: 1 | BZ142: 1 | CA142: 1 | CB142: 1 | CC142: 1 | CD142: 1 | CE142: 1 | CF142: 1 | CG142: 1 | CH142: 1 | CI142: 1 | CJ142: 1 | CK142: 1 | CL142: 1 | CM142: 1 | CN142: 1 | CO142: 1 | CP142: 1 | CQ142: 1 | CR142: 1 | CS142: 1 | CT142: 1 | CU142: 1 | CV142: 1 | CW142: 1 | CX142: 1 | CY142: 1
B143: 25 | D143: 1 | E143: 1 | F143: 1 | G143: 1 | H143: 1 | I143: 1 | J143: 0.75 | K143: 0.75 | L143: 0.75 | M143: 0.75 | N143: 0.75 | O143: 0.75 | P143: 0.625 | Q143: 0.5 | R143: 0.5 | S143: 0.5 | T143: 0.625 | U143: 0.75 | V143: 0.75 | W143: 0.75 | X143: 0.75 | Y143: 0.625 | Z143: 0.5 | AA143: 0.375 | AB143: 0.5 | AC143: 0.375 | AD143: 0.5 | AE143: 0.5 | AF143: 0.625 | AG143: 0.5 | AH143: 0.5 | AI143: 0.5 | AJ143: 0.625 | AK143: 0.75 | AL143: 0.75 | AM143: 0.875 | AN143: 0.875 | AO143: 0.875 | AP143: 0.875 | AQ143: 0.75 | AR143: 1 | AS143: 1 | AT143: 1 | AU143: 1 | AV143: 1 | AW143: 1 | AX143: 1 | AY143: 1 | AZ143: 1 | BA143: 1 | BB143: 1 | BC143: 1 | BD143: 1 | BE143: 1 | BF143: 1 | BG143: 1 | BH143: 1 | BI143: 1 | BJ143: 1 | BK143: 1 | BL143: 1 | BM143: 1 | BN143: 1 | BO143: 1 | BP143: 1 | BQ143: 1 | BR143: 1 | BS143: 1 | BT143: 1 | BU143: 1 | BV143: 1 | BW143: 1 | BX143: 1 | BY143: 1 | BZ143: 1 | CA143: 1 | CB143: 1 | CC143: 1 | CD143: 1 | CE143: 1 | CF143: 1 | CG143: 1 | CH143: 1 | CI143: 1 | CJ143: 1 | CK143: 1 | CL143: 1 | CM143: 1 | CN143: 1 | CO143: 1 | CP143: 1 | CQ143: 1 | CR143: 1 | CS143: 1 | CT143: 1 | CU143: 1 | CV143: 1 | CW143: 1 | CX143: 1 | CY143: 1
B144: 26 | D144: 1 | E144: 1 | F144: 1 | G144: 1 | H144: 1 | I144: 1 | J144: 1 | K144: 1 | L144: 0.75 | M144: 0.75 | N144: 0.5 | O144: 0.5 | P144: 0.5 | Q144: 0.5 | R144: 0.375 | S144: 0.375 | T144: 0.5 | U144: 0.5 | V144: 0.5 | W144: 0.625 | X144: 0.625 | Y144: 0.75 | Z144: 0.75 | AA144: 0.75 | AB144: 0.75 | AC144: 0.75 | AD144: 0.75 | AE144: 0.75 | AF144: 0.75 | AG144: 0.75 | AH144: 1 | AI144: 0.875 | AJ144: 0.875 | AK144: 1 | AL144: 1 | AM144: 1 | AN144: 1 | AO144: 1 | AP144: 1 | AQ144: 1 | AR144: 1 | AS144: 1 | AT144: 1 | AU144: 1 | AV144: 1 | AW144: 1 | AX144: 1 | AY144: 1 | AZ144: 1 | BA144: 1 | BB144: 1 | BC144: 1 | BD144: 1 | BE144: 1 | BF144: 1 | BG144: 1 | BH144: 1 | BI144: 1 | BJ144: 1 | BK144: 1 | BL144: 1 | BM144: 1 | BN144: 1 | BO144: 1 | BP144: 1 | BQ144: 1 | BR144: 1 | BS144: 1 | BT144: 1 | BU144: 1 | BV144: 1 | BW144: 1 | BX144: 1 | BY144: 1 | BZ144: 1 | CA144: 1 | CB144: 1 | CC144: 1 | CD144: 1 | CE144: 1 | CF144: 1 | CG144: 1 | CH144: 1 | CI144: 1 | CJ144: 1 | CK144: 1 | CL144: 1 | CM144: 1 | CN144: 1 | CO144: 1 | CP144: 1 | CQ144: 1 | CR144: 1 | CS144: 1 | CT144: 1 | CU144: 1 | CV144: 1 | CW144: 1 | CX144: 1 | CY144: 1
B145: 27 | D145: 1 | E145: 1 | F145: 1 | G145: 1 | H145: 1 | I145: 1 | J145: 1 | K145: 0.875 | L145: 0.75 | M145: 0.75 | N145: 0.625 | O145: 0.5 | P145: 0.5 | Q145: 0.5 | R145: 0.375 | S145: 0.5 | T145: 0.625 | U145: 0.625 | V145: 0.625 | W145: 0.5 | X145: 0.5 | Y145: 0.5 | Z145: 0.5 | AA145: 0.5 | AB145: 0.5 | AC145: 0.375 | AD145: 0.5 | AE145: 0.5 | AF145: 0.5 | AG145: 0.5 | AH145: 0.625 | AI145: 0.625 | AJ145: 0.625 | AK145: 0.75 | AL145: 0.875 | AM145: 0.875 | AN145: 1 | AO145: 0.875 | AP145: 0.875 | AQ145: 0.875 | AR145: 0.875 | AS145: 0.875 | AT145: 0.875 | AU145: 0.875 | AV145: 0.875 | AW145: 1 | AX145: 1 | AY145: 1 | AZ145: 1 | BA145: 1 | BB145: 1 | BC145: 1 | BD145: 1 | BE145: 1 | BF145: 1 | BG145: 1 | BH145: 1 | BI145: 1 | BJ145: 1 | BK145: 1 | BL145: 1 | BM145: 1 | BN145: 1 | BO145: 1 | BP145: 1 | BQ145: 1 | BR145: 1 | BS145: 1 | BT145: 1 | BU145: 1 | BV145: 1 | BW145: 1 | BX145: 1 | BY145: 1 | BZ145: 1 | CA145: 1 | CB145: 1 | CC145: 1 | CD145: 1 | CE145: 1 | CF145: 1 | CG145: 1 | CH145: 1 | CI145: 1 | CJ145: 1 | CK145: 1 | CL145: 1 | CM145: 1 | CN145: 1 | CO145: 1 | CP145: 1 | CQ145: 1 | CR145: 1 | CS145: 1 | CT145: 1 | CU145: 1 | CV145: 1 | CW145: 1 | CX145: 1 | CY145: 1
B146: 28 | D146: 1 | E146: 1 | F146: 1 | G146: 1 | H146: 1 | I146: 1 | J146: 1 | K146: 1 | L146: 1 | M146: 1 | N146: 1 | O146: 0.875 | P146: 0.75 | Q146: 0.75 | R146: 0.75 | S146: 0.75 | T146: 0.625 | U146: 0.625 | V146: 0.75 | W146: 0.75 | X146: 0.75 | Y146: 0.75 | Z146: 0.625 | AA146: 0.625 | AB146: 0.75 | AC146: 0.625 | AD146: 0.625 | AE146: 0.75 | AF146: 0.75 | AG146: 0.75 | AH146: 0.75 | AI146: 0.75 | AJ146: 0.875 | AK146: 1 | AL146: 1 | AM146: 1 | AN146: 1 | AO146: 1 | AP146: 1 | AQ146: 1 | AR146: 1 | AS146: 1 | AT146: 1 | AU146: 1 | AV146: 1 | AW146: 1 | AX146: 1 | AY146: 1 | AZ146: 1 | BA146: 1 | BB146: 1 | BC146: 1 | BD146: 1 | BE146: 1 | BF146: 1 | BG146: 1 | BH146: 1 | BI146: 1 | BJ146: 1 | BK146: 1 | BL146: 1 | BM146: 1 | BN146: 1 | BO146: 1 | BP146: 1 | BQ146: 1 | BR146: 1 | BS146: 1 | BT146: 1 | BU146: 1 | BV146: 1 | BW146: 1 | BX146: 1 | BY146: 1 | BZ146: 1 | CA146: 1 | CB146: 1 | CC146: 1 | CD146: 1 | CE146: 1 | CF146: 1 | CG146: 1 | CH146: 1 | CI146: 1 | CJ146: 1 | CK146: 1 | CL146: 1 | CM146: 1 | CN146: 1 | CO146: 1 | CP146: 1 | CQ146: 1 | CR146: 1 | CS146: 1 | CT146: 1 | CU146: 1 | CV146: 1 | CW146: 1 | CX146: 1 | CY146: 1
B147: 29 | D147: 1 | E147: 1 | F147: 1 | G147: 1 | H147: 1 | I147: 1 | J147: 1 | K147: 1 | L147: 1 | M147: 1 | N147: 0.875 | O147: 0.875 | P147: 0.875 | Q147: 0.75 | R147: 0.75 | S147: 0.75 | T147: 0.625 | U147: 0.75 | V147: 0.75 | W147: 0.75 | X147: 0.75 | Y147: 0.625 | Z147: 0.5 | AA147: 0.5 | AB147: 0.5 | AC147: 0.5 | AD147: 0.625 | AE147: 0.75 | AF147: 0.625 | AG147: 0.75 | AH147: 0.75 | AI147: 0.625 | AJ147: 0.625 | AK147: 0.75 | AL147: 0.75 | AM147: 0.75 | AN147: 0.75 | AO147: 0.875 | AP147: 0.75 | AQ147: 0.875 | AR147: 0.75 | AS147: 0.75 | AT147: 1 | AU147: 1 | AV147: 1 | AW147: 1 | AX147: 1 | AY147: 1 | AZ147: 1 | BA147: 1 | BB147: 1 | BC147: 1 | BD147: 1 | BE147: 1 | BF147: 1 | BG147: 1 | BH147: 1 | BI147: 1 | BJ147: 1 | BK147: 1 | BL147: 1 | BM147: 1 | BN147: 1 | BO147: 1 | BP147: 1 | BQ147: 1 | BR147: 1 | BS147: 1 | BT147: 1 | BU147: 1 | BV147: 1 | BW147: 1 | BX147: 1 | BY147: 1 | BZ147: 1 | CA147: 1 | CB147: 1 | CC147: 1 | CD147: 1 | CE147: 1 | CF147: 1 | CG147: 1 | CH147: 1 | CI147: 1 | CJ147: 1 | CK147: 1 | CL147: 1 | CM147: 1 | CN147: 1 | CO147: 1 | CP147: 1 | CQ147: 1 | CR147: 1 | CS147: 1 | CT147: 1 | CU147: 1 | CV147: 1 | CW147: 1 | CX147: 1 | CY147: 1
B148: 30 | D148: 1 | E148: 1 | F148: 1 | G148: 1 | H148: 1 | I148: 1 | J148: 1 | K148: 0.875 | L148: 0.875 | M148: 0.75 | N148: 0.75 | O148: 0.625 | P148: 0.5 | Q148: 0.5 | R148: 0.5 | S148: 0.5 | T148: 0.625 | U148: 0.5 | V148: 0.75 | W148: 0.75 | X148: 0.75 | Y148: 0.75 | Z148: 0.75 | AA148: 0.625 | AB148: 0.75 | AC148: 0.625 | AD148: 0.625 | AE148: 0.625 | AF148: 0.75 | AG148: 0.75 | AH148: 0.5 | AI148: 0.5 | AJ148: 0.5 | AK148: 0.5 | AL148: 0.75 | AM148: 0.625 | AN148: 0.75 | AO148: 0.75 | AP148: 0.875 | AQ148: 0.875 | AR148: 0.875 | AS148: 1 | AT148: 1 | AU148: 1 | AV148: 1 | AW148: 1 | AX148: 1 | AY148: 1 | AZ148: 1 | BA148: 1 | BB148: 1 | BC148: 1 | BD148: 1 | BE148: 1 | BF148: 1 | BG148: 1 | BH148: 1 | BI148: 1 | BJ148: 1 | BK148: 1 | BL148: 1 | BM148: 1 | BN148: 1 | BO148: 1 | BP148: 1 | BQ148: 1 | BR148: 1 | BS148: 1 | BT148: 1 | BU148: 1 | BV148: 1 | BW148: 1 | BX148: 1 | BY148: 1 | BZ148: 1 | CA148: 1 | CB148: 1 | CC148: 1 | CD148: 1 | CE148: 1 | CF148: 1 | CG148: 1 | CH148: 1 | CI148: 1 | CJ148: 1 | CK148: 1 | CL148: 1 | CM148: 1 | CN148: 1 | CO148: 1 | CP148: 1 | CQ148: 1 | CR148: 1 | CS148: 1 | CT148: 1 | CU148: 1 | CV148: 1 | CW148: 1 | CX148: 1 | CY148: 1
B149: 31 | D149: 1 | E149: 1 | F149: 1 | G149: 1 | H149: 1 | I149: 1 | J149: 1 | K149: 1 | L149: 1 | M149: 0.875 | N149: 0.75 | O149: 0.75 | P149: 0.625 | Q149: 0.625 | R149: 0.5 | S149: 0.375 | T149: 0.375 | U149: 0.375 | V149: 0.625 | W149: 0.625 | X149: 0.625 | Y149: 0.75 | Z149: 0.75 | AA149: 0.75 | AB149: 0.75 | AC149: 0.75 | AD149: 0.625 | AE149: 0.75 | AF149: 0.75 | AG149: 0.75 | AH149: 0.75 | AI149: 0.875 | AJ149: 0.875 | AK149: 0.875 | AL149: 0.75 | AM149: 0.75 | AN149: 0.875 | AO149: 1 | AP149: 0.875 | AQ149: 0.875 | AR149: 0.75 | AS149: 0.75 | AT149: 0.75 | AU149: 0.75 | AV149: 0.875 | AW149: 1 | AX149: 1 | AY149: 1 | AZ149: 1 | BA149: 1 | BB149: 1 | BC149: 1 | BD149: 1 | BE149: 1 | BF149: 1 | BG149: 1 | BH149: 1 | BI149: 1 | BJ149: 1 | BK149: 1 | BL149: 1 | BM149: 1 | BN149: 1 | BO149: 1 | BP149: 1 | BQ149: 1 | BR149: 1 | BS149: 1 | BT149: 1 | BU149: 1 | BV149: 1 | BW149: 1 | BX149: 1 | BY149: 1 | BZ149: 1 | CA149: 1 | CB149: 1 | CC149: 1 | CD149: 1 | CE149: 1 | CF149: 1 | CG149: 1 | CH149: 1 | CI149: 1 | CJ149: 1 | CK149: 1 | CL149: 1 | CM149: 1 | CN149: 1 | CO149: 1 | CP149: 1 | CQ149: 1 | CR149: 1 | CS149: 1 | CT149: 1 | CU149: 1 | CV149: 1 | CW149: 1 | CX149: 1 | CY149: 1
B150: 32 | D150: 1 | E150: 1 | F150: 1 | G150: 1 | H150: 1 | I150: 1 | J150: 1 | K150: 1 | L150: 1 | M150: 0.75 | N150: 0.75 | O150: 0.625 | P150: 0.625 | Q150: 0.5 | R150: 0.5 | S150: 0.375 | T150: 0.375 | U150: 0.375 | V150: 0.375 | W150: 0.375 | X150: 0.5 | Y150: 0.5 | Z150: 0.5 | AA150: 0.5 | AB150: 0.625 | AC150: 0.625 | AD150: 0.75 | AE150: 0.75 | AF150: 0.75 | AG150: 0.75 | AH150: 0.875 | AI150: 0.875 | AJ150: 0.875 | AK150: 1 | AL150: 0.875 | AM150: 0.875 | AN150: 0.875 | AO150: 1 | AP150: 1 | AQ150: 1 | AR150: 1 | AS150: 1 | AT150: 1 | AU150: 1 | AV150: 1 | AW150: 1 | AX150: 1 | AY150: 1 | AZ150: 1 | BA150: 1 | BB150: 1 | BC150: 1 | BD150: 1 | BE150: 1 | BF150: 1 | BG150: 1 | BH150: 1 | BI150: 1 | BJ150: 1 | BK150: 1 | BL150: 1 | BM150: 1 | BN150: 1 | BO150: 1 | BP150: 1 | BQ150: 1 | BR150: 1 | BS150: 1 | BT150: 1 | BU150: 1 | BV150: 1 | BW150: 1 | BX150: 1 | BY150: 1 | BZ150: 1 | CA150: 1 | CB150: 1 | CC150: 1 | CD150: 1 | CE150: 1 | CF150: 1 | CG150: 1 | CH150: 1 | CI150: 1 | CJ150: 1 | CK150: 1 | CL150: 1 | CM150: 1 | CN150: 1 | CO150: 1 | CP150: 1 | CQ150: 1 | CR150: 1 | CS150: 1 | CT150: 1 | CU150: 1 | CV150: 1 | CW150: 1 | CX150: 1 | CY150: 1
B151: 33 | D151: 1 | E151: 1 | F151: 1 | G151: 1 | H151: 1 | I151: 1 | J151: 1 | K151: 0.875 | L151: 0.75 | M151: 0.625 | N151: 0.5 | O151: 0.5 | P151: 0.5 | Q151: 0.5 | R151: 0.375 | S151: 0.25 | T151: 0.5 | U151: 0.5 | V151: 0.5 | W151: 0.5 | X151: 0.5 | Y151: 0.625 | Z151: 0.625 | AA151: 0.625 | AB151: 0.5 | AC151: 0.5 | AD151: 0.5 | AE151: 0.625 | AF151: 0.75 | AG151: 0.625 | AH151: 0.5 | AI151: 0.75 | AJ151: 0.625 | AK151: 0.625 | AL151: 0.625 | AM151: 0.625 | AN151: 0.75 | AO151: 0.625 | AP151: 0.75 | AQ151: 0.75 | AR151: 0.75 | AS151: 1 | AT151: 1 | AU151: 1 | AV151: 1 | AW151: 1 | AX151: 1 | AY151: 1 | AZ151: 1 | BA151: 1 | BB151: 1 | BC151: 1 | BD151: 1 | BE151: 1 | BF151: 1 | BG151: 1 | BH151: 1 | BI151: 1 | BJ151: 1 | BK151: 1 | BL151: 1 | BM151: 1 | BN151: 1 | BO151: 1 | BP151: 1 | BQ151: 1 | BR151: 1 | BS151: 1 | BT151: 1 | BU151: 1 | BV151: 1 | BW151: 1 | BX151: 1 | BY151: 1 | BZ151: 1 | CA151: 1 | CB151: 1 | CC151: 1 | CD151: 1 | CE151: 1 | CF151: 1 | CG151: 1 | CH151: 1 | CI151: 1 | CJ151: 1 | CK151: 1 | CL151: 1 | CM151: 1 | CN151: 1 | CO151: 1 | CP151: 1 | CQ151: 1 | CR151: 1 | CS151: 1 | CT151: 1 | CU151: 1 | CV151: 1 | CW151: 1 | CX151: 1 | CY151: 1
B152: 34 | D152: 1 | E152: 1 | F152: 1 | G152: 1 | H152: 1 | I152: 1 | J152: 1 | K152: 0.875 | L152: 0.875 | M152: 0.875 | N152: 0.75 | O152: 0.75 | P152: 0.625 | Q152: 0.625 | R152: 0.5 | S152: 0.25 | T152: 0.375 | U152: 0.5 | V152: 0.625 | W152: 0.625 | X152: 0.625 | Y152: 0.5 | Z152: 0.5 | AA152: 0.5 | AB152: 0.375 | AC152: 0.5 | AD152: 0.625 | AE152: 0.5 | AF152: 0.5 | AG152: 0.5 | AH152: 0.5 | AI152: 0.625 | AJ152: 0.75 | AK152: 0.75 | AL152: 0.75 | AM152: 1 | AN152: 1 | AO152: 1 | AP152: 1 | AQ152: 1 | AR152: 1 | AS152: 1 | AT152: 1 | AU152: 1 | AV152: 1 | AW152: 1 | AX152: 1 | AY152: 1 | AZ152: 1 | BA152: 1 | BB152: 1 | BC152: 1 | BD152: 1 | BE152: 1 | BF152: 1 | BG152: 1 | BH152: 1 | BI152: 1 | BJ152: 1 | BK152: 1 | BL152: 1 | BM152: 1 | BN152: 1 | BO152: 1 | BP152: 1 | BQ152: 1 | BR152: 1 | BS152: 1 | BT152: 1 | BU152: 1 | BV152: 1 | BW152: 1 | BX152: 1 | BY152: 1 | BZ152: 1 | CA152: 1 | CB152: 1 | CC152: 1 | CD152: 1 | CE152: 1 | CF152: 1 | CG152: 1 | CH152: 1 | CI152: 1 | CJ152: 1 | CK152: 1 | CL152: 1 | CM152: 1 | CN152: 1 | CO152: 1 | CP152: 1 | CQ152: 1 | CR152: 1 | CS152: 1 | CT152: 1 | CU152: 1 | CV152: 1 | CW152: 1 | CX152: 1 | CY152: 1
B153: 35 | D153: 1 | E153: 1 | F153: 1 | G153: 1 | H153: 1 | I153: 1 | J153: 1 | K153: 1 | L153: 1 | M153: 1 | N153: 0.875 | O153: 0.75 | P153: 0.75 | Q153: 0.625 | R153: 0.625 | S153: 0.625 | T153: 0.5 | U153: 0.625 | V153: 0.5 | W153: 0.5 | X153: 0.5 | Y153: 0.5 | Z153: 0.375 | AA153: 0.375 | AB153: 0.5 | AC153: 0.5 | AD153: 0.5 | AE153: 0.5 | AF153: 0.5 | AG153: 0.625 | AH153: 0.75 | AI153: 0.75 | AJ153: 0.875 | AK153: 1 | AL153: 1 | AM153: 0.875 | AN153: 0.875 | AO153: 1 | AP153: 1 | AQ153: 1 | AR153: 1 | AS153: 1 | AT153: 1 | AU153: 1 | AV153: 1 | AW153: 1 | AX153: 1 | AY153: 1 | AZ153: 1 | BA153: 1 | BB153: 1 | BC153: 1 | BD153: 1 | BE153: 1 | BF153: 1 | BG153: 1 | BH153: 1 | BI153: 1 | BJ153: 1 | BK153: 1 | BL153: 1 | BM153: 1 | BN153: 1 | BO153: 1 | BP153: 1 | BQ153: 1 | BR153: 1 | BS153: 1 | BT153: 1 | BU153: 1 | BV153: 1 | BW153: 1 | BX153: 1 | BY153: 1 | BZ153: 1 | CA153: 1 | CB153: 1 | CC153: 1 | CD153: 1 | CE153: 1 | CF153: 1 | CG153: 1 | CH153: 1 | CI153: 1 | CJ153: 1 | CK153: 1 | CL153: 1 | CM153: 1 | CN153: 1 | CO153: 1 | CP153: 1 | CQ153: 1 | CR153: 1 | CS153: 1 | CT153: 1 | CU153: 1 | CV153: 1 | CW153: 1 | CX153: 1 | CY153: 1
B154: 36 | D154: 1 | E154: 1 | F154: 1 | G154: 1 | H154: 1 | I154: 1 | J154: 1 | K154: 1 | L154: 1 | M154: 0.75 | N154: 0.625 | O154: 0.5 | P154: 0.375 | Q154: 0.375 | R154: 0.375 | S154: 0.375 | T154: 0.375 | U154: 0.375 | V154: 0.375 | W154: 0.5 | X154: 0.5 | Y154: 0.75 | Z154: 0.75 | AA154: 0.875 | AB154: 0.75 | AC154: 0.625 | AD154: 0.625 | AE154: 0.75 | AF154: 0.75 | AG154: 0.75 | AH154: 0.75 | AI154: 0.75 | AJ154: 0.75 | AK154: 0.75 | AL154: 0.75 | AM154: 0.875 | AN154: 1 | AO154: 1 | AP154: 1 | AQ154: 1 | AR154: 0.75 | AS154: 0.75 | AT154: 0.875 | AU154: 0.875 | AV154: 1 | AW154: 1 | AX154: 1 | AY154: 1 | AZ154: 1 | BA154: 1 | BB154: 1 | BC154: 1 | BD154: 1 | BE154: 1 | BF154: 1 | BG154: 1 | BH154: 1 | BI154: 1 | BJ154: 1 | BK154: 1 | BL154: 1 | BM154: 1 | BN154: 1 | BO154: 1 | BP154: 1 | BQ154: 1 | BR154: 1 | BS154: 1 | BT154: 1 | BU154: 1 | BV154: 1 | BW154: 1 | BX154: 1 | BY154: 1 | BZ154: 1 | CA154: 1 | CB154: 1 | CC154: 1 | CD154: 1 | CE154: 1 | CF154: 1 | CG154: 1 | CH154: 1 | CI154: 1 | CJ154: 1 | CK154: 1 | CL154: 1 | CM154: 1 | CN154: 1 | CO154: 1 | CP154: 1 | CQ154: 1 | CR154: 1 | CS154: 1 | CT154: 1 | CU154: 1 | CV154: 1 | CW154: 1 | CX154: 1 | CY154: 1
B155: 37 | D155: 1 | E155: 1 | F155: 1 | G155: 1 | H155: 1 | I155: 1 | J155: 1 | K155: 1 | L155: 0.875 | M155: 0.75 | N155: 0.625 | O155: 0.5 | P155: 0.375 | Q155: 0.375 | R155: 0.25 | S155: 0.25 | T155: 0.25 | U155: 0.25 | V155: 0.25 | W155: 0.375 | X155: 0.5 | Y155: 0.5 | Z155: 0.5 | AA155: 0.625 | AB155: 0.625 | AC155: 0.625 | AD155: 0.625 | AE155: 0.75 | AF155: 0.625 | AG155: 0.625 | AH155: 0.75 | AI155: 0.625 | AJ155: 0.75 | AK155: 0.75 | AL155: 0.75 | AM155: 0.75 | AN155: 0.875 | AO155: 1 | AP155: 1 | AQ155: 1 | AR155: 1 | AS155: 1 | AT155: 1 | AU155: 1 | AV155: 1 | AW155: 1 | AX155: 1 | AY155: 1 | AZ155: 1 | BA155: 1 | BB155: 1 | BC155: 1 | BD155: 1 | BE155: 1 | BF155: 1 | BG155: 1 | BH155: 1 | BI155: 1 | BJ155: 1 | BK155: 1 | BL155: 1 | BM155: 1 | BN155: 1 | BO155: 1 | BP155: 1 | BQ155: 1 | BR155: 1 | BS155: 1 | BT155: 1 | BU155: 1 | BV155: 1 | BW155: 1 | BX155: 1 | BY155: 1 | BZ155: 1 | CA155: 1 | CB155: 1 | CC155: 1 | CD155: 1 | CE155: 1 | CF155: 1 | CG155: 1 | CH155: 1 | CI155: 1 | CJ155: 1 | CK155: 1 | CL155: 1 | CM155: 1 | CN155: 1 | CO155: 1 | CP155: 1 | CQ155: 1 | CR155: 1 | CS155: 1 | CT155: 1 | CU155: 1 | CV155: 1 | CW155: 1 | CX155: 1 | CY155: 1
B156: 38 | D156: 1 | E156: 1 | F156: 1 | G156: 1 | H156: 1 | I156: 1 | J156: 0.875 | K156: 0.875 | L156: 0.75 | M156: 0.75 | N156: 0.625 | O156: 0.5 | P156: 0.5 | Q156: 0.375 | R156: 0.375 | S156: 0.25 | T156: 0.375 | U156: 0.5 | V156: 0.5 | W156: 0.5 | X156: 0.375 | Y156: 0.375 | Z156: 0.375 | AA156: 0.5 | AB156: 0.375 | AC156: 0.375 | AD156: 0.5 | AE156: 0.5 | AF156: 0.5 | AG156: 0.5 | AH156: 0.5 | AI156: 0.5 | AJ156: 0.625 | AK156: 0.5 | AL156: 0.5 | AM156: 0.75 | AN156: 0.625 | AO156: 0.75 | AP156: 0.625 | AQ156: 0.75 | AR156: 0.75 | AS156: 0.75 | AT156: 0.875 | AU156: 0.875 | AV156: 1 | AW156: 1 | AX156: 1 | AY156: 1 | AZ156: 1 | BA156: 1 | BB156: 1 | BC156: 1 | BD156: 1 | BE156: 1 | BF156: 1 | BG156: 1 | BH156: 1 | BI156: 1 | BJ156: 1 | BK156: 1 | BL156: 1 | BM156: 1 | BN156: 1 | BO156: 1 | BP156: 1 | BQ156: 1 | BR156: 1 | BS156: 1 | BT156: 1 | BU156: 1 | BV156: 1 | BW156: 1 | BX156: 1 | BY156: 1 | BZ156: 1 | CA156: 1 | CB156: 1 | CC156: 1 | CD156: 1 | CE156: 1 | CF156: 1 | CG156: 1 | CH156: 1 | CI156: 1 | CJ156: 1 | CK156: 1 | CL156: 1 | CM156: 1 | CN156: 1 | CO156: 1 | CP156: 1 | CQ156: 1 | CR156: 1 | CS156: 1 | CT156: 1 | CU156: 1 | CV156: 1 | CW156: 1 | CX156: 1 | CY156: 1
B157: 39 | D157: 1 | E157: 1 | F157: 1 | G157: 1 | H157: 1 | I157: 1 | J157: 1 | K157: 1 | L157: 1 | M157: 1 | N157: 1 | O157: 0.875 | P157: 0.75 | Q157: 0.625 | R157: 0.625 | S157: 0.75 | T157: 0.625 | U157: 0.75 | V157: 0.75 | W157: 0.75 | X157: 0.625 | Y157: 0.75 | Z157: 0.75 | AA157: 0.625 | AB157: 0.75 | AC157: 0.625 | AD157: 0.625 | AE157: 0.5 | AF157: 0.5 | AG157: 0.625 | AH157: 0.625 | AI157: 0.625 | AJ157: 0.625 | AK157: 0.75 | AL157: 0.875 | AM157: 0.875 | AN157: 1 | AO157: 1 | AP157: 1 | AQ157: 1 | AR157: 1 | AS157: 1 | AT157: 1 | AU157: 1 | AV157: 1 | AW157: 1 | AX157: 1 | AY157: 1 | AZ157: 1 | BA157: 1 | BB157: 1 | BC157: 1 | BD157: 1 | BE157: 1 | BF157: 1 | BG157: 1 | BH157: 1 | BI157: 1 | BJ157: 1 | BK157: 1 | BL157: 1 | BM157: 1 | BN157: 1 | BO157: 1 | BP157: 1 | BQ157: 1 | BR157: 1 | BS157: 1 | BT157: 1 | BU157: 1 | BV157: 1 | BW157: 1 | BX157: 1 | BY157: 1 | BZ157: 1 | CA157: 1 | CB157: 1 | CC157: 1 | CD157: 1 | CE157: 1 | CF157: 1 | CG157: 1 | CH157: 1 | CI157: 1 | CJ157: 1 | CK157: 1 | CL157: 1 | CM157: 1 | CN157: 1 | CO157: 1 | CP157: 1 | CQ157: 1 | CR157: 1 | CS157: 1 | CT157: 1 | CU157: 1 | CV157: 1 | CW157: 1 | CX157: 1 | CY157: 1
B158: 40 | D158: 1 | E158: 1 | F158: 1 | G158: 1 | H158: 1 | I158: 1 | J158: 0.875 | K158: 0.75 | L158: 0.75 | M158: 0.625 | N158: 0.5 | O158: 0.375 | P158: 0.375 | Q158: 0.25 | R158: 0.25 | S158: 0.375 | T158: 0.5 | U158: 0.5 | V158: 0.625 | W158: 0.75 | X158: 0.625 | Y158: 0.625 | Z158: 0.75 | AA158: 0.75 | AB158: 0.75 | AC158: 0.75 | AD158: 0.5 | AE158: 0.625 | AF158: 0.75 | AG158: 0.625 | AH158: 0.625 | AI158: 0.625 | AJ158: 0.75 | AK158: 0.75 | AL158: 0.75 | AM158: 0.875 | AN158: 1 | AO158: 1 | AP158: 1 | AQ158: 1 | AR158: 1 | AS158: 1 | AT158: 1 | AU158: 1 | AV158: 1 | AW158: 1 | AX158: 1 | AY158: 1 | AZ158: 1 | BA158: 1 | BB158: 1 | BC158: 1 | BD158: 1 | BE158: 1 | BF158: 1 | BG158: 1 | BH158: 1 | BI158: 1 | BJ158: 1 | BK158: 1 | BL158: 1 | BM158: 1 | BN158: 1 | BO158: 1 | BP158: 1 | BQ158: 1 | BR158: 1 | BS158: 1 | BT158: 1 | BU158: 1 | BV158: 1 | BW158: 1 | BX158: 1 | BY158: 1 | BZ158: 1 | CA158: 1 | CB158: 1 | CC158: 1 | CD158: 1 | CE158: 1 | CF158: 1 | CG158: 1 | CH158: 1 | CI158: 1 | CJ158: 1 | CK158: 1 | CL158: 1 | CM158: 1 | CN158: 1 | CO158: 1 | CP158: 1 | CQ158: 1 | CR158: 1 | CS158: 1 | CT158: 1 | CU158: 1 | CV158: 1 | CW158: 1 | CX158: 1 | CY158: 1
B159: 41 | D159: 1 | E159: 1 | F159: 1 | G159: 1 | H159: 1 | I159: 1 | J159: 1 | K159: 1 | L159: 1 | M159: 0.875 | N159: 0.75 | O159: 0.625 | P159: 0.5 | Q159: 0.25 | R159: 0.25 | S159: 0.25 | T159: 0.375 | U159: 0.25 | V159: 0.25 | W159: 0.25 | X159: 0.125 | Y159: 0.125 | Z159: 0.25 | AA159: 0.25 | AB159: 0.5 | AC159: 0.5 | AD159: 0.5 | AE159: 0.5 | AF159: 0.625 | AG159: 0.625 | AH159: 0.625 | AI159: 0.625 | AJ159: 0.75 | AK159: 0.625 | AL159: 0.625 | AM159: 0.75 | AN159: 0.75 | AO159: 0.75 | AP159: 0.75 | AQ159: 0.75 | AR159: 0.875 | AS159: 0.875 | AT159: 1 | AU159: 1 | AV159: 1 | AW159: 1 | AX159: 1 | AY159: 1 | AZ159: 1 | BA159: 1 | BB159: 1 | BC159: 1 | BD159: 1 | BE159: 1 | BF159: 1 | BG159: 1 | BH159: 1 | BI159: 1 | BJ159: 1 | BK159: 1 | BL159: 1 | BM159: 1 | BN159: 1 | BO159: 1 | BP159: 1 | BQ159: 1 | BR159: 1 | BS159: 1 | BT159: 1 | BU159: 1 | BV159: 1 | BW159: 1 | BX159: 1 | BY159: 1 | BZ159: 1 | CA159: 1 | CB159: 1 | CC159: 1 | CD159: 1 | CE159: 1 | CF159: 1 | CG159: 1 | CH159: 1 | CI159: 1 | CJ159: 1 | CK159: 1 | CL159: 1 | CM159: 1 | CN159: 1 | CO159: 1 | CP159: 1 | CQ159: 1 | CR159: 1 | CS159: 1 | CT159: 1 | CU159: 1 | CV159: 1 | CW159: 1 | CX159: 1 | CY159: 1
B160: 42 | D160: 1 | E160: 1 | F160: 1 | G160: 1 | H160: 1 | I160: 1 | J160: 1 | K160: 1 | L160: 1 | M160: 1 | N160: 0.875 | O160: 0.875 | P160: 0.75 | Q160: 0.625 | R160: 0.625 | S160: 0.625 | T160: 0.75 | U160: 0.625 | V160: 0.625 | W160: 0.625 | X160: 0.625 | Y160: 0.625 | Z160: 0.625 | AA160: 0.75 | AB160: 0.875 | AC160: 0.75 | AD160: 0.75 | AE160: 0.625 | AF160: 0.75 | AG160: 0.75 | AH160: 0.75 | AI160: 0.625 | AJ160: 0.75 | AK160: 0.75 | AL160: 0.75 | AM160: 0.75 | AN160: 0.75 | AO160: 0.875 | AP160: 0.875 | AQ160: 1 | AR160: 1 | AS160: 1 | AT160: 1 | AU160: 1 | AV160: 1 | AW160: 1 | AX160: 1 | AY160: 1 | AZ160: 1 | BA160: 1 | BB160: 1 | BC160: 1 | BD160: 1 | BE160: 1 | BF160: 1 | BG160: 1 | BH160: 1 | BI160: 1 | BJ160: 1 | BK160: 1 | BL160: 1 | BM160: 1 | BN160: 1 | BO160: 1 | BP160: 1 | BQ160: 1 | BR160: 1 | BS160: 1 | BT160: 1 | BU160: 1 | BV160: 1 | BW160: 1 | BX160: 1 | BY160: 1 | BZ160: 1 | CA160: 1 | CB160: 1 | CC160: 1 | CD160: 1 | CE160: 1 | CF160: 1 | CG160: 1 | CH160: 1 | CI160: 1 | CJ160: 1 | CK160: 1 | CL160: 1 | CM160: 1 | CN160: 1 | CO160: 1 | CP160: 1 | CQ160: 1 | CR160: 1 | CS160: 1 | CT160: 1 | CU160: 1 | CV160: 1 | CW160: 1 | CX160: 1 | CY160: 1
B161: 43 | D161: 1 | E161: 1 | F161: 1 | G161: 1 | H161: 1 | I161: 1 | J161: 1 | K161: 1 | L161: 0.875 | M161: 0.75 | N161: 0.75 | O161: 0.625 | P161: 0.5 | Q161: 0.5 | R161: 0.25 | S161: 0.375 | T161: 0.375 | U161: 0.5 | V161: 0.5 | W161: 0.625 | X161: 0.5 | Y161: 0.375 | Z161: 0.5 | AA161: 0.5 | AB161: 0.375 | AC161: 0.625 | AD161: 0.5 | AE161: 0.5 | AF161: 0.5 | AG161: 0.5 | AH161: 0.5 | AI161: 0.75 | AJ161: 0.75 | AK161: 0.875 | AL161: 0.875 | AM161: 1 | AN161: 1 | AO161: 1 | AP161: 1 | AQ161: 1 | AR161: 1 | AS161: 1 | AT161: 1 | AU161: 1 | AV161: 1 | AW161: 1 | AX161: 1 | AY161: 1 | AZ161: 1 | BA161: 1 | BB161: 1 | BC161: 1 | BD161: 1 | BE161: 1 | BF161: 1 | BG161: 1 | BH161: 1 | BI161: 1 | BJ161: 1 | BK161: 1 | BL161: 1 | BM161: 1 | BN161: 1 | BO161: 1 | BP161: 1 | BQ161: 1 | BR161: 1 | BS161: 1 | BT161: 1 | BU161: 1 | BV161: 1 | BW161: 1 | BX161: 1 | BY161: 1 | BZ161: 1 | CA161: 1 | CB161: 1 | CC161: 1 | CD161: 1 | CE161: 1 | CF161: 1 | CG161: 1 | CH161: 1 | CI161: 1 | CJ161: 1 | CK161: 1 | CL161: 1 | CM161: 1 | CN161: 1 | CO161: 1 | CP161: 1 | CQ161: 1 | CR161: 1 | CS161: 1 | CT161: 1 | CU161: 1 | CV161: 1 | CW161: 1 | CX161: 1 | CY161: 1
B162: 44 | D162: 1 | E162: 1 | F162: 1 | G162: 1 | H162: 1 | I162: 1 | J162: 1 | K162: 1 | L162: 0.875 | M162: 0.75 | N162: 0.75 | O162: 0.625 | P162: 0.625 | Q162: 0.625 | R162: 0.625 | S162: 0.75 | T162: 0.625 | U162: 0.5 | V162: 0.5 | W162: 0.625 | X162: 0.75 | Y162: 0.75 | Z162: 0.625 | AA162: 0.5 | AB162: 0.5 | AC162: 0.5 | AD162: 0.5 | AE162: 0.625 | AF162: 0.75 | AG162: 0.75 | AH162: 0.625 | AI162: 0.75 | AJ162: 0.75 | AK162: 0.75 | AL162: 0.75 | AM162: 0.875 | AN162: 0.875 | AO162: 0.75 | AP162: 0.75 | AQ162: 0.75 | AR162: 0.875 | AS162: 1 | AT162: 1 | AU162: 1 | AV162: 1 | AW162: 1 | AX162: 1 | AY162: 1 | AZ162: 1 | BA162: 1 | BB162: 1 | BC162: 1 | BD162: 1 | BE162: 1 | BF162: 1 | BG162: 1 | BH162: 1 | BI162: 1 | BJ162: 1 | BK162: 1 | BL162: 1 | BM162: 1 | BN162: 1 | BO162: 1 | BP162: 1 | BQ162: 1 | BR162: 1 | BS162: 1 | BT162: 1 | BU162: 1 | BV162: 1 | BW162: 1 | BX162: 1 | BY162: 1 | BZ162: 1 | CA162: 1 | CB162: 1 | CC162: 1 | CD162: 1 | CE162: 1 | CF162: 1 | CG162: 1 | CH162: 1 | CI162: 1 | CJ162: 1 | CK162: 1 | CL162: 1 | CM162: 1 | CN162: 1 | CO162: 1 | CP162: 1 | CQ162: 1 | CR162: 1 | CS162: 1 | CT162: 1 | CU162: 1 | CV162: 1 | CW162: 1 | CX162: 1 | CY162: 1
B163: 45 | D163: 1 | E163: 1 | F163: 1 | G163: 1 | H163: 1 | I163: 1 | J163: 1 | K163: 1 | L163: 1 | M163: 0.875 | N163: 0.75 | O163: 0.625 | P163: 0.625 | Q163: 0.5 | R163: 0.5 | S163: 0.375 | T163: 0.375 | U163: 0.5 | V163: 0.625 | W163: 0.5 | X163: 0.5 | Y163: 0.5 | Z163: 0.5 | AA163: 0.5 | AB163: 0.5 | AC163: 0.5 | AD163: 0.5 | AE163: 0.5 | AF163: 0.5 | AG163: 0.375 | AH163: 0.5 | AI163: 0.5 | AJ163: 0.5 | AK163: 0.625 | AL163: 0.75 | AM163: 0.75 | AN163: 0.75 | AO163: 0.75 | AP163: 0.75 | AQ163: 0.75 | AR163: 0.875 | AS163: 0.875 | AT163: 1 | AU163: 1 | AV163: 1 | AW163: 1 | AX163: 1 | AY163: 1 | AZ163: 1 | BA163: 1 | BB163: 1 | BC163: 1 | BD163: 1 | BE163: 1 | BF163: 1 | BG163: 1 | BH163: 1 | BI163: 1 | BJ163: 1 | BK163: 1 | BL163: 1 | BM163: 1 | BN163: 1 | BO163: 1 | BP163: 1 | BQ163: 1 | BR163: 1 | BS163: 1 | BT163: 1 | BU163: 1 | BV163: 1 | BW163: 1 | BX163: 1 | BY163: 1 | BZ163: 1 | CA163: 1 | CB163: 1 | CC163: 1 | CD163: 1 | CE163: 1 | CF163: 1 | CG163: 1 | CH163: 1 | CI163: 1 | CJ163: 1 | CK163: 1 | CL163: 1 | CM163: 1 | CN163: 1 | CO163: 1 | CP163: 1 | CQ163: 1 | CR163: 1 | CS163: 1 | CT163: 1 | CU163: 1 | CV163: 1 | CW163: 1 | CX163: 1 | CY163: 1
B164: 46 | D164: 1 | E164: 1 | F164: 1 | G164: 1 | H164: 1 | I164: 1 | J164: 1 | K164: 1 | L164: 1 | M164: 0.875 | N164: 0.875 | O164: 0.875 | P164: 0.875 | Q164: 0.875 | R164: 0.75 | S164: 0.75 | T164: 0.625 | U164: 0.5 | V164: 0.625 | W164: 0.75 | X164: 0.75 | Y164: 0.75 | Z164: 0.75 | AA164: 0.5 | AB164: 0.375 | AC164: 0.25 | AD164: 0.375 | AE164: 0.5 | AF164: 0.625 | AG164: 0.5 | AH164: 0.5 | AI164: 0.375 | AJ164: 0.5 | AK164: 0.375 | AL164: 0.5 | AM164: 0.625 | AN164: 0.75 | AO164: 0.75 | AP164: 0.625 | AQ164: 0.625 | AR164: 0.75 | AS164: 0.75 | AT164: 1 | AU164: 1 | AV164: 1 | AW164: 1 | AX164: 1 | AY164: 1 | AZ164: 1 | BA164: 1 | BB164: 1 | BC164: 1 | BD164: 1 | BE164: 1 | BF164: 1 | BG164: 1 | BH164: 1 | BI164: 1 | BJ164: 1 | BK164: 1 | BL164: 1 | BM164: 1 | BN164: 1 | BO164: 1 | BP164: 1 | BQ164: 1 | BR164: 1 | BS164: 1 | BT164: 1 | BU164: 1 | BV164: 1 | BW164: 1 | BX164: 1 | BY164: 1 | BZ164: 1 | CA164: 1 | CB164: 1 | CC164: 1 | CD164: 1 | CE164: 1 | CF164: 1 | CG164: 1 | CH164: 1 | CI164: 1 | CJ164: 1 | CK164: 1 | CL164: 1 | CM164: 1 | CN164: 1 | CO164: 1 | CP164: 1 | CQ164: 1 | CR164: 1 | CS164: 1 | CT164: 1 | CU164: 1 | CV164: 1 | CW164: 1 | CX164: 1 | CY164: 1
B165: 47 | D165: 1 | E165: 1 | F165: 1 | G165: 1 | H165: 1 | I165: 1 | J165: 1 | K165: 1 | L165: 0.875 | M165: 0.875 | N165: 0.75 | O165: 0.75 | P165: 0.75 | Q165: 0.625 | R165: 0.5 | S165: 0.5 | T165: 0.5 | U165: 0.625 | V165: 0.625 | W165: 0.75 | X165: 0.5 | Y165: 0.625 | Z165: 0.5 | AA165: 0.5 | AB165: 0.5 | AC165: 0.625 | AD165: 0.625 | AE165: 0.5 | AF165: 0.5 | AG165: 0.375 | AH165: 0.375 | AI165: 0.625 | AJ165: 0.625 | AK165: 0.625 | AL165: 0.625 | AM165: 0.75 | AN165: 0.75 | AO165: 0.75 | AP165: 0.875 | AQ165: 0.875 | AR165: 1 | AS165: 1 | AT165: 1 | AU165: 1 | AV165: 1 | AW165: 1 | AX165: 1 | AY165: 1 | AZ165: 1 | BA165: 1 | BB165: 1 | BC165: 1 | BD165: 1 | BE165: 1 | BF165: 1 | BG165: 1 | BH165: 1 | BI165: 1 | BJ165: 1 | BK165: 1 | BL165: 1 | BM165: 1 | BN165: 1 | BO165: 1 | BP165: 1 | BQ165: 1 | BR165: 1 | BS165: 1 | BT165: 1 | BU165: 1 | BV165: 1 | BW165: 1 | BX165: 1 | BY165: 1 | BZ165: 1 | CA165: 1 | CB165: 1 | CC165: 1 | CD165: 1 | CE165: 1 | CF165: 1 | CG165: 1 | CH165: 1 | CI165: 1 | CJ165: 1 | CK165: 1 | CL165: 1 | CM165: 1 | CN165: 1 | CO165: 1 | CP165: 1 | CQ165: 1 | CR165: 1 | CS165: 1 | CT165: 1 | CU165: 1 | CV165: 1 | CW165: 1 | CX165: 1 | CY165: 1
B166: 48 | D166: 1 | E166: 1 | F166: 1 | G166: 1 | H166: 1 | I166: 1 | J166: 1 | K166: 1 | L166: 1 | M166: 1 | N166: 0.875 | O166: 0.75 | P166: 0.75 | Q166: 0.625 | R166: 0.625 | S166: 0.5 | T166: 0.5 | U166: 0.5 | V166: 0.5 | W166: 0.625 | X166: 0.625 | Y166: 0.625 | Z166: 0.75 | AA166: 0.625 | AB166: 0.75 | AC166: 0.75 | AD166: 0.75 | AE166: 0.875 | AF166: 0.875 | AG166: 1 | AH166: 0.875 | AI166: 0.875 | AJ166: 1 | AK166: 1 | AL166: 1 | AM166: 1 | AN166: 1 | AO166: 1 | AP166: 1 | AQ166: 1 | AR166: 1 | AS166: 1 | AT166: 1 | AU166: 1 | AV166: 1 | AW166: 1 | AX166: 1 | AY166: 1 | AZ166: 1 | BA166: 1 | BB166: 1 | BC166: 1 | BD166: 1 | BE166: 1 | BF166: 1 | BG166: 1 | BH166: 1 | BI166: 1 | BJ166: 1 | BK166: 1 | BL166: 1 | BM166: 1 | BN166: 1 | BO166: 1 | BP166: 1 | BQ166: 1 | BR166: 1 | BS166: 1 | BT166: 1 | BU166: 1 | BV166: 1 | BW166: 1 | BX166: 1 | BY166: 1 | BZ166: 1 | CA166: 1 | CB166: 1 | CC166: 1 | CD166: 1 | CE166: 1 | CF166: 1 | CG166: 1 | CH166: 1 | CI166: 1 | CJ166: 1 | CK166: 1 | CL166: 1 | CM166: 1 | CN166: 1 | CO166: 1 | CP166: 1 | CQ166: 1 | CR166: 1 | CS166: 1 | CT166: 1 | CU166: 1 | CV166: 1 | CW166: 1 | CX166: 1 | CY166: 1
B167: 49 | D167: 1 | E167: 1 | F167: 1 | G167: 1 | H167: 1 | I167: 1 | J167: 1 | K167: 1 | L167: 1 | M167: 1 | N167: 1 | O167: 0.875 | P167: 0.75 | Q167: 0.75 | R167: 0.75 | S167: 0.625 | T167: 0.625 | U167: 0.625 | V167: 0.5 | W167: 0.5 | X167: 0.625 | Y167: 0.625 | Z167: 0.625 | AA167: 0.75 | AB167: 0.625 | AC167: 0.625 | AD167: 0.625 | AE167: 0.5 | AF167: 0.5 | AG167: 0.5 | AH167: 0.5 | AI167: 0.625 | AJ167: 0.75 | AK167: 0.75 | AL167: 0.75 | AM167: 0.75 | AN167: 0.875 | AO167: 0.875 | AP167: 0.875 | AQ167: 0.875 | AR167: 1 | AS167: 1 | AT167: 1 | AU167: 1 | AV167: 1 | AW167: 1 | AX167: 1 | AY167: 1 | AZ167: 1 | BA167: 1 | BB167: 1 | BC167: 1 | BD167: 1 | BE167: 1 | BF167: 1 | BG167: 1 | BH167: 1 | BI167: 1 | BJ167: 1 | BK167: 1 | BL167: 1 | BM167: 1 | BN167: 1 | BO167: 1 | BP167: 1 | BQ167: 1 | BR167: 1 | BS167: 1 | BT167: 1 | BU167: 1 | BV167: 1 | BW167: 1 | BX167: 1 | BY167: 1 | BZ167: 1 | CA167: 1 | CB167: 1 | CC167: 1 | CD167: 1 | CE167: 1 | CF167: 1 | CG167: 1 | CH167: 1 | CI167: 1 | CJ167: 1 | CK167: 1 | CL167: 1 | CM167: 1 | CN167: 1 | CO167: 1 | CP167: 1 | CQ167: 1 | CR167: 1 | CS167: 1 | CT167: 1 | CU167: 1 | CV167: 1 | CW167: 1 | CX167: 1 | CY167: 1
B168: 50 | D168: 1 | E168: 1 | F168: 1 | G168: 1 | H168: 1 | I168: 1 | J168: 1 | K168: 0.875 | L168: 0.875 | M168: 0.75 | N168: 0.625 | O168: 0.625 | P168: 0.625 | Q168: 0.5 | R168: 0.5 | S168: 0.5 | T168: 0.625 | U168: 0.75 | V168: 0.625 | W168: 0.625 | X168: 0.625 | Y168: 0.75 | Z168: 0.75 | AA168: 0.625 | AB168: 0.625 | AC168: 0.5 | AD168: 0.5 | AE168: 0.5 | AF168: 0.5 | AG168: 0.625 | AH168: 0.5 | AI168: 0.5 | AJ168: 0.5 | AK168: 0.5 | AL168: 0.625 | AM168: 0.625 | AN168: 0.75 | AO168: 0.75 | AP168: 0.75 | AQ168: 0.75 | AR168: 0.875 | AS168: 1 | AT168: 1 | AU168: 1 | AV168: 1 | AW168: 1 | AX168: 1 | AY168: 1 | AZ168: 1 | BA168: 1 | BB168: 1 | BC168: 1 | BD168: 1 | BE168: 1 | BF168: 1 | BG168: 1 | BH168: 1 | BI168: 1 | BJ168: 1 | BK168: 1 | BL168: 1 | BM168: 1 | BN168: 1 | BO168: 1 | BP168: 1 | BQ168: 1 | BR168: 1 | BS168: 1 | BT168: 1 | BU168: 1 | BV168: 1 | BW168: 1 | BX168: 1 | BY168: 1 | BZ168: 1 | CA168: 1 | CB168: 1 | CC168: 1 | CD168: 1 | CE168: 1 | CF168: 1 | CG168: 1 | CH168: 1 | CI168: 1 | CJ168: 1 | CK168: 1 | CL168: 1 | CM168: 1 | CN168: 1 | CO168: 1 | CP168: 1 | CQ168: 1 | CR168: 1 | CS168: 1 | CT168: 1 | CU168: 1 | CV168: 1 | CW168: 1 | CX168: 1 | CY168: 1
B169: 51 | D169: 1 | E169: 1 | F169: 1 | G169: 1 | H169: 1 | I169: 1 | J169: 1 | K169: 0.875 | L169: 0.75 | M169: 0.75 | N169: 0.75 | O169: 0.5 | P169: 0.5 | Q169: 0.375 | R169: 0.375 | S169: 0.375 | T169: 0.375 | U169: 0.5 | V169: 0.625 | W169: 0.625 | X169: 0.5 | Y169: 0.5 | Z169: 0.5 | AA169: 0.375 | AB169: 0.5 | AC169: 0.375 | AD169: 0.5 | AE169: 0.5 | AF169: 0.375 | AG169: 0.375 | AH169: 0.375 | AI169: 0.375 | AJ169: 0.5 | AK169: 0.625 | AL169: 0.75 | AM169: 0.625 | AN169: 0.625 | AO169: 0.625 | AP169: 0.75 | AQ169: 0.875 | AR169: 1 | AS169: 1 | AT169: 1 | AU169: 1 | AV169: 1 | AW169: 1 | AX169: 1 | AY169: 1 | AZ169: 1 | BA169: 1 | BB169: 1 | BC169: 1 | BD169: 1 | BE169: 1 | BF169: 1 | BG169: 1 | BH169: 1 | BI169: 1 | BJ169: 1 | BK169: 1 | BL169: 1 | BM169: 1 | BN169: 1 | BO169: 1 | BP169: 1 | BQ169: 1 | BR169: 1 | BS169: 1 | BT169: 1 | BU169: 1 | BV169: 1 | BW169: 1 | BX169: 1 | BY169: 1 | BZ169: 1 | CA169: 1 | CB169: 1 | CC169: 1 | CD169: 1 | CE169: 1 | CF169: 1 | CG169: 1 | CH169: 1 | CI169: 1 | CJ169: 1 | CK169: 1 | CL169: 1 | CM169: 1 | CN169: 1 | CO169: 1 | CP169: 1 | CQ169: 1 | CR169: 1 | CS169: 1 | CT169: 1 | CU169: 1 | CV169: 1 | CW169: 1 | CX169: 1 | CY169: 1
B170: 52 | D170: 1 | E170: 1 | F170: 1 | G170: 1 | H170: 1 | I170: 1 | J170: 1 | K170: 1 | L170: 1 | M170: 0.75 | N170: 0.75 | O170: 0.625 | P170: 0.5 | Q170: 0.375 | R170: 0.375 | S170: 0.25 | T170: 0.25 | U170: 0.375 | V170: 0.5 | W170: 0.5 | X170: 0.625 | Y170: 0.625 | Z170: 0.75 | AA170: 0.625 | AB170: 0.625 | AC170: 0.625 | AD170: 0.625 | AE170: 0.75 | AF170: 0.75 | AG170: 0.625 | AH170: 0.75 | AI170: 0.625 | AJ170: 0.625 | AK170: 0.75 | AL170: 0.75 | AM170: 1 | AN170: 1 | AO170: 1 | AP170: 1 | AQ170: 1 | AR170: 1 | AS170: 1 | AT170: 1 | AU170: 1 | AV170: 1 | AW170: 1 | AX170: 1 | AY170: 1 | AZ170: 1 | BA170: 1 | BB170: 1 | BC170: 1 | BD170: 1 | BE170: 1 | BF170: 1 | BG170: 1 | BH170: 1 | BI170: 1 | BJ170: 1 | BK170: 1 | BL170: 1 | BM170: 1 | BN170: 1 | BO170: 1 | BP170: 1 | BQ170: 1 | BR170: 1 | BS170: 1 | BT170: 1 | BU170: 1 | BV170: 1 | BW170: 1 | BX170: 1 | BY170: 1 | BZ170: 1 | CA170: 1 | CB170: 1 | CC170: 1 | CD170: 1 | CE170: 1 | CF170: 1 | CG170: 1 | CH170: 1 | CI170: 1 | CJ170: 1 | CK170: 1 | CL170: 1 | CM170: 1 | CN170: 1 | CO170: 1 | CP170: 1 | CQ170: 1 | CR170: 1 | CS170: 1 | CT170: 1 | CU170: 1 | CV170: 1 | CW170: 1 | CX170: 1 | CY170: 1
B171: 53 | D171: 1 | E171: 1 | F171: 1 | G171: 1 | H171: 1 | I171: 1 | J171: 1 | K171: 0.875 | L171: 0.875 | M171: 0.75 | N171: 0.75 | O171: 0.75 | P171: 0.625 | Q171: 0.5 | R171: 0.5 | S171: 0.375 | T171: 0.5 | U171: 0.5 | V171: 0.5 | W171: 0.5 | X171: 0.5 | Y171: 0.5 | Z171: 0.375 | AA171: 0.375 | AB171: 0.375 | AC171: 0.375 | AD171: 0.5 | AE171: 0.625 | AF171: 0.5 | AG171: 0.625 | AH171: 0.625 | AI171: 0.625 | AJ171: 0.625 | AK171: 0.75 | AL171: 0.875 | AM171: 0.875 | AN171: 0.875 | AO171: 0.875 | AP171: 0.875 | AQ171: 1 | AR171: 1 | AS171: 1 | AT171: 1 | AU171: 1 | AV171: 1 | AW171: 1 | AX171: 1 | AY171: 1 | AZ171: 1 | BA171: 1 | BB171: 1 | BC171: 1 | BD171: 1 | BE171: 1 | BF171: 1 | BG171: 1 | BH171: 1 | BI171: 1 | BJ171: 1 | BK171: 1 | BL171: 1 | BM171: 1 | BN171: 1 | BO171: 1 | BP171: 1 | BQ171: 1 | BR171: 1 | BS171: 1 | BT171: 1 | BU171: 1 | BV171: 1 | BW171: 1 | BX171: 1 | BY171: 1 | BZ171: 1 | CA171: 1 | CB171: 1 | CC171: 1 | CD171: 1 | CE171: 1 | CF171: 1 | CG171: 1 | CH171: 1 | CI171: 1 | CJ171: 1 | CK171: 1 | CL171: 1 | CM171: 1 | CN171: 1 | CO171: 1 | CP171: 1 | CQ171: 1 | CR171: 1 | CS171: 1 | CT171: 1 | CU171: 1 | CV171: 1 | CW171: 1 | CX171: 1 | CY171: 1
B172: 54 | D172: 1 | E172: 1 | F172: 1 | G172: 1 | H172: 1 | I172: 1 | J172: 1 | K172: 1 | L172: 0.875 | M172: 0.75 | N172: 0.75 | O172: 0.75 | P172: 0.625 | Q172: 0.5 | R172: 0.375 | S172: 0.5 | T172: 0.375 | U172: 0.375 | V172: 0.5 | W172: 0.375 | X172: 0.5 | Y172: 0.5 | Z172: 0.5 | AA172: 0.5 | AB172: 0.5 | AC172: 0.5 | AD172: 0.5 | AE172: 0.5 | AF172: 0.5 | AG172: 0.625 | AH172: 0.75 | AI172: 0.625 | AJ172: 0.625 | AK172: 0.625 | AL172: 0.75 | AM172: 0.625 | AN172: 0.75 | AO172: 0.75 | AP172: 0.875 | AQ172: 0.875 | AR172: 0.875 | AS172: 0.875 | AT172: 1 | AU172: 1 | AV172: 1 | AW172: 1 | AX172: 1 | AY172: 1 | AZ172: 1 | BA172: 1 | BB172: 1 | BC172: 1 | BD172: 1 | BE172: 1 | BF172: 1 | BG172: 1 | BH172: 1 | BI172: 1 | BJ172: 1 | BK172: 1 | BL172: 1 | BM172: 1 | BN172: 1 | BO172: 1 | BP172: 1 | BQ172: 1 | BR172: 1 | BS172: 1 | BT172: 1 | BU172: 1 | BV172: 1 | BW172: 1 | BX172: 1 | BY172: 1 | BZ172: 1 | CA172: 1 | CB172: 1 | CC172: 1 | CD172: 1 | CE172: 1 | CF172: 1 | CG172: 1 | CH172: 1 | CI172: 1 | CJ172: 1 | CK172: 1 | CL172: 1 | CM172: 1 | CN172: 1 | CO172: 1 | CP172: 1 | CQ172: 1 | CR172: 1 | CS172: 1 | CT172: 1 | CU172: 1 | CV172: 1 | CW172: 1 | CX172: 1 | CY172: 1
B173: 55 | D173: 1 | E173: 1 | F173: 1 | G173: 1 | H173: 1 | I173: 1 | J173: 1 | K173: 1 | L173: 0.875 | M173: 0.75 | N173: 0.625 | O173: 0.5 | P173: 0.5 | Q173: 0.375 | R173: 0.25 | S173: 0.25 | T173: 0.375 | U173: 0.375 | V173: 0.5 | W173: 0.5 | X173: 0.5 | Y173: 0.5 | Z173: 0.625 | AA173: 0.625 | AB173: 0.625 | AC173: 0.625 | AD173: 0.5 | AE173: 0.5 | AF173: 0.375 | AG173: 0.375 | AH173: 0.5 | AI173: 0.5 | AJ173: 0.5 | AK173: 0.5 | AL173: 0.5 | AM173: 0.5 | AN173: 0.5 | AO173: 0.625 | AP173: 0.5 | AQ173: 0.625 | AR173: 0.625 | AS173: 0.75 | AT173: 0.75 | AU173: 0.75 | AV173: 0.875 | AW173: 1 | AX173: 1 | AY173: 1 | AZ173: 1 | BA173: 1 | BB173: 1 | BC173: 1 | BD173: 1 | BE173: 1 | BF173: 1 | BG173: 1 | BH173: 1 | BI173: 1 | BJ173: 1 | BK173: 1 | BL173: 1 | BM173: 1 | BN173: 1 | BO173: 1 | BP173: 1 | BQ173: 1 | BR173: 1 | BS173: 1 | BT173: 1 | BU173: 1 | BV173: 1 | BW173: 1 | BX173: 1 | BY173: 1 | BZ173: 1 | CA173: 1 | CB173: 1 | CC173: 1 | CD173: 1 | CE173: 1 | CF173: 1 | CG173: 1 | CH173: 1 | CI173: 1 | CJ173: 1 | CK173: 1 | CL173: 1 | CM173: 1 | CN173: 1 | CO173: 1 | CP173: 1 | CQ173: 1 | CR173: 1 | CS173: 1 | CT173: 1 | CU173: 1 | CV173: 1 | CW173: 1 | CX173: 1 | CY173: 1
